Workbook

Sheet Light (hidden)
A1: Artikelnummer+ | B1: Bezeichnung | C1: Preis excl. | D1: Preis Inkl. | E1: Notiz
A2: 100012 | B2: =Products!D12 -> DMX Extension | C2: =Products!E12 -> 5619.01 | D2: =Products!F12 -> 6799.0021
A3: 100029 | B3: =VLOOKUP(Main!C2,Translating_general!A101:P118,2,FALSE) -> Dimmer Extension (Výběr kanálu)
A4: 100117 | B4: =Products!D27 -> RGBW 24V Dimmer DMX | C4: =Products!E27 -> 1499 | D4: =Products!F27 -> 1813.79
A5: 100125 | B5: =Products!D29 -> RGBW 24V Dimmer Air | C5: =Products!E29 -> 1849 | D5: =Products!F29 -> 2237.29
A6: 200042 | B6: =Products!D73 -> 5m RGB LED pásky IP20 (bez ochrany proti vodě) | C6: =Products!E73 -> 2149 | D6: =Products!F73 -> 2600.29
A7: 200043 | B7: =Products!D74 -> 5m LED pásky (teplá bílá) - IP20 (bez ochrany proti vodě) | C7: =Products!E74 -> 2149 | D7: =Products!F74 -> 2600.29
A8: 200046 | B8: =Products!D75 -> 5m RGB LED pásky IP68 (proti potopení do vody) | C8: =Products!E75 -> 2499 | D8: =Products!F75 -> 3023.79
A9: 100153 | B9: =Products!D37 -> Nano IO Air | C9: =Products!E37 -> 2499 | D9: =Products!F37 -> 3023.79
A10: 200061 | B10: =Products!D82 -> 5m LED pásky (teplá bílá) - IP65 (proti tryskající vodě) | C10: =Products!E82 -> 2299 | D10: =Products!F82 -> 2781.79
A11: 200092 | B11: =Products!D93 -> 5m LED pásky (teplá bílá) - IP68 (proti potopení do vody) | C11: =Products!E93 -> 2499 | D11: =Products!F93 -> 3023.79
A12: 200098 | B12: =Products!D98 -> 5m RGBW LED pásky IP20 (bez ochrany proti vodě) | C12: =Products!E98 -> 2999 | D12: =Products!F98 -> 3628.79
A13: 200099 | B13: =Products!D99 -> 5m RGBW LED pásky IP65 (proti tryskající vodě) | C13: =Products!E99 -> 3099 | D13: =Products!F99 -> 3749.79
A14: 200100 | B14: =Products!D100 -> 5m RGBW LED pásky IP68 (proti potopení do vody) | C14: =Products!E100 -> 3249 | D14: =Products!F100 -> 3931.29
A15: 200280 | B15: =Products!D140 -> Příslušenství k LED páskům - set RGBW | C15: =Products!E140 -> 449 | D15: =Products!F140 -> 543.29
A16: 200278 | B16: =Products!D141 -> Příslušenství k LED páskům - set WW | C16: =Products!E141 -> 325 | D16: =Products!F141 -> 393.25
B17: =VLOOKUP(Main!C2,Translating_general!A101:P118,3,FALSE) -> Analog 1-10V
B18: =VLOOKUP(Main!C2,Translating_general!A101:P118,4,FALSE) -> Světelný okruh 5A
A19: 100204 | B19: =Products!D147 -> LED Spot RGBW | C19: =Products!E147 -> 1349 | D19: =Products!F147 -> 1632.29
A20: 100203 | B20: =Products!D148 -> LED Spot WW | C20: =Products!E148 -> 899 | D20: =Products!F148 -> 1087.79
B21: =VLOOKUP(Main!C2,Translating_general!A101:AK118,37,FALSE) -> Dali Channel
B22: =VLOOKUP(Main!C2,Translating_general!A101:AM118,39,FALSE) -> Světelný okruh 16A
B23: =Products!D180 -> Příložný LED Spot RGBW bílá
B24: =Products!D181 -> Příložný LED Spot WW bílá | M24: =VLOOKUP(Main!C2,Translating_general!A101:P118,5,FALSE) -> Stmívatelný okruh 230V
B25: =Products!D182 -> Příložný LED Spot Tree RGBW bílá | M25: =VLOOKUP(Main!C2,Translating_general!A101:P118,6,FALSE) -> Stmívatelný okruh 0-10V s elektronickým předřadníkem | P25: DMX Dimmer 4 Kanal muss addiert werden
B26: =Products!D183 -> Příložný LED Spot Tree WW bílá | M26: =VLOOKUP(Main!C2,Translating_general!A101:P118,7,FALSE) -> DMX Dimmer 50W na kanál | P26: Air Dimmer 4 Kanal muss addiert werden
B27: =Products!D184 -> LED Spot Tree WW bílá | M27: =VLOOKUP(Main!C2,Translating_general!A101:P118,8,FALSE) -> Air Dimmer kanál 50W
B28: =Products!D185 -> LED Spot Tree RGBW bílá
B29: =Products!D186 -> RGBW 24V Dimmer Tree
B30: =Products!D191 -> Krabice do betonu pro LED spot | M30: DMX Extension für Signal
M31: DMX Dimmer für LED Streifen
M32: Netzteil 4,2 Ampere
M33: Pro Streifen 1 Dimmer
M34: Dimmer einfach so auswählen

Sheet Music (hidden)
A1: Artikelnummer+ | B1: Bezeichnung | C1: Preis excl. | D1: Preis Inkl. | E1: Notiz
B2: =VLOOKUP(Main!$C$2,Translating_general!$A$101:$T$118,20,FALSE) -> Zóna Music Serveru
A3: 100165 | B3: =Products!D42 -> Loxone Music Server 4 Zóny | C3: =Products!E42 -> 31999 | D3: =Products!F42 -> 38718.79
A4: 100166 | B4: =Products!D43 -> Loxone Music Server 8 Zón | C4: =Products!E43 -> 44999 | D4: =Products!F43 -> 54448.79
A5: 100167 | B5: =Products!D44 -> Loxone Music Server 12 Zón | C5: =Products!E44 -> 52499 | D5: =Products!F44 -> 63523.79
A6: 100168 | B6: =Products!D45 -> Loxone Music Server 16 Zón | C6: =Products!E45 -> 64999 | D6: =Products!F45 -> 78648.79
A7: 100169 | B7: =Products!D46 -> Loxone Music Server 20 Zón | C7: =Products!E46 -> 74999 | D7: =Products!F46 -> 90748.79
A8: 200097 | B8: =Products!D97 -> Loxone Speaker | C8: =Products!E97 -> 2225 | D8: =Products!F97 -> 2692.25
A9: 200110 | B9: =Products!D104 -> Loxone 12ti kanálový zesilovač | C9: =Products!E104 -> 15999 | D9: =Products!F104 -> 19358.79
A10: 200150 | B10: =Products!D112 -> Instalační box pro Loxone reproduktor (speaker) | C10: =Products!E112 -> 1199 | D10: =Products!F112 -> 1450.79
A11: 200153 | B11: =Products!D114 -> Loxone Wall Speaker | C11: =Products!E114 -> 3099 | D11: =Products!F114 -> 3749.79
A12: 200202 | B12: =Products!D139 -> Loxone Speaker back box pro snížené stropy | C12: =Products!E139 -> 999 | D12: =Products!F139 -> 1208.79
A13: 100205 | B13: =Products!D143 -> Loxone Music Server Upgrade | C13: =Products!E143 -> 2699 | D13: =Products!F143 -> 3265.79

Sheet Heating (hidden)
A1: Artikelnummer+ | B1: Bezeichnung | C1: Preis excl. | D1: Preis Inkl. | E1: Notiz
A2: 100163 | C2: =Products!E41 -> 2099 | D2: =Products!F41 -> 2539.79
A3: 200003 | C3: =Products!E57 -> 1032.23 | D3: =Products!F57 -> 1248.9983
A4: 200004 | B4: =Products!D41 -> Hlavice Air | C4: =Products!E58 -> 0 | D4: =Products!F58 -> 0
A5: 200005 | B5: =Products!D57 -> Venkovní senzor teploty | C5: =Products!E59 -> 0 | D5: =Products!F59 -> 0
A6: 200006 | B6: =Products!D60 -> Vnitřní teplotní senzor 0-10V | C6: =Products!E60 -> 1032.23 | D6: =Products!F60 -> 1248.9983
A7: 200010 | B7: =Products!D62 -> Senzor teploty a vlhkosti (vnitřní) 0-10V | C7: =Products!E62 -> 2189.26 | D7: =Products!F62 -> 2649.0046
A8: 200017 | B8: =Products!D65 -> Senzor CO2/Teplota/Vlhkost | C8: =Products!E65 -> 5784.3 | D8: =Products!F65 -> 6999.003
A9: 200077 | B9: =Products!D87 -> 1-Wire teplotní čip v pouzdře | C9: =Products!E87 -> 285.4 | D9: =Products!F87 -> 345.334
A10: 200109 | B10: =VLOOKUP(Main!C2,Translating_general!A101:P118,9,FALSE) -> 1-Wire teplotní senzor | C10: =Products!E103 -> 1049 | D10: =Products!F103 -> 1269.29
B11: =Products!D154 -> Hlavice Tree

Sheet Entry (hidden)
A1: Artikelnummer+ | B1: Bezeichnung | C1: Preis excl. | D1: Preis Inkl. | E1: Notiz
A2: 200063 | B2: =Products!D83 -> Čtečka elektronického klíče | C2: =Products!E83 -> 230.58 | D2: =Products!F83 -> 279.0018
A3: 200064 | B3: =Products!D84 -> Elektronický klíč | C3: =Products!E84 -> 81.82 | D3: =Products!F84 -> 99.0022
A4: 200070 | B4: =Products!D86 -> Elektronický klíč (Magnetický) | C4: =Products!E86 -> 205.79 | D4: =Products!F86 -> 249.0059
A5: 200093 | B5: =Products!D94 -> Loxone Intercom | C5: =Products!E94 -> 24999 | D5: =Products!F94 -> 30248.79
A6: 200094 | B6: =Products!D95 -> Zapuštěný box pro Loxone Intercom | C6: =Products!E95 -> 1375 | D6: =Products!F95 -> 1663.75
A7: 200095 | B7: =Products!D96 -> Povrchový box pro Loxone Intercom | C7: =Products!E96 -> 2499 | D7: =Products!F96 -> 3023.79
A8: 200191 | B8: =Products!D137 -> čtečka elektronického klíče - nerez | C8: =Products!E137 -> 779 | D8: =Products!F137 -> 942.59
A9: 200273 | B9: =Products!D144 -> Loxone Intercom XL | C9: =Products!E144 -> 31499 | D9: =Products!F144 -> 38113.79

Sheet Quick Planning (hidden)
A5: Projektinformation
A13: Räume | O13: Aktiver Raum | P13: hj
P14: hj
P15: re
A41: Angebot

Sheet QuickPlanning2 (hidden)
A1: Schnellplanung für Ihr Projekt [BETA VERSION]
M2: Erklärung:
M3: Beginnen Sie Ihre Schnellplanung, indem Sie auf den grünen Button klicken. Dann geben Sie ihre Räume an und welche Kathegorien mit Loxone realisiert werden sollen. Sie können danach wie gewohnt die Main Seite fein abstimmen!
M7: Tipp:
M8: Zeigen Sie dem Kunden was das Projekt kosten würde, wenn Sie Musik/Heizung/Beschattung auch realisieren!
S9: Projekt
S10: Projektname | T10: Kunde XY
S11: Kunde | T11: Max Mustermann
M12: Dieses Tool ist in der Beta Phase, ich würde mich über Feedback zu Performance, Funktion, Wünschen etc. an die Partnerbetreuer sehr freuen! | S12: Adresse | T12: Musterstraße 3
S13: PLZ | T13: 1234
S14: Ort | T14: Musterort
V16: Für mehrsprachig, immer die Werte referenzieren, nie direkt schreiben
S17: Anzahl | T17: Wohnzimmer Licht | U17: Anzahl | V17: Wohnzimmer Beschattung | W17: Anzahl | X17: Wohnzimmer Heizung | Y17: Anzahl | Z17: Wohnzimmer Musik
S18: 1 | T18: =Sensors!B22 -> Motion Sensor Tree bilá | U18: 8 | V18: =Shading!B3 -> Stínění | W18: 2 | X18: =Main!B21 -> Hlavice Tree | Y18: 1 | Z18: =Music!B2 -> Zóna Music Serveru
S19: 2 | T19: =Tree!B5 -> Touch Tree bílá | Y19: 2 | Z19: =Music!B8 -> Loxone Speaker
S20: 1 | T20: =Light!B12 -> 5m RGBW LED pásky IP20 (bez ochrany proti vodě) | Y20: 2 | Z20: =Music!B10 -> Instalační box pro Loxone reproduktor (speaker)
S21: 12 | T21: =Light!B20 -> LED Spot WW
S22: 2 | T22: =Light!B29 -> RGBW 24V Dimmer Tree
A32: Kostenrechner
A33: Netto Liste | B33: =Products!G196 -> 285462.48
A34: Partnerrabatt [%] | B34: 17
A35: Netto Produkte | B35: =B33*(1-(B34/100)) -> 236933.8584
A36: Interne Kosten | B36: 0.35 | C36: (Programmierung, Installation, …)
A37: Netto Gesamt | B37: =B33*(1+B36) -> 385374.348
S39: Anzahl | T39: Küche Licht | U39: Anzahl | V39: Küche Beschattung | W39: Anzahl | X39: Küche Heizung | Y39: Anzahl | Z39: Küche Musik
S40: 1 | T40: =Sensors!B22 -> Motion Sensor Tree bilá | U40: 4 | V40: =Shading!B3 -> Stínění | W40: 1 | X40: =Main!B21 -> Hlavice Tree | Y40: 1 | Z40: =Music!B2 -> Zóna Music Serveru
A41: Allgemeine Kosten (Miniserver,…) | D41: =SUMIF(Products!R7:R188, "R", Products!G7:G188)/(1+Products!E197/100) -> 154672.48 | S41: 2 | T41: =Tree!B5 -> Touch Tree bílá | Y41: 2 | Z41: =Music!B8 -> Loxone Speaker
S42: 9 | T42: =Light!B20 -> LED Spot WW | Y42: 2 | Z42: =Music!B10 -> Instalační box pro Loxone reproduktor (speaker)
A43: Licht | D43: =SUMIF(Products!R7:R188, "L", Products!G7:G188)/(1+Products!E197/100) -> 60104 | S43: 2 | T43: =Light!B29 -> RGBW 24V Dimmer Tree
S44: 1 | T44: =Light!B12 -> 5m RGBW LED pásky IP20 (bez ochrany proti vodě)
A45: Beschattung | D45: =SUMIF(Products!R7:R188, "B", Products!G7:G188)/(1+Products!E197/100) -> 0
A47: Heizung | D47: =SUMIF(Products!R7:R188, "H", Products!G7:G188)/(1+Products!E197/100) -> 10494
A49: Musik | D49: =SUMIF(Products!R7:R188, "M", Products!G7:G188)/(1+Products!E197/100) -> 52993
S61: Anzahl | T61: Bad EG Licht | U61: Anzahl | V61: Bad EG Beschattung | W61: Anzahl | X61: BadEG Heizung | Y61: Anzahl | Z61: Bad EG Musik
S62: 2 | T62: Bewegungsmelder Tree Weiß | U62: 3 | V62: Beschattung (Rollo, Raffstore,...) | W62: 1 | X62: Stellantrieb Tree | Y62: 1 | Z62: =Music!B2 -> Zóna Music Serveru
S63: 1 | T63: Touch Tree Weiß | Y63: 2 | Z63: =Music!B8 -> Loxone Speaker
Y64: 2 | Z64: =Music!B10 -> Instalační box pro Loxone reproduktor (speaker)
S82: Anzahl | T82: Kizi1 Licht | U82: Anzahl | V82: Kizi1 Beschattung | W82: Anzahl | X82: Kizi1 Heizun | Y82: Anzahl | Z82: Kizi1 Musik
S83: 2 | T83: Bewegungsmelder Tree Weiß | U83: 3 | V83: Beschattung (Rollo, Raffstore,...) | W83: 1 | X83: Stellantrieb Tree | Y83: 1 | Z83: =Music!B2 -> Zóna Music Serveru
S84: 1 | T84: Touch Tree Weiß | Y84: 2 | Z84: =Music!B8 -> Loxone Speaker
Y85: 2 | Z85: =Music!B10 -> Instalační box pro Loxone reproduktor (speaker)
S104: Anzahl | T104: Kizi2 Licht | U104: Anzahl | V104: Kizi2 Beschattung | W104: Anzahl | X104: Kizi2 Heizun | Y104: Anzahl | Z104: Kizi2 Musik
S105: 2 | T105: Bewegungsmelder Tree Weiß | U105: 3 | V105: Beschattung (Rollo, Raffstore,...) | W105: 1 | X105: Stellantrieb Tree | Y105: 1 | Z105: =Music!B2 -> Zóna Music Serveru
S106: 1 | T106: Touch Tree Weiß | Y106: 2 | Z106: =Music!B8 -> Loxone Speaker
Y107: 2 | Z107: Loxone Speaker Einbaubox
S125: Anzahl | T125: FlurDiele EG Licht | U125: Anzahl | V125: Flur Eg Beschattung | W125: Anzahl | X125: Flur Eg Heizung | Y125: Anzahl | Z125: Flur Eg Musik
S126: 2 | T126: Bewegungsmelder Tree Weiß | U126: 3 | V126: Beschattung (Rollo, Raffstore,...) | W126: 1 | X126: Stellantrieb Tree | Y126: 1 | Z126: =Music!B2 -> Zóna Music Serveru
S127: 1 | T127: Touch Tree Weiß | Y127: 2 | Z127: =Music!B8 -> Loxone Speaker
Y128: 2 | Z128: =Music!B10 -> Instalační box pro Loxone reproduktor (speaker)
S146: Anzahl | T146: Eingang Licht | U146: Anzahl | V146: Eingang Beschattung | W146: Anzahl | X146: Eingang Heizung | Y146: Anzahl | Z146: Eingang Musik
S147: 2 | T147: Bewegungsmelder Tree Weiß | U147: 3 | V147: Beschattung (Rollo, Raffstore,...) | W147: 1 | X147: Stellantrieb Tree | Y147: 1 | Z147: =Music!B2 -> Zóna Music Serveru
S148: 1 | T148: Touch Tree Weiß | Y148: 2 | Z148: =Music!B8 -> Loxone Speaker
Y149: 2 | Z149: =Music!B10 -> Instalační box pro Loxone reproduktor (speaker)
S167: Anzahl | T167: Schlazi Licht | U167: Anzahl | V167: Schlazi Beschattung | W167: Anzahl | X167: Schlazi Heizung | Y167: Anzahl | Z167: Schlazi Muik
S168: 2 | T168: Bewegungsmelder Tree Weiß | U168: 3 | V168: Beschattung (Rollo, Raffstore,...) | W168: 1 | X168: Stellantrieb Tree | Y168: 1 | Z168: =Music!B2 -> Zóna Music Serveru
S169: 1 | T169: Touch Tree Weiß | Y169: 2 | Z169: =Music!B8 -> Loxone Speaker
Y170: 2 | Z170: =Music!B10 -> Instalační box pro Loxone reproduktor (speaker)
S188: Anzahl | T188: WC licht | U188: Anzahl | V188: WC beschattung | W188: Anzahl | X188: WC Heizung | Y188: Anzahl | Z188: WC Musik
S189: 2 | T189: Bewegungsmelder Tree Weiß | U189: 3 | V189: Beschattung (Rollo, Raffstore,...) | W189: 1 | X189: Stellantrieb Tree | Y189: 1 | Z189: =Music!B2 -> Zóna Music Serveru
S190: 1 | T190: Touch Tree Weiß | Y190: 2 | Z190: =Music!B8 -> Loxone Speaker
Y191: 2 | Z191: =Music!B10 -> Instalační box pro Loxone reproduktor (speaker)
S209: Anzahl | T209: Bad OG Licht | U209: Anzahl | V209: Bad OG Beschattung | W209: Anzahl | X209: Bad OG Heizung | Y209: Anzahl | Z209: Bad OG Musik
S210: 2 | T210: Bewegungsmelder Tree Weiß | U210: 3 | V210: Beschattung (Rollo, Raffstore,...) | W210: 1 | X210: Stellantrieb Tree | Y210: 1 | Z210: Musikserver Zonenauswahl
S211: 1 | T211: Touch Tree Weiß | Y211: 2 | Z211: =Music!B8 -> Loxone Speaker
Y212: 2 | Z212: =Music!B10 -> Instalační box pro Loxone reproduktor (speaker)
S230: Anzahl | T230: Flur OG Licht | U230: Anzahl | V230: Flur OG Beschattung | W230: Anzahl | X230: Flur OG Heizung | Y230: Anzahl | Z230: Flur OG Musik
S231: 2 | T231: Bewegungsmelder Tree Weiß | U231: 3 | V231: Beschattung (Rollo, Raffstore,...) | W231: 1 | X231: Stellantrieb Tree | Y231: 1 | Z231: =Music!B2 -> Zóna Music Serveru
S232: 1 | T232: Touch Tree Weiß | Y232: 2 | Z232: =Music!B8 -> Loxone Speaker
Y233: 2 | Z233: =Music!B10 -> Instalační box pro Loxone reproduktor (speaker)
S251: Anzahl | T251: Garage Licht | U251: Anzahl | V251: Garage Beschattung | W251: Anzahl | X251: Garage Heizung | Y251: Anzahl | Z251: Garage Musik
S252: 2 | T252: Bewegungsmelder Tree Weiß | U252: 3 | V252: Beschattung (Rollo, Raffstore,...) | W252: 1 | X252: Stellantrieb Tree | Y252: 1 | Z252: =Music!B2 -> Zóna Music Serveru
S253: 1 | T253: Touch Tree Weiß | Y253: 2 | Z253: =Music!B8 -> Loxone Speaker
Y254: 2 | Z254: =Music!B10 -> Instalační box pro Loxone reproduktor (speaker)

Sheet Sensors (hidden)
A1: Artikelnummer+ | B1: Bezeichnung | C1: Preis excl. | D1: Preis Inkl. | E1: Notiz
A2: 200003 | B2: =Products!D57 -> Venkovní senzor teploty | C2: =Products!E57 -> 1032.23 | D2: =Products!F57 -> 1248.9983
A3: 200006 | B3: =Products!D60 -> Vnitřní teplotní senzor 0-10V | C3: =Products!E60 -> 1032.23 | D3: =Products!F60 -> 1248.9983
A4: 200010 | B4: =Products!D62 -> Senzor teploty a vlhkosti (vnitřní) 0-10V | C4: =Products!E62 -> 2189.26 | D4: =Products!F62 -> 2649.0046
A5: 200017 | B5: =Products!D65 -> Senzor CO2/Teplota/Vlhkost | C5: =Products!E65 -> 5784.3 | D5: =Products!F65 -> 6999.003
A6: 200018 | B6: =Products!D66 -> Dešťový senzor (24V) | C6: =Products!E66 -> 1445.45 | D6: =Products!F66 -> 1748.9945
A7: 200031 | B7: =Products!D67 -> Senzor teploty a vlhkosti (venkovní) | C7: =Products!E67 -> 2933.06 | D7: =Products!F67 -> 3549.0026
A8: 200032 | B8: =Products!D68 -> Senzor osvětlení 0-10V | C8: =Products!E68 -> 1982.64 | D8: =Products!F68 -> 2398.9944
A9: 200033 | B9: =VLOOKUP(Main!C2,Translating_general!A101:P118,10,FALSE) -> Senzor rychlosti větru 24V (s digitálním vstupem na Extensionu) | C9: =Products!E69 -> 1817.36 | D9: =Products!F69 -> 2199.0056
A10: 200034 | B10: =Products!D70 -> Držák pro senzor větru | C10: =Products!E70 -> 1362.81 | D10: =Products!F70 -> 1649.0001
A11: 200054 | B11: =Products!D79 -> Ultrazvukový senzor 0-10V | C11: =Products!E79 -> 5247.11 | D11: =Products!F79 -> 6349.0031
A12: 200077 | B12: =Products!D87 -> 1-Wire teplotní čip v pouzdře | C12: =Products!E87 -> 285.4 | D12: =Products!F87 -> 345.334
A13: 200101 | B13: =Products!D101 -> Záplavový senzor | C13: =Products!E101 -> 425 | D13: =Products!F101 -> 514.25
A14: 200109 | B14: =Products!D103 -> 1-Wire teplotní senzor set | C14: =Products!E103 -> 1049 | D14: =Products!F103 -> 1269.29
A15: 200112 | B15: =Products!D105 -> Senzor pohybu 24V (venkovní) | C15: =Products!E105 -> 2499 | D15: =Products!F105 -> 3023.79
B16: =VLOOKUP(Main!C2,Translating_general!A101:P118,11,FALSE) -> Okenní kontakt (integrovaný v okně pouze DI)
A17: 200113 | B17: =Products!D106 -> Okenní kontakt | C17: =Products!E106 -> 259 | D17: =Products!F106 -> 313.39
A18: 200136 | B18: =Products!D109 -> Saunový senzor teplota/vlhkost | C18: =Products!E109 -> 3999 | D18: =Products!F109 -> 4838.79
A19: 200154 | B19: =Products!D115 -> Senzor tlaku 0-10V | C19: =Products!E115 -> 2849 | D19: =Products!F115 -> 3447.29
A20: 200155 | B20: =Products!D116 -> Senzor rozbití okna 24V | C20: =Products!E116 -> 699 | D20: =Products!F116 -> 845.79
B21: =Products!D158 -> Pohybový senzor Tree anthrazit
B22: =Products!D153 -> Motion Sensor Tree bilá
B23: =Products!D155 -> Záplavový senzor Air
B24: =Products!D156 -> Okenní a dveřní kontakt Air anthrazit
B25: =Products!D157 -> Okenní a dveřní kontakt Air bílá
B26: =HLOOKUP(Main!$C$2,Translating_products!$DI$4:$DY$216,Translating_products!CM187, FALSE) -> Digital IN (Reserve)
B27: =HLOOKUP(Main!$C$2,Translating_products!$DI$4:$DY$216,Translating_products!CM188, FALSE) -> Analog IN (Reserve)
B28: =HLOOKUP(Main!$C$2,Translating_products!$DI$4:$DY$216,Translating_products!CM189, FALSE) -> Okenní klika Air
B29: =Products!D189 -> Meteostanice Tree
B30: =Products!D190 -> Meteostanice Air

Sheet Distributors (hidden)
A1: Artikelnummer+ | B1: Bezeichnung | C1: Preis excl. | D1: Preis Inkl. | E1: Notiz
A2: 200168 | B2: =Products!D120 -> Svorka na DIN lištu PPV8 (20 kusů) | C2: =Products!E120 -> 5499 | D2: =Products!F120 -> 6653.79
A3: 200169 | B3: =Products!D121 -> Propojovací rozvaděč PRV8 (20 kusů) | C3: =Products!E121 -> 5199 | D3: =Products!F121 -> 6290.79
A4: 200170 | B4: =VLOOKUP(Main!$C$2,Translating_general!$A$101:$AZ$118,21,FALSE) -> Předělovací deska PRV8 (10 ks) | C4: =Products!E122 -> 299 | D4: =Products!F122 -> 361.79
A5: 200171 | B5: =VLOOKUP(Main!$C$2,Translating_general!$A$101:$AZ$118,22,FALSE) -> Držák na značky pro PPV8/PRV8 (20ks) | C5: =Products!E123 -> 699 | D5: =Products!F123 -> 845.79
A6: 200172 | B6: =VLOOKUP(Main!$C$2,Translating_general!$A$101:$AZ$118,23,FALSE) -> Bočnice pro PPV8/PRV8 (10 ks) | C6: =Products!E124 -> 139 | D6: =Products!F124 -> 168.19
A7: 200173 | B7: =VLOOKUP(Main!$C$2,Translating_general!$A$101:$AZ$118,24,FALSE) -> Svorka na připojení motoru PMAK4 (50 ks) | C7: =Products!E125 -> 5299 | D7: =Products!F125 -> 6411.79
A8: 200174 | B8: =VLOOKUP(Main!$C$2,Translating_general!$A$101:$AZ$118,25,FALSE) -> Bočnice pro PMAK4 (20 ks) | C8: =Products!E126 -> 279 | D8: =Products!F126 -> 337.59
A9: 200175 | B9: =VLOOKUP(Main!$C$2,Translating_general!$A$101:$AZ$118,26,FALSE) -> Svorkovnice PDL (50ks) | C9: =Products!E127 -> 2799 | D9: =Products!F127 -> 3386.79
A10: 200176 | B10: =VLOOKUP(Main!$C$2,Translating_general!$A$101:$AZ$118,27,FALSE) -> Koncová podpěra svorkovnice ZEW (20 ks) | C10: =Products!E128 -> 199 | D10: =Products!F128 -> 240.79
A11: 200177 | B11: =VLOOKUP(Main!$C$2,Translating_general!$A$101:$AZ$118,28,FALSE) -> Bočnice pro PDL (20 ks) | C11: =Products!E129 -> 199 | D11: =Products!F129 -> 240.79
A12: 200178 | B12: =VLOOKUP(Main!$C$2,Translating_general!$A$101:$AZ$118,29,FALSE) -> Pojistková svorkovnice (25 ks) | C12: =Products!E130 -> 3399 | D12: =Products!F130 -> 4112.79
A13: 200179 | B13: =VLOOKUP(Main!$C$2,Translating_general!$A$101:$AZ$118,30,FALSE) -> Bočnice pojistkové svorkovnice (50 ks) | C13: =Products!E131 -> 449 | D13: =Products!F131 -> 543.29
A14: 200180 | B14: =VLOOKUP(Main!$C$2,Translating_general!$A$101:$AZ$118,31,FALSE) -> 24 pólová propojka WEIDMÜLLER (10ks) | C14: =Products!E132 -> 1699 | D14: =Products!F132 -> 2055.79
A15: 200181 | B15: =VLOOKUP(Main!$C$2,Translating_general!$A$101:$AZ$118,32,FALSE) -> Pojistka 2A | C15: =Products!E133 -> 249 | D15: =Products!F133 -> 301.29
A16: 200183 | B16: =VLOOKUP(Main!$C$2,Translating_general!$A$101:$AZ$118,33,FALSE) -> Pojistka 5A (100ks) | C16: =Products!E134 -> 249 | D16: =Products!F134 -> 301.29
A17: 200184 | B17: =VLOOKUP(Main!$C$2,Translating_general!$A$101:$AZ$118,34,FALSE) -> Pojistka 10A (100ks) | C17: =Products!E135 -> 249 | D17: =Products!F135 -> 301.29
A18: 200129 | B18: =VLOOKUP(Main!$C$2,Translating_general!$A$101:$AZ$118,35,FALSE) -> Loxone CAT7 kabel (250m) | C18: =Products!E107 -> 4699 | D18: =Products!F107 -> 5685.79
A19: 100150 | B19: =Products!D35 -> Loxone set nářadí | C19: =Products!E35 -> 8399 | D19: =Products!F35 -> 10162.79
A20: 200204 | B20: =Products!D159 -> 20-ti pólová propojka Weidmuller (20 ks) | C20: =Products!E159 -> 2399 | D20: =Products!F159 -> 2902.79
B21: =Products!D77 -> Spojovací relé

Sheet Tree (hidden)
B3: Bezeichnung
B4: =Products!D150 -> Tree Extension
B5: =Products!D151 -> Touch Tree bílá
B6: =Products!D152 -> Touch Tree anthrazit
B7: =Products!D153 -> Motion Sensor Tree bilá
B8: =Products!D154 -> Hlavice Tree
B9: =Products!D158 -> Pohybový senzor Tree anthrazit
B10: =Products!D164 -> Touch pure Tree bílá
B11: =Products!D175 -> Nano DI Tree
B12: =Products!D178 -> Touch pure for Tree Anthracite
B13: =Products!D182 -> Příložný LED Spot Tree RGBW bílá
B14: =Products!D183 -> Příložný LED Spot Tree WW bílá
B15: =Products!D184 -> LED Spot Tree WW bílá
B16: =Products!D185 -> LED Spot Tree RGBW bílá
B17: =Products!D186 -> RGBW 24V Dimmer Tree
B18: =Products!D189 -> Meteostanice Tree

Sheet Wireless (hidden)
A1: Artikelnummer+ | B1: Bezeichnung | C1: Preis excl. | D1: Preis Inkl. | E1: Notiz
A2: 100114 | B2: =Products!D24 -> Air Base Extension | C2: =Products!E24 -> 2099 | D2: =Products!F24 -> 2539.79
A3: 100115 | B3: =Products!D25 -> Smart Socket Air Typ E | C3: =Products!E25 -> 1499 | D3: =Products!F25 -> 1813.79
A4: 100116 | B4: =Products!D26 -> Multi Extension Air | C4: =Products!E26 -> 9916.53 | D4: =Products!F26 -> 11999.0013
A5: 100139 | B5: =Products!D30 -> Miniserver Go | C5: =Products!E30 -> 8263.63 | D5: =Products!F30 -> 9998.9923
A6: 100140 | B6: =Products!D31 -> Remote Air | C6: =Products!E31 -> 1099 | D6: =Products!F31 -> 1329.79
A7: 100141 | B7: =Products!D32 -> IR Control Air | C7: =Products!E32 -> 2499 | D7: =Products!F32 -> 3023.79
A8: 100142 | B8: =Products!D33 -> Detektor kouře Air | C8: =Products!E33 -> 2049 | D8: =Products!F33 -> 2479.29
A9: 100149 | B9: =Products!D34 -> Senzor teploty & vlhkosti Air | C9: =Products!E34 -> 1899 | D9: =Products!F34 -> 2297.79
A10: 100151 | B10: =Products!D36 -> IR Elektroměr Air | C10: =Products!E36 -> 2099 | D10: =Products!F36 -> 2539.79
A11: 100154 | B11: =Products!D38 -> Loxone Touch for Nano Bílá | C11: =Products!E38 -> 1049 | D11: =Products!F38 -> 1269.29
A12: 100155 | B12: =Products!D39 -> Loxone Touch Air Bílá | C12: =Products!E39 -> 2499 | D12: =Products!F39 -> 3023.79
A13: 100180 | B13: =Products!D50 -> Loxone Touch Air Anthrazit | C13: =Products!E50 -> 2499 | D13: =Products!F50 -> 3023.79
A14: 100181 | B14: =Products!D51 -> Loxone Touch for Nano Anthrazit | C14: =Products!E51 -> 1049 | D14: =Products!F51 -> 1269.29
A15: 100182 | B15: =Products!D52 -> Trubkový Motor SOLIDline Air 10Nm | C15: =Products!E52 -> 4499 | D15: =Products!F52 -> 5443.79
A16: 100183 | B16: =Products!D53 -> Trubkový Motor SOLIDline Air 20Nm | C16: =Products!E53 -> 4999 | D16: =Products!F53 -> 6048.79
A17: 100184 | B17: =Products!D54 -> Trubkový Motor SOLIDline Air 50Nm | C17: =Products!E54 -> 5799 | D17: =Products!F54 -> 7016.79
A18: 100163 | B18: =Products!D41 -> Hlavice Air | C18: =Products!E41 -> 2099 | D18: =Products!F41 -> 2539.79
A19: 200048 | B19: =Products!D76 -> SMA anténa 868 MHz | C19: =Products!E76 -> 371.9 | D19: =Products!F76 -> 449.999
A20: 200151 | B20: =Products!D113 -> SMA Anténa 4dBi 868 MHz | C20: =Products!E113 -> 579 | D20: =Products!F113 -> 700.59
A21: 100190 | B21: =Products!D145 -> Pohybový senzor Air | C21: =Products!E145 -> 2249 | D21: =Products!F145 -> 2721.29
A22: 100153 | B22: =Products!D37 -> Nano IO Air | C22: =Products!E37 -> 2499 | D22: =Products!F37 -> 3023.79
A23: wird nicht verwendet | B23: =Products!D155 -> Záplavový senzor Air | C23: wird nicht verwendet | D23: wird nicht verwendet
B24: =Products!D156 -> Okenní a dveřní kontakt Air anthrazit
B25: =Products!D157 -> Okenní a dveřní kontakt Air bílá
B26: =Products!D162 -> Touch pure Air bílá
B27: =Products!D163 -> Touch pure for Nano bílá
B28: =Products!D166 -> Nano Dimmer Air
B29: =Products!D179 -> Touch pure Air Anthracite
B30: =Products!D177 -> Touch pure for Nano Anthracite
B31: =HLOOKUP(Main!$C$2,Translating_products!$DI$4:$DY$216,Translating_products!CM189, FALSE) -> Okenní klika Air
B32: =Products!D190 -> Meteostanice Air
B33: =Products!D192 -> Žaluziový pohon GJ56 Air 6Nm kabel nahoře
A37: 200059 | B37: =Products!D81 -> Enocean Bezdrátový okenní kontakt | C37: =Products!E81 -> 2149 | D37: =Products!F81 -> 2600.29
A38: 200067 | B38: =Products!D85 -> EnOcean bezdrátová hlavice | C38: =Products!E85 -> 3799 | D38: =Products!F85 -> 4596.79
A39: 200135 | B39: =Products!D108 -> Enocean Bezdrátový pohybový senzor | C39: =Products!E108 -> 4049 | D39: =Products!F108 -> 4899.29
A40: 200137 | B40: =Products!D110 -> EnOcean bezdrátový aktor | C40: =Products!E110 -> 1999 | D40: =Products!F110 -> 2418.79

Sheet Other (hidden)
A1: Artikelnummer+ | B1: Bezeichnung | C1: Preis excl. | D1: Preis Inkl. | E1: Kategorien_Sonstiges
A2: 100004 | B2: =Products!D9 -> Rollup český | C2: =Products!E9 -> 2699 | D2: =Products!F9 -> 3265.79 | E2: Fans&Partner
A3: 100170 | B3: =Products!D47 -> not available in this country | C3: =Products!E47 -> 0 | D3: =Products!F47 -> 0 | E3: Fans&Partner
A4: 200050 | B4: =Products!D78 -> Loxone samolepky | C4: =Products!E78 -> 73.55 | D4: =Products!F78 -> 88.9955 | E4: Fans&Partner
A5: 200086 | B5: =Products!D88 -> Loxone Fanshirt S | C5: =Products!E88 -> 285.4 | D5: =Products!F88 -> 345.334 | E5: Fans&Partner
A6: 200087 | B6: =Products!D89 -> Loxone Fanshirt M | C6: =Products!E89 -> 319 | D6: =Products!F89 -> 385.99 | E6: Fans&Partner
A7: 200088 | B7: =Products!D90 -> Loxone Fanshirt L | C7: =Products!E90 -> 319 | D7: =Products!F90 -> 385.99 | E7: Fans&Partner
A8: 200089 | B8: =Products!D91 -> Loxone Fanshirt XL | C8: =Products!E91 -> 319 | D8: =Products!F91 -> 385.99 | E8: Fans&Partner
A9: 200090 | B9: =Products!D92 -> Loxone Fanshirt XXL | C9: =Products!E92 -> 319 | D9: =Products!F92 -> 385.99 | E9: Fans&Partner
A10: 200158 | B10: =Products!D119 -> not available in this country | C10: =Products!E119 -> 0 | D10: =Products!F119 -> 0 | E10: Fans&Partner
A11: 200186 | B11: =Products!D136 -> Loxone brožurka - 25 kusů | C11: =Products!E136 -> 85 | D11: =Products!F136 -> 102.85 | E11: Fans&Partner
A12: 100008 | B12: =Products!D10 -> SD-Karta s firmwarem | C12: =Products!E10 -> 247.11 | D12: =Products!F10 -> 299.0031 | E12: Zubehör
A13: 100023 | B13: =Products!D16 -> Neprodává se | C13: =Products!E16 -> 0 | D13: =Products!F16 -> 0 | E13: Zubehör
A14: 100025 | B14: =Products!D17 -> Weather Service 1 rok | C14: =Products!E17 -> 1238.84 | D14: =Products!F17 -> 1498.9964 | E14: Zubehör
A15: 100026 | B15: =Products!D18 -> Weather Service 10 let | C15: =Products!E18 -> 7899 | D15: =Products!F18 -> 9557.79 | E15: Zubehör
A16: 100027 | B16: =Products!D19 -> Caller Service 1 rok | C16: =Products!E19 -> 1238.84 | D16: =Products!F19 -> 1498.9964 | E16: Zubehör
A17: 100028 | B17: =Products!D20 -> Caller Service 10 let | C17: =Products!E20 -> 7899 | D17: =Products!F20 -> 9557.79 | E17: Zubehör
A18: 100035 | B18: =Products!D22 -> IR Set | C18: =Products!E22 -> 4131.4 | D18: =Products!F22 -> 4998.994 | E18: Zubehör
A19: 100178 | B19: =Products!D48 -> AquaStar Air 1.5" | C19: =Products!E48 -> 38999 | D19: =Products!F48 -> 47188.79 | E19: Zubehör
A20: 100179 | B20: =Products!D49 -> AquaStar Air 2" | C20: =Products!E49 -> 51999 | D20: =Products!F49 -> 62918.79 | E20: Zubehör
A21: 200001 | B21: =Products!D55 -> 24V Zdroj (1.3A) | C21: =Products!E55 -> 908.26 | D21: =Products!F55 -> 1098.9946 | E21: Zubehör
A22: 200002 | B22: =Products!D56 -> 24V Zdroj (4.2A) | C22: =Products!E56 -> 1404.13 | D22: =Products!F56 -> 1698.9973 | E22: Zubehör
A23: 200007 | B23: =Products!D61 -> not available in this country | C23: =Products!E61 -> 0 | D23: =Products!F61 -> 0 | E23: Zubehör
A24: 200012 | B24: =Products!D63 -> Adaptér ventilu VA80 | C24: =Products!E63 -> 29.75 | D24: =Products!F63 -> 35.9975 | E24: Zubehör
A25: 200013 | B25: =Products!D64 -> not available in this country | C25: =Products!E64 -> 0 | D25: =Products!F64 -> 0 | E25: Zubehör
A26: 200035 | B26: =Products!D71 -> 24V Zdroj (10A) | C26: =Products!E71 -> 3304.96 | D26: =Products!F71 -> 3999.0016 | E26: Zubehör
A27: 200040 | B27: =Products!D72 -> Instalační krabice IP20 bílá | C27: =Products!E72 -> 229 | D27: =Products!F72 -> 277.09 | E27: Zubehör
A28: 200049 | B28: =Products!D77 -> Spojovací relé | C28: =Products!E77 -> 396.69 | D28: =Products!F77 -> 479.9949 | E28: Zubehör
A29: 200107 | B29: =Products!D102 -> not available in this country | C29: =Products!E102 -> 0 | D29: =Products!F102 -> 0 | E29: Zubehör
A30: 200143 | B30: =Products!D111 -> Zdroj 24V, 0,4A | C30: =Products!E111 -> 749 | D30: =Products!F111 -> 906.29 | E30: Zubehör
A31: 200156 | B31: =Products!D117 -> 1-fázový elektroměr (Modbus) | C31: =Products!E117 -> 3799 | D31: =Products!F117 -> 4596.79 | E31: Zubehör
A32: 200157 | B32: =Products!D118 -> 3-fázový elektroměr (Modbus) | C32: =Products!E118 -> 6799 | D32: =Products!F118 -> 8226.79 | E32: Zubehör
B33: =VLOOKUP(Main!C2,Translating_general!A101:P118,12,FALSE) -> Spotřebič do 5A | E33: Zubehör
B34: =VLOOKUP(Main!C2,Translating_general!A101:P118,13,FALSE) -> Spotřebič 5-16A | E34: Zubehör
A35: 200207 | B35: =Products!D138 -> Keba KeContact P20 Wallbox | C35: =Products!E138 -> 22999 | D35: =Products!F138 -> 27828.79 | E35: Zubehör
A36: 200161 | B36: =Products!D142 -> Napájecí zdroj do zásuvky 24V, 6,25A Typ E,F | C36: =Products!E142 -> 1799 | D36: =Products!F142 -> 2176.79 | E36: Zubehör
A37: 200281 | B37: =Products!D146 -> NFC Smart tagy | C37: =Products!E146 -> 629 | D37: =Products!F146 -> 761.09 | E37: Zubehör
A38: 200294 | B38: =Products!D149 -> Nabíjecí kabel typ 2 | C38: =Products!E149 -> 8599 | D38: =Products!F149 -> 10404.79 | E38: Zubehör
B39: =Products!D161 -> Spínaný LED zdroj 24V 2,5A | C39: =Products!E161 -> 799 | D39: =Products!F161 -> 966.79 | E39: Zubehör
B40: =Products!D167 -> Dvoužilový kroucený kabel modrá/bílá
B41: =Products!D168 -> Dvoužilový kroucený kabel oranžová/bílá
B42: =Products!D169 -> Dvoužilový kroucený kabel zelená/bílá
B43: =Products!D170 -> Duracell Plus Power AA (12 ks)
B44: =Products!D171 -> Duracell Plus Power AAA (12 ks)
B45: =Products!D172 -> CR2032 Lithium Battery (20 ks)
B46: =Products!D173 -> CR2450 Lithium Battery (20 ks)
B47: =Products!D174 -> FDK 9V Lithium Battery
B48: =Products!D176 -> not available in this country
A50: 100011 | B50: =Products!D11 -> RS485 Extension | C50: =Products!E11 -> 3511.57 | D50: =Products!F11 -> 4248.9997 | E50: Zubehör
A51: 100013 | B51: =Products!D13 -> RS 232 Extension | C51: =Products!E13 -> 3511.57 | D51: =Products!F13 -> 4248.9997 | E51: Zubehör
A52: 100015 | B52: =Products!D15 -> Enocean Extension | C52: =Products!E15 -> 6197.52 | D52: =Products!F15 -> 7498.9992 | E52: Zubehör
A53: 100124 | B53: =Products!D28 -> Modbus Extension | C53: =Products!E28 -> 4799 | D53: =Products!F28 -> 5806.79 | E53: Zubehör

Sheet Shading (hidden)
A1: Artikelnummer+ | B1: Bezeichnung | C1: Preis excl. | D1: Preis Inkl. | E1: Notiz
A2: 100153 | B2: =Products!D37 -> Nano IO Air | C2: =Products!E37 -> 2499 | D2: =Products!F37 -> 3023.79 | F2: Rollo per Kabel zu NANO IO und Nano zu AirBase per Funk
B3: =VLOOKUP(Main!C2,Translating_general!A101:P118,14,FALSE) -> Stínění | F3: pro Rollo/Markise/Jalousie/Raffstore 1 Nano
A4: 100182 | B4: =Products!D52 -> Trubkový Motor SOLIDline Air 10Nm | C4: =Products!E52 -> 4499 | D4: =Products!F52 -> 5443.79 | F4: 1 Nano belegt 1 Kanal auf AirBase
A5: 100183 | B5: =Products!D53 -> Trubkový Motor SOLIDline Air 20Nm | C5: =Products!E53 -> 4999 | D5: =Products!F53 -> 6048.79
A6: 100184 | B6: =Products!D54 -> Trubkový Motor SOLIDline Air 50Nm | C6: =Products!E54 -> 5799 | D6: =Products!F54 -> 7016.79
B7: =Products!D189 -> Meteostanice Tree
B8: =Products!D190 -> Meteostanice Air
B9: =Products!D192 -> Žaluziový pohon GJ56 Air 6Nm kabel nahoře
B10: =Products!D193 -> Žaluziový pohon GJ56 Air 20Nm kabel nahoře
B11: =Products!D194 -> Žaluziový pohon GJ56 Air 6Nm kabel dole
B12: =Products!D195 -> Žaluziový pohon GJ56 Air 20Nm kabel dole

Sheet Switch (hidden)
A1: Artikelnummer+ | B1: Bezeichnung | C1: Preis excl. | D1: Preis Inkl. | E1: Notiz
B2: =VLOOKUP(Main!$C$2,Translating_general!$A$101:$T$118,16,FALSE) -> 1 Tlačítko | E2: Kabeltaster
B3: =VLOOKUP(Main!$C$2,Translating_general!$A$101:$T$118,17,FALSE) -> 2 Tlačítko | E3: Kabeltaster | G3: taster belegen nur Eingänge
B4: =VLOOKUP(Main!$C$2,Translating_general!$A$101:$T$118,18,FALSE) -> 4 Tlačítko | E4: Kabeltaster
B5: =VLOOKUP(Main!$C$2,Translating_general!$A$101:$T$118,19,FALSE) -> 5 Tlačítko | E5: Kabeltaster
A6: 100154 | B6: =Products!D38 -> Loxone Touch for Nano Bílá | C6: =Products!E38 -> 1049 | D6: =Products!F38 -> 1269.29 | E6: Funktaster
A7: 100155 | B7: =Products!D39 -> Loxone Touch Air Bílá | C7: =Products!E39 -> 2499 | D7: =Products!F39 -> 3023.79 | E7: Funktaster
A8: 200057 | B8: =Products!D80 -> Enocean Bezdrátové tlačítko | C8: =Products!E80 -> 1249 | D8: =Products!F80 -> 1511.29 | E8: Funktaster
A9: 100180 | B9: =Products!D50 -> Loxone Touch Air Anthrazit | C9: =Products!E50 -> 2499 | D9: =Products!F50 -> 3023.79 | E9: Funktaster
A10: 100181 | B10: =Products!D51 -> Loxone Touch for Nano Anthrazit | C10: =Products!E51 -> 1049 | D10: =Products!F51 -> 1269.29 | E10: Funktaster
B11: =Products!D151 -> Touch Tree bílá
B12: =Products!D152 -> Touch Tree anthrazit
B13: =Products!D162 -> Touch pure Air bílá
B14: =Products!D163 -> Touch pure for Nano bílá
B15: =Products!D164 -> Touch pure Tree bílá
B16: =Products!D177 -> Touch pure for Nano Anthracite
B17: =Products!D178 -> Touch pure for Tree Anthracite
B18: =Products!D179 -> Touch pure Air Anthracite

Sheet Ms&Extensions (hidden)
A1: Artikelnummer+ | B1: Bezeichnung | C1: Preis excl. | D1: Preis Inkl. | E1: Notiz
A2: 100001 | B2: =Products!D7 -> Miniserver | C2: =Products!E7 -> 10329.75 | D2: =Products!F7 -> 12498.9975
A3: 100002 | B3: =Products!D8 -> Extension | C3: =Products!E8 -> 8263.64 | D3: =Products!F8 -> 9999.0044
A4: 100011 | B4: =Products!D11 -> RS485 Extension | C4: =Products!E11 -> 3511.57 | D4: =Products!F11 -> 4248.9997
A5: 100012 | B5: =Products!D12 -> DMX Extension | C5: =Products!E12 -> 5619.01 | D5: =Products!F12 -> 6799.0021
A6: 100013 | B6: =Products!D13 -> RS 232 Extension | C6: =Products!E13 -> 3511.57 | D6: =Products!F13 -> 4248.9997
A7: 100014 | B7: =Products!D14 -> 1-Wire Extension | C7: =Products!E14 -> 3511.57 | D7: =Products!F14 -> 4248.9997
A8: 100015 | B8: =Products!D15 -> Enocean Extension | C8: =Products!E15 -> 6197.52 | D8: =Products!F15 -> 7498.9992
A9: 100124 | B9: =Products!D28 -> Modbus Extension | C9: =Products!E28 -> 4799 | D9: =Products!F28 -> 5806.79
A10: 100029 | B10: =Products!D21 -> Dimmer Extension | C10: =Products!E21 -> 9338.02 | D10: =Products!F21 -> 11299.0042
A11: 100038 | B11: =Products!D23 -> Relay Extension | C11: =Products!E23 -> 9916.53 | D11: =Products!F23 -> 11999.0013
A12: 100114 | B12: =Products!D24 -> Air Base Extension | C12: =Products!E24 -> 2099 | D12: =Products!F24 -> 2539.79
A13: 100116 | B13: =Products!D26 -> Multi Extension Air | C13: =Products!E26 -> 9916.53 | D13: =Products!F26 -> 11999.0013
A14: 100139 | B14: =Products!D30 -> Miniserver Go | C14: =Products!E30 -> 8263.63 | D14: =Products!F30 -> 9998.9923
A15: 100158 | B15: =Products!D40 -> Fröling Extension | C15: =Products!E40 -> 4499 | D15: =Products!F40 -> 5443.79
B16: =Products!D150 -> Tree Extension
B17: =Products!D160 -> Dali Extension
B18: =Products!D165 -> Internorm Extension
B19: =Products!D188 -> DI Extension

Sheet Main
D1: 1
B2: Language / Country | C2: CZ | E2: =VLOOKUP(C2,Translating_general!A5:P22,3,FALSE) -> Místnosti
A3: Version 2.8.8 | B3: =VLOOKUP(C2,Translating_general!A5:P22,3,FALSE) -> Místnosti | C3: =VLOOKUP(C2,Translating_general!A5:B17,2,FALSE) -> Počet | D3: Entrance room | E3: Living Room | F3: Kitchen | G3: Bedroom | H3: Hall | I3: Bathroom | J3: Technical room | K3: Terrace | L3: Entrance | M3: Outside
B4: =VLOOKUP(C2,Translating_general!A5:Q22,17,FALSE) -> Rozbalovací menu
A5: =VLOOKUP(C2,Translating_general!A5:P22,4,FALSE) -> Světlo | B5: =Light!B18 -> Světelný okruh 5A | C5: =SUM(D5:AR5) -> 3 | E5: 1 | K5: 1 | L5: 1 | AW5: There are drop down menues!
B6: =Light!B20 -> LED Spot WW | C6: =SUM(D6:AR6) -> 24 | D6: 3 | F6: 6 | G6: 6 | H6: 2 | I6: 4 | J6: 3
B7: =Light!B19 -> LED Spot RGBW | C7: 9 | E7: 9
B8: =Light!B12 -> 5m RGBW LED pásky IP20 (bez ochrany proti vodě) | C8: 4 | D8: 1 | E8: 1 | F8: 1 | G8: 1
B9: =Light!B29 -> RGBW 24V Dimmer Tree | C9: 9 | D9: 1 | E9: 3 | F9: 2 | G9: 1 | H9: 1 | I9: 1
B10: =Light!B30 -> Krabice do betonu pro LED spot | C10: 0
C11: 0
C12: 0
C13: 0
C14: 0
C15: =SUM(D15:AR15) -> 0
A17: =VLOOKUP(C2,Translating_general!A5:P22,5,FALSE) -> Stínění | B17: =Shading!B11 -> Žaluziový pohon GJ56 Air 6Nm kabel dole | C17: =SUM(D17:AO17) -> 0
B18: =Shading!B7 -> Meteostanice Tree | C18: =SUM(D18:AO18) -> 1 | M18: 1
B19: =Shading!B3 -> Stínění | C19: 8 | E19: 3 | F19: 1 | G19: 2 | I19: 1 | J19: 1
A21: =VLOOKUP(C2,Translating_general!A5:P22,6,FALSE) -> Topení | B21: =Heating!B11 -> Hlavice Tree | C21: =SUM(D21:AO21) -> 6 | D21: 1 | E21: 2 | F21: 1 | G21: 1 | I21: 1
B22: =Heating!B4 -> Hlavice Air | C22: =SUM(D22:AO22) -> 0
B23: =Heating!B10 -> 1-Wire teplotní senzor | C23: 0
C24: 0
C25: 0
A27: =VLOOKUP(C2,Translating_general!A5:P22,7,FALSE) -> Sensor | B27: =Sensors!B15 -> Senzor pohybu 24V (venkovní) | C27: =SUM(D27:AO27) -> 2 | K27: 1 | L27: 1
B28: =Sensors!B16 -> Okenní kontakt (integrovaný v okně pouze DI) | C28: =SUM(D28:AO28) -> 7 | E28: 1 | F28: 1 | G28: 2 | I28: 1 | J28: 1 | L28: 1
B29: =Sensors!B26 -> Digital IN (Reserve) | C29: 0
B30: =Sensors!B27 -> Analog IN (Reserve) | C30: 0
B31: =Sensors!B29 -> Meteostanice Tree | C31: 0
B32: =Wireless!B31 -> Okenní klika Air | C32: 0
A34: =VLOOKUP(C2,Translating_general!A5:P22,16,FALSE) -> Tree | B34: =Tree!B7 -> Motion Sensor Tree bilá | C34: =SUM(D34:AO34) -> 7 | D34: 1 | E34: 2 | F34: 1 | H34: 1 | I34: 1 | J34: 1
B35: =Tree!B11 -> Nano DI Tree | C35: =SUM(D35:AO35) -> 0
B36: =Tree!B9 -> Pohybový senzor Tree anthrazit | C36: 0
B37: =Tree!B18 -> Meteostanice Tree | C37: 0
C38: 0
C39: 0
A41: =VLOOKUP(C2,Translating_general!A5:P22,8,FALSE) -> Air | B41: =Wireless!B21 -> Pohybový senzor Air | C41: =SUM(D41:AO41) -> 1 | G41: 1
B42: =Wireless!B8 -> Detektor kouře Air | C42: =SUM(D42:AO42) -> 3 | D42: 1 | E42: 1 | G42: 1
B43: =Wireless!B6 -> Remote Air | C43: 1 | E43: 1
B44: =Wireless!B3 -> Smart Socket Air Typ E | C44: 2 | E44: 1 | G44: 1
B45: =Wireless!B23 -> Záplavový senzor Air | C45: 1 | J45: 1
C46: 0
C47: 0
C48: 0
C49: 0
C50: =SUM(D50:AO50) -> 0
A52: =VLOOKUP(C2,Translating_general!A5:P22,9,FALSE) -> Tlačítka | B52: =Switch!B15 -> Touch pure Tree bílá | C52: =SUM(D52:AO52) -> 4 | D52: 1 | E52: 2 | F52: 1
B53: =Switch!B11 -> Touch Tree bílá | C53: =SUM(D53:AO53) -> 5 | G53: 3 | I53: 1 | J53: 1
C54: =SUM(D54:AO54) -> 0
C55: =SUM(D55:AR55) -> 0
C56: 0
C57: 0
A59: =VLOOKUP(C2,Translating_general!A5:P22,10,FALSE) -> Přístup | B59: =Entry!B9 -> Loxone Intercom XL | C59: =SUM(D59:AO59) -> 1 | M59: 1
B60: =Entry!B6 -> Zapuštěný box pro Loxone Intercom | C60: =SUM(D60:AO60) -> 1 | M60: 1
B61: =Entry!B3 -> Elektronický klíč | C61: 5 | M61: 5
B62: =Entry!B4 -> Elektronický klíč (Magnetický) | C62: 0
A64: =VLOOKUP(C2,Translating_general!A5:P22,11,FALSE) -> Hudba | B64: =Music!B2 -> Zóna Music Serveru | C64: =SUM(D64:AO64) -> 1 | J64: 1
B65: =Music!B8 -> Loxone Speaker | C65: =SUM(D65:AO65) -> 5 | F65: 1 | G65: 1 | I65: 1 | K65: 2
B66: =Music!B9 -> Loxone 12ti kanálový zesilovač | C66: 1 | J66: 1
B67: =Music!B10 -> Instalační box pro Loxone reproduktor (speaker) | C67: 0
B68: =Music!B12 -> Loxone Speaker back box pro snížené stropy | C68: 5 | F68: 1 | G68: 1 | I68: 1 | K68: 2
C69: 0
C70: 0
C71: 0
C72: 0
C73: 0
A76: =VLOOKUP(C2,Translating_general!A5:P22,12,FALSE) -> Miniserver&Extension | B76: ='Ms&Extensions'!B6 -> RS 232 Extension | C76: =SUM(D76:AO76) -> 0
B77: ='Ms&Extensions'!B4 -> RS485 Extension | C77: =SUM(D77:AO77) -> 0
B78: ='Ms&Extensions'!B19 -> DI Extension | C78: 0
C79: 0
A81: =VLOOKUP(C2,Translating_general!A5:P22,13,FALSE) -> Rozvaděč | B81: =Distributors!B18 -> Loxone CAT7 kabel (250m) | C81: =SUM(D81:AO81) -> 0
B82: =Distributors!B7 -> Svorka na připojení motoru PMAK4 (50 ks) | C82: =SUM(D82:AO82) -> 0
C83: 0
C84: 0
C85: 0
C86: 0
C87: 0
C88: 0
C89: 0
C90: 0
A92: =VLOOKUP(C2,Translating_general!A5:P22,14,FALSE) -> Příslušenství | B92: =Other!B34 -> Spotřebič 5-16A | C92: =SUM(D92:AO92) -> 7 | E92: 2 | F92: 2 | J92: 2 | K92: 1
B93: =Other!B33 -> Spotřebič do 5A | C93: =SUM(D93:AO93) -> 3 | I93: 1 | J93: 1 | L93: 1
B94: =Other!B17 -> Caller Service 10 let | C94: 1 | L94: 1
C95: 0
C96: 0
C97: 0
C98: 0
C99: 0
C100: 0
C101: 0
A103: =VLOOKUP(C2,Translating_general!A5:P22,15,FALSE) -> Fanoušci a Partneři | B103: =Other!B11 -> Loxone brožurka - 25 kusů | C103: =SUM(D103:AO103) -> 0
B104: =Other!B2 -> Rollup český | C104: =SUM(D104:AO104) -> 0
B105: =Other!B3 -> not available in this country | C105: 0
C106: 0
C107: 0

Sheet Power
B3: =VLOOKUP(Main!C2,Translating_general!A29:P46,2,FALSE) -> Výpočet zdroje
B6: =VLOOKUP(Main!C2,Translating_general!A29:P46,3,FALSE) -> Zdroje | C6: 0,4 A | D6: 1,3 A | E6: 4,2 A | F6: 10 A
C7: =W12 -> 0 | D7: =W13 -> 2 | E7: =W14 -> 1 | F7: =W15 -> 2
B9: =VLOOKUP(Main!C2,Translating_general!A29:P46,4,FALSE) -> Extensiony | X9: =VLOOKUP(Main!C2,Translating_general!A29:P46,4,FALSE) -> Extensiony
B10: =VLOOKUP(Main!C2,Translating_general!A29:P46,5,FALSE) -> Číslo produktu | C10: =VLOOKUP(Main!C2,Translating_general!A29:P46,6,FALSE) -> Produkty | D10: =VLOOKUP(Main!C2,Translating_general!A29:P46,7,FALSE) -> Počet | E10: =VLOOKUP(Main!C2,Translating_general!A29:P46,8,FALSE) -> Ampér/jednotku | F10: =VLOOKUP(Main!C2,Translating_general!A29:P46,9,FALSE) -> Celkem | X10: =VLOOKUP(Main!C2,Translating_general!A29:P46,10,FALSE) -> Zbývající Ampéry | Y10: =W19*1.3+W20*4.2 -> 1.3
B11: 100001 | C11: =Calculation!B414 -> Miniserver | D11: =Products!B7 -> 1 | E11: =Calculation!D414 -> 0.12 | F11: =D11*E11 -> 0.12 | V11: Gesamt | X11: =VLOOKUP(Main!C2,Translating_general!A29:P46,11,FALSE) -> Potřebné Ampéry | Y11: =F26 -> 0.7308
B12: 100002 | C12: =Calculation!B415 -> Extension | D12: =Products!B8 -> 0 | E12: =Calculation!D415 -> 0.06 | F12: =D12*E12 -> 0 | V12: 0,4A Netzteil | W12: =D28 -> 0
B13: 100011 | C13: =Calculation!B416 -> RS485 Extension | D13: =Products!B11 -> 0 | E13: =Calculation!D416 -> 0.03 | F13: 0 | V13: 1,3A Netzteil | W13: =W19+W55 -> 2
B14: 100012 | C14: =Calculation!B417 -> DMX Extension | D14: =Products!B12 -> 0 | E14: =Calculation!D417 -> 0.03 | F14: 0 | V14: 4,2A Netzteil | W14: =W20+W34+W56 -> 1
B15: 100013 | C15: =Calculation!B418 -> RS 232 Extension | D15: =Products!B13 -> 0 | E15: =Calculation!D418 -> 0.03 | F15: 0 | V15: 10A Netzteil | W15: =W35+W57 -> 2
B16: 100014 | C16: =Calculation!B419 -> 1-Wire Extension | D16: =Products!B14 -> 0 | E16: =Calculation!D419 -> 0.03 | F16: 0
B17: 100015 | C17: =Calculation!B420 -> Enocean Extension | D17: =Products!B15 -> 0 | E17: =Calculation!D420 -> 0.03 | F17: 0
B18: 100029 | C18: =Calculation!B421 -> Dimmer Extension | D18: =Products!B21 -> 0 | E18: =Calculation!D421 -> 0.06 | F18: 0
B19: 100035 | C19: =Calculation!B422 -> IR Set | D19: =Products!B22 -> 0 | E19: =Calculation!D422 -> 0.03 | F19: 0 | V19: 1,3A Netzteil | W19: =IF((F26-W20*4.2)<4.2,ROUNDUP((F26-W20*4.2)/1.3,0),0) -> 1
B20: 100038 | C20: =Calculation!B423 -> Relay Extension | D20: =Products!B23 -> 2 | E20: =Calculation!D423 -> 0.3 | F20: 0.6 | V20: 4,2A Netzteil | W20: =ROUNDDOWN(F26/4.2,0) -> 0
B21: 100114 | C21: =Calculation!B424 -> Air Base Extension | D21: =Products!B24 -> 1 | E21: =Calculation!D424 -> 0.006 | F21: 0.006
B22: 100124 | C22: =Calculation!B425 -> Modbus Extension | D22: =Products!B28 -> 0 | E22: =Calculation!D425 -> 0.03 | F22: =D22*E22 -> 0
B23: 100158 | C23: =Calculation!B426 -> Fröling Extension | D23: =Products!B40 -> 0 | E23: =Calculation!D426 -> 0.03 | F23: =D23*E23 -> 0
B24: =Products!C150 -> 100218 | C24: =Calculation!B427 -> Tree Extension | D24: =Products!B150 -> 1 | E24: =Products!O150 -> 0.0048 | F24: =D24*E24 -> 0.0048
B25: =Products!C160 -> 100200 | C25: =Products!D160 -> Dali Extension | D25: =Products!B160 -> 0 | E25: 0.134 | F25: =D25*E25 -> 0
E26: =VLOOKUP(Main!C2,Translating_general!A29:P46,12,FALSE) -> Celkem | F26: =SUM(F11:O25) -> 0.7308
B28: 100116 | C28: =Calculation!B432 -> Multi Extension Air | E28: =VLOOKUP(Main!C2,Translating_general!A29:P46,15,FALSE) -> 0,4 Ampérový zdroj / jednotka | V28: 0,4A Netzteil | W28: =D28 -> 0
B31: =VLOOKUP(Main!C2,Translating_general!A29:P46,13,FALSE) -> LED | X31: =VLOOKUP(Main!C2,Translating_general!A29:P46,13,FALSE) -> LED
B32: =VLOOKUP(Main!C2,Translating_general!A29:P46,5,FALSE) -> Číslo produktu | C32: =VLOOKUP(Main!C2,Translating_general!A29:P46,6,FALSE) -> Produkty | D32: =VLOOKUP(Main!C2,Translating_general!A29:P46,7,FALSE) -> Počet | E32: =VLOOKUP(Main!C2,Translating_general!A29:P46,8,FALSE) -> Ampér/jednotku | F32: =VLOOKUP(Main!C2,Translating_general!A29:P46,9,FALSE) -> Celkem | X32: =VLOOKUP(Main!C2,Translating_general!A29:P46,10,FALSE) -> Zbývající Ampéry | Y32: =W34*4.2+W35*10 -> 24.2
B33: 200042 | C33: =Calculation!B434 -> 5m RGB LED pásky IP20 (bez ochrany proti vodě) | D33: =Products!B73 -> 0 | E33: =Calculation!D434 -> 3 | F33: =D33*E33 -> 0 | X33: =VLOOKUP(Main!C2,Translating_general!A29:P46,11,FALSE) -> Potřebné Ampéry | Y33: =F49 -> 21
B34: 200043 | C34: =Calculation!B435 -> 5m LED pásky (teplá bílá) - IP20 (bez ochrany proti vodě) | D34: =Products!B74 -> 0 | E34: =Calculation!D435 -> 3 | F34: 0 | V34: 4,2A Netzteil | W34: =IF((F49-W35*10)<10,ROUNDUP((F49-W35*10)/4.2,0),0) -> 1
B35: 200046 | C35: =Calculation!B437 -> 5m RGB LED pásky IP68 (proti potopení do vody) | D35: =Products!B75 -> 0 | E35: =Calculation!D437 -> 3 | F35: 0 | V35: 10A Netzteil | W35: =ROUNDDOWN(F49/10,0) -> 2
B36: 200061 | C36: =Calculation!B438 -> 5m LED pásky (teplá bílá) - IP65 (proti tryskající vodě) | D36: =Products!B82 -> 0 | E36: =Calculation!D438 -> 3 | F36: 0
B37: 200092 | C37: =Calculation!B439 -> 5m LED pásky (teplá bílá) - IP68 (proti potopení do vody) | D37: =Products!B93 -> 0 | E37: =Calculation!D439 -> 3 | F37: 0
B38: 200098 | C38: =Calculation!B440 -> 5m RGBW LED pásky IP20 (bez ochrany proti vodě) | D38: =Products!B98 -> 4 | E38: =Calculation!D440 -> 3.6 | F38: 14.4
B39: 200099 | C39: =Calculation!B441 -> 5m RGBW LED pásky IP65 (proti tryskající vodě) | D39: =Products!B99 -> 0 | E39: =Calculation!D441 -> 3.6 | F39: 0
B40: 200100 | C40: =Calculation!B442 -> 5m RGBW LED pásky IP68 (proti potopení do vody) | D40: =Products!B100 -> 0 | E40: =Calculation!D442 -> 3.6 | F40: 0
B41: 100204 | C41: =Calculation!B443 -> LED Spot RGBW | D41: =Products!B147 -> 9 | E41: =Calculation!D443 -> 0.2 | F41: 1.8
B42: 100203 | C42: =Calculation!B444 -> LED Spot WW | D42: =Products!B148 -> 24 | E42: =Calculation!D444 -> 0.2 | F42: 4.8
B43: =Products!C180 -> 100235 | C43: =Light!B23 -> Příložný LED Spot RGBW bílá | D43: =Products!B180 -> 0 | E43: =Calculation!D445 -> 0.392 | F43: 0
B44: =Products!C181 -> 100236 | C44: =Light!B24 -> Příložný LED Spot WW bílá | D44: =Products!B181 -> 0 | E44: =Calculation!D446 -> 0.392 | F44: 0
B45: =Products!C182 -> 100237 | C45: =Light!B25 -> Příložný LED Spot Tree RGBW bílá | D45: =Products!B182 -> 0 | E45: =Calculation!D447 -> 0.392 | F45: 0
B46: =Products!C183 -> 100238 | C46: =Light!B26 -> Příložný LED Spot Tree WW bílá | D46: =Products!B183 -> 0 | E46: =Calculation!D448 -> 0.392 | F46: 0
B47: =Products!C184 -> 100268 | C47: =Light!B27 -> LED Spot Tree WW bílá | D47: =Products!B184 -> 0 | E47: =Calculation!D449 -> 0.23 | F47: 0
B48: =Products!C185 -> 100269 | C48: =Light!B28 -> LED Spot Tree RGBW bílá | D48: =Products!B185 -> 0 | E48: =Calculation!D450 -> 0.23 | F48: 0
E49: =VLOOKUP(Main!C2,Translating_general!A29:P46,12,FALSE) -> Celkem | F49: =SUM(F33:F48) -> 21
B51: =VLOOKUP(Main!C2,Translating_general!A29:P46,14,FALSE) -> Příslušenství | X51: =VLOOKUP(Main!C2,Translating_general!A29:P46,14,FALSE) -> Příslušenství
B52: =VLOOKUP(Main!C2,Translating_general!A29:P46,5,FALSE) -> Číslo produktu | C52: =VLOOKUP(Main!C2,Translating_general!A29:P46,6,FALSE) -> Produkty | D52: =VLOOKUP(Main!C2,Translating_general!A29:P46,7,FALSE) -> Počet | E52: =VLOOKUP(Main!C2,Translating_general!A29:P46,8,FALSE) -> Ampér/jednotku | F52: =VLOOKUP(Main!C2,Translating_general!A29:P46,9,FALSE) -> Celkem | X52: =VLOOKUP(Main!C2,Translating_general!A29:P46,10,FALSE) -> Zbývající Ampéry | Y52: =W55*1.3+W56*4.2+W57*10 -> 1.3
B53: 200003 | C53: =Calculation!B453 -> Venkovní senzor teploty | D53: =Products!B57 -> 0 | E53: =Calculation!D453 -> 0.005 | F53: =D53*E53 -> 0 | X53: =VLOOKUP(Main!C2,Translating_general!A29:P46,11,FALSE) -> Potřebné Ampéry | Y53: =F73 -> 0.4028
B54: 200004 | C54: =Calculation!B454 -> No longer sold | D54: =Products!B58 -> 0 | E54: =Calculation!D454 -> 0.042 | F54: 0
B55: 200006 | C55: =Calculation!B455 -> Vnitřní teplotní senzor 0-10V | D55: =Products!B60 -> 0 | E55: =Calculation!D455 -> 0.005 | F55: 0 | V55: 1,3A Netzteil | W55: =IF(F73>(W57*10+W56*4.2),ROUNDUP((F73-W57*10-W56*4.2)/1.3,0),0) -> 1
B56: 200010 | C56: =Calculation!B456 -> Senzor teploty a vlhkosti (vnitřní) 0-10V | D56: =Products!B62 -> 0 | E56: =Calculation!D456 -> 0.005 | F56: 0 | V56: 4,2A Netzteil | W56: =IF((F73-W57*10)<1.3,0,IF((F73>W57*10),ROUNDUP((F73-W57*10)/4.2,0),0)) -> 0
B57: 200017 | C57: =Calculation!B457 -> Senzor CO2/Teplota/Vlhkost | D57: =Products!B65 -> 0 | E57: =Calculation!D457 -> 0.01 | F57: 0 | V57: 10A Netzteil | W57: =ROUNDDOWN(F73/10,0) -> 0
B58: 200018 | C58: =Calculation!B458 -> Dešťový senzor (24V) | D58: =Products!B66 -> 0 | E58: =Calculation!D458 -> 0.06 | F58: 0
B59: 200031 | C59: =Calculation!B459 -> Senzor teploty a vlhkosti (venkovní) | D59: =Products!B67 -> 0 | E59: =Calculation!D459 -> 0.005 | F59: 0
B60: 200032 | C60: =Calculation!B460 -> Senzor osvětlení 0-10V | D60: =Products!B68 -> 0 | E60: =Calculation!D460 -> 0.005 | F60: 0
B61: 200054 | C61: =Calculation!B462 -> Ultrazvukový senzor 0-10V | D61: =Products!B79 -> 0 | E61: =Calculation!D462 -> 0.06 | F61: 0
B62: 200112 | C62: =Calculation!B463 -> Senzor pohybu 24V (venkovní) | D62: =Products!B105 -> 2 | E62: =Calculation!D463 -> 0.015 | F62: 0.03
B63: 200136 | C63: =Calculation!B464 -> Saunový senzor teplota/vlhkost | D63: =Products!B109 -> 0 | E63: =Calculation!D464 -> 0.005 | F63: 0
B64: 200154 | C64: =Calculation!B465 -> Senzor tlaku 0-10V | D64: =Products!B115 -> 0 | E64: =Calculation!D465 -> 0.01 | F64: 0
B65: 100221 | C65: =Calculation!B466 -> Touch Tree bílá | D65: =Products!B151 -> 5 | E65: =Products!O151 -> 0.0048 | F65: 0.024
B66: 100222 | C66: =Calculation!B467 -> Touch Tree anthrazit | D66: =Products!B152 -> 0 | E66: =Products!O152 -> 0.0048 | F66: 0
B67: 100223 | C67: =Calculation!B468 -> Motion Sensor Tree bilá | D67: =Products!B153 -> 7 | E67: =Products!O153 -> 0.0048 | F67: 0.0336
B68: =Products!C164 -> 100219 | C68: =Calculation!B471 -> Touch pure Tree bílá | D68: =Products!B164 -> 4 | E68: 0.0048 | F68: 0.0192
B69: =Products!C154 -> 100225 | C69: =Products!D154 -> Hlavice Tree | D69: =Products!B154 -> 6 | E69: 0.05 | F69: =Calculation!E472 -> 0.25
B70: =Products!C178 -> 100220 | C70: =Products!D178 -> Touch pure for Tree Anthracite | D70: =Products!B178 -> 0 | E70: 0.0048 | F70: =D70*E70 -> 0
B71: =Products!C189 -> 100246 | C71: =Products!D189 -> Meteostanice Tree | D71: =Products!B189 -> 1 | E71: 0.046 | F71: =D71*E71 -> 0.046
C72: reserved
E73: =VLOOKUP(Main!C2,Translating_general!A29:P46,12,FALSE) -> Celkem | F73: =SUM(F53:F72) -> 0.4028
B75: Please note that the power calculation assumes you have everything centrally in one cabinet!
B76: You have to double check it for your project.

Sheet Project information (hidden)
M1: Cathegory/Rooms | N1: =Main!D3 -> Entrance room | O1: =Main!E3 -> Living Room | P1: =Main!F3 -> Kitchen | Q1: =Main!G3 -> Bedroom | R1: =Main!H3 -> Hall | S1: =Main!I3 -> Bathroom | T1: =Main!J3 -> Technical room | U1: =Main!K3 -> Terrace | V1: =Main!L3 -> Entrance | W1: =Main!M3 -> Outside | X1: =Main!N3 -> 0 | Y1: =Main!O3 -> 0 | Z1: =Main!P3 -> 0 | AA1: =Main!Q3 -> 0 | AB1: =Main!R3 -> 0 | AC1: =Main!S3 -> 0 | AD1: =Main!T3 -> 0 | AE1: =Main!U3 -> 0 | AF1: =Main!V3 -> 0 | AG1: =Main!W3 -> 0 | AH1: =Main!X3 -> 0 | AI1: =Main!Y3 -> 0 | AJ1: =Main!Z3 -> 0 | AK1: =Main!AA3 -> 0 | AL1: =Main!AB3 -> 0 | AM1: =Main!AC3 -> 0 | AN1: =Main!AD3 -> 0 | AO1: =Main!AE3 -> 0 | AP1: =Main!AF3 -> 0 | AQ1: =Main!AG3 -> 0 | AR1: =Main!AH3 -> 0 | AS1: =Main!AI3 -> 0 | AT1: =Main!AJ3 -> 0 | AU1: =Main!AK3 -> 0 | AV1: =Main!AL3 -> 0 | AW1: =Main!AM3 -> 0 | AX1: =Main!AN3 -> 0 | AY1: =Main!AO3 -> 0
M2: Lighting
M3: Heating
M4: Shading
M5: Music
M6: Access
M14: =Products!D7 -> Miniserver
M15: =Products!D8 -> Extension
M16: =Products!D9 -> Rollup český
M17: =Products!D10 -> SD-Karta s firmwarem
M18: =Products!D11 -> RS485 Extension
M19: =Products!D12 -> DMX Extension
M20: =Products!D13 -> RS 232 Extension
M21: =Products!D14 -> 1-Wire Extension
M22: =Products!D15 -> Enocean Extension
M23: =Products!D16 -> Neprodává se
M24: =Products!D17 -> Weather Service 1 rok
M25: =Products!D18 -> Weather Service 10 let
M26: =Products!D19 -> Caller Service 1 rok
M27: =Products!D20 -> Caller Service 10 let
M28: =Products!D21 -> Dimmer Extension
M29: =Products!D22 -> IR Set
M30: =Products!D23 -> Relay Extension
M31: =Products!D24 -> Air Base Extension
M32: =Products!D25 -> Smart Socket Air Typ E
M33: =Products!D26 -> Multi Extension Air
M34: =Products!D27 -> RGBW 24V Dimmer DMX
M35: =Products!D28 -> Modbus Extension
M36: =Products!D29 -> RGBW 24V Dimmer Air
M37: =Products!D30 -> Miniserver Go
M38: =Products!D31 -> Remote Air
M39: =Products!D32 -> IR Control Air
M40: =Products!D33 -> Detektor kouře Air
M41: =Products!D34 -> Senzor teploty & vlhkosti Air
M42: =Products!D35 -> Loxone set nářadí
M43: =Products!D36 -> IR Elektroměr Air
M44: =Products!D37 -> Nano IO Air
M45: =Products!D38 -> Loxone Touch for Nano Bílá
M46: =Products!D39 -> Loxone Touch Air Bílá
M47: =Products!D40 -> Fröling Extension
M48: =Products!D41 -> Hlavice Air
M49: =Products!D42 -> Loxone Music Server 4 Zóny
M50: =Products!D43 -> Loxone Music Server 8 Zón
M51: =Products!D44 -> Loxone Music Server 12 Zón
M52: =Products!D45 -> Loxone Music Server 16 Zón
M53: =Products!D46 -> Loxone Music Server 20 Zón
M54: =Products!D47 -> not available in this country
M55: =Products!D48 -> AquaStar Air 1.5"
M56: =Products!D49 -> AquaStar Air 2"
M57: =Products!D50 -> Loxone Touch Air Anthrazit
M58: =Products!D51 -> Loxone Touch for Nano Anthrazit
M59: =Products!D52 -> Trubkový Motor SOLIDline Air 10Nm
M60: =Products!D53 -> Trubkový Motor SOLIDline Air 20Nm
M61: =Products!D54 -> Trubkový Motor SOLIDline Air 50Nm
M62: =Products!D55 -> 24V Zdroj (1.3A)
M63: =Products!D56 -> 24V Zdroj (4.2A)
M64: =Products!D57 -> Venkovní senzor teploty
M65: =Products!D58 -> No longer sold
M66: =Products!D59 -> No longer sold
M67: =Products!D60 -> Vnitřní teplotní senzor 0-10V
M68: =Products!D61 -> not available in this country
M69: =Products!D62 -> Senzor teploty a vlhkosti (vnitřní) 0-10V
M70: =Products!D63 -> Adaptér ventilu VA80
M71: =Products!D64 -> not available in this country
M72: =Products!D65 -> Senzor CO2/Teplota/Vlhkost
M73: =Products!D66 -> Dešťový senzor (24V)
M74: =Products!D67 -> Senzor teploty a vlhkosti (venkovní)
M75: =Products!D68 -> Senzor osvětlení 0-10V
M76: =Products!D69 -> Senzor větru (24V)
M77: =Products!D70 -> Držák pro senzor větru
M78: =Products!D71 -> 24V Zdroj (10A)
M79: =Products!D72 -> Instalační krabice IP20 bílá
M80: =Products!D73 -> 5m RGB LED pásky IP20 (bez ochrany proti vodě)
M81: =Products!D74 -> 5m LED pásky (teplá bílá) - IP20 (bez ochrany proti vodě)
M82: =Products!D75 -> 5m RGB LED pásky IP68 (proti potopení do vody)
M83: =Products!D76 -> SMA anténa 868 MHz
M84: =Products!D77 -> Spojovací relé
M85: =Products!D78 -> Loxone samolepky
M86: =Products!D79 -> Ultrazvukový senzor 0-10V
M87: =Products!D80 -> Enocean Bezdrátové tlačítko
M88: =Products!D81 -> Enocean Bezdrátový okenní kontakt
M89: =Products!D82 -> 5m LED pásky (teplá bílá) - IP65 (proti tryskající vodě)
M90: =Products!D83 -> Čtečka elektronického klíče
M91: =Products!D84 -> Elektronický klíč
M92: =Products!D85 -> EnOcean bezdrátová hlavice
M93: =Products!D86 -> Elektronický klíč (Magnetický)
M94: =Products!D87 -> 1-Wire teplotní čip v pouzdře
M95: =Products!D88 -> Loxone Fanshirt S
M96: =Products!D89 -> Loxone Fanshirt M
M97: =Products!D90 -> Loxone Fanshirt L
M98: =Products!D91 -> Loxone Fanshirt XL
M99: =Products!D92 -> Loxone Fanshirt XXL
M100: =Products!D93 -> 5m LED pásky (teplá bílá) - IP68 (proti potopení do vody)
M101: =Products!D94 -> Loxone Intercom
M102: =Products!D95 -> Zapuštěný box pro Loxone Intercom
M103: =Products!D96 -> Povrchový box pro Loxone Intercom
M104: =Products!D97 -> Loxone Speaker
M105: =Products!D98 -> 5m RGBW LED pásky IP20 (bez ochrany proti vodě)
M106: =Products!D99 -> 5m RGBW LED pásky IP65 (proti tryskající vodě)
M107: =Products!D100 -> 5m RGBW LED pásky IP68 (proti potopení do vody)
M108: =Products!D101 -> Záplavový senzor
M109: =Products!D102 -> not available in this country
M110: =Products!D103 -> 1-Wire teplotní senzor set
M111: =Products!D104 -> Loxone 12ti kanálový zesilovač
M112: =Products!D105 -> Senzor pohybu 24V (venkovní)
M113: =Products!D106 -> Okenní kontakt
M114: =Products!D107 -> Loxone Cat 7 kabel
M115: =Products!D108 -> Enocean Bezdrátový pohybový senzor
M116: =Products!D109 -> Saunový senzor teplota/vlhkost
M117: =Products!D110 -> EnOcean bezdrátový aktor
M118: =Products!D111 -> Zdroj 24V, 0,4A
M119: =Products!D112 -> Instalační box pro Loxone reproduktor (speaker)
M120: =Products!D113 -> SMA Anténa 4dBi 868 MHz
M121: =Products!D114 -> Loxone Wall Speaker
M122: =Products!D115 -> Senzor tlaku 0-10V
M123: =Products!D116 -> Senzor rozbití okna 24V
M124: =Products!D117 -> 1-fázový elektroměr (Modbus)
M125: =Products!D118 -> 3-fázový elektroměr (Modbus)
M126: =Products!D119 -> not available in this country
M127: =Products!D120 -> Svorka na DIN lištu PPV8 (20 kusů)
M128: =Products!D121 -> Propojovací rozvaděč PRV8 (20 kusů)
M129: =Products!D122 -> Předělovací deska PRV8 (10 kusů)
M130: =Products!D123 -> Držák na značky pro PPV8/PRV8 (20 kusů)
M131: =Products!D124 -> Bočnice pro PPV8/PRV8 (10 kusů)
M132: =Products!D125 -> Svorka pro připojení motoru PMAK4 (50 kusů)
M133: =Products!D126 -> Bočnice pro PMAK4 (20 kusů)
M134: =Products!D127 -> Svorkovnice PDL (50 kusů)
M135: =Products!D128 -> Bočnice pro PDL (20 kusů)
M136: =Products!D129 -> Koncová podpěra svorkovnice ZEW 35 (20 kusů)
M137: =Products!D130 -> Pojistková svorkovnice (25 kusů)
M138: =Products!D131 -> Bočnice pojistkové svorkovnice (50 kusů)
M139: =Products!D132 -> 24 pólová propojka (10 kusů)
M140: =Products!D133 -> Pojistky 2A (100 kusů)
M141: =Products!D134 -> Pojistky 5A (100 kusů)
M142: =Products!D135 -> Pojistky 10A (100 kusů)
M143: =Products!D136 -> Loxone brožurka - 25 kusů
M144: =Products!D137 -> čtečka elektronického klíče - nerez
M145: =Products!D138 -> Keba KeContact P20 Wallbox
M146: =Products!D139 -> Loxone Speaker back box pro snížené stropy
M147: =Products!D140 -> Příslušenství k LED páskům - set RGBW
M148: =Products!D141 -> Příslušenství k LED páskům - set WW
M149: =Products!D142 -> Napájecí zdroj do zásuvky 24V, 6,25A Typ E,F
M150: =Products!D143 -> Loxone Music Server Upgrade
M151: =Products!D144 -> Loxone Intercom XL
M152: =Products!D145 -> Pohybový senzor Air
M153: =Products!D146 -> NFC Smart tagy
M154: =Products!D147 -> LED Spot RGBW
M155: =Products!D148 -> LED Spot WW
M156: =Products!D149 -> Nabíjecí kabel typ 2
M157: =Products!D150 -> Tree Extension
M158: =Products!D151 -> Touch Tree bílá
M159: =Products!D152 -> Touch Tree anthrazit
M160: =Products!D153 -> Motion Sensor Tree bilá
M161: =Products!D154 -> Hlavice Tree
M162: =Products!D155 -> Záplavový senzor Air
M163: =Products!D156 -> Okenní a dveřní kontakt Air anthrazit
M164: =Products!D157 -> Okenní a dveřní kontakt Air bílá
M165: =Products!D158 -> Pohybový senzor Tree anthrazit
M166: =Products!D159 -> 20-ti pólová propojka Weidmuller (20 ks)
M167: =Products!D160 -> Dali Extension
M168: =Products!D161 -> Spínaný LED zdroj 24V 2,5A
M169: =Products!D162 -> Touch pure Air bílá
M170: =Products!D163 -> Touch pure for Nano bílá
M171: =Products!D164 -> Touch pure Tree bílá
M172: =Products!D165 -> Internorm Extension
M173: =Products!D166 -> Nano Dimmer Air
M174: =Products!D167 -> Dvoužilový kroucený kabel modrá/bílá
M175: =Products!D168 -> Dvoužilový kroucený kabel oranžová/bílá
M176: =Products!D169 -> Dvoužilový kroucený kabel zelená/bílá
M177: =Products!D170 -> Duracell Plus Power AA (12 ks)
M178: =Products!D171 -> Duracell Plus Power AAA (12 ks)
M179: =Products!D172 -> CR2032 Lithium Battery (20 ks)
M180: =Products!D173 -> CR2450 Lithium Battery (20 ks)
M181: =Products!D174 -> FDK 9V Lithium Battery
M182: =Products!D175 -> Nano DI Tree
M183: =Products!D176 -> not available in this country
M184: =Products!D177 -> Touch pure for Nano Anthracite
M185: =Products!D178 -> Touch pure for Tree Anthracite
M186: =Products!D179 -> Touch pure Air Anthracite
M187: =Products!D180 -> Příložný LED Spot RGBW bílá
M188: =Products!D181 -> Příložný LED Spot WW bílá
M189: =Products!D182 -> Příložný LED Spot Tree RGBW bílá
M190: =Products!D183 -> Příložný LED Spot Tree WW bílá
M191: =Products!D184 -> LED Spot Tree WW bílá
M192: =Products!D185 -> LED Spot Tree RGBW bílá
M193: =Products!D186 -> RGBW 24V Dimmer Tree
M194: =Products!D187 -> Okenní klika Air

Sheet Space
B3: =VLOOKUP(Main!C2,Translating_general!A53:P70,2,FALSE) -> Výpočet požadovaného místa v rozvaděči
B6: =VLOOKUP(Main!C2,Translating_general!A53:P70,3,FALSE) -> Číslo produktu | C6: =VLOOKUP(Main!C2,Translating_general!A53:P70,4,FALSE) -> Produkty | D6: =VLOOKUP(Main!C2,Translating_general!A53:P70,5,FALSE) -> Počet | E6: =VLOOKUP(Main!C2,Translating_general!A53:P70,6,FALSE) -> Požadované místo | F6: =VLOOKUP(Main!C2,Translating_general!A53:P70,7,FALSE) -> Celkem
B7: 100001 | C7: =Calculation!B481 -> Miniserver | D7: =Products!B7 -> 1 | E7: =Calculation!D481 -> 155 | F7: =D7*E7 -> 155
B8: 100002 | C8: =Calculation!B482 -> Extension | D8: =Products!B8 -> 0 | E8: =Calculation!D482 -> 155 | F8: =D8*E8 -> 0 | H8: =VLOOKUP(Main!C2,Translating_general!A53:P70,8,FALSE) -> Celkem místa
B9: 100011 | C9: =Calculation!B483 -> RS485 Extension | D9: =Products!B11 -> 0 | E9: =Calculation!D483 -> 34 | F9: 0 | H9: =VLOOKUP(Main!C2,Translating_general!A53:P70,9,FALSE) -> Požadované místo v mm | I9: =SUM(F7:F36) -> 1201
B10: 100012 | C10: =Calculation!B484 -> DMX Extension | D10: =Products!B12 -> 0 | E10: =Calculation!D484 -> 34 | F10: 0 | H10: =VLOOKUP(Main!C2,Translating_general!A53:P70,10,FALSE) -> Počet modulů v rozvaděči | I10: =ROUNDUP(I9/17.2,0) -> 70
B11: 100013 | C11: =Calculation!B485 -> RS 232 Extension | D11: =Products!B13 -> 0 | E11: =Calculation!D485 -> 34 | F11: 0
B12: 100014 | C12: =Calculation!B486 -> 1-Wire Extension | D12: =Products!B14 -> 0 | E12: =Calculation!D486 -> 34 | F12: 0
B13: 100015 | C13: =Calculation!B487 -> Enocean Extension | D13: =Products!B15 -> 0 | E13: =Calculation!D487 -> 34 | F13: 0
B14: 100029 | C14: =Calculation!B488 -> Dimmer Extension | D14: =Products!B21 -> 0 | E14: =Calculation!D488 -> 155 | F14: 0
B15: 100035 | C15: =Calculation!B489 -> IR Set | D15: =Products!B22 -> 0 | E15: =Calculation!D489 -> 34 | F15: 0
B16: 100038 | C16: =Calculation!B490 -> Relay Extension | D16: =Products!B23 -> 2 | E16: =Calculation!D490 -> 155 | F16: 310
B17: 100114 | C17: =Calculation!B491 -> Air Base Extension | D17: =Products!B24 -> 1 | E17: =Calculation!D491 -> 34 | F17: 34
B18: 100124 | C18: =Calculation!B492 -> Modbus Extension | D18: =Products!B28 -> 0 | E18: =Calculation!D492 -> 34 | F18: 0
B19: 100158 | C19: =Calculation!B493 -> Fröling Extension | D19: =Products!B40 -> 0 | E19: =Calculation!D493 -> 35 | F19: 0
B20: 200049 | C20: =Calculation!B494 -> Spojovací relé | D20: =Products!B77 -> 0 | E20: =Calculation!D494 -> 17 | F20: 0
B21: 100117 | C21: =Calculation!B495 -> RGBW 24V Dimmer DMX | D21: =Products!B27 -> 0 | E21: =Calculation!D495 -> 34 | F21: 0
B22: 200001 | C22: =Calculation!B496 -> 24V Zdroj (1.3A) | D22: =Products!B55 -> 2 | E22: =Calculation!D496 -> 53 | F22: 106
B23: 200002 | C23: =Calculation!B497 -> 24V Zdroj (4.2A) | D23: =Products!B56 -> 1 | E23: =Calculation!D497 -> 90 | F23: 90
B24: 200035 | C24: =Calculation!B498 -> 24V Zdroj (10A) | D24: =Products!B71 -> 2 | E24: =Calculation!D498 -> 83 | F24: 166
B25: 200143 | C25: =Calculation!B499 -> Zdroj 24V, 0,4A | D25: =Products!B111 -> 0 | E25: =Calculation!D499 -> 18 | F25: 0
B26: 200156 | C26: =Calculation!B500 -> 1-fázový elektroměr (Modbus) | D26: =Products!B117 -> 0 | E26: =Calculation!D500 -> 17.5 | F26: 0
B27: 200157 | C27: =Calculation!B501 -> 3-fázový elektroměr (Modbus) | D27: =Products!B118 -> 0 | E27: =Calculation!D501 -> 70 | F27: 0
B28: 200168 | C28: =Calculation!B502 -> Svorka na DIN lištu PPV8 (20 kusů) | D28: =Products!B120 -> 0 | E28: =Calculation!D502 -> 120 | F28: 0
B29: 200169 | C29: =Calculation!B503 -> Propojovací rozvaděč PRV8 (20 kusů) | D29: =Products!B121 -> 0 | E29: =Calculation!D503 -> 120 | F29: 0
B30: 200173 | C30: =Calculation!B504 -> Svorka pro připojení motoru PMAK4 (50 kusů) | D30: =Products!B125 -> 0 | E30: =Calculation!D504 -> 104 | F30: 0
B31: 200175 | C31: =Calculation!B505 -> Svorkovnice PDL (50 kusů) | D31: =Products!B127 -> 0 | E31: =Calculation!D505 -> 100 | F31: 0
B32: 200178 | C32: =Calculation!B506 -> Pojistková svorkovnice (25 kusů) | D32: =Products!B130 -> 0 | E32: =Calculation!D506 -> 70 | F32: 0
B33: =Products!C160 -> 100200 | C33: =Calculation!B508 -> Dali Extension | D33: =Products!B160 -> 0 | E33: =Calculation!D508 -> 34 | F33: 0
B34: =Products!C150 -> 100218 | C34: =Calculation!B507 -> Tree Extension | D34: =Products!B150 -> 1 | E34: =Calculation!D507 -> 34 | F34: 34
B35: =Products!C186 -> 100239 | C35: =Calculation!B509 -> RGBW 24V Dimmer Tree | D35: =Products!B186 -> 9 | E35: =Calculation!D509 -> 34 | F35: 306
B36: =Products!C188 -> 100283 | C36: =Products!D188 -> DI Extension | D36: =Products!B188 -> 0 | E36: 34 | F36: 0

Sheet Products
B3: =VLOOKUP(Main!C2,Translating_general!A77:AF94,2,FALSE) -> Seznam produktů
B6: =VLOOKUP(Main!C2,Translating_general!A77:AF94,3,FALSE) -> Počet | C6: =VLOOKUP(Main!C2,Translating_general!A77:AF94,4,FALSE) -> č. | D6: =VLOOKUP(Main!C2,Translating_general!A77:AF94,5,FALSE) -> Popis | E6: =VLOOKUP(Main!C2,Translating_general!A77:AF94,6,FALSE) -> Cena za kus bez DPH | F6: =VLOOKUP(Main!C2,Translating_general!A77:AF94,7,FALSE) -> Cena za kus s DPH | G6: =VLOOKUP(Main!C2,Translating_general!A77:AF94,8,FALSE) -> Celkem | I6: Kategorie | J6: AI (Eingang) | K6: DI (Eingang) | L6: AO (Ausgang) | M6: DO (Ausgang) | N6: Kanäle | O6: Ampere gesamt pro Produkt | P6: Watt gesamt pro Produkt
B7: =Calculation!C5+Calculation!C47+Calculation!C395 -> 1 | C7: =HLOOKUP(Main!$C$2,Translating_products!$CN$4:$DD$216,Translating_products!CM5, FALSE) -> 100001 | D7: =HLOOKUP(Main!$C$2,Translating_products!$DI$4:$DY$216,Translating_products!CM5, FALSE) -> Miniserver | E7: =IF(ISBLANK($Q$1),HLOOKUP(Main!$C$2,Translating_products!$EE$4:$EU$216,Translating_products!CM5,FALSE),HLOOKUP($Q$1,Translating_products!$EE$4:$EU$216,Translating_products!CM5,FALSE)) -> 10329.75 | F7: =E7*(1+$E$197*0.01) -> 12498.9975 | G7: =B7*F7 -> 12498.9975 | H7: =SUM(G7:G137) -> 167145.1408 | I7: Extension | J7: 4 | K7: 8 | L7: 4 | M7: 8 | O7: =0.12*B7 -> 0.12 | Q7: =IF(ISBLANK($Q$1),VLOOKUP(Main!C2,Translating_general!A77:AG94,33,FALSE),VLOOKUP($Q$1,Translating_general!A77:AG94,33,FALSE)) -> Kč | R7: R
B8: =Calculation!C396+Calculation!C28+Calculation!C35 -> 0 | C8: =HLOOKUP(Main!$C$2,Translating_products!$CN$4:$DD$216,Translating_products!CM6, FALSE) -> 100002 | D8: =HLOOKUP(Main!$C$2,Translating_products!$DI$4:$DY$216,Translating_products!CM6, FALSE) -> Extension | E8: =IF(ISBLANK($Q$1),HLOOKUP(Main!$C$2,Translating_products!$EE$4:$EU$216,Translating_products!CM6,FALSE),HLOOKUP($Q$1,Translating_products!$EE$4:$EU$216,Translating_products!CM6,FALSE)) -> 8263.64 | F8: 9999.0044 | G8: =B8*F8 -> 0 | H8: =IF(B7:B137>0,1,0) -> 0 | I8: Extension | J8: 4 | K8: 12 | L8: 4 | M8: 8 | O8: =B8*0.06 -> 0 | Q8: =$Q$7 -> Kč | R8: R
B9: =Calculation!C335 -> 0 | C9: =HLOOKUP(Main!$C$2,Translating_products!$CN$4:$DD$216,Translating_products!CM7, FALSE) -> 100040 | D9: =HLOOKUP(Main!$C$2,Translating_products!$DI$4:$DY$216,Translating_products!CM7, FALSE) -> Rollup český | E9: =IF(ISBLANK($Q$1),HLOOKUP(Main!$C$2,Translating_products!$EE$4:$EU$216,Translating_products!CM7,FALSE),HLOOKUP($Q$1,Translating_products!$EE$4:$EU$216,Translating_products!CM7,FALSE)) -> 2699 | F9: 3265.79 | G9: 0 | I9: Sonstiges | O9: nix | Q9: =$Q$7 -> Kč | R9: R
B10: =Calculation!C290 -> 0 | C10: =HLOOKUP(Main!$C$2,Translating_products!$CN$4:$DD$216,Translating_products!CM8, FALSE) -> 100008 | D10: =HLOOKUP(Main!$C$2,Translating_products!$DI$4:$DY$216,Translating_products!CM8, FALSE) -> SD-Karta s firmwarem | E10: =IF(ISBLANK($Q$1),HLOOKUP(Main!$C$2,Translating_products!$EE$4:$EU$216,Translating_products!CM8,FALSE),HLOOKUP($Q$1,Translating_products!$EE$4:$EU$216,Translating_products!CM8,FALSE)) -> 247.11 | F10: 299.0031 | G10: 0 | I10: Sonstiges | O10: nix | Q10: Kč | R10: R
B11: =Calculation!C291+Calculation!C397 -> 0 | C11: =HLOOKUP(Main!$C$2,Translating_products!$CN$4:$DD$216,Translating_products!CM9, FALSE) -> 100011 | D11: =HLOOKUP(Main!$C$2,Translating_products!$DI$4:$DY$216,Translating_products!CM9, FALSE) -> RS485 Extension | E11: =IF(ISBLANK($Q$1),HLOOKUP(Main!$C$2,Translating_products!$EE$4:$EU$216,Translating_products!CM9,FALSE),HLOOKUP($Q$1,Translating_products!$EE$4:$EU$216,Translating_products!CM9,FALSE)) -> 3511.57 | F11: 4248.9997 | G11: 0 | H11: Sonstiges wird einfach ausgewählt | I11: Sonstiges/Extension | O11: =B11*0.03 -> 0 | Q11: Kč | R11: R
B12: =Calculation!C78+Calculation!C398+Calculation!E528 -> 0 | C12: =HLOOKUP(Main!$C$2,Translating_products!$CN$4:$DD$216,Translating_products!CM10, FALSE) -> 100012 | D12: =HLOOKUP(Main!$C$2,Translating_products!$DI$4:$DY$216,Translating_products!CM10, FALSE) -> DMX Extension | E12: =IF(ISBLANK($Q$1),HLOOKUP(Main!$C$2,Translating_products!$EE$4:$EU$216,Translating_products!CM10,FALSE),HLOOKUP($Q$1,Translating_products!$EE$4:$EU$216,Translating_products!CM10,FALSE)) -> 5619.01 | F12: 6799.0021 | G12: 0 | I12: Licht/Extension | N12: 128 | O12: 0.03 | Q12: Kč | R12: L
B13: =Calculation!C292+Calculation!C399 -> 0 | C13: =HLOOKUP(Main!$C$2,Translating_products!$CN$4:$DD$216,Translating_products!CM11, FALSE) -> 100013 | D13: =HLOOKUP(Main!$C$2,Translating_products!$DI$4:$DY$216,Translating_products!CM11, FALSE) -> RS 232 Extension | E13: =IF(ISBLANK($Q$1),HLOOKUP(Main!$C$2,Translating_products!$EE$4:$EU$216,Translating_products!CM11,FALSE),HLOOKUP($Q$1,Translating_products!$EE$4:$EU$216,Translating_products!CM11,FALSE)) -> 3511.57 | F13: 4248.9997 | G13: 0 | H13: Sonstiges wird einfach ausgewählt | I13: Sonstiges/Extension | O13: =0.03*B13 -> 0 | Q13: Kč | R13: R
B14: =Calculation!C12+Calculation!C40+Calculation!C400+Calculation!G160 -> 0 | C14: =HLOOKUP(Main!$C$2,Translating_products!$CN$4:$DD$216,Translating_products!CM12, FALSE) -> 100014 | D14: =HLOOKUP(Main!$C$2,Translating_products!$DI$4:$DY$216,Translating_products!CM12, FALSE) -> 1-Wire Extension | E14: =IF(ISBLANK($Q$1),HLOOKUP(Main!$C$2,Translating_products!$EE$4:$EU$216,Translating_products!CM12,FALSE),HLOOKUP($Q$1,Translating_products!$EE$4:$EU$216,Translating_products!CM12,FALSE)) -> 3511.57 | F14: 4248.9997 | G14: 0 | H14: Temparaturfühler & iButton; 20 Fühler möglich, Lesegerät für Zutritt 1x Fühler benötigt | I14: Extension | N14: 20 | O14: =0.03*B14 -> 0 | Q14: Kč | R14: R
B15: =Calculation!C42+Calculation!C293+Calculation!C401 -> 0 | C15: =HLOOKUP(Main!$C$2,Translating_products!$CN$4:$DD$216,Translating_products!CM13, FALSE) -> 100015 | D15: =HLOOKUP(Main!$C$2,Translating_products!$DI$4:$DY$216,Translating_products!CM13, FALSE) -> Enocean Extension | E15: =IF(ISBLANK($Q$1),HLOOKUP(Main!$C$2,Translating_products!$EE$4:$EU$216,Translating_products!CM13,FALSE),HLOOKUP($Q$1,Translating_products!$EE$4:$EU$216,Translating_products!CM13,FALSE)) -> 6197.52 | F15: 7498.9992 | G15: 0 | H15: Sonstiges wird einfach ausgewählt | I15: Sonstiges/Extension | N15: 128 | O15: =0.03*B15 -> 0 | Q15: Kč | R15: R
B16: =Calculation!C294 -> 0 | C16: =HLOOKUP(Main!$C$2,Translating_products!$CN$4:$DD$216,Translating_products!CM14, FALSE) -> 0 | D16: =HLOOKUP(Main!$C$2,Translating_products!$DI$4:$DY$216,Translating_products!CM14, FALSE) -> Neprodává se | E16: =IF(ISBLANK($Q$1),HLOOKUP(Main!$C$2,Translating_products!$EE$4:$EU$216,Translating_products!CM14,FALSE),HLOOKUP($Q$1,Translating_products!$EE$4:$EU$216,Translating_products!CM14,FALSE)) -> 0 | F16: 0 | G16: 0 | I16: Sonstiges | O16: nix | Q16: Kč | R16: R
B17: =Calculation!C295 -> 0 | C17: =HLOOKUP(Main!$C$2,Translating_products!$CN$4:$DD$216,Translating_products!CM15, FALSE) -> 100025 | D17: =HLOOKUP(Main!$C$2,Translating_products!$DI$4:$DY$216,Translating_products!CM15, FALSE) -> Weather Service 1 rok | E17: =IF(ISBLANK($Q$1),HLOOKUP(Main!$C$2,Translating_products!$EE$4:$EU$216,Translating_products!CM15,FALSE),HLOOKUP($Q$1,Translating_products!$EE$4:$EU$216,Translating_products!CM15,FALSE)) -> 1238.84 | F17: 1498.9964 | G17: 0 | H17: Sonstiges | I17: Sonstiges | O17: nix | Q17: Kč | R17: R
B18: =Calculation!C296 -> 0 | C18: =HLOOKUP(Main!$C$2,Translating_products!$CN$4:$DD$216,Translating_products!CM16, FALSE) -> 100201 | D18: =HLOOKUP(Main!$C$2,Translating_products!$DI$4:$DY$216,Translating_products!CM16, FALSE) -> Weather Service 10 let | E18: =IF(ISBLANK($Q$1),HLOOKUP(Main!$C$2,Translating_products!$EE$4:$EU$216,Translating_products!CM16,FALSE),HLOOKUP($Q$1,Translating_products!$EE$4:$EU$216,Translating_products!CM16,FALSE)) -> 7899 | F18: 9557.79 | G18: 0 | H18: Sonstiges | I18: Sonstiges | O18: nix | Q18: Kč | R18: R
B19: =Calculation!C297 -> 0 | C19: =HLOOKUP(Main!$C$2,Translating_products!$CN$4:$DD$216,Translating_products!CM17, FALSE) -> 100027 | D19: =HLOOKUP(Main!$C$2,Translating_products!$DI$4:$DY$216,Translating_products!CM17, FALSE) -> Caller Service 1 rok | E19: =IF(ISBLANK($Q$1),HLOOKUP(Main!$C$2,Translating_products!$EE$4:$EU$216,Translating_products!CM17,FALSE),HLOOKUP($Q$1,Translating_products!$EE$4:$EU$216,Translating_products!CM17,FALSE)) -> 1238.84 | F19: 1498.9964 | G19: 0 | H19: Sonstiges | I19: Sonstiges | O19: nix | Q19: Kč | R19: R
B20: =Calculation!C298 -> 1 | C20: =HLOOKUP(Main!$C$2,Translating_products!$CN$4:$DD$216,Translating_products!CM18, FALSE) -> 100028 | D20: =HLOOKUP(Main!$C$2,Translating_products!$DI$4:$DY$216,Translating_products!CM18, FALSE) -> Caller Service 10 let | E20: =IF(ISBLANK($Q$1),HLOOKUP(Main!$C$2,Translating_products!$EE$4:$EU$216,Translating_products!CM18,FALSE),HLOOKUP($Q$1,Translating_products!$EE$4:$EU$216,Translating_products!CM18,FALSE)) -> 7899 | F20: 9557.79 | G20: 9557.79 | H20: Sonstiges | I20: Sonstiges | O20: nix | Q20: Kč | R20: R
B21: =Calculation!C403+Calculation!C79 -> 0 | C21: =HLOOKUP(Main!$C$2,Translating_products!$CN$4:$DD$216,Translating_products!CM19, FALSE) -> 100029 | D21: =HLOOKUP(Main!$C$2,Translating_products!$DI$4:$DY$216,Translating_products!CM19, FALSE) -> Dimmer Extension | E21: =IF(ISBLANK($Q$1),HLOOKUP(Main!$C$2,Translating_products!$EE$4:$EU$216,Translating_products!CM19,FALSE),HLOOKUP($Q$1,Translating_products!$EE$4:$EU$216,Translating_products!CM19,FALSE)) -> 9338.02 | F21: 11299.0042 | G21: 0 | H21: Kein Netzteil 230V Dimmkanal (4 Dimmkanäle = 4 Kanäle) | I21: Licht/Extension | K21: 8 | L21: 4 | O21: =B21*0.06 -> 0 | Q21: Kč | R21: L
B22: =Calculation!C299 -> 0 | C22: =HLOOKUP(Main!$C$2,Translating_products!$CN$4:$DD$216,Translating_products!CM20, FALSE) -> 100035 | D22: =HLOOKUP(Main!$C$2,Translating_products!$DI$4:$DY$216,Translating_products!CM20, FALSE) -> IR Set | E22: =IF(ISBLANK($Q$1),HLOOKUP(Main!$C$2,Translating_products!$EE$4:$EU$216,Translating_products!CM20,FALSE),HLOOKUP($Q$1,Translating_products!$EE$4:$EU$216,Translating_products!CM20,FALSE)) -> 4131.4 | F22: 4998.994 | G22: 0 | I22: Sonstiges | O22: 0.03 | Q22: Kč | R22: R
B23: =Calculation!C404+Calculation!C38 -> 2 | C23: =HLOOKUP(Main!$C$2,Translating_products!$CN$4:$DD$216,Translating_products!CM21, FALSE) -> 100038 | D23: =HLOOKUP(Main!$C$2,Translating_products!$DI$4:$DY$216,Translating_products!CM21, FALSE) -> Relay Extension | E23: =IF(ISBLANK($Q$1),HLOOKUP(Main!$C$2,Translating_products!$EE$4:$EU$216,Translating_products!CM21,FALSE),HLOOKUP($Q$1,Translating_products!$EE$4:$EU$216,Translating_products!CM21,FALSE)) -> 9916.53 | F23: 11999.0013 | G23: 23998.0026 | I23: Extension | M23: 14 | O23: =0.3*B23 -> 0.6 | Q23: Kč | R23: R
B24: =Calculation!C226+Calculation!C405+Calculation!C44 -> 1 | C24: =HLOOKUP(Main!$C$2,Translating_products!$CN$4:$DD$216,Translating_products!CM22, FALSE) -> 100114 | D24: =HLOOKUP(Main!$C$2,Translating_products!$DI$4:$DY$216,Translating_products!CM22, FALSE) -> Air Base Extension | E24: =IF(ISBLANK($Q$1),HLOOKUP(Main!$C$2,Translating_products!$EE$4:$EU$216,Translating_products!CM22,FALSE),HLOOKUP($Q$1,Translating_products!$EE$4:$EU$216,Translating_products!CM22,FALSE)) -> 2099 | F24: 2539.79 | G24: 2539.79 | H24: 128 Sockets/Geräte gelernt werden | I24: Air/Extension | N24: 128 | O24: 0.006 | Q24: Kč | R24: R
B25: =Calculation!C227 -> 2 | C25: =IF(ISBLANK($Q$1), HLOOKUP(Main!$C$2,Translating_products!$CN$4:$DD$216,Translating_products!CM23,FALSE),HLOOKUP($Q$1,Translating_products!$CN$4:$DD$216,Translating_products!CM23,FALSE)) -> 100120 | D25: =IF(ISBLANK($Q$1),HLOOKUP(Main!$C$2,Translating_products!$DI$4:$DY$216,Translating_products!CM23, FALSE), HLOOKUP($Q$1,Translating_products!$DI$4:$DY$216,Translating_products!CM23, FALSE)) -> Smart Socket Air Typ E | E25: =IF(ISBLANK($Q$1),HLOOKUP(Main!$C$2,Translating_products!$EE$4:$EU$216,Translating_products!CM23,FALSE),HLOOKUP($Q$1,Translating_products!$EE$4:$EU$216,Translating_products!CM23,FALSE)) -> 1499 | F25: 1813.79 | G25: 3627.58 | H25: belegt 1 Kanal auf AirBaseExtension | I25: Air | N25: 1 | O25: nix | Q25: Kč | R25: R
B26: =Calculation!C228+Calculation!C406 -> 0 | C26: =HLOOKUP(Main!$C$2,Translating_products!$CN$4:$DD$216,Translating_products!CM24, FALSE) -> 100116 | D26: =HLOOKUP(Main!$C$2,Translating_products!$DI$4:$DY$216,Translating_products!CM24, FALSE) -> Multi Extension Air | E26: =IF(ISBLANK($Q$1),HLOOKUP(Main!$C$2,Translating_products!$EE$4:$EU$216,Translating_products!CM24,FALSE),HLOOKUP($Q$1,Translating_products!$EE$4:$EU$216,Translating_products!CM24,FALSE)) -> 9916.53 | F26: 11999.0013 | G26: 0 | H26: Stück-Auswahl | I26: Air/Extension | K26: 12 | M26: 8 | N26: 20 | O26: 0,4 A Netzt. Pro Ext. | Q26: Kč | R26: R
B27: =Calculation!C80 -> 0 | C27: =HLOOKUP(Main!$C$2,Translating_products!$CN$4:$DD$216,Translating_products!CM25, FALSE) -> 100117 | D27: =HLOOKUP(Main!$C$2,Translating_products!$DI$4:$DY$216,Translating_products!CM25, FALSE) -> RGBW 24V Dimmer DMX | E27: =IF(ISBLANK($Q$1),HLOOKUP(Main!$C$2,Translating_products!$EE$4:$EU$216,Translating_products!CM25,FALSE),HLOOKUP($Q$1,Translating_products!$EE$4:$EU$216,Translating_products!CM25,FALSE)) -> 1499 | F27: 1813.79 | G27: 0 | H27: belegt 4Kanäle auf DMX Extension | I27: Licht | N27: 4 | O27: nix | Q27: Kč | R27: L
B28: =Calculation!C402 -> 0 | C28: =HLOOKUP(Main!$C$2,Translating_products!$CN$4:$DD$216,Translating_products!CM26, FALSE) -> 100124 | D28: =HLOOKUP(Main!$C$2,Translating_products!$DI$4:$DY$216,Translating_products!CM26, FALSE) -> Modbus Extension | E28: =IF(ISBLANK($Q$1),HLOOKUP(Main!$C$2,Translating_products!$EE$4:$EU$216,Translating_products!CM26,FALSE),HLOOKUP($Q$1,Translating_products!$EE$4:$EU$216,Translating_products!CM26,FALSE)) -> 4799 | F28: 5806.79 | G28: 0 | H28: Sonstiges-Auswählen | I28: Sonstiges | O28: =B28*0.03 -> 0 | Q28: Kč | R28: R
B29: =Calculation!C81 -> 0 | C29: =HLOOKUP(Main!$C$2,Translating_products!$CN$4:$DD$216,Translating_products!CM27, FALSE) -> 100125 | D29: =HLOOKUP(Main!$C$2,Translating_products!$DI$4:$DY$216,Translating_products!CM27, FALSE) -> RGBW 24V Dimmer Air | E29: =IF(ISBLANK($Q$1),HLOOKUP(Main!$C$2,Translating_products!$EE$4:$EU$216,Translating_products!CM27,FALSE),HLOOKUP($Q$1,Translating_products!$EE$4:$EU$216,Translating_products!CM27,FALSE)) -> 1849 | F29: 2237.29 | G29: 0 | H29: belegt 1 Kanal auf AirbaseExtension | I29: Licht | N29: 1 | O29: nix | Q29: Kč | R29: L
B30: =Calculation!C229+Calculation!C407+Calculation!C6 -> 0 | C30: =HLOOKUP(Main!$C$2,Translating_products!$CN$4:$DD$216,Translating_products!CM28, FALSE) -> 100139 | D30: =HLOOKUP(Main!$C$2,Translating_products!$DI$4:$DY$216,Translating_products!CM28, FALSE) -> Miniserver Go | E30: =IF(ISBLANK($Q$1),HLOOKUP(Main!$C$2,Translating_products!$EE$4:$EU$216,Translating_products!CM28,FALSE),HLOOKUP($Q$1,Translating_products!$EE$4:$EU$216,Translating_products!CM28,FALSE)) -> 8263.63 | F30: 9998.9923 | G30: 0 | H30: wird ausgewählt (für Nachrüster) | I30: Air/Extension | N30: 128 | O30: nix | Q30: Kč | R30: R
B31: =Calculation!C230 -> 1 | C31: =HLOOKUP(Main!$C$2,Translating_products!$CN$4:$DD$216,Translating_products!CM29, FALSE) -> 100140 | D31: =HLOOKUP(Main!$C$2,Translating_products!$DI$4:$DY$216,Translating_products!CM29, FALSE) -> Remote Air | E31: =IF(ISBLANK($Q$1),HLOOKUP(Main!$C$2,Translating_products!$EE$4:$EU$216,Translating_products!CM29,FALSE),HLOOKUP($Q$1,Translating_products!$EE$4:$EU$216,Translating_products!CM29,FALSE)) -> 1099 | F31: 1329.79 | G31: 1329.79 | H31: belegt 1 Kanal auf MsGo oder Extension | I31: Air | N31: 1 | O31: nix | Q31: Kč | R31: R
B32: =Calculation!C231 -> 0 | C32: =HLOOKUP(Main!$C$2,Translating_products!$CN$4:$DD$216,Translating_products!CM30, FALSE) -> 100141 | D32: =HLOOKUP(Main!$C$2,Translating_products!$DI$4:$DY$216,Translating_products!CM30, FALSE) -> IR Control Air | E32: =IF(ISBLANK($Q$1),HLOOKUP(Main!$C$2,Translating_products!$EE$4:$EU$216,Translating_products!CM30,FALSE),HLOOKUP($Q$1,Translating_products!$EE$4:$EU$216,Translating_products!CM30,FALSE)) -> 2499 | F32: 3023.79 | G32: 0 | H32: belegt 1 Kanal auf MsGo oder Extension | I32: Air | N32: 1 | O32: nix | Q32: Kč | R32: R
B33: =Calculation!C232 -> 3 | C33: =HLOOKUP(Main!$C$2,Translating_products!$CN$4:$DD$216,Translating_products!CM31, FALSE) -> 100142 | D33: =HLOOKUP(Main!$C$2,Translating_products!$DI$4:$DY$216,Translating_products!CM31, FALSE) -> Detektor kouře Air | E33: =IF(ISBLANK($Q$1),HLOOKUP(Main!$C$2,Translating_products!$EE$4:$EU$216,Translating_products!CM31,FALSE),HLOOKUP($Q$1,Translating_products!$EE$4:$EU$216,Translating_products!CM31,FALSE)) -> 2049 | F33: 2479.29 | G33: 7437.87 | H33: belegt 1 Kanal auf MsGo oder Extension | I33: Air | N33: 1 | O33: nix | Q33: Kč | R33: R
B34: =Calculation!C233 -> 0 | C34: =HLOOKUP(Main!$C$2,Translating_products!$CN$4:$DD$216,Translating_products!CM32, FALSE) -> 100149 | D34: =HLOOKUP(Main!$C$2,Translating_products!$DI$4:$DY$216,Translating_products!CM32, FALSE) -> Senzor teploty & vlhkosti Air | E34: =IF(ISBLANK($Q$1),HLOOKUP(Main!$C$2,Translating_products!$EE$4:$EU$216,Translating_products!CM32,FALSE),HLOOKUP($Q$1,Translating_products!$EE$4:$EU$216,Translating_products!CM32,FALSE)) -> 1899 | F34: 2297.79 | G34: 0 | H34: belegt 1 Kanal auf MsGo oder Extension | I34: Air | N34: 1 | O34: nix | Q34: Kč | R34: R
B35: =Calculation!C221 -> 0 | C35: =HLOOKUP(Main!$C$2,Translating_products!$CN$4:$DD$216,Translating_products!CM33, FALSE) -> 100150 | D35: =HLOOKUP(Main!$C$2,Translating_products!$DI$4:$DY$216,Translating_products!CM33, FALSE) -> Loxone set nářadí | E35: =IF(ISBLANK($Q$1),HLOOKUP(Main!$C$2,Translating_products!$EE$4:$EU$216,Translating_products!CM33,FALSE),HLOOKUP($Q$1,Translating_products!$EE$4:$EU$216,Translating_products!CM33,FALSE)) -> 8399 | F35: 10162.79 | G35: 0 | H35: Stück-Auswahl Sonstiges | I35: Sonstiges | O35: nix | Q35: Kč | R35: R
B36: =Calculation!C234 -> 0 | C36: =HLOOKUP(Main!$C$2,Translating_products!$CN$4:$DD$216,Translating_products!CM34, FALSE) -> 100151 | D36: =HLOOKUP(Main!$C$2,Translating_products!$DI$4:$DY$216,Translating_products!CM34, FALSE) -> IR Elektroměr Air | E36: =IF(ISBLANK($Q$1),HLOOKUP(Main!$C$2,Translating_products!$EE$4:$EU$216,Translating_products!CM34,FALSE),HLOOKUP($Q$1,Translating_products!$EE$4:$EU$216,Translating_products!CM34,FALSE)) -> 2099 | F36: 2539.79 | G36: 0 | H36: belegt 1 Kanal auf MsGo oder Extension | I36: Air | N36: 1 | O36: nix | Q36: Kč | R36: R
B37: =Calculation!C250+Calculation!C94+Calculation!C348 -> 0 | C37: =HLOOKUP(Main!$C$2,Translating_products!$CN$4:$DD$216,Translating_products!CM35, FALSE) -> 100153 | D37: =HLOOKUP(Main!$C$2,Translating_products!$DI$4:$DY$216,Translating_products!CM35, FALSE) -> Nano IO Air | E37: =IF(ISBLANK($Q$1),HLOOKUP(Main!$C$2,Translating_products!$EE$4:$EU$216,Translating_products!CM35,FALSE),HLOOKUP($Q$1,Translating_products!$EE$4:$EU$216,Translating_products!CM35,FALSE)) -> 2499 | F37: 3023.79 | G37: 0 | H37: belegt 1 Kanal auf MsGo oder Extension | I37: Beschattung | N37: 1 | O37: nix | Q37: Kč | R37: L
B38: =Calculation!C235+Calculation!C376 -> 0 | C38: =HLOOKUP(Main!$C$2,Translating_products!$CN$4:$DD$216,Translating_products!CM36, FALSE) -> 100154 | D38: =HLOOKUP(Main!$C$2,Translating_products!$DI$4:$DY$216,Translating_products!CM36, FALSE) -> Loxone Touch for Nano Bílá | E38: =IF(ISBLANK($Q$1),HLOOKUP(Main!$C$2,Translating_products!$EE$4:$EU$216,Translating_products!CM36,FALSE),HLOOKUP($Q$1,Translating_products!$EE$4:$EU$216,Translating_products!CM36,FALSE)) -> 1049 | F38: 1269.29 | G38: 0 | I38: Air | O38: nix | Q38: Kč | R38: R
B39: =Calculation!C236+Calculation!C377 -> 0 | C39: =HLOOKUP(Main!$C$2,Translating_products!$CN$4:$DD$216,Translating_products!CM37, FALSE) -> 100155 | D39: =HLOOKUP(Main!$C$2,Translating_products!$DI$4:$DY$216,Translating_products!CM37, FALSE) -> Loxone Touch Air Bílá | E39: =IF(ISBLANK($Q$1),HLOOKUP(Main!$C$2,Translating_products!$EE$4:$EU$216,Translating_products!CM37,FALSE),HLOOKUP($Q$1,Translating_products!$EE$4:$EU$216,Translating_products!CM37,FALSE)) -> 2499 | F39: =E39*(1+$E$197*0.01) -> 3023.79 | G39: 0 | H39: belegt 1 Kanal auf MsGo oder Extension | I39: Air | N39: 1 | O39: nix | Q39: Kč | R39: R
B40: =Calculation!C408 -> 0 | C40: =HLOOKUP(Main!$C$2,Translating_products!$CN$4:$DD$216,Translating_products!CM38, FALSE) -> 100158 | D40: =HLOOKUP(Main!$C$2,Translating_products!$DI$4:$DY$216,Translating_products!CM38, FALSE) -> Fröling Extension | E40: =IF(ISBLANK($Q$1),HLOOKUP(Main!$C$2,Translating_products!$EE$4:$EU$216,Translating_products!CM38,FALSE),HLOOKUP($Q$1,Translating_products!$EE$4:$EU$216,Translating_products!CM38,FALSE)) -> 4499 | F40: 5443.79 | G40: 0 | H40: Sonstiges -kann man einfach kaufen | I40: Sonstiges | O40: 0.03 | Q40: Kč | R40: H
B41: =Calculation!C237+Calculation!C136 -> 0 | C41: =HLOOKUP(Main!$C$2,Translating_products!$CN$4:$DD$216,Translating_products!CM39, FALSE) -> 100163 | D41: =HLOOKUP(Main!$C$2,Translating_products!$DI$4:$DY$216,Translating_products!CM39, FALSE) -> Hlavice Air | E41: =IF(ISBLANK($Q$1),HLOOKUP(Main!$C$2,Translating_products!$EE$4:$EU$216,Translating_products!CM39,FALSE),HLOOKUP($Q$1,Translating_products!$EE$4:$EU$216,Translating_products!CM39,FALSE)) -> 2099 | F41: 2539.79 | G41: 0 | H41: belegt 1 Kanal auf MsGo oder Extension | I41: Air | N41: 1 | O41: nix | Q41: Kč | R41: H
B42: =Calculation!C120+Calculation!H122 -> 1 | C42: =HLOOKUP(Main!$C$2,Translating_products!$CN$4:$DD$216,Translating_products!CM40, FALSE) -> 100165 | D42: =HLOOKUP(Main!$C$2,Translating_products!$DI$4:$DY$216,Translating_products!CM40, FALSE) -> Loxone Music Server 4 Zóny | E42: =IF(ISBLANK($Q$1),HLOOKUP(Main!$C$2,Translating_products!$EE$4:$EU$216,Translating_products!CM40,FALSE),HLOOKUP($Q$1,Translating_products!$EE$4:$EU$216,Translating_products!CM40,FALSE)) -> 31999 | F42: 38718.79 | G42: 38718.79 | H42: Stück-Auswahl | I42: Musik | O42: nix | Q42: Kč | R42: M
B43: =Calculation!C121+Calculation!H123 -> 0 | C43: =HLOOKUP(Main!$C$2,Translating_products!$CN$4:$DD$216,Translating_products!CM41, FALSE) -> 100166 | D43: =HLOOKUP(Main!$C$2,Translating_products!$DI$4:$DY$216,Translating_products!CM41, FALSE) -> Loxone Music Server 8 Zón | E43: =IF(ISBLANK($Q$1),HLOOKUP(Main!$C$2,Translating_products!$EE$4:$EU$216,Translating_products!CM41,FALSE),HLOOKUP($Q$1,Translating_products!$EE$4:$EU$216,Translating_products!CM41,FALSE)) -> 44999 | F43: 54448.79 | G43: 0 | H43: Stück-Auswahl | I43: Musik | O43: nix | Q43: Kč | R43: M
B44: =Calculation!C122+Calculation!H124 -> 0 | C44: =HLOOKUP(Main!$C$2,Translating_products!$CN$4:$DD$216,Translating_products!CM42, FALSE) -> 100167 | D44: =HLOOKUP(Main!$C$2,Translating_products!$DI$4:$DY$216,Translating_products!CM42, FALSE) -> Loxone Music Server 12 Zón | E44: =IF(ISBLANK($Q$1),HLOOKUP(Main!$C$2,Translating_products!$EE$4:$EU$216,Translating_products!CM42,FALSE),HLOOKUP($Q$1,Translating_products!$EE$4:$EU$216,Translating_products!CM42,FALSE)) -> 52499 | F44: 63523.79 | G44: 0 | H44: Stück-Auswahl | I44: Musik | O44: nix | Q44: Kč | R44: M
B45: =Calculation!C123+Calculation!H125 -> 0 | C45: =HLOOKUP(Main!$C$2,Translating_products!$CN$4:$DD$216,Translating_products!CM43, FALSE) -> 100168 | D45: =HLOOKUP(Main!$C$2,Translating_products!$DI$4:$DY$216,Translating_products!CM43, FALSE) -> Loxone Music Server 16 Zón | E45: =IF(ISBLANK($Q$1),HLOOKUP(Main!$C$2,Translating_products!$EE$4:$EU$216,Translating_products!CM43,FALSE),HLOOKUP($Q$1,Translating_products!$EE$4:$EU$216,Translating_products!CM43,FALSE)) -> 64999 | F45: 78648.79 | G45: 0 | H45: Stück-Auswahl | I45: Musik | O45: nix | Q45: Kč | R45: M
B46: =Calculation!C124+Calculation!H126 -> 0 | C46: =HLOOKUP(Main!$C$2,Translating_products!$CN$4:$DD$216,Translating_products!CM44, FALSE) -> 100169 | D46: =HLOOKUP(Main!$C$2,Translating_products!$DI$4:$DY$216,Translating_products!CM44, FALSE) -> Loxone Music Server 20 Zón | E46: =IF(ISBLANK($Q$1),HLOOKUP(Main!$C$2,Translating_products!$EE$4:$EU$216,Translating_products!CM44,FALSE),HLOOKUP($Q$1,Translating_products!$EE$4:$EU$216,Translating_products!CM44,FALSE)) -> 74999 | F46: 90748.79 | G46: 0 | H46: Stück-Auswahl | I46: Musik | O46: nix | Q46: Kč | R46: M
B47: =Calculation!C336 -> 0 | C47: =HLOOKUP(Main!$C$2,Translating_products!$CN$4:$DD$216,Translating_products!CM45, FALSE) -> not available in this country | D47: =HLOOKUP(Main!$C$2,Translating_products!$DI$4:$DY$216,Translating_products!CM45, FALSE) -> not available in this country | E47: =IF(ISBLANK($Q$1),HLOOKUP(Main!$C$2,Translating_products!$EE$4:$EU$216,Translating_products!CM45,FALSE),HLOOKUP($Q$1,Translating_products!$EE$4:$EU$216,Translating_products!CM45,FALSE)) -> 0 | F47: 0 | G47: 0 | H47: Stück-Auswahl | I47: Sonstiges | O47: nix | Q47: Kč | R47: R
B48: =Calculation!C301 -> 0 | C48: =HLOOKUP(Main!$C$2,Translating_products!$CN$4:$DD$216,Translating_products!CM46, FALSE) -> 100178 | D48: =HLOOKUP(Main!$C$2,Translating_products!$DI$4:$DY$216,Translating_products!CM46, FALSE) -> AquaStar Air 1.5" | E48: =IF(ISBLANK($Q$1),HLOOKUP(Main!$C$2,Translating_products!$EE$4:$EU$216,Translating_products!CM46,FALSE),HLOOKUP($Q$1,Translating_products!$EE$4:$EU$216,Translating_products!CM46,FALSE)) -> 38999 | F48: 47188.79 | G48: 0 | H48: Stück-Auswahl | I48: Sonstiges | O48: nix | Q48: Kč | R48: R
B49: =Calculation!C302 -> 0 | C49: =HLOOKUP(Main!$C$2,Translating_products!$CN$4:$DD$216,Translating_products!CM47, FALSE) -> 100179 | D49: =HLOOKUP(Main!$C$2,Translating_products!$DI$4:$DY$216,Translating_products!CM47, FALSE) -> AquaStar Air 2" | E49: =IF(ISBLANK($Q$1),HLOOKUP(Main!$C$2,Translating_products!$EE$4:$EU$216,Translating_products!CM47,FALSE),HLOOKUP($Q$1,Translating_products!$EE$4:$EU$216,Translating_products!CM47,FALSE)) -> 51999 | F49: 62918.79 | G49: 0 | H49: Stück-Auswahl | I49: Sonstiges | O49: nix | Q49: Kč | R49: R
B50: =Calculation!C244+Calculation!C379 -> 0 | C50: =HLOOKUP(Main!$C$2,Translating_products!$CN$4:$DD$216,Translating_products!CM48, FALSE) -> 100180 | D50: =HLOOKUP(Main!$C$2,Translating_products!$DI$4:$DY$216,Translating_products!CM48, FALSE) -> Loxone Touch Air Anthrazit | E50: =IF(ISBLANK($Q$1),HLOOKUP(Main!$C$2,Translating_products!$EE$4:$EU$216,Translating_products!CM48,FALSE),HLOOKUP($Q$1,Translating_products!$EE$4:$EU$216,Translating_products!CM48,FALSE)) -> 2499 | F50: 3023.79 | G50: 0 | H50: belegt 1 Kanal auf MsGo oder Extension | I50: Air | N50: 1 | O50: nix | Q50: Kč | R50: R
B51: =Calculation!C245+Calculation!C380 -> 0 | C51: =HLOOKUP(Main!$C$2,Translating_products!$CN$4:$DD$216,Translating_products!CM49, FALSE) -> 100181 | D51: =HLOOKUP(Main!$C$2,Translating_products!$DI$4:$DY$216,Translating_products!CM49, FALSE) -> Loxone Touch for Nano Anthrazit | E51: =IF(ISBLANK($Q$1),HLOOKUP(Main!$C$2,Translating_products!$EE$4:$EU$216,Translating_products!CM49,FALSE),HLOOKUP($Q$1,Translating_products!$EE$4:$EU$216,Translating_products!CM49,FALSE)) -> 1049 | F51: 1269.29 | G51: 0 | I51: Air | O51: nix | Q51: Kč | R51: R
B52: =Calculation!C246+Calculation!C350 -> 0 | C52: =HLOOKUP(Main!$C$2,Translating_products!$CN$4:$DD$216,Translating_products!CM50, FALSE) -> 100182 | D52: =HLOOKUP(Main!$C$2,Translating_products!$DI$4:$DY$216,Translating_products!CM50, FALSE) -> Trubkový Motor SOLIDline Air 10Nm | E52: =IF(ISBLANK($Q$1),HLOOKUP(Main!$C$2,Translating_products!$EE$4:$EU$216,Translating_products!CM50,FALSE),HLOOKUP($Q$1,Translating_products!$EE$4:$EU$216,Translating_products!CM50,FALSE)) -> 4499 | F52: 5443.79 | G52: 0 | H52: belegt 1 Kanal auf MsGo oder Extension | I52: Air | N52: 1 | O52: nix | Q52: Kč | R52: B
B53: =Calculation!C247+Calculation!C351 -> 0 | C53: =HLOOKUP(Main!$C$2,Translating_products!$CN$4:$DD$216,Translating_products!CM51, FALSE) -> 100183 | D53: =HLOOKUP(Main!$C$2,Translating_products!$DI$4:$DY$216,Translating_products!CM51, FALSE) -> Trubkový Motor SOLIDline Air 20Nm | E53: =IF(ISBLANK($Q$1),HLOOKUP(Main!$C$2,Translating_products!$EE$4:$EU$216,Translating_products!CM51,FALSE),HLOOKUP($Q$1,Translating_products!$EE$4:$EU$216,Translating_products!CM51,FALSE)) -> 4999 | F53: 6048.79 | G53: 0 | H53: belegt 1 Kanal auf MsGo oder Extension | I53: Air | N53: 1 | O53: nix | Q53: Kč | R53: B
B54: =Calculation!C248+Calculation!C352 -> 0 | C54: =HLOOKUP(Main!$C$2,Translating_products!$CN$4:$DD$216,Translating_products!CM52, FALSE) -> 100184 | D54: =HLOOKUP(Main!$C$2,Translating_products!$DI$4:$DY$216,Translating_products!CM52, FALSE) -> Trubkový Motor SOLIDline Air 50Nm | E54: =IF(ISBLANK($Q$1),HLOOKUP(Main!$C$2,Translating_products!$EE$4:$EU$216,Translating_products!CM52,FALSE),HLOOKUP($Q$1,Translating_products!$EE$4:$EU$216,Translating_products!CM52,FALSE)) -> 5799 | F54: 7016.79 | G54: 0 | H54: belegt 1 Kanal auf MsGo oder Extension | I54: Air | N54: 1 | O54: nix | Q54: Kč | R54: B
B55: =Calculation!C303+Calculation!L417 -> 2 | C55: =HLOOKUP(Main!$C$2,Translating_products!$CN$4:$DD$216,Translating_products!CM53, FALSE) -> 200001 | D55: =HLOOKUP(Main!$C$2,Translating_products!$DI$4:$DY$216,Translating_products!CM53, FALSE) -> 24V Zdroj (1.3A) | E55: =IF(ISBLANK($Q$1),HLOOKUP(Main!$C$2,Translating_products!$EE$4:$EU$216,Translating_products!CM53,FALSE),HLOOKUP($Q$1,Translating_products!$EE$4:$EU$216,Translating_products!CM53,FALSE)) -> 908.26 | F55: 1098.9946 | G55: 2197.9892 | H55: Auswählen & stehen auch mit anderen Produkten in Beziehung | I55: Sonstiges | O55: nix | Q55: Kč | R55: R
B56: =Calculation!C304+Calculation!L418 -> 1 | C56: =HLOOKUP(Main!$C$2,Translating_products!$CN$4:$DD$216,Translating_products!CM54, FALSE) -> 200002 | D56: =HLOOKUP(Main!$C$2,Translating_products!$DI$4:$DY$216,Translating_products!CM54, FALSE) -> 24V Zdroj (4.2A) | E56: =IF(ISBLANK($Q$1),HLOOKUP(Main!$C$2,Translating_products!$EE$4:$EU$216,Translating_products!CM54,FALSE),HLOOKUP($Q$1,Translating_products!$EE$4:$EU$216,Translating_products!CM54,FALSE)) -> 1404.13 | F56: 1698.9973 | G56: 1698.9973 | H56: Auswählen & stehen auch mit anderen Produkten in Beziehung | I56: Sonstiges | O56: nix | Q56: Kč | R56: R
B57: =Calculation!C137+Calculation!C171 -> 0 | C57: =HLOOKUP(Main!$C$2,Translating_products!$CN$4:$DD$216,Translating_products!CM55, FALSE) -> 200003 | D57: =HLOOKUP(Main!$C$2,Translating_products!$DI$4:$DY$216,Translating_products!CM55, FALSE) -> Venkovní senzor teploty | E57: =IF(ISBLANK($Q$1),HLOOKUP(Main!$C$2,Translating_products!$EE$4:$EU$216,Translating_products!CM55,FALSE),HLOOKUP($Q$1,Translating_products!$EE$4:$EU$216,Translating_products!CM55,FALSE)) -> 1032.23 | F57: 1248.9983 | G57: 0 | I57: Heizung | J57: 1 | O57: =B57*0.005 -> 0 | Q57: Kč | R57: H
B58: 0 | C58: =HLOOKUP(Main!$C$2,Translating_products!$CN$4:$DD$216,Translating_products!CM56, FALSE) -> 0 | D58: =HLOOKUP(Main!$C$2,Translating_products!$DI$4:$DY$216,Translating_products!CM56, FALSE) -> No longer sold | E58: =IF(ISBLANK($Q$1),HLOOKUP(Main!$C$2,Translating_products!$EE$4:$EU$216,Translating_products!CM56,FALSE),HLOOKUP($Q$1,Translating_products!$EE$4:$EU$216,Translating_products!CM56,FALSE)) -> 0 | F58: 0 | G58: 0 | I58: Heizung | L58: 1 | O58: =B58*0.27 -> 0 | Q58: Kč | R58: R
B59: 0 | C59: =HLOOKUP(Main!$C$2,Translating_products!$CN$4:$DD$216,Translating_products!CM57, FALSE) -> 0 | D59: =HLOOKUP(Main!$C$2,Translating_products!$DI$4:$DY$216,Translating_products!CM57, FALSE) -> No longer sold | E59: =IF(ISBLANK($Q$1),HLOOKUP(Main!$C$2,Translating_products!$EE$4:$EU$216,Translating_products!CM57,FALSE),HLOOKUP($Q$1,Translating_products!$EE$4:$EU$216,Translating_products!CM57,FALSE)) -> 0 | F59: 0 | G59: 0 | I59: Heizung | M59: 1 | O59: nix | Q59: Kč | R59: R
B60: =Calculation!C138+Calculation!C172 -> 0 | C60: =HLOOKUP(Main!$C$2,Translating_products!$CN$4:$DD$216,Translating_products!CM58, FALSE) -> 200006 | D60: =HLOOKUP(Main!$C$2,Translating_products!$DI$4:$DY$216,Translating_products!CM58, FALSE) -> Vnitřní teplotní senzor 0-10V | E60: =IF(ISBLANK($Q$1),HLOOKUP(Main!$C$2,Translating_products!$EE$4:$EU$216,Translating_products!CM58,FALSE),HLOOKUP($Q$1,Translating_products!$EE$4:$EU$216,Translating_products!CM58,FALSE)) -> 1032.23 | F60: 1248.9983 | G60: 0 | I60: Heizung | J60: 1 | O60: =B60*0.005 -> 0 | Q60: Kč | R60: H
B61: =Calculation!C305 -> 0 | C61: =HLOOKUP(Main!$C$2,Translating_products!$CN$4:$DD$216,Translating_products!CM59, FALSE) -> not available in this country | D61: =HLOOKUP(Main!$C$2,Translating_products!$DI$4:$DY$216,Translating_products!CM59, FALSE) -> not available in this country | E61: =IF(ISBLANK($Q$1),HLOOKUP(Main!$C$2,Translating_products!$EE$4:$EU$216,Translating_products!CM59,FALSE),HLOOKUP($Q$1,Translating_products!$EE$4:$EU$216,Translating_products!CM59,FALSE)) -> 0 | F61: 0 | G61: 0 | H61: Sonstiges-Stück | I61: Sonstiges | O61: nix | Q61: Kč | R61: R
B62: =Calculation!C139+Calculation!C173 -> 0 | C62: =HLOOKUP(Main!$C$2,Translating_products!$CN$4:$DD$216,Translating_products!CM60, FALSE) -> 200010 | D62: =HLOOKUP(Main!$C$2,Translating_products!$DI$4:$DY$216,Translating_products!CM60, FALSE) -> Senzor teploty a vlhkosti (vnitřní) 0-10V | E62: =IF(ISBLANK($Q$1),HLOOKUP(Main!$C$2,Translating_products!$EE$4:$EU$216,Translating_products!CM60,FALSE),HLOOKUP($Q$1,Translating_products!$EE$4:$EU$216,Translating_products!CM60,FALSE)) -> 2189.26 | F62: 2649.0046 | G62: 0 | I62: Heizung | J62: 2 | O62: =B62*0.005 -> 0 | Q62: Kč | R62: H
B63: =Calculation!C306 -> 0 | C63: =HLOOKUP(Main!$C$2,Translating_products!$CN$4:$DD$216,Translating_products!CM61, FALSE) -> 200012 | D63: =HLOOKUP(Main!$C$2,Translating_products!$DI$4:$DY$216,Translating_products!CM61, FALSE) -> Adaptér ventilu VA80 | E63: =IF(ISBLANK($Q$1),HLOOKUP(Main!$C$2,Translating_products!$EE$4:$EU$216,Translating_products!CM61,FALSE),HLOOKUP($Q$1,Translating_products!$EE$4:$EU$216,Translating_products!CM61,FALSE)) -> 29.75 | F63: 35.9975 | G63: 0 | H63: Sonstiges-Stück | I63: Sonstiges | O63: nix | Q63: Kč | R63: H
B64: =Calculation!C307 -> 0 | C64: =HLOOKUP(Main!$C$2,Translating_products!$CN$4:$DD$216,Translating_products!CM62, FALSE) -> not available in this country | D64: =HLOOKUP(Main!$C$2,Translating_products!$DI$4:$DY$216,Translating_products!CM62, FALSE) -> not available in this country | E64: =IF(ISBLANK($Q$1),HLOOKUP(Main!$C$2,Translating_products!$EE$4:$EU$216,Translating_products!CM62,FALSE),HLOOKUP($Q$1,Translating_products!$EE$4:$EU$216,Translating_products!CM62,FALSE)) -> 0 | F64: 0 | G64: 0 | H64: Sonstiges-Stück | I64: Sonstiges | O64: nix | Q64: Kč | R64: R
B65: =Calculation!C140+Calculation!C174 -> 0 | C65: =HLOOKUP(Main!$C$2,Translating_products!$CN$4:$DD$216,Translating_products!CM63, FALSE) -> 200017 | D65: =HLOOKUP(Main!$C$2,Translating_products!$DI$4:$DY$216,Translating_products!CM63, FALSE) -> Senzor CO2/Teplota/Vlhkost | E65: =IF(ISBLANK($Q$1),HLOOKUP(Main!$C$2,Translating_products!$EE$4:$EU$216,Translating_products!CM63,FALSE),HLOOKUP($Q$1,Translating_products!$EE$4:$EU$216,Translating_products!CM63,FALSE)) -> 5784.3 | F65: 6999.003 | G65: 0 | I65: Heizung | J65: 3 | O65: =B65*0.01 -> 0 | Q65: Kč | R65: H
B66: =Calculation!C175 -> 0 | C66: =HLOOKUP(Main!$C$2,Translating_products!$CN$4:$DD$216,Translating_products!CM64, FALSE) -> 200018 | D66: =HLOOKUP(Main!$C$2,Translating_products!$DI$4:$DY$216,Translating_products!CM64, FALSE) -> Dešťový senzor (24V) | E66: =IF(ISBLANK($Q$1),HLOOKUP(Main!$C$2,Translating_products!$EE$4:$EU$216,Translating_products!CM64,FALSE),HLOOKUP($Q$1,Translating_products!$EE$4:$EU$216,Translating_products!CM64,FALSE)) -> 1445.45 | F66: 1748.9945 | G66: 0 | I66: Sensoren | K66: 1 | O66: =0.06*B66 -> 0 | Q66: Kč | R66: B
B67: =Calculation!C176 -> 0 | C67: =HLOOKUP(Main!$C$2,Translating_products!$CN$4:$DD$216,Translating_products!CM65, FALSE) -> 200031 | D67: =HLOOKUP(Main!$C$2,Translating_products!$DI$4:$DY$216,Translating_products!CM65, FALSE) -> Senzor teploty a vlhkosti (venkovní) | E67: =IF(ISBLANK($Q$1),HLOOKUP(Main!$C$2,Translating_products!$EE$4:$EU$216,Translating_products!CM65,FALSE),HLOOKUP($Q$1,Translating_products!$EE$4:$EU$216,Translating_products!CM65,FALSE)) -> 2933.06 | F67: 3549.0026 | G67: 0 | I67: Sensoren | J67: 2 | O67: =B67*0.005 -> 0 | Q67: Kč | R67: H
B68: =Calculation!C177 -> 0 | C68: =HLOOKUP(Main!$C$2,Translating_products!$CN$4:$DD$216,Translating_products!CM66, FALSE) -> 200032 | D68: =HLOOKUP(Main!$C$2,Translating_products!$DI$4:$DY$216,Translating_products!CM66, FALSE) -> Senzor osvětlení 0-10V | E68: =IF(ISBLANK($Q$1),HLOOKUP(Main!$C$2,Translating_products!$EE$4:$EU$216,Translating_products!CM66,FALSE),HLOOKUP($Q$1,Translating_products!$EE$4:$EU$216,Translating_products!CM66,FALSE)) -> 1982.64 | F68: 2398.9944 | G68: 0 | I68: Sensoren | J68: 1 | O68: =0.005*B68 -> 0 | Q68: Kč | R68: B
B69: =Calculation!C178 -> 0 | C69: =HLOOKUP(Main!$C$2,Translating_products!$CN$4:$DD$216,Translating_products!CM67, FALSE) -> 200033 | D69: =HLOOKUP(Main!$C$2,Translating_products!$DI$4:$DY$216,Translating_products!CM67, FALSE) -> Senzor větru (24V) | E69: =IF(ISBLANK($Q$1),HLOOKUP(Main!$C$2,Translating_products!$EE$4:$EU$216,Translating_products!CM67,FALSE),HLOOKUP($Q$1,Translating_products!$EE$4:$EU$216,Translating_products!CM67,FALSE)) -> 1817.36 | F69: 2199.0056 | G69: 0 | I69: Sensoren | K69: 1 | O69: nix | Q69: Kč | R69: B
B70: =Calculation!C179 -> 0 | C70: =HLOOKUP(Main!$C$2,Translating_products!$CN$4:$DD$216,Translating_products!CM68, FALSE) -> 200034 | D70: =HLOOKUP(Main!$C$2,Translating_products!$DI$4:$DY$216,Translating_products!CM68, FALSE) -> Držák pro senzor větru | E70: =IF(ISBLANK($Q$1),HLOOKUP(Main!$C$2,Translating_products!$EE$4:$EU$216,Translating_products!CM68,FALSE),HLOOKUP($Q$1,Translating_products!$EE$4:$EU$216,Translating_products!CM68,FALSE)) -> 1362.81 | F70: 1649.0001 | G70: 0 | H70: Stück-Auswahl | I70: Sensoren | O70: nix | Q70: Kč | R70: B
B71: =Calculation!C308+Calculation!L419 -> 2 | C71: =HLOOKUP(Main!$C$2,Translating_products!$CN$4:$DD$216,Translating_products!CM69, FALSE) -> 200035 | D71: =HLOOKUP(Main!$C$2,Translating_products!$DI$4:$DY$216,Translating_products!CM69, FALSE) -> 24V Zdroj (10A) | E71: =IF(ISBLANK($Q$1),HLOOKUP(Main!$C$2,Translating_products!$EE$4:$EU$216,Translating_products!CM69,FALSE),HLOOKUP($Q$1,Translating_products!$EE$4:$EU$216,Translating_products!CM69,FALSE)) -> 3304.96 | F71: =E71*(1+$E$197*0.01) -> 3999.0016 | G71: 7998.0032 | H71: Stück-Auswahl | I71: Sonstiges | O71: nix | Q71: Kč | R71: R
B72: =Calculation!C309 -> 0 | C72: =HLOOKUP(Main!$C$2,Translating_products!$CN$4:$DD$216,Translating_products!CM71, FALSE) -> 200040 | D72: =IF(ISBLANK(Q1),HLOOKUP(Main!$C$2,Translating_products!$DI$4:$DY$216,Translating_products!CM71,FALSE),"Not available in this country") -> Instalační krabice IP20 bílá | E72: =IF(ISBLANK($Q$1),HLOOKUP(Main!$C$2,Translating_products!$EE$4:$EU$216,Translating_products!CM71,FALSE),HLOOKUP($Q$1,Translating_products!$EE$4:$EU$216,Translating_products!CM71,FALSE)) -> 229 | F72: 277.09 | G72: 0 | H72: Stück-Auswahl | I72: Sonstiges | O72: nix | Q72: =$Q$7 -> Kč | R72: R
B73: =Calculation!C82 -> 0 | C73: =HLOOKUP(Main!$C$2,Translating_products!$CN$4:$DD$216,Translating_products!CM72, FALSE) -> 200042 | D73: =HLOOKUP(Main!$C$2,Translating_products!$DI$4:$DY$216,Translating_products!CM72, FALSE) -> 5m RGB LED pásky IP20 (bez ochrany proti vodě) | E73: =IF(ISBLANK($Q$1),HLOOKUP(Main!$C$2,Translating_products!$EE$4:$EU$216,Translating_products!CM72,FALSE),HLOOKUP($Q$1,Translating_products!$EE$4:$EU$216,Translating_products!CM72,FALSE)) -> 2149 | F73: 2600.29 | G73: 0 | H73: Stück-Auswahl Licht | I73: Licht | O73: =14.4*5*B73 -> 0 | Q73: Kč | R73: L
B74: =Calculation!C83 -> 0 | C74: =HLOOKUP(Main!$C$2,Translating_products!$CN$4:$DD$216,Translating_products!CM73, FALSE) -> 200043 | D74: =HLOOKUP(Main!$C$2,Translating_products!$DI$4:$DY$216,Translating_products!CM73, FALSE) -> 5m LED pásky (teplá bílá) - IP20 (bez ochrany proti vodě) | E74: =IF(ISBLANK($Q$1),HLOOKUP(Main!$C$2,Translating_products!$EE$4:$EU$216,Translating_products!CM73,FALSE),HLOOKUP($Q$1,Translating_products!$EE$4:$EU$216,Translating_products!CM73,FALSE)) -> 2149 | F74: 2600.29 | G74: 0 | H74: Stück-Auswahl Licht | I74: Licht | O74: =14.4*5*B74 -> 0 | Q74: Kč | R74: L
B75: =Calculation!C85 -> 0 | C75: =HLOOKUP(Main!$C$2,Translating_products!$CN$4:$DD$216,Translating_products!CM75, FALSE) -> 200046 | D75: =HLOOKUP(Main!$C$2,Translating_products!$DI$4:$DY$216,Translating_products!CM75, FALSE) -> 5m RGB LED pásky IP68 (proti potopení do vody) | E75: =IF(ISBLANK($Q$1),HLOOKUP(Main!$C$2,Translating_products!$EE$4:$EU$216,Translating_products!CM75,FALSE),HLOOKUP($Q$1,Translating_products!$EE$4:$EU$216,Translating_products!CM75,FALSE)) -> 2499 | F75: 3023.79 | G75: 0 | H75: Stück-Auswahl Licht | I75: Licht | O75: =14.4*5*B75 -> 0 | Q75: Kč | R75: L
B76: =Calculation!C238 -> 0 | C76: =HLOOKUP(Main!$C$2,Translating_products!$CN$4:$DD$216,Translating_products!CM76, FALSE) -> 200048 | D76: =HLOOKUP(Main!$C$2,Translating_products!$DI$4:$DY$216,Translating_products!CM76, FALSE) -> SMA anténa 868 MHz | E76: =IF(ISBLANK($Q$1),HLOOKUP(Main!$C$2,Translating_products!$EE$4:$EU$216,Translating_products!CM76,FALSE),HLOOKUP($Q$1,Translating_products!$EE$4:$EU$216,Translating_products!CM76,FALSE)) -> 371.9 | F76: 449.999 | G76: =B76*F76 -> 0 | H76: Stück-Auswahl | I76: Air | O76: nix | Q76: Kč | R76: R
B77: =Calculation!C310+Calculation!C223 -> 0 | C77: =HLOOKUP(Main!$C$2,Translating_products!$CN$4:$DD$216,Translating_products!CM77, FALSE) -> 200049 | D77: =HLOOKUP(Main!$C$2,Translating_products!$DI$4:$DY$216,Translating_products!CM77, FALSE) -> Spojovací relé | E77: =IF(ISBLANK($Q$1),HLOOKUP(Main!$C$2,Translating_products!$EE$4:$EU$216,Translating_products!CM77,FALSE),HLOOKUP($Q$1,Translating_products!$EE$4:$EU$216,Translating_products!CM77,FALSE)) -> 396.69 | F77: 479.9949 | G77: 0 | H77: Stück-Auswahl | I77: Sonstiges | O77: nix | Q77: Kč | R77: R
B78: =Calculation!C337 -> 0 | C78: =HLOOKUP(Main!$C$2,Translating_products!$CN$4:$DD$216,Translating_products!CM78, FALSE) -> 200050 | D78: =HLOOKUP(Main!$C$2,Translating_products!$DI$4:$DY$216,Translating_products!CM78, FALSE) -> Loxone samolepky | E78: =IF(ISBLANK($Q$1),HLOOKUP(Main!$C$2,Translating_products!$EE$4:$EU$216,Translating_products!CM78,FALSE),HLOOKUP($Q$1,Translating_products!$EE$4:$EU$216,Translating_products!CM78,FALSE)) -> 73.55 | F78: 88.9955 | G78: 0 | H78: Stück-Auswahl Sonstiges | I78: Sonstiges | O78: nix | Q78: Kč | R78: R
B79: =Calculation!C180 -> 0 | C79: =HLOOKUP(Main!$C$2,Translating_products!$CN$4:$DD$216,Translating_products!CM79, FALSE) -> 200054 | D79: =HLOOKUP(Main!$C$2,Translating_products!$DI$4:$DY$216,Translating_products!CM79, FALSE) -> Ultrazvukový senzor 0-10V | E79: =IF(ISBLANK($Q$1),HLOOKUP(Main!$C$2,Translating_products!$EE$4:$EU$216,Translating_products!CM79,FALSE),HLOOKUP($Q$1,Translating_products!$EE$4:$EU$216,Translating_products!CM79,FALSE)) -> 5247.11 | F79: 6349.0031 | G79: 0 | I79: Sensoren | J79: 1 | O79: =B79*0.06 -> 0 | Q79: Kč | R79: R
B80: =Calculation!C378 -> 0 | C80: =HLOOKUP(Main!$C$2,Translating_products!$CN$4:$DD$216,Translating_products!CM80, FALSE) -> 200057 | D80: =IF(ISBLANK(Q1),HLOOKUP(Main!$C$2,Translating_products!$DI$4:$DY$216,Translating_products!CM80,FALSE),"Not available in this country") -> Enocean Bezdrátové tlačítko | E80: =IF(ISBLANK($Q$1),HLOOKUP(Main!$C$2,Translating_products!$EE$4:$EU$216,Translating_products!CM80,FALSE),HLOOKUP($Q$1,Translating_products!$EE$4:$EU$216,Translating_products!CM80,FALSE)) -> 1249 | F80: 1511.29 | G80: 0 | H80: enocean - extension 1 kanal | I80: Taster | N80: 1 | O80: nix | Q80: Kč | R80: R
B81: =Calculation!C239 -> 0 | C81: =HLOOKUP(Main!$C$2,Translating_products!$CN$4:$DD$216,Translating_products!CM81, FALSE) -> 200059 | D81: =IF(ISBLANK(Q1),HLOOKUP(Main!$C$2,Translating_products!$DI$4:$DY$216,Translating_products!CM81,FALSE),"Not available in this country") -> Enocean Bezdrátový okenní kontakt | E81: =IF(ISBLANK($Q$1),HLOOKUP(Main!$C$2,Translating_products!$EE$4:$EU$216,Translating_products!CM81,FALSE),HLOOKUP($Q$1,Translating_products!$EE$4:$EU$216,Translating_products!CM81,FALSE)) -> 2149 | F81: 2600.29 | G81: 0 | H81: Stück-Auswahl | I81: Air | N81: 1 | O81: nix | Q81: Kč | R81: R
B82: =Calculation!C86 -> 0 | C82: =HLOOKUP(Main!$C$2,Translating_products!$CN$4:$DD$216,Translating_products!CM82, FALSE) -> 200061 | D82: =HLOOKUP(Main!$C$2,Translating_products!$DI$4:$DY$216,Translating_products!CM82, FALSE) -> 5m LED pásky (teplá bílá) - IP65 (proti tryskající vodě) | E82: =IF(ISBLANK($Q$1),HLOOKUP(Main!$C$2,Translating_products!$EE$4:$EU$216,Translating_products!CM82,FALSE),HLOOKUP($Q$1,Translating_products!$EE$4:$EU$216,Translating_products!CM82,FALSE)) -> 2299 | F82: 2781.79 | G82: 0 | H82: Stück-Auswahl | I82: Licht | O82: =14.4*5*B82 -> 0 | Q82: Kč | R82: L
B83: =Calculation!C153 -> 0 | C83: =HLOOKUP(Main!$C$2,Translating_products!$CN$4:$DD$216,Translating_products!CM83, FALSE) -> 200063 | D83: =HLOOKUP(Main!$C$2,Translating_products!$DI$4:$DY$216,Translating_products!CM83, FALSE) -> Čtečka elektronického klíče | E83: =IF(ISBLANK($Q$1),HLOOKUP(Main!$C$2,Translating_products!$EE$4:$EU$216,Translating_products!CM83,FALSE),HLOOKUP($Q$1,Translating_products!$EE$4:$EU$216,Translating_products!CM83,FALSE)) -> 230.58 | F83: 279.0018 | G83: 0 | H83: belegt 1 kanal von 1 Wire (Temparatur und Zutritt) | I83: Zutritt | N83: 1 | O83: nix | Q83: Kč | R83: R
B84: =Calculation!C154 -> 5 | C84: =HLOOKUP(Main!$C$2,Translating_products!$CN$4:$DD$216,Translating_products!CM84, FALSE) -> 200064 | D84: =HLOOKUP(Main!$C$2,Translating_products!$DI$4:$DY$216,Translating_products!CM84, FALSE) -> Elektronický klíč | E84: =IF(ISBLANK($Q$1),HLOOKUP(Main!$C$2,Translating_products!$EE$4:$EU$216,Translating_products!CM84,FALSE),HLOOKUP($Q$1,Translating_products!$EE$4:$EU$216,Translating_products!CM84,FALSE)) -> 81.82 | F84: 99.0022 | G84: 495.011 | H84: Stück-Zutritt | I84: Zutritt | O84: nix | Q84: Kč | R84: R
B85: =Calculation!C240 -> 0 | C85: =HLOOKUP(Main!$C$2,Translating_products!$CN$4:$DD$216,Translating_products!CM85, FALSE) -> 200067 | D85: =IF(ISBLANK(Q1),HLOOKUP(Main!$C$2,Translating_products!$DI$4:$DY$216,Translating_products!CM85,FALSE),"Not available in this country") -> EnOcean bezdrátová hlavice | E85: =IF(ISBLANK($Q$1),HLOOKUP(Main!$C$2,Translating_products!$EE$4:$EU$216,Translating_products!CM85,FALSE),HLOOKUP($Q$1,Translating_products!$EE$4:$EU$216,Translating_products!CM85,FALSE)) -> 3799 | F85: 4596.79 | G85: 0 | H85: belegt 1 kanal enocean extension | I85: Air | N85: 1 | O85: nix | Q85: Kč | R85: R
B86: =Calculation!C155 -> 0 | C86: =HLOOKUP(Main!$C$2,Translating_products!$CN$4:$DD$216,Translating_products!CM86, FALSE) -> 200070 | D86: =HLOOKUP(Main!$C$2,Translating_products!$DI$4:$DY$216,Translating_products!CM86, FALSE) -> Elektronický klíč (Magnetický) | E86: =IF(ISBLANK($Q$1),HLOOKUP(Main!$C$2,Translating_products!$EE$4:$EU$216,Translating_products!CM86,FALSE),HLOOKUP($Q$1,Translating_products!$EE$4:$EU$216,Translating_products!CM86,FALSE)) -> 205.79 | F86: 249.0059 | G86: 0 | H86: Stück-Auswahl Zutritt | I86: Zutritt | O86: nix | Q86: Kč | R86: R
B87: =Calculation!C141+Calculation!C181 -> 0 | C87: =HLOOKUP(Main!$C$2,Translating_products!$CN$4:$DD$216,Translating_products!CM87, FALSE) -> 200077 | D87: =HLOOKUP(Main!$C$2,Translating_products!$DI$4:$DY$216,Translating_products!CM87, FALSE) -> 1-Wire teplotní čip v pouzdře | E87: =IF(ISBLANK($Q$1),HLOOKUP(Main!$C$2,Translating_products!$EE$4:$EU$216,Translating_products!CM87,FALSE),HLOOKUP($Q$1,Translating_products!$EE$4:$EU$216,Translating_products!CM87,FALSE)) -> 285.4 | F87: 345.334 | G87: 0 | H87: 1-Wire Extension 1 Kanal | I87: Sensoren | N87: 1 | O87: nix | Q87: Kč | R87: R
B88: =Calculation!C338 -> 0 | C88: =HLOOKUP(Main!$C$2,Translating_products!$CN$4:$DD$216,Translating_products!CM88, FALSE) -> 200086 | D88: =HLOOKUP(Main!$C$2,Translating_products!$DI$4:$DY$216,Translating_products!CM88, FALSE) -> Loxone Fanshirt S | E88: =IF(ISBLANK($Q$1),HLOOKUP(Main!$C$2,Translating_products!$EE$4:$EU$216,Translating_products!CM88,FALSE),HLOOKUP($Q$1,Translating_products!$EE$4:$EU$216,Translating_products!CM88,FALSE)) -> 285.4 | F88: 345.334 | G88: 0 | H88: Stück-Auswahl Sonstiges | I88: Sonstiges | O88: nix | Q88: Kč | R88: R
B89: =Calculation!C339 -> 0 | C89: =HLOOKUP(Main!$C$2,Translating_products!$CN$4:$DD$216,Translating_products!CM89, FALSE) -> 200087 | D89: =HLOOKUP(Main!$C$2,Translating_products!$DI$4:$DY$216,Translating_products!CM89, FALSE) -> Loxone Fanshirt M | E89: =IF(ISBLANK($Q$1),HLOOKUP(Main!$C$2,Translating_products!$EE$4:$EU$216,Translating_products!CM89,FALSE),HLOOKUP($Q$1,Translating_products!$EE$4:$EU$216,Translating_products!CM89,FALSE)) -> 319 | F89: 385.99 | G89: 0 | H89: Stück-Auswahl Sonstiges | I89: Sonstiges | O89: nix | Q89: Kč | R89: R
B90: =Calculation!C340 -> 0 | C90: =HLOOKUP(Main!$C$2,Translating_products!$CN$4:$DD$216,Translating_products!CM90, FALSE) -> 200088 | D90: =HLOOKUP(Main!$C$2,Translating_products!$DI$4:$DY$216,Translating_products!CM90, FALSE) -> Loxone Fanshirt L | E90: =IF(ISBLANK($Q$1),HLOOKUP(Main!$C$2,Translating_products!$EE$4:$EU$216,Translating_products!CM90,FALSE),HLOOKUP($Q$1,Translating_products!$EE$4:$EU$216,Translating_products!CM90,FALSE)) -> 319 | F90: 385.99 | G90: 0 | H90: Stück-Auswahl Sonstiges | I90: Sonstiges | O90: nix | Q90: Kč | R90: R
B91: =Calculation!C341 -> 0 | C91: =HLOOKUP(Main!$C$2,Translating_products!$CN$4:$DD$216,Translating_products!CM91, FALSE) -> 200089 | D91: =HLOOKUP(Main!$C$2,Translating_products!$DI$4:$DY$216,Translating_products!CM91, FALSE) -> Loxone Fanshirt XL | E91: =IF(ISBLANK($Q$1),HLOOKUP(Main!$C$2,Translating_products!$EE$4:$EU$216,Translating_products!CM91,FALSE),HLOOKUP($Q$1,Translating_products!$EE$4:$EU$216,Translating_products!CM91,FALSE)) -> 319 | F91: 385.99 | G91: 0 | H91: Stück-Auswahl Sonstiges | I91: Sonstiges | O91: nix | Q91: Kč | R91: R
B92: =Calculation!C342 -> 0 | C92: =HLOOKUP(Main!$C$2,Translating_products!$CN$4:$DD$216,Translating_products!CM92, FALSE) -> 200090 | D92: =HLOOKUP(Main!$C$2,Translating_products!$DI$4:$DY$216,Translating_products!CM92, FALSE) -> Loxone Fanshirt XXL | E92: =IF(ISBLANK($Q$1),HLOOKUP(Main!$C$2,Translating_products!$EE$4:$EU$216,Translating_products!CM92,FALSE),HLOOKUP($Q$1,Translating_products!$EE$4:$EU$216,Translating_products!CM92,FALSE)) -> 319 | F92: 385.99 | G92: 0 | H92: Stück-Auswahl Sonstiges | I92: Sonstiges | O92: nix | Q92: Kč | R92: R
B93: =Calculation!C87 -> 0 | C93: =HLOOKUP(Main!$C$2,Translating_products!$CN$4:$DD$216,Translating_products!CM93, FALSE) -> 200092 | D93: =HLOOKUP(Main!$C$2,Translating_products!$DI$4:$DY$216,Translating_products!CM93, FALSE) -> 5m LED pásky (teplá bílá) - IP68 (proti potopení do vody) | E93: =IF(ISBLANK($Q$1),HLOOKUP(Main!$C$2,Translating_products!$EE$4:$EU$216,Translating_products!CM93,FALSE),HLOOKUP($Q$1,Translating_products!$EE$4:$EU$216,Translating_products!CM93,FALSE)) -> 2499 | F93: 3023.79 | G93: 0 | H93: Stück-Auswahl | I93: Licht | O93: =14.4*5*B93 -> 0 | Q93: Kč | R93: L
B94: =Calculation!C158 -> 0 | C94: =HLOOKUP(Main!$C$2,Translating_products!$CN$4:$DD$216,Translating_products!CM94, FALSE) -> 200093 | D94: =HLOOKUP(Main!$C$2,Translating_products!$DI$4:$DY$216,Translating_products!CM94, FALSE) -> Loxone Intercom | E94: =IF(ISBLANK($Q$1),HLOOKUP(Main!$C$2,Translating_products!$EE$4:$EU$216,Translating_products!CM94,FALSE),HLOOKUP($Q$1,Translating_products!$EE$4:$EU$216,Translating_products!CM94,FALSE)) -> 24999 | F94: 30248.79 | G94: 0 | H94: Stück-Auswähl Zutritt | I94: Zutritt | O94: nix | Q94: Kč | R94: R
B95: =Calculation!C159 -> 1 | C95: =HLOOKUP(Main!$C$2,Translating_products!$CN$4:$DD$216,Translating_products!CM95, FALSE) -> 200094 | D95: =HLOOKUP(Main!$C$2,Translating_products!$DI$4:$DY$216,Translating_products!CM95, FALSE) -> Zapuštěný box pro Loxone Intercom | E95: =IF(ISBLANK($Q$1),HLOOKUP(Main!$C$2,Translating_products!$EE$4:$EU$216,Translating_products!CM95,FALSE),HLOOKUP($Q$1,Translating_products!$EE$4:$EU$216,Translating_products!CM95,FALSE)) -> 1375 | F95: 1663.75 | G95: 1663.75 | H95: Stück-Auswähl Zutritt | I95: Zutritt | O95: nix | Q95: Kč | R95: R
B96: =Calculation!C160 -> 0 | C96: =HLOOKUP(Main!$C$2,Translating_products!$CN$4:$DD$216,Translating_products!CM96, FALSE) -> 200095 | D96: =HLOOKUP(Main!$C$2,Translating_products!$DI$4:$DY$216,Translating_products!CM96, FALSE) -> Povrchový box pro Loxone Intercom | E96: =IF(ISBLANK($Q$1),HLOOKUP(Main!$C$2,Translating_products!$EE$4:$EU$216,Translating_products!CM96,FALSE),HLOOKUP($Q$1,Translating_products!$EE$4:$EU$216,Translating_products!CM96,FALSE)) -> 2499 | F96: 3023.79 | G96: 0 | H96: Stück-Auswähl Zutritt | I96: Zutritt | O96: nix | Q96: Kč | R96: R
B97: =Calculation!C125 -> 5 | C97: =HLOOKUP(Main!$C$2,Translating_products!$CN$4:$DD$216,Translating_products!CM97, FALSE) -> 200097 | D97: =HLOOKUP(Main!$C$2,Translating_products!$DI$4:$DY$216,Translating_products!CM97, FALSE) -> Loxone Speaker | E97: =IF(ISBLANK($Q$1),HLOOKUP(Main!$C$2,Translating_products!$EE$4:$EU$216,Translating_products!CM97,FALSE),HLOOKUP($Q$1,Translating_products!$EE$4:$EU$216,Translating_products!CM97,FALSE)) -> 2225 | F97: 2692.25 | G97: 13461.25 | H97: Stück-Auswahl Musik (1 Kanal am Musikserver) | I97: Musik | N97: 1 | O97: nix | Q97: Kč | R97: R
B98: =Calculation!C88 -> 4 | C98: =HLOOKUP(Main!$C$2,Translating_products!$CN$4:$DD$216,Translating_products!CM98, FALSE) -> 200098 | D98: =HLOOKUP(Main!$C$2,Translating_products!$DI$4:$DY$216,Translating_products!CM98, FALSE) -> 5m RGBW LED pásky IP20 (bez ochrany proti vodě) | E98: =IF(ISBLANK($Q$1),HLOOKUP(Main!$C$2,Translating_products!$EE$4:$EU$216,Translating_products!CM98,FALSE),HLOOKUP($Q$1,Translating_products!$EE$4:$EU$216,Translating_products!CM98,FALSE)) -> 2999 | F98: 3628.79 | G98: 14515.16 | H98: Stück-Auswahl Licht | I98: Licht | O98: =B98*4.2 -> 16.8 | Q98: Kč | R98: L
B99: =Calculation!C89 -> 0 | C99: =HLOOKUP(Main!$C$2,Translating_products!$CN$4:$DD$216,Translating_products!CM99, FALSE) -> 200099 | D99: =HLOOKUP(Main!$C$2,Translating_products!$DI$4:$DY$216,Translating_products!CM99, FALSE) -> 5m RGBW LED pásky IP65 (proti tryskající vodě) | E99: =IF(ISBLANK($Q$1),HLOOKUP(Main!$C$2,Translating_products!$EE$4:$EU$216,Translating_products!CM99,FALSE),HLOOKUP($Q$1,Translating_products!$EE$4:$EU$216,Translating_products!CM99,FALSE)) -> 3099 | F99: 3749.79 | G99: 0 | H99: Stück-Auswahl Licht | I99: Licht | O99: =B99*4.2 -> 0 | Q99: Kč | R99: L
B100: =Calculation!C90 -> 0 | C100: =HLOOKUP(Main!$C$2,Translating_products!$CN$4:$DD$216,Translating_products!CM100, FALSE) -> 200100 | D100: =HLOOKUP(Main!$C$2,Translating_products!$DI$4:$DY$216,Translating_products!CM100, FALSE) -> 5m RGBW LED pásky IP68 (proti potopení do vody) | E100: =IF(ISBLANK($Q$1),HLOOKUP(Main!$C$2,Translating_products!$EE$4:$EU$216,Translating_products!CM100,FALSE),HLOOKUP($Q$1,Translating_products!$EE$4:$EU$216,Translating_products!CM100,FALSE)) -> 3249 | F100: 3931.29 | G100: 0 | H100: Stück-Auswahl Licht | I100: Licht | O100: 0 | Q100: Kč | R100: L
B101: =Calculation!C182 -> 0 | C101: =HLOOKUP(Main!$C$2,Translating_products!$CN$4:$DD$216,Translating_products!CM101, FALSE) -> 200101 | D101: =HLOOKUP(Main!$C$2,Translating_products!$DI$4:$DY$216,Translating_products!CM101, FALSE) -> Záplavový senzor | E101: =IF(ISBLANK($Q$1),HLOOKUP(Main!$C$2,Translating_products!$EE$4:$EU$216,Translating_products!CM101,FALSE),HLOOKUP($Q$1,Translating_products!$EE$4:$EU$216,Translating_products!CM101,FALSE)) -> 425 | F101: 514.25 | G101: 0 | H101: Sensoren | I101: Sensoren | K101: 1 | O101: nix | Q101: Kč | R101: R
B102: =Calculation!C311 -> 0 | C102: =HLOOKUP(Main!$C$2,Translating_products!$CN$4:$DD$216,Translating_products!CM102, FALSE) -> not available in this country | D102: =IF(ISBLANK(Q1),HLOOKUP(Main!$C$2,Translating_products!$DI$4:$DY$216,Translating_products!CM102,FALSE),"Not available in this country") -> not available in this country | E102: =IF(ISBLANK($Q$1),HLOOKUP(Main!$C$2,Translating_products!$EE$4:$EU$216,Translating_products!CM102,FALSE),HLOOKUP($Q$1,Translating_products!$EE$4:$EU$216,Translating_products!CM102,FALSE)) -> 0 | F102: 0 | G102: 0 | H102: Stück-Auswahl | I102: Sonstiges | O102: nix | Q102: Kč | R102: R
B103: =Calculation!C142+Calculation!C183 -> 0 | C103: =HLOOKUP(Main!$C$2,Translating_products!$CN$4:$DD$216,Translating_products!CM103, FALSE) -> 200109 | D103: =HLOOKUP(Main!$C$2,Translating_products!$DI$4:$DY$216,Translating_products!CM103, FALSE) -> 1-Wire teplotní senzor set | E103: =IF(ISBLANK($Q$1),HLOOKUP(Main!$C$2,Translating_products!$EE$4:$EU$216,Translating_products!CM103,FALSE),HLOOKUP($Q$1,Translating_products!$EE$4:$EU$216,Translating_products!CM103,FALSE)) -> 1049 | F103: =E103*(1+$E$197*0.01) -> 1269.29 | G103: 0 | H103: 5 Temparaturfühler (11 in der Auswahl = 3 mal Paket (15)) | I103: Heizung | N103: 5 | O103: nix | Q103: Kč | R103: H
B104: =Calculation!C126 -> 1 | C104: =HLOOKUP(Main!$C$2,Translating_products!$CN$4:$DD$216,Translating_products!CM104, FALSE) -> 200110 | D104: =HLOOKUP(Main!$C$2,Translating_products!$DI$4:$DY$216,Translating_products!CM104, FALSE) -> Loxone 12ti kanálový zesilovač | E104: =IF(ISBLANK($Q$1),HLOOKUP(Main!$C$2,Translating_products!$EE$4:$EU$216,Translating_products!CM104,FALSE),HLOOKUP($Q$1,Translating_products!$EE$4:$EU$216,Translating_products!CM104,FALSE)) -> 15999 | F104: 19358.79 | G104: 19358.79 | H104: Stück-Auswahl Musik | I104: Musik | O104: nix | Q104: Kč | R104: M
B105: =Calculation!C184 -> 2 | C105: =HLOOKUP(Main!$C$2,Translating_products!$CN$4:$DD$216,Translating_products!CM105, FALSE) -> 200112 | D105: =HLOOKUP(Main!$C$2,Translating_products!$DI$4:$DY$216,Translating_products!CM105, FALSE) -> Senzor pohybu 24V (venkovní) | E105: =IF(ISBLANK($Q$1),HLOOKUP(Main!$C$2,Translating_products!$EE$4:$EU$216,Translating_products!CM105,FALSE),HLOOKUP($Q$1,Translating_products!$EE$4:$EU$216,Translating_products!CM105,FALSE)) -> 2499 | F105: 3023.79 | G105: 6047.58 | I105: Sensoren | K105: 1 | O105: =B105*0.0033 -> 0.0066 | Q105: Kč | R105: R
B106: =Calculation!C186 -> 0 | C106: =HLOOKUP(Main!$C$2,Translating_products!$CN$4:$DD$216,Translating_products!CM106, FALSE) -> 200113 | D106: =HLOOKUP(Main!$C$2,Translating_products!$DI$4:$DY$216,Translating_products!CM106, FALSE) -> Okenní kontakt | E106: =IF(ISBLANK($Q$1),HLOOKUP(Main!$C$2,Translating_products!$EE$4:$EU$216,Translating_products!CM106,FALSE),HLOOKUP($Q$1,Translating_products!$EE$4:$EU$216,Translating_products!CM106,FALSE)) -> 259 | F106: 313.39 | G106: 0 | I106: Sensoren | K106: 1 | O106: nix | Q106: Kč | R106: R
B107: =Calculation!C220 -> 0 | C107: =HLOOKUP(Main!$C$2,Translating_products!$CN$4:$DD$216,Translating_products!CM107, FALSE) -> 200129 | D107: =HLOOKUP(Main!$C$2,Translating_products!$DI$4:$DY$216,Translating_products!CM107, FALSE) -> Loxone Cat 7 kabel | E107: =IF(ISBLANK($Q$1),HLOOKUP(Main!$C$2,Translating_products!$EE$4:$EU$216,Translating_products!CM107,FALSE),HLOOKUP($Q$1,Translating_products!$EE$4:$EU$216,Translating_products!CM107,FALSE)) -> 4699 | F107: 5685.79 | G107: 0 | H107: Stück-Auswahl | I107: Sonstiges | O107: nix | Q107: Kč | R107: R
B108: =Calculation!C241 -> 0 | C108: =HLOOKUP(Main!$C$2,Translating_products!$CN$4:$DD$216,Translating_products!CM108, FALSE) -> 200135 | D108: =HLOOKUP(Main!$C$2,Translating_products!$DI$4:$DY$216,Translating_products!CM108, FALSE) -> Enocean Bezdrátový pohybový senzor | E108: =IF(ISBLANK($Q$1),HLOOKUP(Main!$C$2,Translating_products!$EE$4:$EU$216,Translating_products!CM108,FALSE),HLOOKUP($Q$1,Translating_products!$EE$4:$EU$216,Translating_products!CM108,FALSE)) -> 4049 | F108: 4899.29 | G108: 0 | H108: enocean - extension 1 kanal (für Licht und Temparatur) | I108: Air | N108: 1 | O108: nix | Q108: Kč | R108: R
B109: =Calculation!C187 -> 0 | C109: =HLOOKUP(Main!$C$2,Translating_products!$CN$4:$DD$216,Translating_products!CM109, FALSE) -> 200136 | D109: =HLOOKUP(Main!$C$2,Translating_products!$DI$4:$DY$216,Translating_products!CM109, FALSE) -> Saunový senzor teplota/vlhkost | E109: =IF(ISBLANK($Q$1),HLOOKUP(Main!$C$2,Translating_products!$EE$4:$EU$216,Translating_products!CM109,FALSE),HLOOKUP($Q$1,Translating_products!$EE$4:$EU$216,Translating_products!CM109,FALSE)) -> 3999 | F109: 4838.79 | G109: 0 | I109: Sonstiges | J109: 2 | O109: =0.01*B109 -> 0 | Q109: Kč | R109: R
B110: =Calculation!C242 -> 0 | C110: =HLOOKUP(Main!$C$2,Translating_products!$CN$4:$DD$216,Translating_products!CM110, FALSE) -> 200137 | D110: =HLOOKUP(Main!$C$2,Translating_products!$DI$4:$DY$216,Translating_products!CM110, FALSE) -> EnOcean bezdrátový aktor | E110: =IF(ISBLANK($Q$1),HLOOKUP(Main!$C$2,Translating_products!$EE$4:$EU$216,Translating_products!CM110,FALSE),HLOOKUP($Q$1,Translating_products!$EE$4:$EU$216,Translating_products!CM110,FALSE)) -> 1999 | F110: 2418.79 | G110: 0 | H110: enocean - extension 1 kanal (für Licht und Temparatur) | I110: Air | N110: 1 | O110: nix | Q110: Kč | R110: R
B111: =Calculation!C312+Calculation!L416 -> 0 | C111: =HLOOKUP(Main!$C$2,Translating_products!$CN$4:$DD$216,Translating_products!CM111, FALSE) -> 200143 | D111: =HLOOKUP(Main!$C$2,Translating_products!$DI$4:$DY$216,Translating_products!CM111, FALSE) -> Zdroj 24V, 0,4A | E111: =IF(ISBLANK($Q$1),HLOOKUP(Main!$C$2,Translating_products!$EE$4:$EU$216,Translating_products!CM111,FALSE),HLOOKUP($Q$1,Translating_products!$EE$4:$EU$216,Translating_products!CM111,FALSE)) -> 749 | F111: 906.29 | G111: 0 | H111: Stück-Auswahl | I111: Sonstiges | O111: nix | Q111: Kč | R111: R
B112: =Calculation!C127 -> 0 | C112: =HLOOKUP(Main!$C$2,Translating_products!$CN$4:$DD$216,Translating_products!CM112, FALSE) -> 200150 | D112: =HLOOKUP(Main!$C$2,Translating_products!$DI$4:$DY$216,Translating_products!CM112, FALSE) -> Instalační box pro Loxone reproduktor (speaker) | E112: =IF(ISBLANK($Q$1),HLOOKUP(Main!$C$2,Translating_products!$EE$4:$EU$216,Translating_products!CM112,FALSE),HLOOKUP($Q$1,Translating_products!$EE$4:$EU$216,Translating_products!CM112,FALSE)) -> 1199 | F112: 1450.79 | G112: 0 | H112: Stück-Auswahl Musik (wählt Kunde aus) | I112: Musik | O112: nix | Q112: Kč | R112: M
B113: =Calculation!C243 -> 0 | C113: =HLOOKUP(Main!$C$2,Translating_products!$CN$4:$DD$216,Translating_products!CM113, FALSE) -> 200151 | D113: =HLOOKUP(Main!$C$2,Translating_products!$DI$4:$DY$216,Translating_products!CM113, FALSE) -> SMA Anténa 4dBi 868 MHz | E113: =IF(ISBLANK($Q$1),HLOOKUP(Main!$C$2,Translating_products!$EE$4:$EU$216,Translating_products!CM113,FALSE),HLOOKUP($Q$1,Translating_products!$EE$4:$EU$216,Translating_products!CM113,FALSE)) -> 579 | F113: 700.59 | G113: 0 | H113: Stück-Auswahl Air | I113: Air | O113: nix | Q113: Kč | R113: R
B114: =Calculation!C130 -> 0 | C114: =HLOOKUP(Main!$C$2,Translating_products!$CN$4:$DD$216,Translating_products!CM114, FALSE) -> 200153 | D114: =HLOOKUP(Main!$C$2,Translating_products!$DI$4:$DY$216,Translating_products!CM114, FALSE) -> Loxone Wall Speaker | E114: =IF(ISBLANK($Q$1),HLOOKUP(Main!$C$2,Translating_products!$EE$4:$EU$216,Translating_products!CM114,FALSE),HLOOKUP($Q$1,Translating_products!$EE$4:$EU$216,Translating_products!CM114,FALSE)) -> 3099 | F114: 3749.79 | G114: 0 | H114: Stück-Auswahl Musik | I114: Musik | O114: nix | Q114: Kč | R114: M
B115: =Calculation!C188 -> 0 | C115: =HLOOKUP(Main!$C$2,Translating_products!$CN$4:$DD$216,Translating_products!CM115, FALSE) -> 200154 | D115: =HLOOKUP(Main!$C$2,Translating_products!$DI$4:$DY$216,Translating_products!CM115, FALSE) -> Senzor tlaku 0-10V | E115: =IF(ISBLANK($Q$1),HLOOKUP(Main!$C$2,Translating_products!$EE$4:$EU$216,Translating_products!CM115,FALSE),HLOOKUP($Q$1,Translating_products!$EE$4:$EU$216,Translating_products!CM115,FALSE)) -> 2849 | F115: 3447.29 | G115: 0 | I115: Sensoren | J115: 1 | O115: =B115*0.01 -> 0 | Q115: Kč | R115: R
B116: =Calculation!C189 -> 0 | C116: =HLOOKUP(Main!$C$2,Translating_products!$CN$4:$DD$216,Translating_products!CM116, FALSE) -> 200155 | D116: =HLOOKUP(Main!$C$2,Translating_products!$DI$4:$DY$216,Translating_products!CM116, FALSE) -> Senzor rozbití okna 24V | E116: =IF(ISBLANK($Q$1),HLOOKUP(Main!$C$2,Translating_products!$EE$4:$EU$216,Translating_products!CM116,FALSE),HLOOKUP($Q$1,Translating_products!$EE$4:$EU$216,Translating_products!CM116,FALSE)) -> 699 | F116: 845.79 | G116: 0 | I116: Sensoren | K116: 1 | O116: nix | Q116: Kč | R116: R
B117: =Calculation!C313 -> 0 | C117: =HLOOKUP(Main!$C$2,Translating_products!$CN$4:$DD$216,Translating_products!CM117, FALSE) -> 200156 | D117: =HLOOKUP(Main!$C$2,Translating_products!$DI$4:$DY$216,Translating_products!CM117, FALSE) -> 1-fázový elektroměr (Modbus) | E117: =IF(ISBLANK($Q$1),HLOOKUP(Main!$C$2,Translating_products!$EE$4:$EU$216,Translating_products!CM117,FALSE),HLOOKUP($Q$1,Translating_products!$EE$4:$EU$216,Translating_products!CM117,FALSE)) -> 3799 | F117: 4596.79 | G117: 0 | H117: selbst auswählen | I117: Sonstiges | O117: nix | Q117: Kč | R117: R
B118: =Calculation!C314 -> 0 | C118: =HLOOKUP(Main!$C$2,Translating_products!$CN$4:$DD$216,Translating_products!CM118, FALSE) -> 200157 | D118: =HLOOKUP(Main!$C$2,Translating_products!$DI$4:$DY$216,Translating_products!CM118, FALSE) -> 3-fázový elektroměr (Modbus) | E118: =IF(ISBLANK($Q$1),HLOOKUP(Main!$C$2,Translating_products!$EE$4:$EU$216,Translating_products!CM118,FALSE),HLOOKUP($Q$1,Translating_products!$EE$4:$EU$216,Translating_products!CM118,FALSE)) -> 6799 | F118: 8226.79 | G118: 0 | H118: selbst auswählen | I118: Sonstiges | O118: nix | Q118: Kč | R118: R
B119: =Calculation!C343 -> 0 | C119: =HLOOKUP(Main!$C$2,Translating_products!$CN$4:$DD$216,Translating_products!CM119, FALSE) -> not available in this country | D119: =HLOOKUP(Main!$C$2,Translating_products!$DI$4:$DY$216,Translating_products!CM119, FALSE) -> not available in this country | E119: =IF(ISBLANK($Q$1),HLOOKUP(Main!$C$2,Translating_products!$EE$4:$EU$216,Translating_products!CM119,FALSE),HLOOKUP($Q$1,Translating_products!$EE$4:$EU$216,Translating_products!CM119,FALSE)) -> 0 | F119: 0 | G119: 0 | H119: buggy im shop | I119: Sonstiges | O119: nix | Q119: Kč | R119: R
B120: =Calculation!C204 -> 0 | C120: =HLOOKUP(Main!$C$2,Translating_products!$CN$4:$DD$216,Translating_products!CM120, FALSE) -> 200168 | D120: =HLOOKUP(Main!$C$2,Translating_products!$DI$4:$DY$216,Translating_products!CM120, FALSE) -> Svorka na DIN lištu PPV8 (20 kusů) | E120: =IF(ISBLANK($Q$1),HLOOKUP(Main!$C$2,Translating_products!$EE$4:$EU$216,Translating_products!CM120,FALSE),HLOOKUP($Q$1,Translating_products!$EE$4:$EU$216,Translating_products!CM120,FALSE)) -> 5499 | F120: 6653.79 | G120: 0 | H120: Stück-Auswahl Verteiler | I120: Verteiler | O120: nix | Q120: Kč | R120: R
B121: =Calculation!C205 -> 0 | C121: =HLOOKUP(Main!$C$2,Translating_products!$CN$4:$DD$216,Translating_products!CM121, FALSE) -> 200169 | D121: =HLOOKUP(Main!$C$2,Translating_products!$DI$4:$DY$216,Translating_products!CM121, FALSE) -> Propojovací rozvaděč PRV8 (20 kusů) | E121: =IF(ISBLANK($Q$1),HLOOKUP(Main!$C$2,Translating_products!$EE$4:$EU$216,Translating_products!CM121,FALSE),HLOOKUP($Q$1,Translating_products!$EE$4:$EU$216,Translating_products!CM121,FALSE)) -> 5199 | F121: 6290.79 | G121: 0 | H121: Stück-Auswahl Verteiler | I121: Verteiler | O121: nix | Q121: Kč | R121: R
B122: =Calculation!C206 -> 0 | C122: =HLOOKUP(Main!$C$2,Translating_products!$CN$4:$DD$216,Translating_products!CM122, FALSE) -> 200170 | D122: =HLOOKUP(Main!$C$2,Translating_products!$DI$4:$DY$216,Translating_products!CM122, FALSE) -> Předělovací deska PRV8 (10 kusů) | E122: =IF(ISBLANK($Q$1),HLOOKUP(Main!$C$2,Translating_products!$EE$4:$EU$216,Translating_products!CM122,FALSE),HLOOKUP($Q$1,Translating_products!$EE$4:$EU$216,Translating_products!CM122,FALSE)) -> 299 | F122: 361.79 | G122: 0 | H122: Stück-Auswahl Verteiler | I122: Verteiler | O122: nix | Q122: Kč | R122: R
B123: =Calculation!C207 -> 0 | C123: =HLOOKUP(Main!$C$2,Translating_products!$CN$4:$DD$216,Translating_products!CM123, FALSE) -> 200171 | D123: =HLOOKUP(Main!$C$2,Translating_products!$DI$4:$DY$216,Translating_products!CM123, FALSE) -> Držák na značky pro PPV8/PRV8 (20 kusů) | E123: =IF(ISBLANK($Q$1),HLOOKUP(Main!$C$2,Translating_products!$EE$4:$EU$216,Translating_products!CM123,FALSE),HLOOKUP($Q$1,Translating_products!$EE$4:$EU$216,Translating_products!CM123,FALSE)) -> 699 | F123: 845.79 | G123: 0 | H123: Stück-Auswahl Verteiler | I123: Verteiler | O123: nix | Q123: Kč | R123: R
B124: =Calculation!C208 -> 0 | C124: =HLOOKUP(Main!$C$2,Translating_products!$CN$4:$DD$216,Translating_products!CM124, FALSE) -> 200172 | D124: =HLOOKUP(Main!$C$2,Translating_products!$DI$4:$DY$216,Translating_products!CM124, FALSE) -> Bočnice pro PPV8/PRV8 (10 kusů) | E124: =IF(ISBLANK($Q$1),HLOOKUP(Main!$C$2,Translating_products!$EE$4:$EU$216,Translating_products!CM124,FALSE),HLOOKUP($Q$1,Translating_products!$EE$4:$EU$216,Translating_products!CM124,FALSE)) -> 139 | F124: 168.19 | G124: 0 | H124: Stück-Auswahl Verteiler | I124: Verteiler | O124: nix | Q124: Kč | R124: R
B125: =Calculation!C209 -> 0 | C125: =HLOOKUP(Main!$C$2,Translating_products!$CN$4:$DD$216,Translating_products!CM125, FALSE) -> 200173 | D125: =HLOOKUP(Main!$C$2,Translating_products!$DI$4:$DY$216,Translating_products!CM125, FALSE) -> Svorka pro připojení motoru PMAK4 (50 kusů) | E125: =IF(ISBLANK($Q$1),HLOOKUP(Main!$C$2,Translating_products!$EE$4:$EU$216,Translating_products!CM125,FALSE),HLOOKUP($Q$1,Translating_products!$EE$4:$EU$216,Translating_products!CM125,FALSE)) -> 5299 | F125: 6411.79 | G125: 0 | H125: Stück-Auswahl Verteiler | I125: Verteiler | O125: nix | Q125: Kč | R125: B
B126: =Calculation!C210 -> 0 | C126: =HLOOKUP(Main!$C$2,Translating_products!$CN$4:$DD$216,Translating_products!CM126, FALSE) -> 200174 | D126: =HLOOKUP(Main!$C$2,Translating_products!$DI$4:$DY$216,Translating_products!CM126, FALSE) -> Bočnice pro PMAK4 (20 kusů) | E126: =IF(ISBLANK($Q$1),HLOOKUP(Main!$C$2,Translating_products!$EE$4:$EU$216,Translating_products!CM126,FALSE),HLOOKUP($Q$1,Translating_products!$EE$4:$EU$216,Translating_products!CM126,FALSE)) -> 279 | F126: 337.59 | G126: 0 | H126: Stück-Auswahl Verteiler | I126: Verteiler | O126: nix | Q126: Kč | R126: R
B127: =Calculation!C211 -> 0 | C127: =HLOOKUP(Main!$C$2,Translating_products!$CN$4:$DD$216,Translating_products!CM127, FALSE) -> 200175 | D127: =HLOOKUP(Main!$C$2,Translating_products!$DI$4:$DY$216,Translating_products!CM127, FALSE) -> Svorkovnice PDL (50 kusů) | E127: =IF(ISBLANK($Q$1),HLOOKUP(Main!$C$2,Translating_products!$EE$4:$EU$216,Translating_products!CM127,FALSE),HLOOKUP($Q$1,Translating_products!$EE$4:$EU$216,Translating_products!CM127,FALSE)) -> 2799 | F127: 3386.79 | G127: 0 | H127: Stück-Auswahl Verteiler | I127: Verteiler | O127: nix | Q127: Kč | R127: R
B128: =Calculation!C212 -> 0 | C128: =HLOOKUP(Main!$C$2,Translating_products!$CN$4:$DD$216,Translating_products!CM128, FALSE) -> 200176 | D128: =HLOOKUP(Main!$C$2,Translating_products!$DI$4:$DY$216,Translating_products!CM128, FALSE) -> Bočnice pro PDL (20 kusů) | E128: =IF(ISBLANK($Q$1),HLOOKUP(Main!$C$2,Translating_products!$EE$4:$EU$216,Translating_products!CM128,FALSE),HLOOKUP($Q$1,Translating_products!$EE$4:$EU$216,Translating_products!CM128,FALSE)) -> 199 | F128: 240.79 | G128: 0 | H128: Stück-Auswahl Verteiler | I128: Verteiler | O128: nix | Q128: Kč | R128: R
B129: =Calculation!C213 -> 0 | C129: =HLOOKUP(Main!$C$2,Translating_products!$CN$4:$DD$216,Translating_products!CM129, FALSE) -> 200177 | D129: =HLOOKUP(Main!$C$2,Translating_products!$DI$4:$DY$216,Translating_products!CM129, FALSE) -> Koncová podpěra svorkovnice ZEW 35 (20 kusů) | E129: =IF(ISBLANK($Q$1),HLOOKUP(Main!$C$2,Translating_products!$EE$4:$EU$216,Translating_products!CM129,FALSE),HLOOKUP($Q$1,Translating_products!$EE$4:$EU$216,Translating_products!CM129,FALSE)) -> 199 | F129: 240.79 | G129: 0 | H129: Stück-Auswahl Verteiler | I129: Verteiler | O129: nix | Q129: Kč | R129: R
B130: =Calculation!C214 -> 0 | C130: =HLOOKUP(Main!$C$2,Translating_products!$CN$4:$DD$216,Translating_products!CM130, FALSE) -> 200178 | D130: =HLOOKUP(Main!$C$2,Translating_products!$DI$4:$DY$216,Translating_products!CM130, FALSE) -> Pojistková svorkovnice (25 kusů) | E130: =IF(ISBLANK($Q$1),HLOOKUP(Main!$C$2,Translating_products!$EE$4:$EU$216,Translating_products!CM130,FALSE),HLOOKUP($Q$1,Translating_products!$EE$4:$EU$216,Translating_products!CM130,FALSE)) -> 3399 | F130: 4112.79 | G130: 0 | H130: Stück-Auswahl Verteiler | I130: Verteiler | O130: nix | Q130: Kč | R130: R
B131: =Calculation!C215 -> 0 | C131: =HLOOKUP(Main!$C$2,Translating_products!$CN$4:$DD$216,Translating_products!CM131, FALSE) -> 200179 | D131: =HLOOKUP(Main!$C$2,Translating_products!$DI$4:$DY$216,Translating_products!CM131, FALSE) -> Bočnice pojistkové svorkovnice (50 kusů) | E131: =IF(ISBLANK($Q$1),HLOOKUP(Main!$C$2,Translating_products!$EE$4:$EU$216,Translating_products!CM131,FALSE),HLOOKUP($Q$1,Translating_products!$EE$4:$EU$216,Translating_products!CM131,FALSE)) -> 449 | F131: 543.29 | G131: 0 | H131: Stück-Auswahl Verteiler | I131: Verteiler | O131: nix | Q131: Kč | R131: R
B132: =Calculation!C216 -> 0 | C132: =HLOOKUP(Main!$C$2,Translating_products!$CN$4:$DD$216,Translating_products!CM132, FALSE) -> 200180 | D132: =HLOOKUP(Main!$C$2,Translating_products!$DI$4:$DY$216,Translating_products!CM132, FALSE) -> 24 pólová propojka (10 kusů) | E132: =IF(ISBLANK($Q$1),HLOOKUP(Main!$C$2,Translating_products!$EE$4:$EU$216,Translating_products!CM132,FALSE),HLOOKUP($Q$1,Translating_products!$EE$4:$EU$216,Translating_products!CM132,FALSE)) -> 1699 | F132: 2055.79 | G132: 0 | H132: Stück-Auswahl Verteiler | I132: Verteiler | O132: nix | Q132: Kč | R132: R
B133: =Calculation!C217 -> 0 | C133: =HLOOKUP(Main!$C$2,Translating_products!$CN$4:$DD$216,Translating_products!CM133, FALSE) -> 200181 | D133: =HLOOKUP(Main!$C$2,Translating_products!$DI$4:$DY$216,Translating_products!CM133, FALSE) -> Pojistky 2A (100 kusů) | E133: =IF(ISBLANK($Q$1),HLOOKUP(Main!$C$2,Translating_products!$EE$4:$EU$216,Translating_products!CM133,FALSE),HLOOKUP($Q$1,Translating_products!$EE$4:$EU$216,Translating_products!CM133,FALSE)) -> 249 | F133: 301.29 | G133: =B133*F133 -> 0 | H133: Stück-Auswahl Verteiler | I133: Verteiler | O133: nix | Q133: Kč | R133: R
B134: =Calculation!C218 -> 0 | C134: =HLOOKUP(Main!$C$2,Translating_products!$CN$4:$DD$216,Translating_products!CM134, FALSE) -> 200183 | D134: =HLOOKUP(Main!$C$2,Translating_products!$DI$4:$DY$216,Translating_products!CM134, FALSE) -> Pojistky 5A (100 kusů) | E134: =IF(ISBLANK($Q$1),HLOOKUP(Main!$C$2,Translating_products!$EE$4:$EU$216,Translating_products!CM134,FALSE),HLOOKUP($Q$1,Translating_products!$EE$4:$EU$216,Translating_products!CM134,FALSE)) -> 249 | F134: 301.29 | G134: 0 | H134: Stück-Auswahl Verteiler | I134: Verteiler | O134: nix | Q134: Kč | R134: R
B135: =Calculation!C219 -> 0 | C135: =HLOOKUP(Main!$C$2,Translating_products!$CN$4:$DD$216,Translating_products!CM135, FALSE) -> 200184 | D135: =HLOOKUP(Main!$C$2,Translating_products!$DI$4:$DY$216,Translating_products!CM135, FALSE) -> Pojistky 10A (100 kusů) | E135: =IF(ISBLANK($Q$1),HLOOKUP(Main!$C$2,Translating_products!$EE$4:$EU$216,Translating_products!CM135,FALSE),HLOOKUP($Q$1,Translating_products!$EE$4:$EU$216,Translating_products!CM135,FALSE)) -> 249 | F135: =E135*(1+$E$197*0.01) -> 301.29 | G135: 0 | H135: Stück-Auswahl Verteiler | I135: Verteiler | O135: nix | Q135: =$Q$7 -> Kč | R135: R
B136: =Calculation!C344 -> 0 | C136: =HLOOKUP(Main!$C$2,Translating_products!$CN$4:$DD$216,Translating_products!CM136, FALSE) -> 200193 | D136: =HLOOKUP(Main!$C$2,Translating_products!$DI$4:$DY$216,Translating_products!CM136, FALSE) -> Loxone brožurka - 25 kusů | E136: =IF(ISBLANK($Q$1),HLOOKUP(Main!$C$2,Translating_products!$EE$4:$EU$216,Translating_products!CM136,FALSE),HLOOKUP($Q$1,Translating_products!$EE$4:$EU$216,Translating_products!CM136,FALSE)) -> 85 | F136: 102.85 | G136: 0 | H136: Stück-Auswahl Sonstiges | I136: Sonstiges | O136: nix | Q136: Kč | R136: R
B137: =Calculation!C161 -> 0 | C137: =HLOOKUP(Main!$C$2,Translating_products!$CN$4:$DD$216,Translating_products!CM137, FALSE) -> 200191 | D137: =HLOOKUP(Main!$C$2,Translating_products!$DI$4:$DY$216,Translating_products!CM137, FALSE) -> čtečka elektronického klíče - nerez | E137: =IF(ISBLANK($Q$1),HLOOKUP(Main!$C$2,Translating_products!$EE$4:$EU$216,Translating_products!CM137,FALSE),HLOOKUP($Q$1,Translating_products!$EE$4:$EU$216,Translating_products!CM137,FALSE)) -> 779 | F137: 942.59 | G137: 0 | H137: belegt 1 kanal von 1 Wire (Zutritt) | I137: Zutritt | N137: 1 | O137: nix | Q137: Kč | R137: R
B138: =Calculation!C318 -> 0 | C138: =HLOOKUP(Main!$C$2,Translating_products!$CN$4:$DD$216,Translating_products!CM138, FALSE) -> 200207 | D138: =HLOOKUP(Main!$C$2,Translating_products!$DI$4:$DY$216,Translating_products!CM138, FALSE) -> Keba KeContact P20 Wallbox | E138: =IF(ISBLANK($Q$1),HLOOKUP(Main!$C$2,Translating_products!$EE$4:$EU$216,Translating_products!CM138,FALSE),HLOOKUP($Q$1,Translating_products!$EE$4:$EU$216,Translating_products!CM138,FALSE)) -> 22999 | F138: 27828.79 | G138: 0 | H138: Stück-Auswahl Sonstiges | I138: Sonstiges | O138: nix | Q138: Kč | R138: R
B139: =Calculation!C129 -> 5 | C139: =HLOOKUP(Main!$C$2,Translating_products!$CN$4:$DD$216,Translating_products!CM139, FALSE) -> 200202 | D139: =HLOOKUP(Main!$C$2,Translating_products!$DI$4:$DY$216,Translating_products!CM139, FALSE) -> Loxone Speaker back box pro snížené stropy | E139: =IF(ISBLANK($Q$1),HLOOKUP(Main!$C$2,Translating_products!$EE$4:$EU$216,Translating_products!CM139,FALSE),HLOOKUP($Q$1,Translating_products!$EE$4:$EU$216,Translating_products!CM139,FALSE)) -> 999 | F139: 1208.79 | G139: 6043.95 | H139: Stück-Auswahl Musik | I139: Musik | O139: nix | Q139: Kč | R139: M
B140: =Calculation!C91 -> 0 | C140: =HLOOKUP(Main!$C$2,Translating_products!$CN$4:$DD$216,Translating_products!CM140, FALSE) -> 200280 | D140: =HLOOKUP(Main!$C$2,Translating_products!$DI$4:$DY$216,Translating_products!CM140, FALSE) -> Příslušenství k LED páskům - set RGBW | E140: =IF(ISBLANK($Q$1),HLOOKUP(Main!$C$2,Translating_products!$EE$4:$EU$216,Translating_products!CM140,FALSE),HLOOKUP($Q$1,Translating_products!$EE$4:$EU$216,Translating_products!CM140,FALSE)) -> 449 | F140: 543.29 | G140: 0 | Q140: Kč | R140: L
B141: =Calculation!C92 -> 0 | C141: =HLOOKUP(Main!$C$2,Translating_products!$CN$4:$DD$216,Translating_products!CM141, FALSE) -> 200278 | D141: =HLOOKUP(Main!$C$2,Translating_products!$DI$4:$DY$216,Translating_products!CM141, FALSE) -> Příslušenství k LED páskům - set WW | E141: =IF(ISBLANK($Q$1),HLOOKUP(Main!$C$2,Translating_products!$EE$4:$EU$216,Translating_products!CM141,FALSE),HLOOKUP($Q$1,Translating_products!$EE$4:$EU$216,Translating_products!CM141,FALSE)) -> 325 | F141: 393.25 | G141: 0 | Q141: Kč | R141: L
B142: =Calculation!C317 -> 0 | C142: =IF(ISBLANK($Q$1), HLOOKUP(Main!$C$2,Translating_products!$CN$4:$DD$216,Translating_products!CM142, FALSE), HLOOKUP($Q$1,Translating_products!$CN$4:$DD$216,Translating_products!CM142, FALSE)) -> 200161 | D142: =HLOOKUP(Main!$C$2,Translating_products!$DI$4:$DY$216,Translating_products!CM142, FALSE) -> Napájecí zdroj do zásuvky 24V, 6,25A Typ E,F | E142: =IF(ISBLANK($Q$1),HLOOKUP(Main!$C$2,Translating_products!$EE$4:$EU$216,Translating_products!CM142,FALSE),HLOOKUP($Q$1,Translating_products!$EE$4:$EU$216,Translating_products!CM142,FALSE)) -> 1799 | F142: 2176.79 | G142: 0 | Q142: Kč | R142: R
B143: =Calculation!C128 -> 0 | C143: =HLOOKUP(Main!$C$2,Translating_products!$CN$4:$DD$216,Translating_products!CM143, FALSE) -> 100205 | D143: =HLOOKUP(Main!$C$2,Translating_products!$DI$4:$DY$216,Translating_products!CM143, FALSE) -> Loxone Music Server Upgrade | E143: =IF(ISBLANK($Q$1),HLOOKUP(Main!$C$2,Translating_products!$EE$4:$EU$216,Translating_products!CM143,FALSE),HLOOKUP($Q$1,Translating_products!$EE$4:$EU$216,Translating_products!CM143,FALSE)) -> 2699 | F143: 3265.79 | G143: 0 | Q143: Kč | R143: M
B144: =Calculation!C162 -> 1 | C144: =IF(ISBLANK($Q$1),HLOOKUP(Main!$C$2,Translating_products!$CN$4:$DD$216,Translating_products!CM144,FALSE),HLOOKUP($Q$1,Translating_products!$CN$4:$DD$216,Translating_products!CM144,FALSE)) -> 200273 | D144: =HLOOKUP(Main!$C$2,Translating_products!$DI$4:$DY$216,Translating_products!CM144, FALSE) -> Loxone Intercom XL | E144: =IF(ISBLANK($Q$1),HLOOKUP(Main!$C$2,Translating_products!$EE$4:$EU$216,Translating_products!CM144,FALSE),HLOOKUP($Q$1,Translating_products!$EE$4:$EU$216,Translating_products!CM144,FALSE)) -> 31499 | F144: 38113.79 | G144: =B144*F144 -> 38113.79 | H144: Stück-Auswähl Zutritt | I144: Zutritt | O144: nix | Q144: Kč | R144: R
B145: =Calculation!C249 -> 1 | C145: =HLOOKUP(Main!$C$2,Translating_products!$CN$4:$DD$216,Translating_products!CM145, FALSE) -> 100190 | D145: =HLOOKUP(Main!$C$2,Translating_products!$DI$4:$DY$216,Translating_products!CM145, FALSE) -> Pohybový senzor Air | E145: =IF(ISBLANK($Q$1),HLOOKUP(Main!$C$2,Translating_products!$EE$4:$EU$216,Translating_products!CM145,FALSE),HLOOKUP($Q$1,Translating_products!$EE$4:$EU$216,Translating_products!CM145,FALSE)) -> 2249 | F145: 2721.29 | G145: =B145*F145 -> 2721.29 | N145: 1 | Q145: Kč | R145: R
B146: =Calculation!C319 -> 0 | C146: =HLOOKUP(Main!$C$2,Translating_products!$CN$4:$DD$216,Translating_products!CM146, FALSE) -> 200281 | D146: =HLOOKUP(Main!$C$2,Translating_products!$DI$4:$DY$216,Translating_products!CM146, FALSE) -> NFC Smart tagy | E146: =IF(ISBLANK($Q$1),HLOOKUP(Main!$C$2,Translating_products!$EE$4:$EU$216,Translating_products!CM146,FALSE),HLOOKUP($Q$1,Translating_products!$EE$4:$EU$216,Translating_products!CM146,FALSE)) -> 629 | F146: 761.09 | G146: =B146*F146 -> 0 | Q146: Kč | R146: R
B147: =Calculation!C95 -> 9 | C147: =HLOOKUP(Main!$C$2,Translating_products!$CN$4:$DD$216,Translating_products!CM147, FALSE) -> 100204 | D147: =HLOOKUP(Main!$C$2,Translating_products!$DI$4:$DY$216,Translating_products!CM147, FALSE) -> LED Spot RGBW | E147: =IF(ISBLANK($Q$1),HLOOKUP(Main!$C$2,Translating_products!$EE$4:$EU$216,Translating_products!CM147,FALSE),HLOOKUP($Q$1,Translating_products!$EE$4:$EU$216,Translating_products!CM147,FALSE)) -> 1349 | F147: 1632.29 | G147: =B147*F147 -> 14690.61 | Q147: Kč | R147: L
B148: =Calculation!C96 -> 24 | C148: =HLOOKUP(Main!$C$2,Translating_products!$CN$4:$DD$216,Translating_products!CM148, FALSE) -> 100203 | D148: =HLOOKUP(Main!$C$2,Translating_products!$DI$4:$DY$216,Translating_products!CM148, FALSE) -> LED Spot WW | E148: =IF(ISBLANK($Q$1),HLOOKUP(Main!$C$2,Translating_products!$EE$4:$EU$216,Translating_products!CM148,FALSE),HLOOKUP($Q$1,Translating_products!$EE$4:$EU$216,Translating_products!CM148,FALSE)) -> 899 | F148: 1087.79 | G148: 26106.96 | Q148: Kč | R148: L
B149: =Calculation!C320 -> 0 | C149: =HLOOKUP(Main!$C$2,Translating_products!$CN$4:$DD$216,Translating_products!CM149, FALSE) -> 200294 | D149: =HLOOKUP(Main!$C$2,Translating_products!$DI$4:$DY$216,Translating_products!CM149, FALSE) -> Nabíjecí kabel typ 2 | E149: =IF(ISBLANK($Q$1),HLOOKUP(Main!$C$2,Translating_products!$EE$4:$EU$216,Translating_products!CM149,FALSE),HLOOKUP($Q$1,Translating_products!$EE$4:$EU$216,Translating_products!CM149,FALSE)) -> 8599 | F149: 10404.79 | G149: 0 | Q149: Kč | R149: R
B150: =Calculation!C269+Calculation!C45+Calculation!C409 -> 1 | C150: =HLOOKUP(Main!$C$2,Translating_products!$CN$4:$DD$216,Translating_products!CM150, FALSE) -> 100218 | D150: =HLOOKUP(Main!$C$2,Translating_products!$DI$4:$DY$216,Translating_products!CM150, FALSE) -> Tree Extension | E150: =IF(ISBLANK($Q$1),HLOOKUP(Main!$C$2,Translating_products!$EE$4:$EU$216,Translating_products!CM150,FALSE),HLOOKUP($Q$1,Translating_products!$EE$4:$EU$216,Translating_products!CM150,FALSE)) -> 2099 | F150: 2539.79 | G150: 2539.79 | I150: Tree | N150: 100 | O150: 0.0048 | Q150: Kč | R150: R
B151: =Calculation!C270+Calculation!C381 -> 5 | C151: =HLOOKUP(Main!$C$2,Translating_products!$CN$4:$DD$216,Translating_products!CM151, FALSE) -> 100221 | D151: =HLOOKUP(Main!$C$2,Translating_products!$DI$4:$DY$216,Translating_products!CM151, FALSE) -> Touch Tree bílá | E151: =IF(ISBLANK($Q$1),HLOOKUP(Main!$C$2,Translating_products!$EE$4:$EU$216,Translating_products!CM151,FALSE),HLOOKUP($Q$1,Translating_products!$EE$4:$EU$216,Translating_products!CM151,FALSE)) -> 1849 | F151: 2237.29 | G151: 11186.45 | I151: Tree | N151: 1 | O151: 0.0048 | Q151: Kč | R151: R
B152: =Calculation!C271+Calculation!C384 -> 0 | C152: =HLOOKUP(Main!$C$2,Translating_products!$CN$4:$DD$216,Translating_products!CM152, FALSE) -> 100222 | D152: =HLOOKUP(Main!$C$2,Translating_products!$DI$4:$DY$216,Translating_products!CM152, FALSE) -> Touch Tree anthrazit | E152: =IF(ISBLANK($Q$1),HLOOKUP(Main!$C$2,Translating_products!$EE$4:$EU$216,Translating_products!CM152,FALSE),HLOOKUP($Q$1,Translating_products!$EE$4:$EU$216,Translating_products!CM152,FALSE)) -> 1849 | F152: 2237.29 | G152: 0 | I152: Tree | N152: 1 | O152: 0.0048 | Q152: Kč | R152: R
B153: =Calculation!C272+Calculation!C191 -> 7 | C153: =HLOOKUP(Main!$C$2,Translating_products!$CN$4:$DD$216,Translating_products!CM153, FALSE) -> 100223 | D153: =HLOOKUP(Main!$C$2,Translating_products!$DI$4:$DY$216,Translating_products!CM153, FALSE) -> Motion Sensor Tree bilá | E153: =IF(ISBLANK($Q$1),HLOOKUP(Main!$C$2,Translating_products!$EE$4:$EU$216,Translating_products!CM153,FALSE),HLOOKUP($Q$1,Translating_products!$EE$4:$EU$216,Translating_products!CM153,FALSE)) -> 1999 | F153: 2418.79 | G153: 16931.53 | I153: Tree | N153: 1 | O153: 0.0048 | Q153: Kč | R153: R
B154: =Calculation!C273+Calculation!C143 -> 6 | C154: =HLOOKUP(Main!$C$2,Translating_products!$CN$4:$DD$216,Translating_products!CM154, FALSE) -> 100225 | D154: =HLOOKUP(Main!$C$2,Translating_products!$DI$4:$DY$216,Translating_products!CM154, FALSE) -> Hlavice Tree | E154: =IF(ISBLANK($Q$1),HLOOKUP(Main!$C$2,Translating_products!$EE$4:$EU$216,Translating_products!CM154,FALSE),HLOOKUP($Q$1,Translating_products!$EE$4:$EU$216,Translating_products!CM154,FALSE)) -> 1749 | F154: 2116.29 | G154: 12697.74 | I154: Tree | N154: 1 | O154: 0.0625 | Q154: Kč | R154: H
B155: =Calculation!C251+Calculation!C192 -> 1 | C155: =HLOOKUP(Main!$C$2,Translating_products!$CN$4:$DD$216,Translating_products!CM155, FALSE) -> 100211 | D155: =HLOOKUP(Main!$C$2,Translating_products!$DI$4:$DY$216,Translating_products!CM155, FALSE) -> Záplavový senzor Air | E155: =IF(ISBLANK($Q$1),HLOOKUP(Main!$C$2,Translating_products!$EE$4:$EU$216,Translating_products!CM155,FALSE),HLOOKUP($Q$1,Translating_products!$EE$4:$EU$216,Translating_products!CM155,FALSE)) -> 1449 | F155: 1753.29 | G155: 1753.29 | I155: Air | N155: 1 | Q155: Kč | R155: R
B156: =Calculation!C252+Calculation!C193 -> 0 | C156: =HLOOKUP(Main!$C$2,Translating_products!$CN$4:$DD$216,Translating_products!CM156, FALSE) -> 100213 | D156: =HLOOKUP(Main!$C$2,Translating_products!$DI$4:$DY$216,Translating_products!CM156, FALSE) -> Okenní a dveřní kontakt Air anthrazit | E156: =IF(ISBLANK($Q$1),HLOOKUP(Main!$C$2,Translating_products!$EE$4:$EU$216,Translating_products!CM156,FALSE),HLOOKUP($Q$1,Translating_products!$EE$4:$EU$216,Translating_products!CM156,FALSE)) -> 1449 | F156: 1753.29 | G156: 0 | I156: Air | N156: 1 | Q156: Kč | R156: R
B157: =Calculation!C253+Calculation!C194 -> 0 | C157: =HLOOKUP(Main!$C$2,Translating_products!$CN$4:$DD$216,Translating_products!CM157, FALSE) -> 100210 | D157: =HLOOKUP(Main!$C$2,Translating_products!$DI$4:$DY$216,Translating_products!CM157, FALSE) -> Okenní a dveřní kontakt Air bílá | E157: =IF(ISBLANK($Q$1),HLOOKUP(Main!$C$2,Translating_products!$EE$4:$EU$216,Translating_products!CM157,FALSE),HLOOKUP($Q$1,Translating_products!$EE$4:$EU$216,Translating_products!CM157,FALSE)) -> 1449 | F157: 1753.29 | G157: 0 | I157: Air | N157: 1 | Q157: Kč | R157: R
B158: =Calculation!C274+Calculation!C190 -> 0 | C158: =HLOOKUP(Main!$C$2,Translating_products!$CN$4:$DD$216,Translating_products!CM158, FALSE) -> 100224 | D158: =HLOOKUP(Main!$C$2,Translating_products!$DI$4:$DY$216,Translating_products!CM158, FALSE) -> Pohybový senzor Tree anthrazit | E158: =IF(ISBLANK($Q$1),HLOOKUP(Main!$C$2,Translating_products!$EE$4:$EU$216,Translating_products!CM158,FALSE),HLOOKUP($Q$1,Translating_products!$EE$4:$EU$216,Translating_products!CM158,FALSE)) -> 1999 | F158: 2418.79 | G158: 0 | Q158: Kč | R158: R
B159: =Calculation!C222 -> 0 | C159: =HLOOKUP(Main!$C$2,Translating_products!$CN$4:$DD$216,Translating_products!CM159, FALSE) -> 200204 | D159: =HLOOKUP(Main!$C$2,Translating_products!$DI$4:$DY$216,Translating_products!CM159, FALSE) -> 20-ti pólová propojka Weidmuller (20 ks) | E159: =IF(ISBLANK($Q$1),HLOOKUP(Main!$C$2,Translating_products!$EE$4:$EU$216,Translating_products!CM159,FALSE),HLOOKUP($Q$1,Translating_products!$EE$4:$EU$216,Translating_products!CM159,FALSE)) -> 2399 | F159: 2902.79 | G159: 0 | Q159: Kč | R159: R
B160: =Calculation!C410+Calculation!C46 -> 0 | C160: =HLOOKUP(Main!$C$2,Translating_products!$CN$4:$DD$216,Translating_products!CM160, FALSE) -> 100200 | D160: =HLOOKUP(Main!$C$2,Translating_products!$DI$4:$DY$216,Translating_products!CM160, FALSE) -> Dali Extension | E160: =IF(ISBLANK($Q$1),HLOOKUP(Main!$C$2,Translating_products!$EE$4:$EU$216,Translating_products!CM160,FALSE),HLOOKUP($Q$1,Translating_products!$EE$4:$EU$216,Translating_products!CM160,FALSE)) -> 12199 | F160: 14760.79 | G160: 0 | Q160: Kč | R160: L
B161: =Calculation!C321 -> 0 | C161: =HLOOKUP(Main!$C$2,Translating_products!$CN$4:$DD$216,Translating_products!CM161, FALSE) -> 200297 | D161: =HLOOKUP(Main!$C$2,Translating_products!$DI$4:$DY$216,Translating_products!CM161, FALSE) -> Spínaný LED zdroj 24V 2,5A | E161: =IF(ISBLANK($Q$1),HLOOKUP(Main!$C$2,Translating_products!$EE$4:$EU$216,Translating_products!CM161,FALSE),HLOOKUP($Q$1,Translating_products!$EE$4:$EU$216,Translating_products!CM161,FALSE)) -> 799 | F161: 966.79 | G161: 0 | Q161: Kč | R161: R
B162: =Calculation!C275+Calculation!C255+Calculation!C385 -> 0 | C162: =HLOOKUP(Main!$C$2,Translating_products!$CN$4:$DD$216,Translating_products!CM162, FALSE) -> 100206 | D162: =HLOOKUP(Main!$C$2,Translating_products!$DI$4:$DY$216,Translating_products!CM162, FALSE) -> Touch pure Air bílá | E162: =IF(ISBLANK($Q$1),HLOOKUP(Main!$C$2,Translating_products!$EE$4:$EU$216,Translating_products!CM162,FALSE),HLOOKUP($Q$1,Translating_products!$EE$4:$EU$216,Translating_products!CM162,FALSE)) -> 3999 | F162: 4838.79 | G162: 0 | Q162: Kč | R162: R
B163: =Calculation!C275+Calculation!C254+Calculation!C382 -> 0 | C163: =HLOOKUP(Main!$C$2,Translating_products!$CN$4:$DD$216,Translating_products!CM163, FALSE) -> 100207 | D163: =HLOOKUP(Main!$C$2,Translating_products!$DI$4:$DY$216,Translating_products!CM163, FALSE) -> Touch pure for Nano bílá | E163: =IF(ISBLANK($Q$1),HLOOKUP(Main!$C$2,Translating_products!$EE$4:$EU$216,Translating_products!CM163,FALSE),HLOOKUP($Q$1,Translating_products!$EE$4:$EU$216,Translating_products!CM163,FALSE)) -> 3199 | F163: 3870.79 | G163: 0 | Q163: Kč | R163: R
B164: =Calculation!C276+Calculation!C383 -> 4 | C164: =HLOOKUP(Main!$C$2,Translating_products!$CN$4:$DD$216,Translating_products!CM164, FALSE) -> 100219 | D164: =HLOOKUP(Main!$C$2,Translating_products!$DI$4:$DY$216,Translating_products!CM164, FALSE) -> Touch pure Tree bílá | E164: =IF(ISBLANK($Q$1),HLOOKUP(Main!$C$2,Translating_products!$EE$4:$EU$216,Translating_products!CM164,FALSE),HLOOKUP($Q$1,Translating_products!$EE$4:$EU$216,Translating_products!CM164,FALSE)) -> 3999 | F164: 4838.79 | G164: 19355.16 | Q164: Kč | R164: R
B165: =Calculation!C411 -> 0 | C165: =HLOOKUP(Main!$C$2,Translating_products!$CN$4:$DD$216,Translating_products!CM165, FALSE) -> 200108 | D165: =IF(ISBLANK(Q1), HLOOKUP(Main!$C$2,Translating_products!$DI$4:$DY$216,Translating_products!CM165, FALSE),"Not available in this country") -> Internorm Extension | E165: =IF(ISBLANK($Q$1),HLOOKUP(Main!$C$2,Translating_products!$EE$4:$EU$216,Translating_products!CM165,FALSE),HLOOKUP($Q$1,Translating_products!$EE$4:$EU$216,Translating_products!CM165,FALSE)) -> 6799 | F165: 8226.79 | G165: 0 | Q165: Kč | R165: R
B166: =Calculation!C256 -> 0 | C166: =HLOOKUP(Main!$C$2,Translating_products!$CN$4:$DD$216,Translating_products!CM166, FALSE) -> 100212 | D166: =HLOOKUP(Main!$C$2,Translating_products!$DI$4:$DY$216,Translating_products!CM166, FALSE) -> Nano Dimmer Air | E166: =IF(ISBLANK($Q$1),HLOOKUP(Main!$C$2,Translating_products!$EE$4:$EU$216,Translating_products!CM166,FALSE),HLOOKUP($Q$1,Translating_products!$EE$4:$EU$216,Translating_products!CM166,FALSE)) -> 2499 | F166: 3023.79 | G166: 0 | Q166: Kč | R166: R
B167: =Calculation!C322 -> 0 | C167: =HLOOKUP(Main!$C$2,Translating_products!$CN$4:$DD$216,Translating_products!CM167, FALSE) -> 200300 | D167: =HLOOKUP(Main!$C$2,Translating_products!$DI$4:$DY$216,Translating_products!CM167, FALSE) -> Dvoužilový kroucený kabel modrá/bílá | E167: =IF(ISBLANK($Q$1),HLOOKUP(Main!$C$2,Translating_products!$EE$4:$EU$216,Translating_products!CM167,FALSE),HLOOKUP($Q$1,Translating_products!$EE$4:$EU$216,Translating_products!CM167,FALSE)) -> 299 | F167: =E167*(1+$E$197*0.01) -> 361.79 | G167: 0 | Q167: Kč | R167: R
B168: =Calculation!C323 -> 0 | C168: =HLOOKUP(Main!$C$2,Translating_products!$CN$4:$DD$216,Translating_products!CM168, FALSE) -> 200301 | D168: =HLOOKUP(Main!$C$2,Translating_products!$DI$4:$DY$216,Translating_products!CM168, FALSE) -> Dvoužilový kroucený kabel oranžová/bílá | E168: =IF(ISBLANK($Q$1),HLOOKUP(Main!$C$2,Translating_products!$EE$4:$EU$216,Translating_products!CM168,FALSE),HLOOKUP($Q$1,Translating_products!$EE$4:$EU$216,Translating_products!CM168,FALSE)) -> 299 | F168: 361.79 | G168: 0 | Q168: Kč | R168: R
B169: =Calculation!C324 -> 0 | C169: =HLOOKUP(Main!$C$2,Translating_products!$CN$4:$DD$216,Translating_products!CM169, FALSE) -> 200302 | D169: =HLOOKUP(Main!$C$2,Translating_products!$DI$4:$DY$216,Translating_products!CM169, FALSE) -> Dvoužilový kroucený kabel zelená/bílá | E169: =IF(ISBLANK($Q$1),HLOOKUP(Main!$C$2,Translating_products!$EE$4:$EU$216,Translating_products!CM169,FALSE),HLOOKUP($Q$1,Translating_products!$EE$4:$EU$216,Translating_products!CM169,FALSE)) -> 299 | F169: 361.79 | G169: 0 | Q169: Kč | R169: R
B170: =Calculation!C325 -> 0 | C170: =HLOOKUP(Main!$C$2,Translating_products!$CN$4:$DD$216,Translating_products!CM170, FALSE) -> 200287 | D170: =HLOOKUP(Main!$C$2,Translating_products!$DI$4:$DY$216,Translating_products!CM170, FALSE) -> Duracell Plus Power AA (12 ks) | E170: =IF(ISBLANK($Q$1),HLOOKUP(Main!$C$2,Translating_products!$EE$4:$EU$216,Translating_products!CM170,FALSE),HLOOKUP($Q$1,Translating_products!$EE$4:$EU$216,Translating_products!CM170,FALSE)) -> 215 | F170: 260.15 | G170: 0 | Q170: Kč | R170: R
B171: =Calculation!C326 -> 0 | C171: =HLOOKUP(Main!$C$2,Translating_products!$CN$4:$DD$216,Translating_products!CM171, FALSE) -> 200288 | D171: =HLOOKUP(Main!$C$2,Translating_products!$DI$4:$DY$216,Translating_products!CM171, FALSE) -> Duracell Plus Power AAA (12 ks) | E171: =IF(ISBLANK($Q$1),HLOOKUP(Main!$C$2,Translating_products!$EE$4:$EU$216,Translating_products!CM171,FALSE),HLOOKUP($Q$1,Translating_products!$EE$4:$EU$216,Translating_products!CM171,FALSE)) -> 215 | F171: 260.15 | G171: 0 | Q171: Kč | R171: R
B172: =Calculation!C327 -> 0 | C172: =HLOOKUP(Main!$C$2,Translating_products!$CN$4:$DD$216,Translating_products!CM172, FALSE) -> 200289 | D172: =HLOOKUP(Main!$C$2,Translating_products!$DI$4:$DY$216,Translating_products!CM172, FALSE) -> CR2032 Lithium Battery (20 ks) | E172: =IF(ISBLANK($Q$1),HLOOKUP(Main!$C$2,Translating_products!$EE$4:$EU$216,Translating_products!CM172,FALSE),HLOOKUP($Q$1,Translating_products!$EE$4:$EU$216,Translating_products!CM172,FALSE)) -> 269 | F172: 325.49 | G172: 0 | Q172: Kč | R172: R
B173: =Calculation!C328 -> 0 | C173: =HLOOKUP(Main!$C$2,Translating_products!$CN$4:$DD$216,Translating_products!CM173, FALSE) -> 200290 | D173: =HLOOKUP(Main!$C$2,Translating_products!$DI$4:$DY$216,Translating_products!CM173, FALSE) -> CR2450 Lithium Battery (20 ks) | E173: =IF(ISBLANK($Q$1),HLOOKUP(Main!$C$2,Translating_products!$EE$4:$EU$216,Translating_products!CM173,FALSE),HLOOKUP($Q$1,Translating_products!$EE$4:$EU$216,Translating_products!CM173,FALSE)) -> 599 | F173: 724.79 | G173: 0 | Q173: Kč | R173: R
B174: =Calculation!C329 -> 0 | C174: =HLOOKUP(Main!$C$2,Translating_products!$CN$4:$DD$216,Translating_products!CM174, FALSE) -> 200291 | D174: =HLOOKUP(Main!$C$2,Translating_products!$DI$4:$DY$216,Translating_products!CM174, FALSE) -> FDK 9V Lithium Battery | E174: =IF(ISBLANK($Q$1),HLOOKUP(Main!$C$2,Translating_products!$EE$4:$EU$216,Translating_products!CM174,FALSE),HLOOKUP($Q$1,Translating_products!$EE$4:$EU$216,Translating_products!CM174,FALSE)) -> 245 | F174: 296.45 | G174: 0 | Q174: Kč | R174: R
B175: =Calculation!C277 -> 0 | C175: =HLOOKUP(Main!$C$2,Translating_products!$CN$4:$DD$216,Translating_products!CM175, FALSE) -> 100242 | D175: =HLOOKUP(Main!$C$2,Translating_products!$DI$4:$DY$216,Translating_products!CM175, FALSE) -> Nano DI Tree | E175: =IF(ISBLANK($Q$1),HLOOKUP(Main!$C$2,Translating_products!$EE$4:$EU$216,Translating_products!CM175,FALSE),HLOOKUP($Q$1,Translating_products!$EE$4:$EU$216,Translating_products!CM175,FALSE)) -> 1699 | F175: 2055.79 | G175: 0 | Q175: Kč | R175: R
B176: =IF(ISBLANK(Q1),0,Calculation!C330) -> 0 | C176: =IF(ISBLANK(Q1),"0","100294") -> 0 | D176: =IF(ISBLANK(Q1),"not available in this country", HLOOKUP(Main!$C$2,Translating_products!$DI$4:$DY$216,Translating_products!CM176, FALSE)) -> not available in this country | E176: =IF(ISBLANK(Q1),"0",IF(ISBLANK($Q$1),HLOOKUP(Main!$C$2,Translating_products!$EE$4:$EU$216,Translating_products!CM176,FALSE),HLOOKUP($Q$1,Translating_products!$EE$4:$EU$216,Translating_products!CM176,FALSE))) -> 0 | F176: 0 | G176: 0 | Q176: Kč | R176: R
B177: =Calculation!C386+Calculation!C257 -> 0 | C177: =HLOOKUP(Main!$C$2,Translating_products!$CN$4:$DD$216,Translating_products!CM177, FALSE) -> 100209 | D177: =HLOOKUP(Main!$C$2,Translating_products!$DI$4:$DY$216,Translating_products!CM177, FALSE) -> Touch pure for Nano Anthracite | E177: =IF(ISBLANK($Q$1),HLOOKUP(Main!$C$2,Translating_products!$EE$4:$EU$216,Translating_products!CM177,FALSE),HLOOKUP($Q$1,Translating_products!$EE$4:$EU$216,Translating_products!CM177,FALSE)) -> 3199 | F177: 3870.79 | G177: 0 | Q177: Kč | R177: R
B178: =Calculation!C387+Calculation!C278 -> 0 | C178: =HLOOKUP(Main!$C$2,Translating_products!$CN$4:$DD$216,Translating_products!CM178, FALSE) -> 100220 | D178: =HLOOKUP(Main!$C$2,Translating_products!$DI$4:$DY$216,Translating_products!CM178, FALSE) -> Touch pure for Tree Anthracite | E178: =IF(ISBLANK($Q$1),HLOOKUP(Main!$C$2,Translating_products!$EE$4:$EU$216,Translating_products!CM178,FALSE),HLOOKUP($Q$1,Translating_products!$EE$4:$EU$216,Translating_products!CM178,FALSE)) -> 3999 | F178: 4838.79 | G178: 0 | Q178: Kč | R178: R
B179: =Calculation!C258+Calculation!C388 -> 0 | C179: =HLOOKUP(Main!$C$2,Translating_products!$CN$4:$DD$216,Translating_products!CM179, FALSE) -> 100208 | D179: =HLOOKUP(Main!$C$2,Translating_products!$DI$4:$DY$216,Translating_products!CM179, FALSE) -> Touch pure Air Anthracite | E179: =IF(ISBLANK($Q$1),HLOOKUP(Main!$C$2,Translating_products!$EE$4:$EU$216,Translating_products!CM179,FALSE),HLOOKUP($Q$1,Translating_products!$EE$4:$EU$216,Translating_products!CM179,FALSE)) -> 3999 | F179: 4838.79 | G179: 0 | Q179: Kč | R179: R
B180: =Calculation!C98 -> 0 | C180: =HLOOKUP(Main!$C$2,Translating_products!$CN$4:$DD$216,Translating_products!CM180, FALSE) -> 100235 | D180: =HLOOKUP(Main!$C$2,Translating_products!$DI$4:$DY$216,Translating_products!CM180, FALSE) -> Příložný LED Spot RGBW bílá | E180: =IF(ISBLANK($Q$1),HLOOKUP(Main!$C$2,Translating_products!$EE$4:$EU$216,Translating_products!CM180,FALSE),HLOOKUP($Q$1,Translating_products!$EE$4:$EU$216,Translating_products!CM180,FALSE)) -> 2149 | F180: 2600.29 | G180: 0 | Q180: Kč | R180: L
B181: =Calculation!C99 -> 0 | C181: =HLOOKUP(Main!$C$2,Translating_products!$CN$4:$DD$216,Translating_products!CM181, FALSE) -> 100236 | D181: =HLOOKUP(Main!$C$2,Translating_products!$DI$4:$DY$216,Translating_products!CM181, FALSE) -> Příložný LED Spot WW bílá | E181: =IF(ISBLANK($Q$1),HLOOKUP(Main!$C$2,Translating_products!$EE$4:$EU$216,Translating_products!CM181,FALSE),HLOOKUP($Q$1,Translating_products!$EE$4:$EU$216,Translating_products!CM181,FALSE)) -> 1599 | F181: 1934.79 | G181: 0 | Q181: Kč | R181: L
B182: =Calculation!C100+Calculation!C279 -> 0 | C182: =HLOOKUP(Main!$C$2,Translating_products!$CN$4:$DD$216,Translating_products!CM182, FALSE) -> 100237 | D182: =HLOOKUP(Main!$C$2,Translating_products!$DI$4:$DY$216,Translating_products!CM182, FALSE) -> Příložný LED Spot Tree RGBW bílá | E182: =IF(ISBLANK($Q$1),HLOOKUP(Main!$C$2,Translating_products!$EE$4:$EU$216,Translating_products!CM182,FALSE),HLOOKUP($Q$1,Translating_products!$EE$4:$EU$216,Translating_products!CM182,FALSE)) -> 3199 | F182: 3870.79 | G182: 0 | Q182: Kč | R182: L
B183: =Calculation!C101+Calculation!C280 -> 0 | C183: =HLOOKUP(Main!$C$2,Translating_products!$CN$4:$DD$216,Translating_products!CM183, FALSE) -> 100238 | D183: =HLOOKUP(Main!$C$2,Translating_products!$DI$4:$DY$216,Translating_products!CM183, FALSE) -> Příložný LED Spot Tree WW bílá | E183: =IF(ISBLANK($Q$1),HLOOKUP(Main!$C$2,Translating_products!$EE$4:$EU$216,Translating_products!CM183,FALSE),HLOOKUP($Q$1,Translating_products!$EE$4:$EU$216,Translating_products!CM183,FALSE)) -> 2699 | F183: 3265.79 | G183: 0 | Q183: Kč | R183: L
B184: =Calculation!C102+Calculation!C281 -> 0 | C184: =HLOOKUP(Main!$C$2,Translating_products!$CN$4:$DD$216,Translating_products!CM184, FALSE) -> 100268 | D184: =HLOOKUP(Main!$C$2,Translating_products!$DI$4:$DY$216,Translating_products!CM184, FALSE) -> LED Spot Tree WW bílá | E184: =IF(ISBLANK($Q$1),HLOOKUP(Main!$C$2,Translating_products!$EE$4:$EU$216,Translating_products!CM184,FALSE),HLOOKUP($Q$1,Translating_products!$EE$4:$EU$216,Translating_products!CM184,FALSE)) -> 1599 | F184: 1934.79 | G184: 0 | Q184: Kč | R184: L
B185: =Calculation!C103+Calculation!C282 -> 0 | C185: =HLOOKUP(Main!$C$2,Translating_products!$CN$4:$DD$216,Translating_products!CM185, FALSE) -> 100269 | D185: =HLOOKUP(Main!$C$2,Translating_products!$DI$4:$DY$216,Translating_products!CM185, FALSE) -> LED Spot Tree RGBW bílá | E185: =IF(ISBLANK($Q$1),HLOOKUP(Main!$C$2,Translating_products!$EE$4:$EU$216,Translating_products!CM185,FALSE),HLOOKUP($Q$1,Translating_products!$EE$4:$EU$216,Translating_products!CM185,FALSE)) -> 2149 | F185: =E185*(1+$E$197*0.01) -> 2600.29 | G185: 0 | Q185: Kč | R185: L
B186: =Calculation!C104+Calculation!C283 -> 9 | C186: =HLOOKUP(Main!$C$2,Translating_products!$CN$4:$DD$216,Translating_products!CM186, FALSE) -> 100239 | D186: =HLOOKUP(Main!$C$2,Translating_products!$DI$4:$DY$216,Translating_products!CM186, FALSE) -> RGBW 24V Dimmer Tree | E186: =IF(ISBLANK($Q$1),HLOOKUP(Main!$C$2,Translating_products!$EE$4:$EU$216,Translating_products!CM186,FALSE),HLOOKUP($Q$1,Translating_products!$EE$4:$EU$216,Translating_products!CM186,FALSE)) -> 1599 | F186: 1934.79 | G186: 17413.11 | Q186: Kč | R186: L
B187: =Calculation!C259+Calculation!C197 -> 0 | C187: =HLOOKUP(Main!$C$2,Translating_products!$CN$4:$DD$216,Translating_products!CM189, FALSE) -> 100177 | D187: =HLOOKUP(Main!$C$2,Translating_products!$DI$4:$DY$216,Translating_products!CM189, FALSE) -> Okenní klika Air | E187: =IF(ISBLANK($Q$1),HLOOKUP(Main!$C$2,Translating_products!$EE$4:$EU$216,Translating_products!CM189,FALSE),HLOOKUP($Q$1,Translating_products!$EE$4:$EU$216,Translating_products!CM189,FALSE)) -> 3249 | F187: 3931.29 | G187: 0 | Q187: Kč | R187: R
B188: =Calculation!C412 -> 0 | C188: =HLOOKUP(Main!$C$2,Translating_products!$CN$4:$DD$216,Translating_products!CM190, FALSE) -> 100283 | D188: =HLOOKUP(Main!$C$2,Translating_products!$DI$4:$DY$216,Translating_products!CM190, FALSE) -> DI Extension | E188: =IF(ISBLANK($Q$1),HLOOKUP(Main!$C$2,Translating_products!$EE$4:$EU$216,Translating_products!CM190,FALSE),HLOOKUP($Q$1,Translating_products!$EE$4:$EU$216,Translating_products!CM190,FALSE)) -> 5999 | F188: 7258.79 | G188: 0 | Q188: Kč | R188: R
B189: =Calculation!C284+Calculation!C353+Calculation!C198 -> 1 | C189: =HLOOKUP(Main!$C$2,Translating_products!$CN$4:$DD$216,Translating_products!CM191, FALSE) -> 100246 | D189: =HLOOKUP(Main!$C$2,Translating_products!$DI$4:$DY$216,Translating_products!CM191, FALSE) -> Meteostanice Tree | E189: =IF(ISBLANK($Q$1),HLOOKUP(Main!$C$2,Translating_products!$EE$4:$EU$216,Translating_products!CM191,FALSE),HLOOKUP($Q$1,Translating_products!$EE$4:$EU$216,Translating_products!CM191,FALSE)) -> 7199 | F189: =E189*(1+$E$197*0.01) -> 8710.79 | G189: 8710.79 | Q189: Kč
B190: =Calculation!C354+Calculation!C260+Calculation!C199 -> 0 | C190: =HLOOKUP(Main!$C$2,Translating_products!$CN$4:$DD$216,Translating_products!CM192, FALSE) -> 100245 | D190: =HLOOKUP(Main!$C$2,Translating_products!$DI$4:$DY$216,Translating_products!CM192, FALSE) -> Meteostanice Air | E190: =IF(ISBLANK($Q$1),HLOOKUP(Main!$C$2,Translating_products!$EE$4:$EU$216,Translating_products!CM192,FALSE),HLOOKUP($Q$1,Translating_products!$EE$4:$EU$216,Translating_products!CM192,FALSE)) -> 7999 | F190: 9678.79 | G190: 0 | Q190: Kč
B191: =Calculation!C105 -> 0 | C191: =HLOOKUP(Main!$C$2,Translating_products!$CN$4:$DD$216,Translating_products!CM193, FALSE) -> 200311 | D191: =HLOOKUP(Main!$C$2,Translating_products!$DI$4:$DY$216,Translating_products!CM193, FALSE) -> Krabice do betonu pro LED spot | E191: =IF(ISBLANK($Q$1),HLOOKUP(Main!$C$2,Translating_products!$EE$4:$EU$216,Translating_products!CM193,FALSE),HLOOKUP($Q$1,Translating_products!$EE$4:$EU$216,Translating_products!CM193,FALSE)) -> 599 | F191: 724.79 | G191: 0 | Q191: Kč
B192: =Calculation!C355+Calculation!C261 -> 0 | C192: =HLOOKUP(Main!$C$2,Translating_products!$CN$4:$DD$216,Translating_products!CM194, FALSE) -> 100251 | D192: =HLOOKUP(Main!$C$2,Translating_products!$DI$4:$DY$216,Translating_products!CM194, FALSE) -> Žaluziový pohon GJ56 Air 6Nm kabel nahoře | E192: =IF(ISBLANK($Q$1),HLOOKUP(Main!$C$2,Translating_products!$EE$4:$EU$216,Translating_products!CM194,FALSE),HLOOKUP($Q$1,Translating_products!$EE$4:$EU$216,Translating_products!CM194,FALSE)) -> 6499 | F192: 7863.79 | G192: 0 | Q192: Kč
B193: =Calculation!C356+Calculation!C262 -> 0 | C193: =HLOOKUP(Main!$C$2,Translating_products!$CN$4:$DD$216,Translating_products!CM195, FALSE) -> 100252 | D193: =HLOOKUP(Main!$C$2,Translating_products!$DI$4:$DY$216,Translating_products!CM195, FALSE) -> Žaluziový pohon GJ56 Air 20Nm kabel nahoře | E193: =IF(ISBLANK($Q$1),HLOOKUP(Main!$C$2,Translating_products!$EE$4:$EU$216,Translating_products!CM195,FALSE),HLOOKUP($Q$1,Translating_products!$EE$4:$EU$216,Translating_products!CM195,FALSE)) -> 7549 | F193: 9134.29 | G193: 0 | Q193: Kč
B194: =Calculation!C357+Calculation!C263 -> 0 | C194: =HLOOKUP(Main!$C$2,Translating_products!$CN$4:$DD$216,Translating_products!CM196, FALSE) -> 100251 | D194: =HLOOKUP(Main!$C$2,Translating_products!$DI$4:$DY$216,Translating_products!CM196, FALSE) -> Žaluziový pohon GJ56 Air 6Nm kabel dole | E194: =IF(ISBLANK($Q$1),HLOOKUP(Main!$C$2,Translating_products!$EE$4:$EU$216,Translating_products!CM196,FALSE),HLOOKUP($Q$1,Translating_products!$EE$4:$EU$216,Translating_products!CM196,FALSE)) -> 6499 | F194: 7863.79 | G194: 0 | Q194: Kč
B195: =Calculation!C358+Calculation!C264 -> 0 | C195: =HLOOKUP(Main!$C$2,Translating_products!$CN$4:$DD$216,Translating_products!CM197, FALSE) -> 100252 | D195: =HLOOKUP(Main!$C$2,Translating_products!$DI$4:$DY$216,Translating_products!CM197, FALSE) -> Žaluziový pohon GJ56 Air 20Nm kabel dole | E195: =IF(ISBLANK($Q$1),HLOOKUP(Main!$C$2,Translating_products!$EE$4:$EU$216,Translating_products!CM197,FALSE),HLOOKUP($Q$1,Translating_products!$EE$4:$EU$216,Translating_products!CM197,FALSE)) -> 7549 | F195: 9134.29 | G195: 0 | Q195: Kč
D196: =VLOOKUP(Main!C2,Translating_general!A77:AF94,9,FALSE) -> Celkem bez DPH | G196: =SUMPRODUCT(B7:B195,E7:E195) -> 285462.48 | Q196: =$Q$7 -> Kč
D197: =VLOOKUP(Main!C2,Translating_general!A77:AF94,10,FALSE) -> + DPH | E197: =IF(ISBLANK($Q$1),VLOOKUP(Main!C2,Translating_general!A77:IH94,35,FALSE),VLOOKUP(Q1,Translating_general!A77:IH94,35,FALSE)) -> 21 | F197: % | G197: =G196*((E197/100)) -> 59947.1208 | Q197: =$Q$7 -> Kč
D198: =VLOOKUP(Main!C2,Translating_general!A77:AF94,11,FALSE) -> Celkem s DPH | G198: =G196+G197 -> 345409.6008 | Q198: Kč
D199: *PLEASE NOTE* | E199: Price 1.8.2017 | G199: =G196*(1+R200) -> 293169.967 | Q199: Kč | R199: Price increase factor
D200: There is a price increase from the 1st of August 2017 . | F200: with VAT | G200: =G196*(1+R200)*(1+(E197/100)) -> 354735.66 | Q200: Kč | R200: =IF(Q1 = "CHE", 0.027, IF(Main!C2="DE","0,027",IF(Main!C2="EN_UK",0,IF(Main!C2="EN_US",0,IF(Main!C2="FR",0.027,IF(Main!C2="ES",0.027,IF(Main!C2="CZ",0.027,IF(Main!C2="IT",0.027,IF(Main!C2="SK",0.027,IF(Main!C2="NL",0.027,0.027)))))))))) -> 0.027
D201: (US is already considered)
D202: (UK not considered)
C204: =VLOOKUP(Main!C2,Translating_general!A77:AF94,12,FALSE) -> Dostupné | E204: =VLOOKUP(Main!C2,Translating_general!A77:AF94,13,FALSE) -> Potřebné | F204: =VLOOKUP(Main!C2,Translating_general!A77:AF94,14,FALSE) -> Zbývající
C205: =Calculation!D53 -> 4 | D205: =VLOOKUP(Main!C2,Translating_general!A77:AF94,15,FALSE) -> Analogové vstupy | E205: =Calculation!D54 -> 1 | F205: =Calculation!D55 -> 3
... 20 more rows

Sheet Datanorm (hidden)

Sheet Sample Quote (hidden)
B15: Loxone Smart Home Angebot
B19: Projekt
B20: Kunde
B21: Adresse
B22: PLZ
B23: Ort
B75: Loxone Leistungsbeschreibung
B77: Im Folgenden finden Sie eine Beschreibung der technischen Umsetzung Ihres Loxone Smart Homes. Die Leistungsbeschreibung enthält die Basisausstattung mit allen Komponenten die wir für ein Loxone Smart Home empfehlen. Damit können Sie Beleuchtung, Beschattung, Heizung, Alarm und mehr steuern. In dem Angebot enthalten ist die Verkabelung, Installation sowie die Konfiguration Ihres Loxone Smart Homes. In den Preisen sind Hardware, Verkabelung, Installation sowie Konfigurierung enthalten, ebenso sind die Apps zur Bedienung Ihres Loxone Smart Homes kostenlos im Google Play Store sowie Apple App Store erhältlich.
B92: Smartes Bedienen mit dem Loxone Tastenstandard
F94: Mitte
F95: Ein Klick, Licht an. Mit jedem weiteren Klick schalten Sie Ihre vordefinierten Szenen durch. Doppelklick: Alles aus im Raum. Nicht nur die Beleuchtung schalten Sie mit dem Doppelklick aus, auch Verbraucher oder die Musik wird somit ausgeschaltet. Dreifachklick: “Alles aus” im Smart Home.
F97: Links oben/unten
F98: Das Smart Home übernimmt für Sie die Beschattung. Möchten Sie eingreifen, reicht ein Klick auf die Jalousietasten und die Beschattung fährt nach Ihrer Definition.
F100: Rechts oben/unten
F101: Ein Klick: Musik an. Doppelklick: Die Musikquelle wird gewechselt. Ein Klick, die Musik wird leiser. Doppelklick: Die Musik im Raum wird deaktiviert.
B128: Allgemeine Beschreibung
B130: Beleuchtung
B132: Automatisiertes Grundlicht , Szenen Bedienung über einen der Loxone Haupt-Tastpunkte oder der Remote Air Fernbedienung. Raum-Aus-Funktion über Doppelklick auf Szenen Taste.
B133: Somit “Kein Vergessen mehr”, das Licht auszuschalten. Befindet sich länger als eine Stunde niemand im Raum, wird automatisch die Beleuchtung deaktiviert.
B134: Lichtszenen können über die Visualisierung verändert, ergänzt und gespeichert werden.
B137: Beschattung
B139: Die Beschattung regelt sich automatisch anhand der Innenraumtemperatur sowie des Sonnenstands.
B140: Zentrale Bedienung im Raum der Beschattung über einen der Loxone Haupt-Tastpunkte (Auf/Ab). Beschattungselemente werden bei erhöhter Windgeschwindigkeit automatisch in Sicherheitsposition gefahren. Beschattung wird bei Morgendämmerung automatisch geöffnet und bei Abenddämmerung wieder automatisch geschlossen. Jedes Beschattungselement kann über die Visualisierung einzeln bedient werden. Bei geöffneter Terrassentür wird die Automatik deaktiviert und die Beschattung hochgefahren.
B143: Heizung
B145: Die Temperatur kann auf Raumebene individuell eingestellt werden. Über die Visualisierung können die Komforttemperaturen sowie Heizzeiten/Kühlzeiten individuell angepasst werden. Geöffnete Fenster werden über einen Integrierten Kontakt berücksichtigt und die Temperatur wird automatisch auf Frostschutz Temperatur im Winter und Hitzeschutz Temperatur im Sommer geregelt. Weiters wird bei Anwesenheit die Komforttemperatur für 1 Stunde verlängert.
B148: Musik
B150: Ihre Lieblingsmusik können Sie mit Loxone in jeder Musik Zone perfekt integrieren und bequem per App oder den Haupt-Tastpunkten bedient werden. Ein/Aus, Lautstärke sowie Quellen können bequem von den Loxone Haupt-Tastpunkten oder der Remote Air Fernbedienung bedient werden.
B166: Raumliste
B168: Raum | C168: Licht | D168: Beschattung | E168: Heizung | F168: Musik
B191: Licht | C191: =QuickPlanning2!D43 -> 60104
B192: Beschattung | C192: =QuickPlanning2!D45 -> 0
B193: Heizung | C193: =QuickPlanning2!D47 -> 10494
B194: Musik | C194: =QuickPlanning2!D49 -> 52993
B195: Gesamt netto | C195: =SUM(C190:C194)+C189 -> 123591
B196: Gesamt brutto | D196: =C195*(1+Products!E197/100) -> 149545.11

Sheet News
A1: current version 2.8.7
A2: Version
A3: 2_8_5
C4: Changes at 2.8.4 | H4: Changes at 2.8.5 | M4: Changes at 2.8.6
C7: - Nano DI Tree added | H7: - Change log (NEWS) added into the Tool | M7: - Bug fixed when only a 1-wire reader was added (there was no Miniserver)
C9: - thermal valve actuator 0-10V deleted | H9: - added Light circuit 5-16A in light category | M9: - Some missing translations were added
C11: - Analog In (Reserve) added in sensor category | H11: - added coupling relay to distribution category | M11: - Bug fixed, Air device channels from cathegory "Sensors" were not counted
C13: - Feller Adapter Set added in CHE | H13: - corrected price of weather service 10 years | M13: - Window handle Air added
C15: - adjusted international prices | H15: - new products added (Touch Pure anthracite, RGBW Dimmer Tree, new Spots) | M15: - 2.8.6.'PRICE Window handle air + dimmer tree was not counted - fixed
H19: - a few issues with blank cells were corrected
C27: Changes at 2.8.7 | H27: Changes at 2.8.8
C30: - After a change at the main mage, the products will now actualize automatically | H30: - new products added (weather station, shutter motor, spot backbox)
C32: - New Products addes (DI Extension)
C34: - Main page: Reset button added to clear the hole sheet
C36: - RGBW Dimmer 24V Tree Price corrected for Switzerland
C38: - Once the tool is opened a message box will ask about the language

Sheet Translating_general (hidden)
A2: General Translating of the "Eingabe", "Stückliste", "Netzteilrechner"; "Platzbedarfsrechner" sheets => Normally you do this translation just once, Translating_products has to be updated constantly
A4: Main
A5: DE | B5: Stückzahl | C5: Raumteilung | D5: Licht | E5: Beschattung | F5: Heizung | G5: Sensor | H5: Air | I5: Taster | J5: Zutritt | K5: Musik | L5: Miniserver&Extension | M5: Verteiler | N5: Zubehör | O5: Fans&Partner | P5: Tree | Q5: Drop-Down-Menü Auswahl | R5: Eingabe | S5: Tree
A6: EN_UK | B6: Quantity | C6: Rooms | D6: Lighting | E6: Shading | F6: Heating | G6: Sensor | H6: Air | I6: Switches | J6: Access | K6: Music | L6: Miniserver & Extension | M6: Cabinet | N6: Other | O6: Fans & Partner | P6: Tree | Q6: Drop Down Selection | R6: Configuration | S6: Tree
A7: EN_US | B7: Quantity | C7: Rooms | D7: Light | E7: Shading | F7: Heating | G7: Sensor | H7: Air | I7: Push-Buttons | J7: Access | K7: Music | L7: Miniserver&Extension | M7: Cabinet | N7: Other | O7: Fans&Partner | P7: Tree | Q7: Drop Down Selection | R7: Configuration | S7: Tree
A8: FR | B8: Quantité | C8: Pièces | D8: Eclairage | E8: Ouvrants | F8: Chauffage | G8: Capteurs | H8: Air | I8: Boutons Poussoirs | J8: Acccès | K8: Audio | L8: Miniserver&Extension | M8: Tableau | N8: Alimentations | O8: Fans&Partenaires | P8: Tree | Q8: Menu déroulant | R8: Configuration | S8: Tree
A9: ES | B9: Número de unidades | C9: Habitaciones | D9: Iluminación | E9: Sombreado | F9: Climatización | G9: Sensores | H9: Air | I9: Pulsadores | J9: Acceso | K9: Música | L9: Miniserver y Extensiones | M9: Conexión | N9: Accesorios | O9: Fans&Partner | P9: Tree | Q9: Seleccinar del desplegable | R9: Configuración | S9: Tree
A10: CZ | B10: Počet | C10: Místnosti | D10: Světlo | E10: Stínění | F10: Topení | G10: Sensor | H10: Air | I10: Tlačítka | J10: Přístup | K10: Hudba | L10: Miniserver&Extension | M10: Rozvaděč | N10: Příslušenství | O10: Fanoušci a Partneři | P10: Tree | Q10: Rozbalovací menu | R10: Vyplňte | S10: Tree
A11: IT | B11: Quantità | C11: Stanze | D11: Illuminazione | E11: Ombreggiatura | F11: Riscaldamento | G11: Sensori | H11: Air | I11: Pulsanti | J11: Accesso | K11: Musica | L11: Miniserver & Extension | M11: Distributore | N11: Accessori | O11: Fans & Partner | P11: Tree | Q11: Scelta a menu drop-down | R11: Immissione | S11: Tree
A12: CHE | B12: not translated yet | C12: not translated yet | D12: not translated yet | E12: not translated yet | F12: not translated yet | G12: not translated yet | H12: not translated yet | I12: not translated yet | J12: not translated yet | K12: not translated yet | L12: not translated yet | M12: not translated yet | N12: not translated yet | O12: not translated yet | P12: not translated yet | Q12: not translated yet | R12: not translated yet | S12: Tree
A13: SK | B13: Počet | C13: Místnosti | D13: Světlo | E13: Stínění | F13: Topení | G13: Sensor | H13: Air | I13: Tlačítka | J13: Přístup | K13: Hudba | L13: Miniserver&Extension | M13: Rozvaděč | N13: Příslušenství | O13: Fanoušci a Partneři | P13: Tree | Q13: Rozbalovací menu | R13: Vyplňte | S13: Tree
A14: NL | B14: Hoeveelheid | C14: Ruimtes | D14: Licht | E14: Beschaduwing | F14: Verwarming | G14: Sensor | H14: Air | I14: Drukknoppen | J14: Toegang | K14: Muziek | L14: Miniserver&Extension | M14: Verdeelbord | N14: Toebehoren | O14: Fans&Partner | P14: Tree | Q14: Drop-Down menu | R14: Configuratie | S14: Tree
A15: FI | B15: not translated yet | C15: not translated yet | D15: not translated yet | E15: not translated yet | F15: not translated yet | G15: not translated yet | H15: not translated yet | I15: not translated yet | J15: not translated yet | K15: not translated yet | L15: not translated yet | M15: not translated yet | N15: not translated yet | O15: not translated yet | P15: not translated yet | Q15: not translated yet | R15: not translated yet | S15: Tree
A16: HU | B16: not translated yet | C16: not translated yet | D16: not translated yet | E16: not translated yet | F16: not translated yet | G16: not translated yet | H16: not translated yet | I16: not translated yet | J16: not translated yet | K16: not translated yet | L16: not translated yet | M16: not translated yet | N16: not translated yet | O16: not translated yet | P16: not translated yet | Q16: not translated yet | R16: not translated yet | S16: Tree
A17: IE | B17: not translated yet | C17: not translated yet | D17: not translated yet | E17: not translated yet | F17: not translated yet | G17: not translated yet | H17: not translated yet | I17: not translated yet | J17: not translated yet | K17: not translated yet | L17: not translated yet | M17: not translated yet | N17: not translated yet | O17: not translated yet | P17: not translated yet | Q17: not translated yet | R17: not translated yet | S17: Tree
A18: reservated | S18: to translate
A19: reservated | S19: to translate
A20: reservated | S20: to translate
A21: reservated | S21: to translate
A22: reservated | S22: to translate
A28: Power
A29: DE | B29: Netzteilrechner | C29: Netzteile | D29: Extensions | E29: Artikelnummer | F29: Produkte | G29: Stück | H29: Ampere/Stück | I29: Gesamt | J29: Ampere verfügbar | K29: Ampere benötigt | L29: Summe | M29: LED | N29: Peripherie | O29: 0,4 Ampere Netzteil/Stück
A30: EN_UK | B30: Power Supply Calculator | C30: Power Supplies | D30: Extensions | E30: Item number | F30: Products | G30: Quantity | H30: Ampere/item | I30: Total | J30: Ampere available | K30: Ampere needed | L30: Total | M30: LED | N30: Periphery | O30: 0,4 Ampere Power Supply / item
A31: EN_US | B31: Power Supply Calculator | C31: Power Supplies | D31: Extensions | E31: Item number | F31: Products | G31: Quantity | H31: Ampere/item | I31: Total | J31: Ampere available | K31: Ampere needed | L31: Total | M31: LED | N31: Periphery | O31: 0,4 Ampere Power Supply / item
A32: FR | B32: Calcul d'Alimentation | C32: Alimentation | D32: Extensions | E32: Référence | F32: Produits | G32: Quantité | H32: Ampère/produit | I32: Total | J32: Ampère disponible | K32: Ampère nécessaire | L32: Total | M32: LED | N32: Periphérique | O32: 0,4 Ampère / produits
A33: ES | B33: Calculadora de fuentes de alimentación | C33: Fuentes de alimentación | D33: Extensiones | E33: Núm. de artículo | F33: Productos | G33: Unidades | H33: Amperios/Ud. | I33: Total | J33: Amperios disponibles | K33: Amperios necesarios | L33: Total | M33: LED | N33: Periferia | O33: 0,4 Amperios F. Alimentación/Ud.
A34: CZ | B34: Výpočet zdroje | C34: Zdroje | D34: Extensiony | E34: Číslo produktu | F34: Produkty | G34: Počet | H34: Ampér/jednotku | I34: Celkem | J34: Zbývající Ampéry | K34: Potřebné Ampéry | L34: Celkem | M34: LED | N34: Příslušenství | O34: 0,4 Ampérový zdroj / jednotka
A35: IT | B35: Calcolatore alimentatore | C35: Alimentatori | D35: Extensions | E35: numero articolo | F35: Prodotti | G35: Pezzi | H35: Ampere/pezzo | I35: Totale | J35: Ampere disponibile | K35: Ampere necessita | L35: Totale | M35: LED | N35: Periferia | O35: 0,4 Ampere alimentatore/pz
A36: CHE | B36: Netzteilrechner | C36: Netzteile | D36: Extensions | E36: Artikelnummer | F36: Produkte | G36: Stück | H36: Ampere/Stück | I36: Gesamt | J36: Ampere verfügbar | K36: Ampere benötigt | L36: Summe | M36: LED | N36: Peripherie | O36: 0,4 Ampere Netzteil/Stück
A37: SK | B37: Výpočet zdroje | C37: Zdroje | D37: Extensiony | E37: Číslo produktu | F37: Produkty | G37: Počet | H37: Ampér/jednotku | I37: Celkem | J37: Zbývající Ampéry | K37: Potřebné Ampéry | L37: Celkem | M37: LED | N37: Příslušenství | O37: 0,4 Ampérový zdroj / jednotka
A38: NL | B38: Voeding calculator | C38: Voeding | D38: Extentions | E38: Artikelnummer | F38: Producten | G38: Stuk | H38: Ampère/Stuk | I38: Totaal | J38: Ampère beschikbaar | K38: Ampère vereist | L38: Totaal | M38: LED | N38: Toebehoren | O38: 0,4 Ampère Voeding / stuk
A39: FI | B39: not translated yet | C39: not translated yet | D39: not translated yet | E39: not translated yet | F39: not translated yet | G39: not translated yet | H39: not translated yet | I39: not translated yet | J39: not translated yet | K39: not translated yet | L39: not translated yet | M39: not translated yet | N39: not translated yet | O39: not translated yet
A40: HU | B40: not translated yet | C40: not translated yet | D40: not translated yet | E40: not translated yet | F40: not translated yet | G40: not translated yet | H40: not translated yet | I40: not translated yet | J40: not translated yet | K40: not translated yet | L40: not translated yet | M40: not translated yet | N40: not translated yet | O40: not translated yet
A41: IE | B41: not translated yet | C41: not translated yet | D41: not translated yet | E41: not translated yet | F41: not translated yet | G41: not translated yet | H41: not translated yet | I41: not translated yet | J41: not translated yet | K41: not translated yet | L41: not translated yet | M41: not translated yet | N41: not translated yet | O41: not translated yet
A42: reservated
A43: reservated
A44: reservated
A45: reservated
A46: reservated
A52: Space
A53: DE | B53: Platzbedarfsrechner | C53: Artikelnummer | D53: Produkte | E53: Stück | F53: Platzbedarf | G53: Gesamt | H53: Platzbedarf gesamt | I53: Platzbedarf in mm | J53: Platzbedarf in Teilungseinheiten
A54: EN_UK | B54: Required Space Calculator | C54: Item Numer | D54: Products | E54: Quantity | F54: Required Space | G54: Total | H54: Total Space | I54: Required Space in mm | J54: Required Space in splitting units
A55: EN_US | B55: Required Space Calculator | C55: Item Numer | D55: Products | E55: Quantity | F55: Required Space | G55: Total | H55: Total Space | I55: Required Space in mm | J55: Required Space in splitting units
A56: FR | B56: Calcul Place Tableau | C56: Référence | D56: Produits | E56: Quantité | F56: Place nécessaire | G56: Total | H56: Place totale | I56: Place nécessaire en mm | J56: Place nécessaire en unité
A57: ES | B57: Dimensionamiento | C57: Nº de Arículo | D57: Productos | E57: Unidades | F57: Espacio requerido | G57: Total | H57: Espacio necesario | I57: Espacio necesario en mm | J57: Espacio necesario en unidades DIN
A58: CZ | B58: Výpočet požadovaného místa v rozvaděči | C58: Číslo produktu | D58: Produkty | E58: Počet | F58: Požadované místo | G58: Celkem | H58: Celkem místa | I58: Požadované místo v mm | J58: Počet modulů v rozvaděči
A59: IT | B59: Calcolatore spazio | C59: numero articolo | D59: Prodotti | E59: Pezzi | F59: Spazio richiesto | G59: Totale | H59: Spazio totale | I59: Spazio in mm | J59: Spazio in unità di divisione
A60: CHE | B60: not translated yet | C60: not translated yet | D60: not translated yet | E60: not translated yet | F60: not translated yet | G60: not translated yet | H60: not translated yet | I60: not translated yet | J60: not translated yet
A61: SK | B61: Výpočet požadovaného místa v rozvaděči | C61: Číslo produktu | D61: Produkty | E61: Počet | F61: Požadované místo | G61: Celkem | H61: Celkem místa | I61: Požadované místo v mm | J61: Počet modulů v rozvaděči
A62: NL | B62: Benodigde Ruimte Calculator | C62: Artikelnummer | D62: Producten | E62: Stuk | F62: Benodigde Ruimte | G62: Totaal | H62: Totale Ruimte | I62: Benodigde Ruimte in mm | J62: Benodigde Ruimte in Modules
A63: FI | B63: not translated yet | C63: not translated yet | D63: not translated yet | E63: not translated yet | F63: not translated yet | G63: not translated yet | H63: not translated yet | I63: not translated yet | J63: not translated yet
A64: HU | B64: not translated yet | C64: not translated yet | D64: not translated yet | E64: not translated yet | F64: not translated yet | G64: not translated yet | H64: not translated yet | I64: not translated yet | J64: not translated yet
A65: IE | B65: not translated yet | C65: not translated yet | D65: not translated yet | E65: not translated yet | F65: not translated yet | G65: not translated yet | H65: not translated yet | I65: not translated yet | J65: not translated yet
A66: reservated
A67: reservated
A68: reservated
A69: reservated
A70: reservated
A76: Products (general) | J76: set an ' otherwise excel thinks + is a function | AG76: currency/Währung | AI76: VAT in % | AK76: do a ' before the minus otherwise it coutns as a forumula
A77: DE | B77: Stückliste | C77: Stück | D77: Nr. | E77: Beschreibung | F77: Stück Netto | G77: Stück Brutto | H77: Gesamt | I77: Gesamtpreis exkl. Steuern | J77: + Steuern | K77: Gesamtpreis inkl. Steuern | L77: Verfügbar | M77: Benötigt | N77: Reserve | O77: Analoge Eingänge | P77: Digitale Eingänge | Q77: Analoge Ausgänge | R77: Digitale Ausgänge 5A | S77: 1-Wire Kanal | T77: Air Base Kanäle | U77: EnOcean | V77: Digitale Ausgänge 16A | W77: Dimmkanäle | X77: Platzbedarf im Verteiler | Y77: in mm | Z77: in Teilungseinheiten | AA77: Netzteilrechner in Ampere | AB77: Extension | AC77: LED | AD77: Peripherie | AE77: Verfügbar | AF77: Bedarf | AG77: € | AH77: Treekanäle | AI77: 20 | AJ77: DE | AK77: Rabatt | AL77: Rabattierter Betrag
A78: EN_UK | B78: Parts List | C78: Quantity | D78: No. | E78: Description | F78: Unit Net | G78: Unit Gross | H78: Total | I78: Total excl. VAT | J78: + VAT | K78: Total incl. VAT | L78: Available | M78: Required | N78: Spare | O78: Analogue Inputs | P78: Digital Inputs | Q78: Analogue Outputs | R78: Digital Outputs 5A | S78: 1-Wire Channel | T78: Air Base Channels | U78: EnOcean | V78: Digital Outputs 16A | W78: Dimmer Channels | X78: Space Requirement Cabinett | Y78: in mm | Z78: in breaker units | AA78: Power Supply Calc. In Amps | AB78: Extension | AC78: LED | AD78: Peripherals | AE78: Available | AF78: Requried | AG78: £ | AH78: Tree Channels | AI78: 20 | AJ78: EN_UK | AK78: Discount | AL78: Discounted Price
A79: EN_US | B79: Parts List | C79: Quantity | D79: Nr. | E79: Description | F79: Unit Net | G79: Unit Gross | H79: Total | I79: Total without taxes | J79: + Taxes | K79: Total with taxes | L79: Available | M79: Needed | N79: Left | O79: Analog Inputs | P79: Digital Inputs | Q79: Analog Outputs | R79: Digital Outputs 5A | S79: 1-Wire Channel | T79: Air Base Channels | U79: Not available in this country | V79: Digital Outputs 16A | W79: Dimmer Channels | X79: Space Requirement Cabinett | Y79: in mm | Z79: in splitting units | AA79: Powersupply Calc. In Ampere | AB79: Extension | AC79: LED | AD79: Periphery | AE79: Available | AF79: Needed | AG79: $ | AH79: Tree Channels | AJ79: EN_US | AK79: Discount | AL79: Discounted Price
A80: FR | B80: Liste de produits | C80: Quantité | D80: N° | E80: Description | F80: Pièce Net | G80: Pièce Brut | H80: Total | I80: Total HT | J80: +TVA | K80: Total TTC | L80: Disponible | M80: Nécessaire | N80: Restant | O80: Entrées analogiques | P80: Entrées numériques | Q80: Sorties analogiques | R80: Sorties numériques 5A | S80: canal 1-wire | T80: canal Air Base | U80: EnOcean | V80: Sorties numériques 16A | W80: Canal Dimmer | X80: Espace nécessaire Tableau | Y80: en mm | Z80: en unité U | AA80: Calc Alimentation en Ampère | AB80: Extension | AC80: LED | AD80: Périphérique | AE80: Disponible | AF80: Nécessaire | AG80: € | AH80: Tree Channels | AI80: 20 | AJ80: FR | AK80: Discount | AL80: Discounted Price
A81: ES | B81: Lista de productos | C81: Unidades | D81: Nº | E81: Descripción | F81: Precio sin IVA | G81: Precio con IVA | H81: Total | I81: Precio total IVA no incluido | J81: + IVA | K81: Precio total IVA incluido | L81: Disponible | M81: Necesario | N81: Reserva | O81: Entradas analógicas | P81: Entradas digitales | Q81: Salidas analógicas | R81: Salidas digitales 5A | S81: Canales 1-Wire | T81: Canales Air Base | U81: EnoCean | V81: Salidas digitales 16A | W81: Canales dimmer | X81: Espacio necesario en armario | Y81: en mm | Z81: En unidades de carril DIN | AA81: Calculadora de Fuentes de Alimentación (A) | AB81: Extensión | AC81: LED | AD81: Periferia | AE81: Disponible | AF81: Necesario | AG81: € | AH81: Canales Tree | AI81: 21 | AJ81: ES | AK81: Discount | AL81: Discounted Price
A82: CZ | B82: Seznam produktů | C82: Počet | D82: č. | E82: Popis | F82: Cena za kus bez DPH | G82: Cena za kus s DPH | H82: Celkem | I82: Celkem bez DPH | J82: + DPH | K82: Celkem s DPH | L82: Dostupné | M82: Potřebné | N82: Zbývající | O82: Analogové vstupy | P82: Digitální vstupy | Q82: Analogové výstupy | R82: Digitální výstupy 5A | S82: 1-Wire zařízení | T82: Air Base zařízení | U82: EnOcean | V82: Digitální výstupy 16A | W82: Kanály Dimmeru | X82: Požadované místo v rozvaděči | Y82: v mm | Z82: počet modulů | AA82: Výpočet zdroje v Ampérech | AB82: Extension | AC82: LED | AD82: Příslušenství | AE82: Dostupné | AF82: Potřebné | AG82: Kč | AH82: Tree Channels | AI82: 21 | AJ82: CZ | AK82: Discount | AL82: Discounted Price
A83: IT | B83: Distinta | C83: Pezzi | D83: Nr. | E83: Descrizione | F83: Pezzo senza IVA | G83: Pezzo con IVA | H83: Totale | I83: Prezzo totale senza IVA | J83: + IVA | K83: Prezzo totale con IVA | L83: Disponibile | M83: Necessita | N83: Riserva | O83: Ingressi analogici | P83: Ingressi digitali | Q83: Uscite analogiche | R83: Uscite digitali 5A | S83: Canale 1-Wire | T83: Canali Air Base | U83: EnOcean | V83: Uscite digitali 16A | W83: Canali dimmerabili | X83: Spazio nel distributore | Y83: in mm | Z83: in unità di divisione | AA83: Calcolatore alimentatore in Ampere | AB83: Extension | AC83: LED | AD83: Periferia | AE83: Disponibile | AF83: Necessita | AG83: € | AH83: Canali Tree | AI83: 22 | AJ83: IT | AK83: Sconto | AL83: Importo senza sconto
A84: CHE | B84: not translated yet | C84: not translated yet | D84: not translated yet | E84: not translated yet | F84: not translated yet | G84: not translated yet | H84: not translated yet | I84: not translated yet | J84: + not translated yet | K84: not translated yet | L84: not translated yet | M84: not translated yet | N84: not translated yet | O84: not translated yet | P84: not translated yet | Q84: not translated yet | R84: not translated yet | S84: not translated yet | T84: not translated yet | U84: not translated yet | V84: not translated yet | W84: not translated yet | X84: not translated yet | Y84: not translated yet | Z84: not translated yet | AA84: not translated yet | AB84: not translated yet | AC84: not translated yet | AD84: not translated yet | AE84: not translated yet | AF84: not translated yet | AG84: CHF | AH84: Tree Channels | AI84: 8 | AJ84: CHE | AK84: Discount | AL84: Discounted Price
A85: SK | B85: Seznam produktů | C85: Počet | D85: č. | E85: Popis | F85: Cena za kus bez DPH | G85: Cena za kus s DPH | H85: Celkem | I85: Celkem bez DPH | J85: + DPH | K85: Celkem s DPH | L85: Dostupné | M85: Potřebné | N85: Zbývající | O85: Analogové vstupy | P85: Digitální vstupy | Q85: Analogové výstupy | R85: Digitální výstupy 5A | S85: 1-Wire zařízení | T85: Air Base zařízení | U85: EnOcean | V85: Digitální výstupy 16A | W85: Kanály Dimmeru | X85: Požadované místo v rozvaděči | Y85: v mm | Z85: počet modulů | AA85: Výpočet zdroje v Ampérech | AB85: Extension | AC85: LED | AD85: Příslušenství | AE85: Dostupné | AF85: Potřebné | AG85: € | AH85: Tree Channels | AI85: 20 | AJ85: SK | AK85: Discount | AL85: Discounted Price
A86: NL | B86: Onderdelenlijst | C86: Aantal | D86: Nr. | E86: Omschrijving | F86: Stuk Netto | G86: Stuk Brutto | H86: Totaal | I86: to translate | J86: + BTW | K86: Totaal met BTW | L86: Beschikbaar | M86: Benodigd | N86: Reserve | O86: Analoge Ingang | P86: Digitale Ingang | Q86: Analoge Uitgang | R86: Digitale Uitgang 5A | S86: 1-Wire Kanaal | T86: Air Base Kanaal | U86: EnoCean | V86: Digitale Uitgang 16A | W86: Dimmer Kanalen | X86: Benodigde Ruimte in Verdeelbord | Y86: in mm | Z86: In Modules | AA86: Voeding Calculator in Ampère | AB86: Extension | AC86: LED | AD86: Toebehoren | AE86: Beschikbaar | AF86: Benodigd | AG86: € | AH86: Tree Channels | AI86: 21 | AJ86: NL | AK86: Discount | AL86: Discounted Price
A87: FI | B87: not translated yet | C87: not translated yet | D87: not translated yet | E87: not translated yet | F87: not translated yet | G87: not translated yet | H87: not translated yet | I87: not translated yet | J87: not translated yet | K87: not translated yet | L87: not translated yet | M87: not translated yet | N87: not translated yet | O87: not translated yet | P87: not translated yet | Q87: not translated yet | R87: not translated yet | S87: not translated yet | T87: not translated yet | U87: not translated yet | V87: not translated yet | W87: not translated yet | X87: not translated yet | Y87: not translated yet | Z87: not translated yet | AA87: not translated yet | AB87: not translated yet | AC87: not translated yet | AD87: not translated yet | AE87: not translated yet | AF87: not translated yet | AG87: not translated yet | AH87: Tree Channels | AI87: 24 | AJ87: FI | AK87: Discount | AL87: Discounted Price
A88: HU | B88: not translated yet | C88: not translated yet | D88: not translated yet | E88: not translated yet | F88: not translated yet | G88: not translated yet | H88: not translated yet | I88: not translated yet | J88: not translated yet | K88: not translated yet | L88: not translated yet | M88: not translated yet | N88: not translated yet | O88: not translated yet | P88: not translated yet | Q88: not translated yet | R88: not translated yet | S88: not translated yet | T88: not translated yet | U88: not translated yet | V88: not translated yet | W88: not translated yet | X88: not translated yet | Y88: not translated yet | Z88: not translated yet | AA88: not translated yet | AB88: not translated yet | AC88: not translated yet | AD88: not translated yet | AE88: not translated yet | AF88: not translated yet | AG88: not translated yet | AH88: Tree Channels | AI88: 27 | AJ88: HU | AK88: Discount | AL88: Discounted Price
A89: IE | B89: not translated yet | C89: not translated yet | D89: not translated yet | E89: not translated yet | F89: not translated yet | G89: not translated yet | H89: not translated yet | I89: not translated yet | J89: not translated yet | K89: not translated yet | L89: not translated yet | M89: not translated yet | N89: not translated yet | O89: not translated yet | P89: not translated yet | Q89: not translated yet | R89: not translated yet | S89: not translated yet | T89: not translated yet | U89: not translated yet | V89: not translated yet | W89: not translated yet | X89: not translated yet | Y89: not translated yet | Z89: not translated yet | AA89: not translated yet | AB89: not translated yet | AC89: not translated yet | AD89: not translated yet | AE89: not translated yet | AF89: not translated yet | AG89: not translated yet | AH89: Tree Channels | AI89: 23 | AJ89: IE | AK89: Discount | AL89: Discounted Price
A90: reservated | J90: to translate | K90: to translate | L90: to translate | M90: to translate | N90: to translate | O90: to translate | P90: to translate | Q90: to translate | R90: to translate | S90: to translate | T90: to translate | U90: to translate | V90: to translate | W90: to translate | X90: to translate | Y90: to translate | Z90: to translate | AA90: to translate | AB90: to translate | AC90: to translate | AD90: to translate | AE90: to translate | AF90: to translate | AG90: to change | AH90: Tree Channels
A91: reservated | J91: to translate | K91: to translate | L91: to translate | M91: to translate | N91: to translate | O91: to translate | P91: to translate | Q91: to translate | R91: to translate | S91: to translate | T91: to translate | U91: to translate | V91: to translate | W91: to translate | X91: to translate | Y91: to translate | Z91: to translate | AA91: to translate | AB91: to translate | AC91: to translate | AD91: to translate | AE91: to translate | AF91: to translate | AG91: to change | AH91: Tree Channels
A92: reservated | J92: to translate | K92: to translate | L92: to translate | M92: to translate | N92: to translate | O92: to translate | P92: to translate | Q92: to translate | R92: to translate | S92: to translate | T92: to translate | U92: to translate | V92: to translate | W92: to translate | X92: to translate | Y92: to translate | Z92: to translate | AA92: to translate | AB92: to translate | AC92: to translate | AD92: to translate | AE92: to translate | AF92: to translate | AG92: to change | AH92: Tree Channels
A93: reservated | J93: to translate | K93: to translate | L93: to translate | M93: to translate | N93: to translate | O93: to translate | P93: to translate | Q93: to translate | R93: to translate | S93: to translate | T93: to translate | U93: to translate | V93: to translate | W93: to translate | X93: to translate | Y93: to translate | Z93: to translate | AA93: to translate | AB93: to translate | AC93: to translate | AD93: to translate | AE93: to translate | AF93: to translate | AG93: to change | AH93: Tree Channels
A94: reservated | J94: to translate | K94: to translate | L94: to translate | M94: to translate | N94: to translate | O94: to translate | P94: to translate | Q94: to translate | R94: to translate | S94: to translate | T94: to translate | U94: to translate | V94: to translate | W94: to translate | X94: to translate | Y94: to translate | Z94: to translate | AA94: to translate | AB94: to translate | AC94: to translate | AD94: to translate | AE94: to translate | AF94: to translate | AG94: to change | AH94: Tree Channels
A100: Drop down (hidden pages) | P100: Just for inputs, not the real hardware
A101: DE | B101: Dimmer Extension [Kanalauswahl] | C101: Analog 1-10V | D101: Lichtkreis schaltbar 5A/Verbraucher 5A | E101: Lichtkreis dimmbar 230V | F101: Lichtkreis Dimmbar 0-10V EVG | G101: DMX Dimmkanal 50W | H101: Air Dimmkanal 50W | I101: 1-Wire Temperaturfühler | J101: Windsensor 24V (ben. Extension mit DI) | K101: Fensterkontakt (im Fenster integriert; DI) | L101: Verbraucher 5A | M101: Verbraucher 5-16A | N101: Beschattung (Rollo, Raffstore,...) | P101: Taster 1fach Digital | Q101: Taster 2fach Digital | R101: Taster 4fach Digital | S101: Taster 5fach Digital | T101: Musikserver Zonenauswahl | U101: Trennwand P-Reihe (10 Stk.) | V101: Bezeichnungsträger P-Reihe (20 Stk.) | W101: Abschlussplatte P-Reihe (10 Stk.) | X101: Jalousie Anschlussklemme PMAK4 (50 Stk.) | Y101: Abschlussplatte PMAK4 (20 Stk.) | Z101: Installations- Reihenklemme PDL (50 Stk.) | AA101: Endwinkel ZEW 35 (20 Stk.) | AB101: Abschlussplatte PDL (20 Stk.) | AC101: Sicherungs-Reihenklemme (25 Stk.) | AD101: Abschlussplatte Sicherungskl. (50 Stk.) | AE101: Querverbinder 24 Polig (10 Stk.) | AF101: Sicherung 2A (100 Stk.) | AG101: Sicherung 5A (100 Stk.) | AH101: Sicherung 10A (100 Stk.) | AI101: Loxone CAT7 Kabel (250m) | AK101: Dali Kanal | AL101: Dali Kanäle | AM101: Verbraucher 16A
A102: EN_UK | B102: Dimmer Channel (230V) | C102: Analogue 1-10V | D102: Light Circut (switched ) | E102: Light Circuit (dimmed 230V) | F102: Light Circuit (dimmed 0-10V) | G102: Light Circuit (24V 50W DMX) | H102: Light Circuit (24V 50W Air) | I102: 1-Wire Temperature Sensor | J102: Windsensor 24V | K102: Window Contact (integrated - only reserve DI) | L102: Other Load (5A) | M102: Other Load (5-16A) | N102: Shading (Blinds, Curtains, …) | O102: to translate | P102: Retractive Switch 1 Button (reserve 1 DI) | Q102: Retractive Switch 2 Buttons (reserve 2 DI) | R102: Retractive Switch 4 Buttons (reserve 4 DI) | S102: Retractive Switch 5 Buttons (reserve 5 DI) | T102: Music Server Zone | U102: Partition for 8x4 Terminals (10pcs) | V102: Label Holder 8 Levels (20 pcs) | W102: End Plate for 8x4 Terminals (10 pcs) | X102: Push In Terminal Block 3+Earth (50 pcs) | Y102: End Plate for 3+Earth Terminals (20 pcs) | Z102: Push In Terminal Block Twin+Earth (50 pcs) | AA102: End Bracket (20 pcs) | AB102: End Plate for Twin+Earth Terminals (20 pcs) | AC102: Push in Fused Terminal Block (25 pcs) | AD102: End Plate For Fused Terminals (50 pcs) | AE102: Cross Connector For Fused Terminals (10 pcs) | AF102: Blade Fuse 2A (100 pcs) | AG102: Blade Fuse 5A (100 pcs) | AH102: Blade Fuse 10A (100 pcs) | AI102: Loxone CAT7 Cable (250m) | AJ102: to translate | AK102: Dali Channel | AL102: Dali Channels | AM102: Circut (switched ) 16A
A103: EN_US | B103: Dimmer Channel (110V) | C103: Analogue 1-10V | D103: Light Circut (switched ) | E103: Light Circuit (dimmed 110V) | F103: Light Circuit (dimmed 0-10V) | G103: Light Circuit (24V 50W DMX) | H103: Light Circuit (24V 50W Air) | I103: 1-Wire Temperature Sensor | J103: Windsensor 24V | K103: Window Contact (integrated - only reserve DI) | L103: Other Load (5A) | M103: Other Load (5-16A) | N103: Shading (Blinds, Curtains, …) | O103: to translate | P103: Retractive Wattstoper 1 Push button (reserve 1 DI) | Q103: Retractive Wattstoper 2 Push buttons (reserve 2 DI) | R103: Retractive Wattstoper 4 Push buttons (reserve 4 DI) | S103: Retractive Wattstoper 5 Push buttons (reserve 5 DI) | T103: Music Server Zone | U103: Partition for 8x4 Terminals (10pcs) | V103: Label Holder 8 Levels (20 pcs) | W103: End Plate for 8x4 Terminals (10 pcs) | X103: Push In Terminal Block 3+Earth (50 pcs) | Y103: End Plate for 3+Earth Terminals (20 pcs) | Z103: Push In Terminal Block Twin+Earth (50 pcs) | AA103: End Bracket (20 pcs) | AB103: End Plate for Twin+Earth Terminals (20 pcs) | AC103: Push in Fused Terminal Block (25 pcs) | AD103: End Plate For Fused Terminals (50 pcs) | AE103: Cross Connector For Fused Terminals (10 pcs) | AF103: Blade Fuse 2A (100 pcs) | AG103: Blade Fuse 5A (100 pcs) | AH103: Blade Fuse 10A (100 pcs) | AI103: Loxone CAT7 Cable (250m) | AJ103: to translate | AK103: Dali Channel | AL103: Dali Channels | AM103: Circut (switched ) 16A
A104: FR | B104: Canal dimmer (230V) | C104: 1-10V | D104: Eclairage simple | E104: Eclairage variation 230V | F104: Eclairage 1-10V | G104: Eclairage variation 24V DMX | H104: Eclairage variation 24V Air | I104: Sonde de temp 1-wire | J104: Anémometre 24V | K104: Contact d'ouverture intégré | L104: Sortie numérique 5A | M104: Sortie numérique 5-16A | N104: Ouvrants (VR, stores ..) | O104: not translated yet | P104: BP 1 touche | Q104: BP 2 touches | R104: BP 4 touches | S104: BP 5 touches | T104: Zone Music Server | V104: Porte étiquette (8 niveaux) | W104: Plaque de fin pour bornier 8x4 (10pcs) | X104: Bornier 3 + terre PMAK4 (50 pcs) | Y104: Plaque de fin pour bornier 3 + terre PMAK4 (20 pcs) | Z104: Bornier 2 + Terre PDL (50 pcs) | AA104: Délimitateur de rail Din (20 pcs) | AB104: Plaque de fin pour bornier 2 + terre PDL (20 pcs) | AC104: Bloc de terminal de fusible à connexion rapide (25 pcs) | AD104: Plaque de fin pour terminal de fusible (50 pcs) | AE104: Connecteur en croix pour terminal de fusible (10 pcs) | AF104: Fusible 2A (100 pcs) | AG104: Fusible 5A (100 pcs) | AH104: Fusible 10A (100 pcs) | AI104: Cat 7 250m | AJ104: not translated yet | AK104: Dali Channel | AL104: Dali Channels | AM104: Eclairage simple 16A
A105: ES | B105: Dimmer Extension [Canales] | C105: Analógico 1-10V | D105: Luminario ON/OFF 5A | E105: Luminaria dimmer 230V | F105: Luminaria dimmer 0-10V EVG | G105: Canal dimmer DMX 50W | H105: Canal dimmer Air 50W | I105: Sensor de temperatura 1-Wire | J105: Anemómetro 24V (necesaria entrada digital de Extension) | K105: Contacto de ventana (integrado en ventana) | L105: Consumidor 5A | M105: Consumidor 5-16A | N105: Sombreado (persiana, store,…) | P105: Pulsador digital 1 fase | Q105: Pulsador digital 2 fases | R105: Pulsador digital 4 fases | S105: Pulsador digital 5 fases | T105: Music Server (seleccionar zonas) | U105: Separador para bornes de Weidmüller (10Ud.) | V105: Soporte de señalización para bornes (8 pisos) de Weidmüller (20Ud.) | W105: Tapa final para borne 8x4 de Weidmüller (10Ud.) | X105: Borne de 3 + tierra de Weidmüller | Y105: Tapa final para borne de 3 + tierra de Weidmüller (20Ud.) | Z105: Borne de 2 + tierra de Weidmüller (50Ud.) | AA105: Ángulo de fijación lateral de Weidmüller (20Ud.) | AB105: Tapa final para borne de 2 + tierra de Weidmüller (20Ud.) | AC105: Borne portafusibles de Weidmüller (25Ud.) | AD105: Tapa final para borne portafusibles de Weidmüller (50Ud.) | AE105: Conector transversal para borne portafusibles de Weidmüller (10Ud.) | AF105: Fusible 2A (100 unidades) | AG105: Fusible 5A (100 unidades) | AH105: Fusible 10A (100 unidades) | AI105: Cable CAT7 de Loxone | AJ105: to translate | AK105: Canal Dali | AL105: Canales Dali | AM105: Luminario ON/OFF 16A
A106: CZ | B106: Dimmer Extension (Výběr kanálu) | C106: Analog 1-10V | D106: Světelný okruh 5A | E106: Stmívatelný okruh 230V | F106: Stmívatelný okruh 0-10V s elektronickým předřadníkem | G106: DMX Dimmer 50W na kanál | H106: Air Dimmer kanál 50W | I106: 1-Wire teplotní senzor | J106: Senzor rychlosti větru 24V (s digitálním vstupem na Extensionu) | K106: Okenní kontakt (integrovaný v okně pouze DI) | L106: Spotřebič do 5A | M106: Spotřebič 5-16A | N106: Stínění | O106: to translate | P106: 1 Tlačítko | Q106: 2 Tlačítko | R106: 4 Tlačítko | S106: 5 Tlačítko | T106: Zóna Music Serveru | U106: Předělovací deska PRV8 (10 ks) | V106: Držák na značky pro PPV8/PRV8 (20ks) | W106: Bočnice pro PPV8/PRV8 (10 ks) | X106: Svorka na připojení motoru PMAK4 (50 ks) | Y106: Bočnice pro PMAK4 (20 ks) | Z106: Svorkovnice PDL (50ks) | AA106: Koncová podpěra svorkovnice ZEW (20 ks) | AB106: Bočnice pro PDL (20 ks) | AC106: Pojistková svorkovnice (25 ks) | AD106: Bočnice pojistkové svorkovnice (50 ks) | AE106: 24 pólová propojka WEIDMÜLLER (10ks) | AF106: Pojistka 2A | AG106: Pojistka 5A (100ks) | AH106: Pojistka 10A (100ks) | AI106: Loxone CAT7 kabel (250m) | AJ106: to translate | AK106: Dali Channel | AL106: Dali Channels | AM106: Světelný okruh 16A
A107: IT | B107: Dimmer Extension [scelta canale] | C107: Analogico 1-10V | D107: Luce commutabile 5A | E107: Luce dimmerabile 230V | F107: Luce dimmerabile 0-10V | G107: DMX canale dimmerabile 50W | H107: Air canale dimmerabile 50W | I107: Sensore temperatura 1-Wire | J107: Sensore del vento 24V (rich. Extension con DI) | K107: Contatto finestra (integrato nella finestra; DI) | L107: Consumatore 5A | M107: Consumatore 5-16A | N107: Ombreggiatura (tapparelle, veneziane,...) | O107: to translate | P107: Pulsante digitale 1x | Q107: Pulsante digitale 2x | R107: Pulsante digitale 4x | S107: Pulsante digitale 5x | T107: Music Server scelta canale | U107: Piastra di separazione P-serie (10pz.) | V107: Supporto per siglatura P-serie (20pz.) | W107: Piastra terminale P-serie (10pz.) | X107: Morsetto componibile colleg. motore PMAK4 (50pz.) | Y107: Piastra terminale PMAK4 (20pz.) | Z107: Morsetto per installazione ai piani PDL (50pz.) | AA107: Terminale di fissaggio ZEW 35 (20pz.) | AB107: Piastra terminale PDL (20pz.) | AC107: Morsetto componibile portafusibile (25pz.) | AD107: Piastra terminale portafusibile (50pz.) | AE107: Collegamento trasversale 24 poli (10pz.) | AF107: Fusibile 2A (100 pz.) | AG107: Fusibile 5A (100 pz.) | AH107: Fusibile 10A (100 pz.) | AI107: Loxone cavo CAT7 (250m) | AJ107: to translate | AK107: Dali Channel | AL107: Dali Channels | AM107: Luce commutabile 16A
A108: CHE | B108: not translated yet | C108: not translated yet | D108: not translated yet | E108: not translated yet | F108: not translated yet | G108: not translated yet | H108: not translated yet | I108: not translated yet | J108: not translated yet | K108: not translated yet | L108: not translated yet | M108: not translated yet | N108: not translated yet | O108: not translated yet | P108: not translated yet | Q108: not translated yet | R108: not translated yet | S108: not translated yet | T108: not translated yet | U108: not translated yet | V108: not translated yet | W108: not translated yet | X108: not translated yet | Y108: not translated yet | Z108: not translated yet | AA108: not translated yet | AB108: not translated yet | AC108: not translated yet | AD108: not translated yet | AE108: not translated yet | AF108: not translated yet | AG108: not translated yet | AH108: not translated yet | AI108: not translated yet | AJ108: not translated yet | AK108: Dali Channel | AL108: Dali Channels | AM108: not translated yet
A109: SK | B109: Dimmer Extension (Výběr kanálu) | C109: Analog 1-10V | D109: Světelný okruh 5A | E109: Stmívatelný okruh 230V | F109: Stmívatelný okruh 0-10V s elektronickým předřadníkem | G109: DMX Dimmer 50W na kanál | H109: Air Dimmer kanál 50W | I109: 1-Wire teplotní senzor | J109: Senzor rychlosti větru 24V (s digitálním vstupem na Extensionu) | K109: Okenní kontakt (integrovaný v okně pouze DI) | L109: Spotřebič do 5A | M109: Spotřebič 5-16A | N109: Stínění | O109: to translate | P109: 1 Tlačítko | Q109: 2 Tlačítko | R109: 4 Tlačítko | S109: 5 Tlačítko | T109: Zóna Music Serveru | U109: Předělovací deska PRV8 (10 ks) | V109: Držák na značky pro PPV8/PRV8 (20ks) | W109: Bočnice pro PPV8/PRV8 (10 ks) | X109: Svorka na připojení motoru PMAK4 (50 ks) | Y109: Bočnice pro PMAK4 (20 ks) | Z109: Svorkovnice PDL (50ks) | AA109: Koncová podpěra svorkovnice ZEW (20 ks) | AB109: Bočnice pro PDL (20 ks) | AC109: Pojistková svorkovnice (25 ks) | AD109: Bočnice pojistkové svorkovnice (50 ks) | AE109: 24 pólová propojka WEIDMÜLLER (10ks) | AF109: Pojistka 2A | AG109: Pojistka 5A (100ks) | AH109: Pojistka 10A (100ks) | AI109: Loxone CAT7 kabel (250m) | AJ109: to translate | AK109: Dali Channel | AL109: Dali Channels | AM109: Světelný okruh 16A
A110: NL | B110: Dimmer Extension [Kanaal keuze] | C110: Analoog 1-10V | D110: Lichtkring schakelbaar 5A | E110: Lichtking dimmbaar 230V | F110: Lichtkring dimmbaar 0-10V EVG | G110: DMX Dimkanaal 50W | H110: Air Dimkanaal 50W | I110: 1-Wire Temperatuurvoeler | J110: Windsensor 24V (voor Extension met DI) | K110: Raamcontact (in raam geïntegreerd; DI) | L110: Verbruiker 5A | M110: Verbruiker 5-16A | N110: Beschaduwing (rolluik, lammellen,...) | P110: 1-voudige digitale drukknop | Q110: 2-voudige digitale drukknop | R110: 4-voudige digitale drukknop | S110: 5-voudige digitale drukknop | T110: Muziek server zoneselectie | U110: Scheidingswand P-serie (10 st.) | V110: Markering houder P-serie (20 st.) | W110: Afsluitplaat P-serie (10 st.) | X110: Jaloezie afsluitplaat PMAK4 (50 st.) | Y110: Afsluitplaat PMAK4 (20 st.) | Z110: Installatie klem PDL (50 st.) | AA110: Eindklem ZEW 35 (20 st.) | AB110: Afsluitplaat PDL (20 st.) | AC110: Zekering klem (25 st.) | AD110: Afsluitplaat zekering klem (50 st.) | AE110: Kambrug voor klemmen 24 Polig (10 st.) | AF110: Zekering 2A (100 st.) | AG110: Zekering 5A (100 st.) | AH110: Zekering 10A (100 st.) | AI110: Loxone CAT7 Kabel (250m) | AK110: Dali Channel | AL110: Dali Channels | AM110: Lichtkring schakelbaar 16A
A111: FI | B111: not translated yet | C111: not translated yet | D111: not translated yet | E111: not translated yet | F111: not translated yet | G111: not translated yet | H111: not translated yet | I111: not translated yet | J111: not translated yet | K111: not translated yet | L111: not translated yet | M111: not translated yet | N111: not translated yet | O111: not translated yet | P111: not translated yet | Q111: not translated yet | R111: not translated yet | S111: not translated yet | T111: not translated yet | U111: not translated yet | V111: not translated yet | W111: not translated yet | X111: not translated yet | Y111: not translated yet | Z111: not translated yet | AA111: not translated yet | AB111: not translated yet | AC111: not translated yet | AD111: not translated yet | AE111: not translated yet | AF111: not translated yet | AG111: not translated yet | AH111: not translated yet | AI111: not translated yet | AJ111: not translated yet | AK111: Dali Channel | AL111: Dali Channels | AM111: not translated yet
A112: HU | B112: not translated yet | C112: not translated yet | D112: not translated yet | E112: not translated yet | F112: not translated yet | G112: not translated yet | H112: not translated yet | I112: not translated yet | J112: not translated yet | K112: not translated yet | L112: not translated yet | M112: not translated yet | N112: not translated yet | O112: not translated yet | P112: not translated yet | Q112: not translated yet | R112: not translated yet | S112: not translated yet | T112: not translated yet | U112: not translated yet | V112: not translated yet | W112: not translated yet | X112: not translated yet | Y112: not translated yet | Z112: not translated yet | AA112: not translated yet | AB112: not translated yet | AC112: not translated yet | AD112: not translated yet | AE112: not translated yet | AF112: not translated yet | AG112: not translated yet | AH112: not translated yet | AI112: not translated yet | AJ112: not translated yet | AK112: Dali Channel | AL112: Dali Channels | AM112: not translated yet
A113: IE | B113: not translated yet | C113: not translated yet | D113: not translated yet | E113: not translated yet | F113: not translated yet | G113: not translated yet | H113: not translated yet | I113: not translated yet | J113: not translated yet | K113: not translated yet | L113: not translated yet | M113: not translated yet | N113: not translated yet | O113: not translated yet | P113: not translated yet | Q113: not translated yet | R113: not translated yet | S113: not translated yet | T113: not translated yet | U113: not translated yet | V113: not translated yet | W113: not translated yet | X113: not translated yet | Y113: not translated yet | Z113: not translated yet | AA113: not translated yet | AB113: not translated yet | AC113: not translated yet | AD113: not translated yet | AE113: not translated yet | AF113: not translated yet | AG113: not translated yet | AH113: not translated yet | AI113: not translated yet | AJ113: not translated yet | AK113: Dali Channel | AL113: Dali Channels | AM113: not translated yet
A114: reservated | B114: not translated yet | C114: not translated yet | D114: not translated yet | E114: not translated yet | F114: not translated yet | G114: not translated yet | H114: not translated yet | I114: not translated yet | J114: not translated yet | K114: not translated yet | L114: not translated yet | M114: not translated yet | N114: not translated yet | O114: not translated yet | P114: not translated yet | Q114: not translated yet | R114: not translated yet | S114: not translated yet | T114: not translated yet | U114: not translated yet | V114: not translated yet | W114: not translated yet | X114: not translated yet | Y114: not translated yet | Z114: not translated yet | AA114: not translated yet | AB114: not translated yet | AC114: not translated yet | AD114: not translated yet | AE114: not translated yet | AF114: not translated yet | AG114: not translated yet | AH114: not translated yet | AI114: not translated yet | AJ114: not translated yet | AK114: Dali Channel | AL114: Dali Channels | AM114: not translated yet
A115: reservated | B115: not translated yet | C115: not translated yet | D115: not translated yet | E115: not translated yet | F115: not translated yet | G115: not translated yet | H115: not translated yet | I115: not translated yet | J115: not translated yet | K115: not translated yet | L115: not translated yet | M115: not translated yet | N115: not translated yet | O115: not translated yet | P115: not translated yet | Q115: not translated yet | R115: not translated yet | S115: not translated yet | T115: not translated yet | U115: not translated yet | V115: not translated yet | W115: not translated yet | X115: not translated yet | Y115: not translated yet | Z115: not translated yet | AA115: not translated yet | AB115: not translated yet | AC115: not translated yet | AD115: not translated yet | AE115: not translated yet | AF115: not translated yet | AG115: not translated yet | AH115: not translated yet | AI115: not translated yet | AJ115: not translated yet | AK115: Dali Channel | AL115: Dali Channels | AM115: not translated yet
A116: reservated | B116: not translated yet | C116: not translated yet | D116: not translated yet | E116: not translated yet | F116: not translated yet | G116: not translated yet | H116: not translated yet | I116: not translated yet | J116: not translated yet | K116: not translated yet | L116: not translated yet | M116: not translated yet | N116: not translated yet | O116: not translated yet | P116: not translated yet | Q116: not translated yet | R116: not translated yet | S116: not translated yet | T116: not translated yet | U116: not translated yet | V116: not translated yet | W116: not translated yet | X116: not translated yet | Y116: not translated yet | Z116: not translated yet | AA116: not translated yet | AB116: not translated yet | AC116: not translated yet | AD116: not translated yet | AE116: not translated yet | AF116: not translated yet | AG116: not translated yet | AH116: not translated yet | AI116: not translated yet | AJ116: not translated yet | AK116: Dali Channel | AL116: Dali Channels | AM116: not translated yet
A117: reservated | B117: not translated yet | C117: not translated yet | D117: not translated yet | E117: not translated yet | F117: not translated yet | G117: not translated yet | H117: not translated yet | I117: not translated yet | J117: not translated yet | K117: not translated yet | L117: not translated yet | M117: not translated yet | N117: not translated yet | O117: not translated yet | P117: not translated yet | Q117: not translated yet | R117: not translated yet | S117: not translated yet | T117: not translated yet | U117: not translated yet | V117: not translated yet | W117: not translated yet | X117: not translated yet | Y117: not translated yet | Z117: not translated yet | AA117: not translated yet | AB117: not translated yet | AC117: not translated yet | AD117: not translated yet | AE117: not translated yet | AF117: not translated yet | AG117: not translated yet | AH117: not translated yet | AI117: not translated yet | AJ117: not translated yet | AK117: Dali Channel | AL117: Dali Channels | AM117: not translated yet
A118: reservated | B118: not translated yet | C118: not translated yet | D118: not translated yet | E118: not translated yet | F118: not translated yet | G118: not translated yet | H118: not translated yet | I118: not translated yet | J118: not translated yet | K118: not translated yet | L118: not translated yet | M118: not translated yet | N118: not translated yet | O118: not translated yet | P118: not translated yet | Q118: not translated yet | R118: not translated yet | S118: not translated yet | T118: not translated yet | U118: not translated yet | V118: not translated yet | W118: not translated yet | X118: not translated yet | Y118: not translated yet | Z118: not translated yet | AA118: not translated yet | AB118: not translated yet | AC118: not translated yet | AD118: not translated yet | AE118: not translated yet | AF118: not translated yet | AG118: not translated yet | AH118: not translated yet | AI118: not translated yet | AJ118: not translated yet | AK118: Dali Channel | AL118: Dali Channels | AM118: not translated yet
A124: Message Box
A125: DE | B125: Bitte entsprechende/n Verstärker manuell hinzufügen! | C125: Bitte Dimmer (RGBW DMX/AIR) manuel hinzufügen je nach Lichtkreisen!
A126: EN_UK | B126: Please add an amplifier manually! | C126: Please add dimmer (dmx/air) manually due to your circuits!
A127: EN_US | B127: Please add an amplifier manually! | C127: Please add dimmer (dmx/air) manually due to your circuits!
A128: FR | B128: Please add an amplifier manually! | C128: Please add dimmer (dmx/air) manually due to your circuits!
A129: ES | B129: Please add an amplifier manually! | C129: Please add dimmer (dmx/air) manually due to your circuits!
A130: CZ | B130: Please add an amplifier manually! | C130: Please add dimmer (dmx/air) manually due to your circuits!
A131: IT | B131: Si prega di aggiungere manualmente l'amplificatore! | C131: Si prega di aggiungere manualmente il dimmer (RGBW DMX / AIR) secondo le luci commutabili!
A132: CHE | B132: Please add an amplifier manually! | C132: Please add dimmer (dmx/air) manually due to your circuits!
A133: SK | B133: Please add an amplifier manually! | C133: Please add dimmer (dmx/air) manually due to your circuits!
A134: NL | B134: Please add an amplifier manually! | C134: Please add dimmer (dmx/air) manually due to your circuits!
A135: FI | B135: Please add an amplifier manually! | C135: Please add dimmer (dmx/air) manually due to your circuits!
A136: HU | B136: Please add an amplifier manually! | C136: Please add dimmer (dmx/air) manually due to your circuits!
A137: IE | B137: Please add an amplifier manually! | C137: Please add dimmer (dmx/air) manually due to your circuits!
A138: reservated | B138: Please add an amplifier manually! | C138: Please add dimmer (dmx/air) manually due to your circuits!
A139: reservated | B139: Please add an amplifier manually! | C139: Please add dimmer (dmx/air) manually due to your circuits!
A140: reservated | B140: Please add an amplifier manually! | C140: Please add dimmer (dmx/air) manually due to your circuits!
A141: reservated | B141: Please add an amplifier manually! | C141: Please add dimmer (dmx/air) manually due to your circuits!
A142: reservated | B142: Please add an amplifier manually! | C142: Please add dimmer (dmx/air) manually due to your circuits!
A147: DE
A148: EN_UK
A149: EN_US
A150: FR
A151: ES
A152: CZ
A153: IT
A154: CHE
A155: SK
A156: NL
A157: FI
A158: HU
A159: IE
A160: reservated
A161: reservated
A162: reservated
A163: reservated
A164: reservated

Sheet Message Box (hidden)
B2: Verstärker: | C2: =VLOOKUP(Main!C2,Translating_general!A125:C142,2,FALSE) -> Please add an amplifier manually!
B3: Dimmer: | C3: =VLOOKUP(Main!C2,Translating_general!A125:C142,3,FALSE) -> Please add dimmer (dmx/air) manually due to your circuits!

Sheet Calculation (hidden)
A1: MsGO = | B1: FALSE | D1: AI (Eingang) | E1: DI (Eingang) | F1: AO (Ausgang) | G1: DO (Ausgang) | H1: 1-Wire Kanal | I1: Air Base Kanal | J1: EnOcean | K1: Tree | L1: DO 16A | M1: Air Dimmer | N1: Dimmkanäle | O1: Dali
D3: AI (Eingang) | E3: DI (Eingang) | F3: AO (Ausgang) | G3: DO (Ausgang) | H3: 1-Wire Kanal | I3: Air Base Kanal | J3: EnOcean | K3: Tree | L3: DO 16A | M3: Air Dimmer | N3: Dali Kanäle | O3: 1-wire leser
A4: Eingabe Kunde | B4: Benötigte Eingänge|Ausgänge|Kanäle | D4: =(E144+D200)*(-1) -> 0 | E4: =(E200+D391)*(-1) -> -9 | F4: =F144*(-1)+G106*(-1) -> 0 | G4: =(G144+D359+H77+E331)*(-1) -> -22 | H4: =(H144+H200)*(-1) -> 0 | I4: =(E106+D265+E359+F391+I200+I144+L200)*(-1) -> -8 | J4: =(-1)*(E265+G391) -> 0 | K4: =F286*(-1) -> -32 | L4: =D331*(-1)+K106*(-1) -> -7 | N4: =C513*-1 -> 0 | O4: =-1*D163 -> 0
B5: +Miniserver (=WENN(…)+C278) | C5: =IF(B1=FALSE, IF(MIN(D4:O4)<0,1,0), 0) -> 1 | D5: =$C$5*D62 -> 4 | E5: =$C$5*E62 -> 8 | F5: =$C$5*F62 -> 4 | G5: =$C$5*G62 -> 8
B6: +MsGo | C6: =IF(AND(B1=TRUE, I4 < 0), 1+C229+C407, C229+C407)+IF(AND(B1=TRUE,I4 =0), 1,0) -> 0 | I6: =C6*I71 -> 0
B7: +Dimmer Extensions | C7: =C403+C79 -> 0 | E7: =C7*E67 -> 0
B8: Zwischensumme 1 | D8: =SUM(D4:D7) -> 4 | E8: =SUM(E4:E7) -> -1 | F8: 4 | G8: -14 | H8: 0 | I8: -8 | J8: 0 | K8: =SUM(K4:K7) -> -32 | L8: -7
B9: +Relay Extension (=C286) | C9: 0 | L9: =L68*C9 -> 0
B10: +Multi Extension Air (=C288+C185) | C10: 0 | E10: =$C$10*E70 -> 0 | H10: =$C$10*H70 -> 0 | L10: =$C$10*L70 -> 0 | M10: =C10 -> 0
B11: Zwischensumme 2 | D11: =SUM(D8:D10) -> 4 | E11: =SUM(E8:E10) -> -1 | F11: 4 | G11: -14 | H11: 0 | I11: -8 | J11: 0 | K11: =SUM(K8:K10) -> -32 | L11: -7
B12: +1-Wire Extension (=C283+H132) | C12: 0 | H12: =C12*H65 -> 0
B13: +EnoCean Extension (=C213+C284) | C13: 0 | J13: =C13*J66 -> 0
B14: +Dali Extension | C14: =C410 -> 0 | N14: =C14*N74 -> 0
B15: +Tree Extension | C15: 0 | K15: =C15*K72 -> 0
B16: `+ DI Extension | C16: =C412 -> 0 | E16: =20*C16 -> 0
B17: +AirBaseExtension (=C183+C287) | C17: 0 | I17: =C17*I69 -> 0
B18: Zwischensumme 3 | D18: =SUM(D11:D17) -> 4 | E18: =SUM(E11:E17) -> -1 | F18: =SUM(F11:F17) -> 4 | G18: -14 | H18: =SUM(H11:H17) -> 0 | I18: =SUM(I11:I17) -> -8 | J18: 0 | K18: =SUM(K11:K17) -> -32 | L18: -7
B19: +Extension (=C279) | C19: 0 | D19: =$C$19*D63 -> 0 | E19: =$C$19*E63 -> 0 | F19: =$C$19*F63 -> 0 | G19: =$C$19*G63 -> 0
B20: Fehlende/Überschüssige Anschlüsse_AI_auf_DI | D20: =D18 -> 4 | E20: =E18 -> -1 | F20: =SUM(F18:F19) -> 4 | G20: -14 | H20: 0 | I20: -8 | J20: 0 | K20: -32 | L20: =L18 -> -7
B22: Anschlüsse vor autmomatische Ergänzung von fehlenden Extensions
B23: Gesamt verfügbare Anschlüsse | D23: =D5+D6+D7+D9+D10+D12+D13+D17+D19 -> 4 | E23: =E5+E6+E7+E9+E10+E12+E13+E17+E19+E16 -> 8 | F23: 4 | G23: 8 | H23: 0 | I23: 0 | J23: 0 | K23: =K15 -> 0 | L23: 0 | M23: =M10 -> 0 | N23: =N14 -> 0
B24: Benötigte Anschlüsse | D24: =D4 -> 0 | E24: -9 | F24: 0 | G24: -22 | H24: 0 | I24: -8 | J24: 0 | K24: =K4 -> -32 | L24: -7 | N24: =N4 -> 0
B25: Übrigbleibende Anschlüsse | D25: =IF(D20>0,D20,0) -> 4 | E25: =IF(E20>0,E20,0) -> 0 | F25: =IF(F20>0,F20,0) -> 4 | G25: 0 | H25: 0 | I25: 0 | J25: 0 | K25: =IF(K20>0,K20,0) -> 0 | L25: 0 | N25: =IF(N24>0,N24,0) -> 0
B26: =Calculation!B221=Products!D35 -> TRUE | D26: =IF(D20<0,D20,0) -> 0 | E26: =IF(E20<0,E20,0) -> -1 | F26: =IF(F20<0,F20,0) -> 0 | G26: -14 | H26: 0 | I26: -8 | J26: 0 | K26: =IF(K20<0,K20,0) -> -32 | L26: -7
B27: Extensions für fehlende Anschlüsse
B28: Extension | C28: =C29 -> 0 | D28: =$C$28*D63 -> 0 | E28: =$C$28*E63 -> 0 | F28: =$C$28*F63 -> 0 | G28: =$C$28*G63 -> 0
B29: Anzahlberechnung Extension | C29: =MAX(D29,F29) -> 0 | D29: =IF(D20<0,ROUNDUP(D20/D63*(-1),0),0) -> 0 | E29: =IF(E20<0,ROUNDUP(E20/E63*(-1),0),0) -> 1 | F29: =IF(F20<0,ROUNDUP(F20/F63*(-1),0),0) -> 0 | G29: =IF(G20<0,ROUNDUP(G20/G63*(-1),0),0) -> 2
B30: Fehlende Anschlüsse | D30: =D20+D28 -> 4 | E30: =E28+E20 -> -1 | F30: =F20+F28 -> 4 | G30: =G20+G28 -> -14 | H30: =H20 -> 0 | I30: =I20 -> -8 | J30: =J20 -> 0 | K30: =K20 -> -32 | L30: =L20 -> -7
B31: AI auf DI Fehlende Anschlüsse | C31: ben. AI | D31: =IF(AND(D30*-1<=E30,E30<0),D30-(D30+E30),IF(E30<0,D30,0)) -> 1 | E31: =IF(E30<0,E30+D30,E30) -> 3 | F31: Entscheider ob weitere Extension
B32: Fehlende Anschlüsse nach Umlegung | D32: =D30-D31 -> 3 | E32: =D31 -> 1 | F32: E29 =WENN(E28<0;E28+D28;E28) | I32: =IF(AND(E30<0,(E30+D30)>0),E30+D30-D31,0) -> 2
E33: =E30+E32 -> 0 | I33: =IF(C35>0,C35*16+E33,0) -> 0
B35: Restliche Extension für DI | C35: =IF(E31<0,ROUNDUP(-E31/16,0),0) -> 0 | D35: =IF(AND(C35>0,E35=0),(E31+C35*12)+C35*4,C35*4) -> 0 | E35: =IF(AND(C35>0,ABS(E31)<C35*12),C35*12+E31,0) -> 0 | F35: =$C$35*F63 -> 0 | G35: =$C$35*G63 -> 0
B36: Fehlende/Überschüssige Anschlüsse | D36: =D32+D35 -> 3 | E36: =IF(AND(C35>0,ABS(E31)<C35*12),C35*12+E31,0) -> 0 | F36: =F30+F35 -> 4 | G36: =G30+G35 -> -14 | L36: =IF(G36<0,L20+G36,L20) -> -21
F37: E34 =WENN((E33+E29)<0;0;E33+E29) zuvor
B38: Relay Extension | C38: =IF(L36<0,ROUNDUP(L36/L68*(-1),0),0) -> 2 | L38: =C38*L68 -> 28
B39: Fehlende Anschlüsse | D39: =D36 -> 3 | E39: =E36 -> 0 | F39: =F36 -> 4 | G39: =IF(G36>0,G36,0) -> 0 | H39: =H30 -> 0 | I39: =I30 -> -8 | J39: =J30 -> 0 | L39: =SUM(L36:L38) -> 7
B40: 1-Wire Extension | C40: =IF(H39<0,ROUNDUP(H39/H65*(-1),0),0) -> 0 | H40: =C40*H65 -> 0
B41: Fehlende Anschlüsse | D41: =SUM(D39:D40) -> 3 | E41: =SUM(E39:E40) -> 0 | F41: 4 | G41: 0 | H41: 0 | I41: -8 | J41: 0 | L41: 7
B42: EnOcean-Extension | C42: =IF(J41<0,ROUNDUP(J41/J66*(-1),0),0) -> 0 | J42: =C42*J66 -> 0
B43: Fehlende Anschlüsse | E43: =SUM(E41:E42) -> 0 | F43: =SUM(F41:F42) -> 4 | G43: 0 | H43: 0 | I43: -8 | J43: 0 | K43: =K30 -> -32 | L43: 7
B44: AirBaseExtension | C44: =IF(I43<0,ROUNDUP(I43/I69*(-1),0),0) -> 1 | I44: =C44*I69 -> 128
B45: Tree Extension | C45: =IF(K43<0,ROUNDUP(K43/K72*(-1),0),0) -> 1 | K45: =C45*K72 -> 100
B46: Dali Extension | C46: =IF((N24+N23)<0,ROUNDUP((N24+N23)/N74*(-1),0),0) -> 0 | D46: Eine Extension unter "MS + Ext." zählt nun ebenfalls zu den channels dazu und wird nichtmehr extra addiert
B47: Zusätzlicher Miniserver (Basis Extensions) | C47: =IF(C58>1,C58-1,0) -> 0 | D47: =$C$47*D5 -> 0 | E47: =$C$47*E5 -> 0 | F47: =$C$47*F5 -> 0 | G47: =$C$47*G5 -> 0
B48: Reserve nach Abdeckung fehlender Anschlüsse | D48: =D41+D47 -> 3 | E48: =SUM(E43:E47) -> 0 | F48: 4 | G48: 0 | H48: 0 | I48: 120 | J48: 0 | K48: =SUM(K43:K45) -> 68 | L48: =SUM(L43:L47) -> 7
B52: Anschlüsse nach autmomatische Ergänzung von fehlenden Extensions
B53: Gesamt verfügbare Anschlüsse | D53: =D23+D28+C35*4+C395*D62+D63*C396+D47 -> 4 | E53: =E23+E28+C35*12+C395*E62+C396*E63+E47+E70*(C228+C406) -> 8 | F53: =F23+F28+F35+C395*F62+C396*F63+F47 -> 4 | G53: =G23+G28+G35+G47+C395*G62+C396*G63 -> 8 | H53: =H23+H40+C400*H65+(C228+C406)*H70 -> 0 | I53: =I23+I44+(C226+C405)*I69 -> 128 | J53: =J23+J44+(D226+D405)*J69 -> 0 | K53: =K23+K44+(E226+E405)*K69 -> 0 | L53: =L23+L38+C404*L68+(C228+C406)*L70 -> 28 | O53: =N23+C46*N74 -> 0
B54: Benötigte Anschlüsse | C54: -1 | D54: =ABS(D4)+D31+C35*4-D35 -> 1 | E54: =ABS(E4)-E32-(C35*4-D35) -> 8 | F54: =F4*$C$54 -> 0 | G54: =G4*$C$54+IF(G36<0,G36,0) -> 8 | H54: =H4*$C$54 -> 0 | I54: =I4*$C$54 -> 8 | J54: =J4*$C$54 -> 0 | K54: =K24+K45+(E227+E406)*K70 -> 68 | L54: =L4*$C$54-IF(G36<0,G36,0) -> 21 | O54: =C513 -> 0
B55: Übrigbleibende Anschlüsse | D55: =D53-D54 -> 3 | E55: =E53-E54 -> 0 | F55: =F53-F54 -> 4 | G55: 0 | H55: 0 | I55: 120 | J55: 0 | K55: =K25+K47+(E228+E407)*K71 -> 0 | L55: 7 | O55: =O53-O54 -> 0
B57: Gesamtanzahl Extensions | C57: =Products!B8+Products!B11+Products!B12+Products!B13+Products!B14+Products!B15+Products!B21+Products!B23+Products!B24+Products!B26+Products!B28+Products!B40 -> 3
B58: Benötigte Miniserver inkl. Extensions | C58: =ROUNDUP(C57/30,0) -> 1
D61: AI (Eingang) | E61: DI (Eingang) | F61: AO (Ausgang) | G61: DO (Ausgang) | H61: 1-Wire Kanal | I61: Air Base Kanal | J61: EnOcean | K61: Tree Kanal | L61: DO 16A | M61: DMX Kanäle | N61: Dali Kanäle
B62: Miniserver | D62: =Products!$J$7 -> 4 | E62: =Products!$K$7 -> 8 | F62: =Products!$L$7 -> 4 | G62: =Products!$M$7 -> 8
B63: Extension | D63: =Products!$J$8 -> 4 | E63: =Products!$K$8 -> 12 | F63: =Products!$L$8 -> 4 | G63: =Products!$M$8 -> 8
B64: DMX Extension | M64: =Products!$N$12 -> 128
B65: 1-wire Extension | H65: =Products!$N$14 -> 20
B66: EnOcean Extension | J66: =Products!$N$15 -> 128
B67: Dimmer Extension | E67: =Products!$K$21 -> 8 | F67: =Products!$L$21 -> 4
B68: Relay Extension | L68: =Products!$M$23 -> 14
B69: Air Base Extension | I69: =Products!$N$24 -> 128
B70: Multi Extension Air | E70: =Products!$K$26 -> 12 | H70: =Products!$N$26 -> 20 | L70: =Products!$M$26 -> 8 | M70: Air Dimmer
B71: Miniserver Go | I71: =Products!$N$30 -> 128
B72: Tree Extension | K72: 100
B73: DI Extension | E73: 20
B74: Dali Extension | N74: 64
D75: Benötigte Kanäle auf Extension (Basis LED Streifen)
B76: Licht | C76: Anzahl | D76: DMX Ext. | E76: Air Base Ext. | F76: DMX Frei | G76: AO | H76: DO | I76: Dimmer Kanäle frei | K76: DO 16A | L76: Tree
B77: =Light!B18 -> Světelný okruh 5A | C77: =IF(ISNA(VLOOKUP(B77,Main!$B$5:$C$15,2,FALSE)),0,VLOOKUP(B77,Main!$B$5:$C$15,2,FALSE)) -> 3 | H77: =1*C77 -> 3
A78: 100012 | B78: =Light!B2 -> DMX Extension | C78: =IF(ISNA(VLOOKUP(B78,Main!$B$5:$C$15,2,FALSE)),0,VLOOKUP(B78,Main!$B$5:$C$15,2,FALSE)) -> 0 | F78: =Products!N12*C78 -> 0
A79: 100029 | B79: =Light!B3 -> Dimmer Extension (Výběr kanálu) | C79: =ROUNDUP(IF(ISNA(VLOOKUP(B79,Main!$B$5:$C$15,2,FALSE)),0,VLOOKUP(B79,Main!$B$5:$C$15,2,FALSE))/4,0) -> 0 | I79: =C79*4 -> 0 | N79: =ROUNDUP(IF(ISNA(VLOOKUP(B79,Main!$B$5:$C$15,2,FALSE)),0,VLOOKUP(B79,Main!$B$5:$C$15,2,FALSE)),0) -> 0
A80: 100117 | B80: =Light!B4 -> RGBW 24V Dimmer DMX | C80: =IF(ISNA(VLOOKUP(B80,Main!$B$5:$C$15,2,FALSE)),0,VLOOKUP(B80,Main!$B$5:$C$15,2,FALSE)) -> 0 | D80: =Products!N27*C80 -> 0
A81: 100125 | B81: =Light!B5 -> RGBW 24V Dimmer Air | C81: =IF(ISNA(VLOOKUP(B81,Main!$B$5:$C$15,2,FALSE)),0,VLOOKUP(B81,Main!$B$5:$C$15,2,FALSE)) -> 0 | E81: =Products!N29*C81 -> 0
A82: 200042 | B82: =Light!B6 -> 5m RGB LED pásky IP20 (bez ochrany proti vodě) | C82: =IF(ISNA(VLOOKUP(B82,Main!$B$5:$C$15,2,FALSE)),0,VLOOKUP(B82,Main!$B$5:$C$15,2,FALSE)) -> 0 | I82: Slots Licht | J82: DMX Ext.
A83: 200043 | B83: =Light!B7 -> 5m LED pásky (teplá bílá) - IP20 (bez ochrany proti vodě) | C83: =IF(ISNA(VLOOKUP(B83,Main!$B$5:$C$15,2,FALSE)),0,VLOOKUP(B83,Main!$B$5:$C$15,2,FALSE)) -> 0 | I83: Verfügbare Kanäle | J83: =F78 -> 0
A84: 200045 | B84: RGB Streifen - gelöscht | C84: =IF(ISNA(VLOOKUP(B84,Main!$B$5:$C$15,2,FALSE)),0,VLOOKUP(B84,Main!$B$5:$C$15,2,FALSE)) -> 0 | I84: Benötigte Kanäle | J84: =D80 -> 0
A85: 200046 | B85: =Light!B8 -> 5m RGB LED pásky IP68 (proti potopení do vody) | C85: =IF(ISNA(VLOOKUP(B85,Main!$B$5:$C$15,2,FALSE)),0,VLOOKUP(B85,Main!$B$5:$C$15,2,FALSE)) -> 0 | I85: Fehlende Kanäle | J85: =IF(J84>J83,J84-J83,0) -> 0
A86: 200061 | B86: =Light!B10 -> 5m LED pásky (teplá bílá) - IP65 (proti tryskající vodě) | C86: =IF(ISNA(VLOOKUP(B86,Main!$B$5:$C$15,2,FALSE)),0,VLOOKUP(B86,Main!$B$5:$C$15,2,FALSE)) -> 0 | I86: Reserve | J86: =IF(J83>J84,J83-J84,0) -> 0
A87: 200092 | B87: =Light!B11 -> 5m LED pásky (teplá bílá) - IP68 (proti potopení do vody) | C87: =IF(ISNA(VLOOKUP(B87,Main!$B$5:$C$15,2,FALSE)),0,VLOOKUP(B87,Main!$B$5:$C$15,2,FALSE)) -> 0
A88: 200098 | B88: =Light!B12 -> 5m RGBW LED pásky IP20 (bez ochrany proti vodě) | C88: =IF(ISNA(VLOOKUP(B88,Main!$B$5:$C$15,2,FALSE)),0,VLOOKUP(B88,Main!$B$5:$C$15,2,FALSE)) -> 4 | I88: DMX zusätzlich | J88: =ROUNDUP(J85/M64,0) -> 0
A89: 200099 | B89: =Light!B13 -> 5m RGBW LED pásky IP65 (proti tryskající vodě) | C89: =IF(ISNA(VLOOKUP(B89,Main!$B$5:$C$15,2,FALSE)),0,VLOOKUP(B89,Main!$B$5:$C$15,2,FALSE)) -> 0
A90: 200100 | B90: =Light!B14 -> 5m RGBW LED pásky IP68 (proti potopení do vody) | C90: =IF(ISNA(VLOOKUP(B90,Main!$B$5:$C$15,2,FALSE)),0,VLOOKUP(B90,Main!$B$5:$C$15,2,FALSE)) -> 0
A91: 200280 | B91: =Light!B15 -> Příslušenství k LED páskům - set RGBW | C91: =IF(ISNA(VLOOKUP(B91,Main!$B$5:$C$15,2,FALSE)),0,VLOOKUP(B91,Main!$B$5:$C$15,2,FALSE)) -> 0
A92: 200278 | B92: =Light!B16 -> Příslušenství k LED páskům - set WW | C92: =IF(ISNA(VLOOKUP(B92,Main!$B$5:$C$15,2,FALSE)),0,VLOOKUP(B92,Main!$B$5:$C$15,2,FALSE)) -> 0
B93: =Light!B17 -> Analog 1-10V | C93: =IF(ISNA(VLOOKUP(B93,Main!$B$5:$C$15,2,FALSE)),0,VLOOKUP(B93,Main!$B$5:$C$15,2,FALSE)) -> 0 | G93: =1*C93 -> 0
A94: 100153 | B94: =Light!B9 -> Nano IO Air | C94: =IF(ISNA(VLOOKUP(B94,Main!$B$5:$C$15,2,FALSE)),0,VLOOKUP(B94,Main!$B$5:$C$15,2,FALSE)) -> 0 | E94: =Products!N37*C94 -> 0
A95: 100204 | B95: =Light!B19 -> LED Spot RGBW | C95: =IF(ISNA(VLOOKUP(B95,Main!$B$5:$C$15,2,FALSE)),0,VLOOKUP(B95,Main!$B$5:$C$15,2,FALSE)) -> 9
A96: 100203 | B96: =Light!B20 -> LED Spot WW | C96: =IF(ISNA(VLOOKUP(B96,Main!$B$5:$C$15,2,FALSE)),0,VLOOKUP(B96,Main!$B$5:$C$15,2,FALSE)) -> 24
B97: =Light!B22 -> Světelný okruh 16A | C97: =IF(ISNA(VLOOKUP(B97,Main!$B$5:$C$15,2,FALSE)),0,VLOOKUP(B97,Main!$B$5:$C$15,2,FALSE)) -> 0 | K97: =C97*1 -> 0
B98: =Light!B23 -> Příložný LED Spot RGBW bílá | C98: =IF(ISNA(VLOOKUP(B98,Main!$B$5:$C$15,2,FALSE)),0,VLOOKUP(B98,Main!$B$5:$C$15,2,FALSE)) -> 0
B99: =Light!B24 -> Příložný LED Spot WW bílá | C99: =IF(ISNA(VLOOKUP(B99,Main!$B$5:$C$15,2,FALSE)),0,VLOOKUP(B99,Main!$B$5:$C$15,2,FALSE)) -> 0
B100: =Light!B25 -> Příložný LED Spot Tree RGBW bílá | C100: =IF(ISNA(VLOOKUP(B100,Main!$B$5:$C$15,2,FALSE)),0,VLOOKUP(B100,Main!$B$5:$C$15,2,FALSE)) -> 0 | L100: =C100 -> 0
B101: =Light!B26 -> Příložný LED Spot Tree WW bílá | C101: =IF(ISNA(VLOOKUP(B101,Main!$B$5:$C$15,2,FALSE)),0,VLOOKUP(B101,Main!$B$5:$C$15,2,FALSE)) -> 0 | L101: =C101 -> 0
B102: =Light!B27 -> LED Spot Tree WW bílá | C102: =IF(ISNA(VLOOKUP(B102,Main!$B$5:$C$15,2,FALSE)),0,VLOOKUP(B102,Main!$B$5:$C$15,2,FALSE)) -> 0 | L102: =C102 -> 0
B103: =Light!B28 -> LED Spot Tree RGBW bílá | C103: =IF(ISNA(VLOOKUP(B103,Main!$B$5:$C$15,2,FALSE)),0,VLOOKUP(B103,Main!$B$5:$C$15,2,FALSE)) -> 0 | L103: =C103 -> 0
B104: =Light!B29 -> RGBW 24V Dimmer Tree | C104: =IF(ISNA(VLOOKUP(B104,Main!$B$5:$C$15,2,FALSE)),0,VLOOKUP(B104,Main!$B$5:$C$15,2,FALSE)) -> 9 | L104: =C104 -> 9
B105: =Light!B30 -> Krabice do betonu pro LED spot | C105: =IF(ISNA(VLOOKUP(B105,Main!$B$5:$C$15,2,FALSE)),0,VLOOKUP(B105,Main!$B$5:$C$15,2,FALSE)) -> 0
C106: Summe | D106: =SUM(D77:D105) -> 0 | E106: =SUM(E77:E104) -> 0 | F106: =SUM(F77:F104) -> 0 | G106: =SUM(G77:G104) -> 0 | H106: =SUM(H77:H104) -> 3 | K106: =SUM(K77:K97) -> 0 | L106: =SUM(L77:L105) -> 9
B108: Information
B109: Pro Streifen 1 Dimmer & Pro Dimmer 1 Netzteil
B110: DMX Dimmer belegt immer 4 Kanäle auf DMX Extension
B111: Dimmer Air belegt 1 Kanal auf Air Base Extension
B112: Da Dimmer auch ausgewählt wird, verfügbare, benötigte, reserve und noch notwendige Kanäle berechnen
B113: Berechnung Kanäle auf Basis Dimmer nicht Streifen
B114: Netzteilrechner: Spalte mit Watt pro Streifen
I115: Zusätzlich benötigt
B116: 2 Mal 1 Produkt auswählen geht nicht, weil Anzahl nicht zusammengezählt wird! | D116: 0 | I116: Air Base Extension
D117: 0 | I117: Miniserver
D118: 0
B119: Musik | C119: Anzahl Stück | D119: 0
A120: 100165 | B120: =Music!B3 -> Loxone Music Server 4 Zóny | C120: =IF(ISNA(VLOOKUP(B120,Main!$B$64:$C$72,2,FALSE)),0,VLOOKUP(B120,Main!$B$64:$C$72,2,FALSE)) -> 0 | D120: 0
A121: 100166 | B121: =Music!B4 -> Loxone Music Server 8 Zón | C121: =IF(ISNA(VLOOKUP(B121,Main!$B$64:$C$72,2,FALSE)),0,VLOOKUP(B121,Main!$B$64:$C$72,2,FALSE)) -> 0 | D121: 0
A122: 100167 | B122: =Music!B5 -> Loxone Music Server 12 Zón | C122: =IF(ISNA(VLOOKUP(B122,Main!$B$64:$C$72,2,FALSE)),0,VLOOKUP(B122,Main!$B$64:$C$72,2,FALSE)) -> 0 | D122: 0 | F122: Loxone Music Server 4 | H122: =IF(C131>(H126*20+H125*16+H124*12+H123*8),ROUNDUP((C131-H126*20-H125*16-H124*12-H123*8)/4,0),0) -> 1
A123: 100168 | B123: =Music!B6 -> Loxone Music Server 16 Zón | C123: =IF(ISNA(VLOOKUP(B123,Main!$B$64:$C$72,2,FALSE)),0,VLOOKUP(B123,Main!$B$64:$C$72,2,FALSE)) -> 0 | D123: 0 | F123: Loxone Music Server 8 | H123: =IF((C131-H126*20-H125*16-H124*12)<=4,0,IF((C131>(H126*20+H125*16+H124*12)),ROUNDUP((C131-H126*20-H125*16-H124*12)/8,0),0)) -> 0
A124: 100169 | B124: =Music!B7 -> Loxone Music Server 20 Zón | C124: =IF(ISNA(VLOOKUP(B124,Main!$B$64:$C$72,2,FALSE)),0,VLOOKUP(B124,Main!$B$64:$C$72,2,FALSE)) -> 0 | D124: 0 | F124: Loxone Music Server 12 | H124: =IF((C131-H126*20-H125*16)<=8,0,IF((C131>(H126*20+H125*16)),ROUNDUP((C131-H126*20-H125*16)/12,0),0)) -> 0
A125: 200097 | B125: =Music!B8 -> Loxone Speaker | C125: =IF(ISNA(VLOOKUP(B125,Main!$B$64:$C$72,2,FALSE)),0,VLOOKUP(B125,Main!$B$64:$C$72,2,FALSE)) -> 5 | D125: Message box sperren | F125: Loxone Music Server 16 | H125: =IF((C131-H126*20)<=12,0,IF((C131>H126*20),ROUNDUP((C131-H126*20)/16,0),0)) -> 0
A126: 200110 | B126: =Music!B9 -> Loxone 12ti kanálový zesilovač | C126: =IF(ISNA(VLOOKUP(B126,Main!$B$64:$C$72,2,FALSE)),0,VLOOKUP(B126,Main!$B$64:$C$72,2,FALSE)) -> 1 | D126: 0 | F126: Loxone Music Server 20 | H126: =IF(OR(C131=17,C131=18,C131=19,C131=37,C131=38,C131=39),1,0)+I126 -> 0 | I126: =ROUNDDOWN(C131/20,0) -> 0
A127: 200150 | B127: =Music!B10 -> Instalační box pro Loxone reproduktor (speaker) | C127: =IF(ISNA(VLOOKUP(B127,Main!$B$64:$C$72,2,FALSE)),0,VLOOKUP(B127,Main!$B$64:$C$72,2,FALSE)) -> 0
A128: 100205 | B128: =Music!B13 -> Loxone Music Server Upgrade | C128: =IF(ISNA(VLOOKUP(B128,Main!$B$64:$C$72,2,FALSE)),0,VLOOKUP(B128,Main!$B$64:$C$72,2,FALSE)) -> 0
A129: 200202 | B129: =Music!B12 -> Loxone Speaker back box pro snížené stropy | C129: =IF(ISNA(VLOOKUP(B129,Main!$B$64:$C$72,2,FALSE)),0,VLOOKUP(B129,Main!$B$64:$C$72,2,FALSE)) -> 5
A130: 200153 | B130: =Music!B11 -> Loxone Wall Speaker | C130: =IF(ISNA(VLOOKUP(B130,Main!$B$64:$C$72,2,FALSE)),0,VLOOKUP(B130,Main!$B$64:$C$72,2,FALSE)) -> 0
B131: =Music!B2 -> Zóna Music Serveru | C131: =IF(ISNA(VLOOKUP(B131,Main!$B$64:$C$72,2,FALSE)),0,VLOOKUP(B131,Main!$B$64:$C$72,2,FALSE)) -> 1
B133: Heizung | C133: Anzahl Stück | E133: AI | F133: AO | G133: DO | H133: 1-Wire | K133: Tree
A134: 100163 | B134: =Heating!B2 -> 0 | C134: =IF(ISNA(VLOOKUP(B134,Main!$B$21:$C$25,2,FALSE)),0,VLOOKUP(B134,Main!$B$21:$C$25,2,FALSE)) -> 0 | I134: =C134 -> 0
A135: 200003 | B135: =Heating!B3 -> 0 | C135: =IF(ISNA(VLOOKUP(B135,Main!$B$21:$C$25,2,FALSE)),0,VLOOKUP(B135,Main!$B$21:$C$25,2,FALSE)) -> 0 | E135: =Products!J57*C135 -> 0
A136: 200004 | B136: =Heating!B4 -> Hlavice Air | C136: =IF(ISNA(VLOOKUP(B136,Main!$B$21:$C$25,2,FALSE)),0,VLOOKUP(B136,Main!$B$21:$C$25,2,FALSE)) -> 0 | I136: =1*C136 -> 0
A137: 200005 | B137: =Heating!B5 -> Venkovní senzor teploty | C137: =IF(ISNA(VLOOKUP(B137,Main!$B$21:$C$25,2,FALSE)),0,VLOOKUP(B137,Main!$B$21:$C$25,2,FALSE)) -> 0 | G137: =Products!M59*C137 -> 0
A138: 200006 | B138: =Heating!B6 -> Vnitřní teplotní senzor 0-10V | C138: =IF(ISNA(VLOOKUP(B138,Main!$B$21:$C$25,2,FALSE)),0,VLOOKUP(B138,Main!$B$21:$C$25,2,FALSE)) -> 0 | E138: =Products!J60*C138 -> 0
A139: 200010 | B139: =Heating!B7 -> Senzor teploty a vlhkosti (vnitřní) 0-10V | C139: =IF(ISNA(VLOOKUP(B139,Main!$B$21:$C$25,2,FALSE)),0,VLOOKUP(B139,Main!$B$21:$C$25,2,FALSE)) -> 0 | E139: =Products!J62*C139 -> 0
A140: 200017 | B140: =Heating!B8 -> Senzor CO2/Teplota/Vlhkost | C140: =IF(ISNA(VLOOKUP(B140,Main!$B$21:$C$25,2,FALSE)),0,VLOOKUP(B140,Main!$B$21:$C$25,2,FALSE)) -> 0 | E140: =Products!J65*C140 -> 0
A141: 200077 | B141: =Heating!B9 -> 1-Wire teplotní čip v pouzdře | C141: =IF(ISNA(VLOOKUP(B141,Main!$B$21:$C$25,2,FALSE)),0,VLOOKUP(B141,Main!$B$21:$C$25,2,FALSE)) -> 0 | H141: =Products!N87*C141 -> 0
A142: 200109 | B142: =Heating!B10 -> 1-Wire teplotní senzor | C142: =ROUNDUP(IF(ISNA(VLOOKUP(B142,Main!$B$21:$C$25,2,FALSE)),0,VLOOKUP(B142,Main!$B$21:$C$25,2,FALSE))/5,0) -> 0 | H142: =Products!N103*C142 -> 0
B143: =Heating!B11 -> Hlavice Tree | C143: =IF(ISNA(VLOOKUP(B143,Main!$B$21:$C$25,2,FALSE)),0,VLOOKUP(B143,Main!$B$21:$C$25,2,FALSE)) -> 6 | K143: =C143*Products!N154 -> 6
D144: Summe | E144: =SUM(E134:E142) -> 0 | F144: =SUM(F134:F142) -> 0 | G144: =SUM(G134:G142) -> 0 | H144: =SUM(H134:H142) -> 0 | I144: =SUM(I134:I142) -> 0 | K144: =SUM(K136:K143) -> 6 | L144: =SUM(L136:L143) -> 0
I146: Zusätzlich benötigt
I147: 1-Wire Extension
I148: Extension
I149: Miniserver
B152: Zutritt | C152: Anzahl | D152: 1-Wire
A153: 200063 | B153: =Entry!B2 -> Čtečka elektronického klíče | C153: =IF(ISNA(VLOOKUP(B153,Main!$B$59:$C$62,2,FALSE)),0,VLOOKUP(B153,Main!$B$59:$C$62,2,FALSE)) -> 0 | D153: =Products!N83*C153 -> 0 | E153: Jeder Leser 1 Extension, außer es ist schon eine 1-Wire Extension vorhanden, dann hat dort 1 Leser platz
A154: 200064 | B154: =Entry!B3 -> Elektronický klíč | C154: =IF(ISNA(VLOOKUP(B154,Main!$B$59:$C$62,2,FALSE)),0,VLOOKUP(B154,Main!$B$59:$C$62,2,FALSE)) -> 5 | G154: Ben. Kanäle | H154: Ben. Ext | I154: Freie Plätze
A155: 200070 | B155: =Entry!B4 -> Elektronický klíč (Magnetický) | C155: =IF(ISNA(VLOOKUP(B155,Main!$B$59:$C$62,2,FALSE)),0,VLOOKUP(B155,Main!$B$59:$C$62,2,FALSE)) -> 0 | F155: Summe Leser | G155: =D163 -> 0 | H155: =G155 -> 0 | I155: =(G158+H155)*20 -> 0
A156: 200076 | F156: S. Heizung | G156: =H4*(-1)-G155 -> 0 | H156: =IF(I155<G156,ROUNDUP((G156-I155)/20,0),0) -> 0
A157: 200082
A158: 200093 | B158: =Entry!B5 -> Loxone Intercom | C158: =IF(ISNA(VLOOKUP(B158,Main!$B$59:$C$62,2,FALSE)),0,VLOOKUP(B158,Main!$B$59:$C$62,2,FALSE)) -> 0 | F158: vorh. Ext. | G158: =C400 -> 0
A159: 200094 | B159: =Entry!B6 -> Zapuštěný box pro Loxone Intercom | C159: =IF(ISNA(VLOOKUP(B159,Main!$B$59:$C$62,2,FALSE)),0,VLOOKUP(B159,Main!$B$59:$C$62,2,FALSE)) -> 1
A160: 200095 | B160: =Entry!B7 -> Povrchový box pro Loxone Intercom | C160: =IF(ISNA(VLOOKUP(B160,Main!$B$59:$C$62,2,FALSE)),0,VLOOKUP(B160,Main!$B$59:$C$62,2,FALSE)) -> 0 | G160: =IF(D163>(C40+C12),1,0) -> 0
A161: 200191 | B161: =Entry!B8 -> čtečka elektronického klíče - nerez | C161: =IF(ISNA(VLOOKUP(B161,Main!$B$59:$C$62,2,FALSE)),0,VLOOKUP(B161,Main!$B$59:$C$62,2,FALSE)) -> 0 | D161: =Products!N137*C161 -> 0
A162: 200273 | B162: =Entry!B9 -> Loxone Intercom XL | C162: =IF(ISNA(VLOOKUP(B162,Main!$B$59:$C$62,2,FALSE)),0,VLOOKUP(B162,Main!$B$59:$C$62,2,FALSE)) -> 1
C163: Summe | D163: =SUM(D153:D162) -> 0
B165: Information | I165: Zusätzlich benötigt
B166: 1-Wire Extension (20 Slots) benötigt | I166: 1-Wire Extension
B167: 1 Lesegerät = 1 Slot | I167: Miniserver
B170: Sensoren | C170: Anzahl | D170: AI | E170: DI | G170: 1-Wire | K170: Tree | L170: AIR
A171: 200003 | B171: =Sensors!B2 -> Venkovní senzor teploty | C171: =IF(ISNA(VLOOKUP(B171,Main!$B$27:$C$32,2,FALSE)),0,VLOOKUP(B171,Main!$B$27:$C$32,2,FALSE)) -> 0 | D171: =Products!J57*C171 -> 0
A172: 200006 | B172: =Sensors!B3 -> Vnitřní teplotní senzor 0-10V | C172: =IF(ISNA(VLOOKUP(B172,Main!$B$27:$C$32,2,FALSE)),0,VLOOKUP(B172,Main!$B$27:$C$32,2,FALSE)) -> 0 | D172: =Products!J60*C172 -> 0
A173: 200010 | B173: =Sensors!B4 -> Senzor teploty a vlhkosti (vnitřní) 0-10V | C173: =IF(ISNA(VLOOKUP(B173,Main!$B$27:$C$32,2,FALSE)),0,VLOOKUP(B173,Main!$B$27:$C$32,2,FALSE)) -> 0 | D173: =Products!J62*C173 -> 0
A174: 200017 | B174: =Sensors!B5 -> Senzor CO2/Teplota/Vlhkost | C174: =IF(ISNA(VLOOKUP(B174,Main!$B$27:$C$32,2,FALSE)),0,VLOOKUP(B174,Main!$B$27:$C$32,2,FALSE)) -> 0 | D174: =Products!J65*C174 -> 0
A175: 200018 | B175: =Sensors!B6 -> Dešťový senzor (24V) | C175: =IF(ISNA(VLOOKUP(B175,Main!$B$27:$C$32,2,FALSE)),0,VLOOKUP(B175,Main!$B$27:$C$32,2,FALSE)) -> 0 | E175: =Products!K66*C175 -> 0
A176: 200031 | B176: =Sensors!B7 -> Senzor teploty a vlhkosti (venkovní) | C176: =IF(ISNA(VLOOKUP(B176,Main!$B$27:$C$32,2,FALSE)),0,VLOOKUP(B176,Main!$B$27:$C$32,2,FALSE)) -> 0 | D176: =Products!J67*C176 -> 0
A177: 200032 | B177: =Sensors!B8 -> Senzor osvětlení 0-10V | C177: =IF(ISNA(VLOOKUP(B177,Main!$B$27:$C$32,2,FALSE)),0,VLOOKUP(B177,Main!$B$27:$C$32,2,FALSE)) -> 0 | D177: =Products!J68*C177 -> 0
A178: 200033 | B178: =Sensors!B9 -> Senzor rychlosti větru 24V (s digitálním vstupem na Extensionu) | C178: =IF(ISNA(VLOOKUP(B178,Main!$B$27:$C$32,2,FALSE)),0,VLOOKUP(B178,Main!$B$27:$C$32,2,FALSE)) -> 0 | E178: =Products!K69*C178 -> 0
A179: 200034 | B179: =Sensors!B10 -> Držák pro senzor větru | C179: =IF(ISNA(VLOOKUP(B179,Main!$B$27:$C$32,2,FALSE)),0,VLOOKUP(B179,Main!$B$27:$C$32,2,FALSE)) -> 0 | F179: Stück
A180: 200054 | B180: =Sensors!B11 -> Ultrazvukový senzor 0-10V | C180: =IF(ISNA(VLOOKUP(B180,Main!$B$27:$C$32,2,FALSE)),0,VLOOKUP(B180,Main!$B$27:$C$32,2,FALSE)) -> 0 | D180: =Products!J79*C180 -> 0
A181: 200077 | B181: =Sensors!B12 -> 1-Wire teplotní čip v pouzdře | C181: =IF(ISNA(VLOOKUP(B181,Main!$B$27:$C$32,2,FALSE)),0,VLOOKUP(B181,Main!$B$27:$C$32,2,FALSE)) -> 0 | H181: =Products!N87*C181 -> 0
A182: 200101 | B182: =Sensors!B13 -> Záplavový senzor | C182: =IF(ISNA(VLOOKUP(B182,Main!$B$27:$C$32,2,FALSE)),0,VLOOKUP(B182,Main!$B$27:$C$32,2,FALSE)) -> 0 | E182: =Products!K101*C182 -> 0
A183: 200109 | B183: =Sensors!B14 -> 1-Wire teplotní senzor set | C183: =IF(ISNA(VLOOKUP(B183,Main!$B$27:$C$32,2,FALSE)),0,VLOOKUP(B183,Main!$B$27:$C$32,2,FALSE)) -> 0 | H183: =Products!N103*C183 -> 0
A184: 200112 | B184: =Sensors!B15 -> Senzor pohybu 24V (venkovní) | C184: =IF(ISNA(VLOOKUP(B184,Main!$B$27:$C$32,2,FALSE)),0,VLOOKUP(B184,Main!$B$27:$C$32,2,FALSE)) -> 2 | E184: =Products!K105*C184 -> 2
B185: =Sensors!B16 -> Okenní kontakt (integrovaný v okně pouze DI) | C185: =IF(ISNA(VLOOKUP(B185,Main!$B$27:$C$32,2,FALSE)),0,VLOOKUP(B185,Main!$B$27:$C$32,2,FALSE)) -> 7 | E185: =C185 -> 7
A186: 200113 | B186: =Sensors!B17 -> Okenní kontakt | C186: =IF(ISNA(VLOOKUP(B186,Main!$B$27:$C$32,2,FALSE)),0,VLOOKUP(B186,Main!$B$27:$C$32,2,FALSE)) -> 0 | E186: =Products!K106*C186 -> 0
A187: 200136 | B187: =Sensors!B18 -> Saunový senzor teplota/vlhkost | C187: =IF(ISNA(VLOOKUP(B187,Main!$B$27:$C$32,2,FALSE)),0,VLOOKUP(B187,Main!$B$27:$C$32,2,FALSE)) -> 0 | D187: =Products!J109*C187 -> 0
A188: 200154 | B188: =Sensors!B19 -> Senzor tlaku 0-10V | C188: =IF(ISNA(VLOOKUP(B188,Main!$B$27:$C$32,2,FALSE)),0,VLOOKUP(B188,Main!$B$27:$C$32,2,FALSE)) -> 0 | D188: =Products!J115*C188 -> 0
A189: 200155 | B189: =Sensors!B20 -> Senzor rozbití okna 24V | C189: =IF(ISNA(VLOOKUP(B189,Main!$B$27:$C$32,2,FALSE)),0,VLOOKUP(B189,Main!$B$27:$C$32,2,FALSE)) -> 0 | E189: =Products!K116*C189 -> 0
B190: =Sensors!B21 -> Pohybový senzor Tree anthrazit | C190: =IF(ISNA(VLOOKUP(B190,Main!$B$27:$C$32,2,FALSE)),0,VLOOKUP(B190,Main!$B$27:$C$32,2,FALSE)) -> 0 | K190: =C190*Products!N152 -> 0
B191: =Sensors!B22 -> Motion Sensor Tree bilá | C191: =IF(ISNA(VLOOKUP(B191,Main!$B$27:$C$32,2,FALSE)),0,VLOOKUP(B191,Main!$B$27:$C$32,2,FALSE)) -> 0 | K191: =C191*Products!N153 -> 0
B192: =Sensors!B23 -> Záplavový senzor Air | C192: =IF(ISNA(VLOOKUP(B192,Main!$B$27:$C$32,2,FALSE)),0,VLOOKUP(B192,Main!$B$27:$C$32,2,FALSE)) -> 0 | I192: =C192*Products!N154 -> 0 | L192: =C192 -> 0
B193: =Sensors!B24 -> Okenní a dveřní kontakt Air anthrazit | C193: =IF(ISNA(VLOOKUP(B193,Main!$B$27:$C$32,2,FALSE)),0,VLOOKUP(B193,Main!$B$27:$C$32,2,FALSE)) -> 0 | I193: =C193*Products!N155 -> 0 | L193: =C193 -> 0
B194: =Sensors!B25 -> Okenní a dveřní kontakt Air bílá | C194: =IF(ISNA(VLOOKUP(B194,Main!$B$27:$C$32,2,FALSE)),0,VLOOKUP(B194,Main!$B$27:$C$32,2,FALSE)) -> 0 | I194: =C194*Products!N156 -> 0 | L194: 0
B195: =Sensors!B26 -> Digital IN (Reserve) | C195: =IF(ISNA(VLOOKUP(B195,Main!$B$27:$C$32,2,FALSE)),0,VLOOKUP(B195,Main!$B$27:$C$32,2,FALSE)) -> 0 | E195: =C195 -> 0
B196: =Sensors!B27 -> Analog IN (Reserve) | C196: =IF(ISNA(VLOOKUP(B196,Main!$B$27:$C$32,2,FALSE)),0,VLOOKUP(B196,Main!$B$27:$C$32,2,FALSE)) -> 0 | D196: =C196 -> 0
B197: =Products!D187 -> Okenní klika Air | C197: =IF(ISNA(VLOOKUP(B197,Main!$B$27:$C$32,2,FALSE)),0,VLOOKUP(B197,Main!$B$27:$C$32,2,FALSE)) -> 0 | L197: =C197 -> 0
B198: =Products!D189 -> Meteostanice Tree | C198: =IF(ISNA(VLOOKUP(B198,Main!$B$27:$C$32,2,FALSE)),0,VLOOKUP(B198,Main!$B$27:$C$32,2,FALSE)) -> 0 | K198: =C198 -> 0
B199: =Products!D190 -> Meteostanice Air | C199: =IF(ISNA(VLOOKUP(B199,Main!$B$27:$C$32,2,FALSE)),0,VLOOKUP(B199,Main!$B$27:$C$32,2,FALSE)) -> 0 | L199: =C199 -> 0
C200: Summe | D200: =SUM(D171:D199) -> 0 | E200: 9 | F200: 0 | G200: 0 | H200: 0 | I200: 0 | J200: 0 | K200: 0 | L200: =SUM(L171:L199) -> 0
B203: Verteiler | C203: Anzahl
A204: 200168 | B204: =Distributors!B2 -> Svorka na DIN lištu PPV8 (20 kusů) | C204: =IF(ISNA(VLOOKUP(B204,Main!$B$81:$C$90,2,FALSE)),0,VLOOKUP(B204,Main!$B$81:$C$90,2,FALSE)) -> 0
A205: 200169 | B205: =Distributors!B3 -> Propojovací rozvaděč PRV8 (20 kusů) | C205: =IF(ISNA(VLOOKUP(B205,Main!$B$81:$C$90,2,FALSE)),0,VLOOKUP(B205,Main!$B$81:$C$90,2,FALSE)) -> 0
A206: 200170 | B206: =Distributors!B4 -> Předělovací deska PRV8 (10 ks) | C206: =IF(ISNA(VLOOKUP(B206,Main!$B$81:$C$90,2,FALSE)),0,VLOOKUP(B206,Main!$B$81:$C$90,2,FALSE)) -> 0
A207: 200171 | B207: =Distributors!B5 -> Držák na značky pro PPV8/PRV8 (20ks) | C207: =IF(ISNA(VLOOKUP(B207,Main!$B$81:$C$90,2,FALSE)),0,VLOOKUP(B207,Main!$B$81:$C$90,2,FALSE)) -> 0
A208: 200172 | B208: =Distributors!B6 -> Bočnice pro PPV8/PRV8 (10 ks) | C208: =IF(ISNA(VLOOKUP(B208,Main!$B$81:$C$90,2,FALSE)),0,VLOOKUP(B208,Main!$B$81:$C$90,2,FALSE)) -> 0
A209: 200173 | B209: =Distributors!B7 -> Svorka na připojení motoru PMAK4 (50 ks) | C209: =IF(ISNA(VLOOKUP(B209,Main!$B$81:$C$90,2,FALSE)),0,VLOOKUP(B209,Main!$B$81:$C$90,2,FALSE)) -> 0
A210: 200174 | B210: =Distributors!B8 -> Bočnice pro PMAK4 (20 ks) | C210: =IF(ISNA(VLOOKUP(B210,Main!$B$81:$C$90,2,FALSE)),0,VLOOKUP(B210,Main!$B$81:$C$90,2,FALSE)) -> 0
A211: 200175 | B211: =Distributors!B9 -> Svorkovnice PDL (50ks) | C211: =IF(ISNA(VLOOKUP(B211,Main!$B$81:$C$90,2,FALSE)),0,VLOOKUP(B211,Main!$B$81:$C$90,2,FALSE)) -> 0
A212: 200176 | B212: =Distributors!B10 -> Koncová podpěra svorkovnice ZEW (20 ks) | C212: =IF(ISNA(VLOOKUP(B212,Main!$B$81:$C$90,2,FALSE)),0,VLOOKUP(B212,Main!$B$81:$C$90,2,FALSE)) -> 0
A213: 200177 | B213: =Distributors!B11 -> Bočnice pro PDL (20 ks) | C213: =IF(ISNA(VLOOKUP(B213,Main!$B$81:$C$90,2,FALSE)),0,VLOOKUP(B213,Main!$B$81:$C$90,2,FALSE)) -> 0
A214: 200178 | B214: =Distributors!B12 -> Pojistková svorkovnice (25 ks) | C214: =IF(ISNA(VLOOKUP(B214,Main!$B$81:$C$90,2,FALSE)),0,VLOOKUP(B214,Main!$B$81:$C$90,2,FALSE)) -> 0
A215: 200179 | B215: =Distributors!B13 -> Bočnice pojistkové svorkovnice (50 ks) | C215: =IF(ISNA(VLOOKUP(B215,Main!$B$81:$C$90,2,FALSE)),0,VLOOKUP(B215,Main!$B$81:$C$90,2,FALSE)) -> 0
A216: 200180 | B216: =Distributors!B14 -> 24 pólová propojka WEIDMÜLLER (10ks) | C216: =IF(ISNA(VLOOKUP(B216,Main!$B$81:$C$90,2,FALSE)),0,VLOOKUP(B216,Main!$B$81:$C$90,2,FALSE)) -> 0
A217: 200181 | B217: =Distributors!B15 -> Pojistka 2A | C217: =IF(ISNA(VLOOKUP(B217,Main!$B$81:$C$90,2,FALSE)),0,VLOOKUP(B217,Main!$B$81:$C$90,2,FALSE)) -> 0
A218: 200183 | B218: =Distributors!B16 -> Pojistka 5A (100ks) | C218: =IF(ISNA(VLOOKUP(B218,Main!$B$81:$C$90,2,FALSE)),0,VLOOKUP(B218,Main!$B$81:$C$90,2,FALSE)) -> 0
A219: 200184 | B219: =Distributors!B17 -> Pojistka 10A (100ks) | C219: =IF(ISNA(VLOOKUP(B219,Main!$B$81:$C$90,2,FALSE)),0,VLOOKUP(B219,Main!$B$81:$C$90,2,FALSE)) -> 0
... 286 more rows

Sheet Translating_products (hidden)
A1: DE | C1: PRICES WITH A , not a . | F1: EN_UK | K1: EN_US | P1: FR | U1: ES | Z1: CZ | AE1: IT | AJ1: CHE | AO1: SK | AT1: NL | AY1: FI | BD1: HU | BH1: IE | BM1: reserviert | BR1: reserviert | BW1: reserviert | CB1: reserviert
B2: Info: DO NOT CHANGE THE ORDER OF THE LIST | G2: Info: DO NOT CHANGE THE ORDER OF THE LIST | L2: Info: DO NOT CHANGE THE ORDER OF THE LIST | Q2: Info: DO NOT CHANGE THE ORDER OF THE LIST | V2: Info: DO NOT CHANGE THE ORDER OF THE LIST | AA2: Info: DO NOT CHANGE THE ORDER OF THE LIST | AF2: Info: DO NOT CHANGE THE ORDER OF THE LIST | AK2: Info: DO NOT CHANGE THE ORDER OF THE LIST | AP2: Info: DO NOT CHANGE THE ORDER OF THE LIST | AU2: Info: DO NOT CHANGE THE ORDER OF THE LIST | AZ2: Info: DO NOT CHANGE THE ORDER OF THE LIST | BE2: Info: DO NOT CHANGE THE ORDER OF THE LIST | BI2: Info: DO NOT CHANGE THE ORDER OF THE LIST | BN2: Info: DO NOT CHANGE THE ORDER OF THE LIST | BS2: Info: DO NOT CHANGE THE ORDER OF THE LIST | BX2: Info: DO NOT CHANGE THE ORDER OF THE LIST | CC2: Info: DO NOT CHANGE THE ORDER OF THE LIST | CH2: DO | CI2: NOT | CN2: Just for the easier use of the function
A3: Art. Nr. | B3: Name | C3: Netto | F3: Item Nr. | G3: Name | H3: excl. Taxes | K3: Item Nr. | L3: Name | M3: excl. Taxes | P3: Item Nr. | Q3: Name | R3: excl. Taxes | U3: Item Nr. | V3: Name | W3: excl. Taxes | Z3: Item Nr. | AA3: Name | AB3: excl. Taxes | AE3: Item Nr. | AF3: Name | AG3: excl. Taxes | AJ3: Item Nr. | AK3: Name | AL3: excl. Taxes | AO3: Item Nr. | AP3: Name | AQ3: excl. Taxes | AT3: Item Nr. | AU3: Name | AV3: excl. Taxes | AY3: Item Nr. | AZ3: Name | BA3: excl. Taxes | BD3: Item Nr. | BE3: Name | BF3: excl. Taxes | BH3: Item Nr. | BI3: Name | BJ3: excl. Taxes | BM3: Item Nr. | BN3: Name | BO3: excl. Taxes | BR3: Item Nr. | BS3: Name | BT3: excl. Taxes | BW3: Item Nr. | BX3: Name | BY3: excl. Taxes | CB3: Item Nr. | CC3: Name | CD3: excl. Taxes | CH3: CHANGE | CI3: HERE | CM3: Zeilennr. | CN3: =A3 -> Art. Nr. | CO3: =F3 -> Item Nr. | CP3: =K3 -> Item Nr. | CQ3: =P3 -> Item Nr. | CR3: =U3 -> Item Nr. | CS3: =Z3 -> Item Nr. | CT3: =AE3 -> Item Nr. | CU3: =AJ3 -> Item Nr. | CV3: =AO3 -> Item Nr. | CW3: =AT3 -> Item Nr. | CX3: =AY3 -> Item Nr. | CY3: =BD3 -> Item Nr. | CZ3: =BH3 -> Item Nr. | DA3: =BM3 -> Item Nr. | DB3: =BR3 -> Item Nr. | DC3: =BW3 -> Item Nr. | DD3: =CB3 -> Item Nr. | DI3: =B3 -> Name | DJ3: =G3 -> Name | DK3: =L3 -> Name | DL3: =Q3 -> Name | DM3: =V3 -> Name | DN3: =$AA$3 -> Name | DO3: =$AF$3 -> Name | DP3: =$AK$3 -> Name | DQ3: =$AP$3 -> Name | DR3: =$AU$3 -> Name | DS3: =$AZ$3 -> Name | DT3: =$BE$3 -> Name | DU3: =$BI$3 -> Name | DV3: =$BN$3 -> Name | DW3: =$BS$3 -> Name | DX3: =$BX$3 -> Name | DY3: =$CC$3 -> Name | EE3: =C3 -> Netto | EF3: =H3 -> excl. Taxes | EG3: =M3 -> excl. Taxes | EH3: =R3 -> excl. Taxes | EI3: =W3 -> excl. Taxes | EJ3: =AB3 -> excl. Taxes | EK3: =AG3 -> excl. Taxes | EL3: =AL3 -> excl. Taxes | EM3: =AQ3 -> excl. Taxes | EN3: =AV3 -> excl. Taxes | EO3: =BA3 -> excl. Taxes | EP3: =BF3 -> excl. Taxes | EQ3: =BJ3 -> excl. Taxes | ER3: =BO3 -> excl. Taxes | ES3: =BT3 -> excl. Taxes | ET3: =BY3 -> excl. Taxes | EU3: =CD3 -> excl. Taxes
A4: DE | B4: DE | C4: DE | D4: DE is just for | F4: EN_UK | G4: EN_UK | H4: EN_UK | K4: EN_US | L4: EN_US | M4: EN_US | P4: FR | Q4: FR | R4: FR | U4: ES | V4: ES | W4: ES | Z4: CZ | AA4: CZ | AB4: CZ | AE4: IT | AF4: IT | AG4: IT | AJ4: CHE | AK4: CHE | AL4: CHE | AO4: SK | AP4: SK | AQ4: SK | AT4: NL | AU4: NL | AV4: NL | AY4: FI | AZ4: FI | BA4: FI | BD4: HU | BE4: HU | BF4: HU | BH4: IE | BI4: IE | BJ4: IE | BM4: name = how you select it in the lookup | BR4: name = how you select it in the lookup | BW4: name = how you select it in the lookup | CB4: name = how you select it in the lookup | CM4: 1 | CN4: =A4 -> DE | CO4: =F4 -> EN_UK | CP4: =K4 -> EN_US | CQ4: =P4 -> FR | CR4: =U4 -> ES | CS4: =Z4 -> CZ | CT4: =AE4 -> IT | CU4: =AJ4 -> CHE | CV4: =AO4 -> SK | CW4: =AT4 -> NL | CX4: =AY4 -> FI | CY4: =BD4 -> HU | CZ4: =BH4 -> IE | DA4: =BM4 -> name = how you select it in the lookup | DB4: =BR4 -> name = how you select it in the lookup | DC4: =BW4 -> name = how you select it in the lookup | DD4: =CB4 -> name = how you select it in the lookup | DI4: =B4 -> DE | DJ4: =G4 -> EN_UK | DK4: =L4 -> EN_US | DL4: =Q4 -> FR | DM4: =V4 -> ES | DN4: =AA4 -> CZ | DO4: =AF4 -> IT | DP4: =AK4 -> CHE | DQ4: =AP4 -> SK | DR4: =AU4 -> NL | DS4: =AZ4 -> FI | DT4: =BE4 -> HU | DU4: =BI4 -> IE | DV4: =BN4 -> 0 | DW4: =BS4 -> 0 | DX4: =BX4 -> 0 | DY4: =CC4 -> 0 | EE4: =C4 -> DE | EF4: =H4 -> EN_UK | EG4: =M4 -> EN_US | EH4: =R4 -> FR | EI4: =W4 -> ES | EJ4: =AB4 -> CZ | EK4: =AG4 -> IT | EL4: =AL4 -> CHE | EM4: =AQ4 -> SK | EN4: =AV4 -> NL | EO4: =BA4 -> FI | EP4: =BF4 -> HU | EQ4: =BJ4 -> IE | ER4: =BO4 -> 0 | ES4: =BT4 -> 0 | ET4: =BY4 -> 0 | EU4: =CD4 -> 0
A5: 100001 | B5: Miniserver | C5: 415 | D5: lookup function | F5: 100001 | G5: Miniserver | H5: 357.5 | K5: 100001 | L5: Miniserver | M5: 549 | P5: 100001 | Q5: Miniserver | R5: 415 | U5: 100001 | V5: Miniserver | W5: 415 | Z5: 100001 | AA5: Miniserver | AB5: 10329.75 | AE5: 100001 | AF5: Miniserver | AG5: 415 | AJ5: 100001 | AK5: Miniserver | AL5: 489.82 | AO5: 100001 | AP5: Miniserver | AQ5: 415 | AT5: 100001 | AU5: Miniserver | AV5: 415 | AY5: Not done | AZ5: not translated yet | BA5: Not done | BD5: Not done | BE5: not translated yet | BF5: Not done | BH5: Not done | BI5: not translated yet | BJ5: Not done | BM5: Not done | BN5: not translated yet | BO5: Not done | BR5: Not done | BS5: not translated yet | BT5: Not done | BW5: Not done | BX5: not translated yet | BY5: Not done | CB5: Not done | CC5: not translated yet | CD5: Not done | CM5: 2 | CN5: =A5 -> 100001 | CO5: 100001 | CP5: =K5 -> 100001 | CQ5: =P5 -> 100001 | CR5: =U5 -> 100001 | CS5: =Z5 -> 100001 | CT5: =AE5 -> 100001 | CU5: =AJ5 -> 100001 | CV5: =AO5 -> 100001 | CW5: =AT5 -> 100001 | CX5: =AY5 -> Not done | CY5: =BD5 -> Not done | CZ5: =BH5 -> Not done | DA5: =BM5 -> Not done | DB5: =BR5 -> Not done | DC5: =BW5 -> Not done | DD5: =CB5 -> Not done | DI5: =B5 -> Miniserver | DJ5: =G5 -> Miniserver | DK5: =L5 -> Miniserver | DL5: =Q5 -> Miniserver | DM5: =V5 -> Miniserver | DN5: =AA5 -> Miniserver | DO5: =AF5 -> Miniserver | DP5: =AK5 -> Miniserver | DQ5: =AP5 -> Miniserver | DR5: =AU5 -> Miniserver | DS5: =AZ5 -> not translated yet | DT5: =BE5 -> not translated yet | DU5: =BI5 -> not translated yet | DV5: =BN5 -> not translated yet | DW5: =BS5 -> not translated yet | DX5: =BX5 -> not translated yet | DY5: =CC5 -> not translated yet | EE5: =C5 -> 415 | EF5: =H5 -> 357.5 | EG5: =M5 -> 549 | EH5: =R5 -> 415 | EI5: =W5 -> 415 | EJ5: =AB5 -> 10329.75 | EK5: =AG5 -> 415 | EL5: =AL5 -> 489.82 | EM5: =AQ5 -> 415 | EN5: =AV5 -> 415 | EO5: =BA5 -> Not done | EP5: =BF5 -> Not done | EQ5: =BJ5 -> Not done | ER5: =BO5 -> Not done | ES5: =BT5 -> Not done | ET5: =BY5 -> Not done | EU5: =CD5 -> Not done
A6: 100002 | B6: Extension | C6: 331.67 | F6: 100002 | G6: Extension | H6: 282.5 | K6: 100002 | L6: Extension | M6: 449 | P6: 100002 | Q6: Extension | R6: 331.67 | U6: 100002 | V6: Extension | W6: 331.67 | Z6: 100002 | AA6: Extension | AB6: 8263.64 | AE6: 100002 | AF6: Extension | AG6: 331.67 | AJ6: 100002 | AK6: Extension | AL6: 406.48 | AO6: 100002 | AP6: Extension | AQ6: 331.67 | AT6: 100002 | AU6: Extension | AV6: 331.67 | AY6: Not done | AZ6: not translated yet | BA6: Not done | BD6: Not done | BE6: not translated yet | BF6: Not done | BH6: Not done | BI6: not translated yet | BJ6: Not done | BM6: Not done | BN6: not translated yet | BO6: Not done | BR6: Not done | BS6: not translated yet | BT6: Not done | BW6: Not done | BX6: not translated yet | BY6: Not done | CB6: Not done | CC6: not translated yet | CD6: Not done | CM6: 3 | CN6: 100002 | CO6: 100002 | CP6: 100002 | CQ6: 100002 | CR6: 100002 | CS6: 100002 | CT6: 100002 | CU6: 100002 | CV6: 100002 | CW6: 100002 | CX6: Not done | CY6: Not done | CZ6: Not done | DA6: Not done | DB6: Not done | DC6: Not done | DD6: Not done | DI6: Extension | DJ6: Extension | DK6: Extension | DL6: Extension | DM6: Extension | DN6: Extension | DO6: Extension | DP6: Extension | DQ6: Extension | DR6: Extension | DS6: not translated yet | DT6: not translated yet | DU6: not translated yet | DV6: not translated yet | DW6: not translated yet | DX6: not translated yet | DY6: not translated yet | EE6: 331.67 | EF6: 282.5 | EG6: 449 | EH6: 331.67 | EI6: 331.67 | EJ6: 8263.64 | EK6: 331.67 | EL6: 406.48 | EM6: 331.67 | EN6: 331.67 | EO6: Not done | EP6: Not done | EQ6: Not done | ER6: Not done | ES6: Not done | ET6: Not done | EU6: Not done
A7: 100004 | B7: Rollup Aufsteller | C7: 190 | F7: 100005 | G7: Rollup Banner English | H7: 82.5 | K7: 100005 | L7: Rollup Banner English | M7: 119 | P7: 100046 | Q7: Rollup FR | R7: 190 | U7: 100004 | V7: Rollup Loxone | W7: 190 | Z7: 100040 | AA7: Rollup český | AB7: 2699 | AE7: 100004 | AF7: Rollup Espositore | AG7: 190 | AJ7: 100004 | AK7: Rollup Aufsteller | AL7: 119.44 | AO7: 100040 | AP7: Rollup český | AQ7: 190 | AT7: 100042 | AU7: Rollup Banner Nederlands | AV7: 190 | AY7: Not done | AZ7: not translated yet | BA7: Not done | BD7: Not done | BE7: not translated yet | BF7: Not done | BH7: Not done | BI7: not translated yet | BJ7: Not done | BM7: Not done | BN7: not translated yet | BO7: Not done | BR7: Not done | BS7: not translated yet | BT7: Not done | BW7: Not done | BX7: not translated yet | BY7: Not done | CB7: Not done | CC7: not translated yet | CD7: Not done | CM7: 4 | CN7: 100004 | CO7: 100005 | CP7: 100005 | CQ7: 100046 | CR7: 100004 | CS7: 100040 | CT7: 100004 | CU7: 100004 | CV7: 100040 | CW7: 100042 | CX7: Not done | CY7: Not done | CZ7: Not done | DA7: Not done | DB7: Not done | DC7: Not done | DD7: Not done | DI7: Rollup Aufsteller | DJ7: Rollup Banner English | DK7: Rollup Banner English | DL7: Rollup FR | DM7: Rollup Loxone | DN7: Rollup český | DO7: Rollup Espositore | DP7: Rollup Aufsteller | DQ7: Rollup český | DR7: Rollup Banner Nederlands | DS7: not translated yet | DT7: not translated yet | DU7: not translated yet | DV7: not translated yet | DW7: not translated yet | DX7: not translated yet | DY7: not translated yet | EE7: 190 | EF7: 82.5 | EG7: 119 | EH7: 190 | EI7: 190 | EJ7: 2699 | EK7: 190 | EL7: 119.44 | EM7: 190 | EN7: 190 | EO7: Not done | EP7: Not done | EQ7: Not done | ER7: Not done | ES7: Not done | ET7: Not done | EU7: Not done
A8: 100008 | B8: SD-Karte mit Firmware | C8: 9.92 | F8: 100008 | G8: Micro SD Card with firmware | H8: 8.75 | K8: 100008 | L8: Micro SD Card with firmware | M8: 14 | P8: 100008 | Q8: Micro SD Card avec firmware | R8: 9.92 | U8: 100008 | V8: Tarjeta SD con Firmware | W8: 9.92 | Z8: 100008 | AA8: SD-Karta s firmwarem | AB8: 247.11 | AE8: 100008 | AF8: Scheda SD con Firmware | AG8: 9.92 | AJ8: 100008 | AK8: SD-Karte mit Firmware | AL8: 11.99 | AO8: 100008 | AP8: SD-Karta s firmwarem | AQ8: 9.92 | AT8: 100008 | AU8: Micro SD Kaart met firmware | AV8: 9.92 | AY8: Not done | AZ8: not translated yet | BA8: Not done | BD8: Not done | BE8: not translated yet | BF8: Not done | BH8: Not done | BI8: not translated yet | BJ8: Not done | BM8: Not done | BN8: not translated yet | BO8: Not done | BR8: Not done | BS8: not translated yet | BT8: Not done | BW8: Not done | BX8: not translated yet | BY8: Not done | CB8: Not done | CC8: not translated yet | CD8: Not done | CM8: 5 | CN8: 100008 | CO8: 100008 | CP8: 100008 | CQ8: 100008 | CR8: 100008 | CS8: 100008 | CT8: 100008 | CU8: 100008 | CV8: 100008 | CW8: 100008 | CX8: Not done | CY8: Not done | CZ8: Not done | DA8: Not done | DB8: Not done | DC8: Not done | DD8: Not done | DI8: SD-Karte mit Firmware | DJ8: Micro SD Card with firmware | DK8: Micro SD Card with firmware | DL8: Micro SD Card avec firmware | DM8: Tarjeta SD con Firmware | DN8: SD-Karta s firmwarem | DO8: Scheda SD con Firmware | DP8: SD-Karte mit Firmware | DQ8: SD-Karta s firmwarem | DR8: Micro SD Kaart met firmware | DS8: not translated yet | DT8: not translated yet | DU8: not translated yet | DV8: not translated yet | DW8: not translated yet | DX8: not translated yet | DY8: not translated yet | EE8: 9.92 | EF8: 8.75 | EG8: 14 | EH8: 9.92 | EI8: 9.92 | EJ8: 247.11 | EK8: 9.92 | EL8: 11.99 | EM8: 9.92 | EN8: 9.92 | EO8: Not done | EP8: Not done | EQ8: Not done | ER8: Not done | ES8: Not done | ET8: Not done | EU8: Not done
A9: 100011 | B9: RS485 Extension | C9: 140.84 | F9: 100011 | G9: RS485 Extension | H9: 122.5 | K9: 100011 | L9: RS485 Extension | M9: 199 | P9: 100011 | Q9: Extension RS485 | R9: 140.84 | U9: 100011 | V9: RS485 Extension | W9: 140.84 | Z9: 100011 | AA9: RS485 Extension | AB9: 3511.57 | AE9: 100011 | AF9: RS485 Extension | AG9: 140.84 | AJ9: 100011 | AK9: RS485 Extension | AL9: 175 | AO9: 100011 | AP9: RS485 Extension | AQ9: 140.84 | AT9: 100011 | AU9: RS485 Extension | AV9: 140.84 | AY9: Not done | AZ9: not translated yet | BA9: Not done | BD9: Not done | BE9: not translated yet | BF9: Not done | BH9: Not done | BI9: not translated yet | BJ9: Not done | BM9: Not done | BN9: not translated yet | BO9: Not done | BR9: Not done | BS9: not translated yet | BT9: Not done | BW9: Not done | BX9: not translated yet | BY9: Not done | CB9: Not done | CC9: not translated yet | CD9: Not done | CM9: 6 | CN9: 100011 | CO9: 100011 | CP9: 100011 | CQ9: 100011 | CR9: 100011 | CS9: 100011 | CT9: 100011 | CU9: 100011 | CV9: 100011 | CW9: 100011 | CX9: Not done | CY9: Not done | CZ9: Not done | DA9: Not done | DB9: Not done | DC9: Not done | DD9: Not done | DI9: RS485 Extension | DJ9: RS485 Extension | DK9: RS485 Extension | DL9: Extension RS485 | DM9: RS485 Extension | DN9: RS485 Extension | DO9: RS485 Extension | DP9: RS485 Extension | DQ9: RS485 Extension | DR9: RS485 Extension | DS9: not translated yet | DT9: not translated yet | DU9: not translated yet | DV9: not translated yet | DW9: not translated yet | DX9: not translated yet | DY9: not translated yet | EE9: 140.84 | EF9: 122.5 | EG9: 199 | EH9: 140.84 | EI9: 140.84 | EJ9: 3511.57 | EK9: 140.84 | EL9: 175 | EM9: 140.84 | EN9: 140.84 | EO9: Not done | EP9: Not done | EQ9: Not done | ER9: Not done | ES9: Not done | ET9: Not done | EU9: Not done
A10: 100012 | B10: DMX Extension | C10: 224.17 | F10: 100012 | G10: DMX Extension | H10: 197.5 | K10: 100012 | L10: DMX Extension | M10: 299 | P10: 100012 | Q10: Extension DMX | R10: 224.17 | U10: 100012 | V10: DMX Extension | W10: 224.17 | Z10: 100012 | AA10: DMX Extension | AB10: 5619.01 | AE10: 100012 | AF10: DMX Extension | AG10: 224.17 | AJ10: 100012 | AK10: DMX Extension | AL10: 276.85 | AO10: 100012 | AP10: DMX Extension | AQ10: 224.17 | AT10: 100012 | AU10: DMX Extension | AV10: 224.17 | AY10: Not done | AZ10: not translated yet | BA10: Not done | BD10: Not done | BE10: not translated yet | BF10: Not done | BH10: Not done | BI10: not translated yet | BJ10: Not done | BM10: Not done | BN10: not translated yet | BO10: Not done | BR10: Not done | BS10: not translated yet | BT10: Not done | BW10: Not done | BX10: not translated yet | BY10: Not done | CB10: Not done | CC10: not translated yet | CD10: Not done | CM10: 7 | CN10: 100012 | CO10: 100012 | CP10: 100012 | CQ10: 100012 | CR10: 100012 | CS10: 100012 | CT10: 100012 | CU10: 100012 | CV10: 100012 | CW10: 100012 | CX10: Not done | CY10: Not done | CZ10: Not done | DA10: Not done | DB10: Not done | DC10: Not done | DD10: Not done | DI10: DMX Extension | DJ10: DMX Extension | DK10: DMX Extension | DL10: Extension DMX | DM10: DMX Extension | DN10: DMX Extension | DO10: DMX Extension | DP10: DMX Extension | DQ10: DMX Extension | DR10: DMX Extension | DS10: not translated yet | DT10: not translated yet | DU10: not translated yet | DV10: not translated yet | DW10: not translated yet | DX10: not translated yet | DY10: not translated yet | EE10: 224.17 | EF10: 197.5 | EG10: 299 | EH10: 224.17 | EI10: 224.17 | EJ10: 5619.01 | EK10: 224.17 | EL10: 276.85 | EM10: 224.17 | EN10: 224.17 | EO10: Not done | EP10: Not done | EQ10: Not done | ER10: Not done | ES10: Not done | ET10: Not done | EU10: Not done
A11: 100013 | B11: RS232 Extension | C11: 140.84 | F11: 100013 | G11: RS 232 Extension | H11: 122.5 | K11: 100013 | L11: RS 232 Extension | M11: 199 | P11: 100013 | Q11: Extension RS 232 | R11: 140.84 | U11: 100013 | V11: RS232 Extension | W11: 140.84 | Z11: 100013 | AA11: RS 232 Extension | AB11: 3511.57 | AE11: 100013 | AF11: RS232 Extension | AG11: 140.84 | AJ11: 100013 | AK11: RS232 Extension | AL11: 175 | AO11: 100013 | AP11: RS 232 Extension | AQ11: 140.84 | AT11: 100013 | AU11: RS 232 Extension | AV11: 140.84 | AY11: Not done | AZ11: not translated yet | BA11: Not done | BD11: Not done | BE11: not translated yet | BF11: Not done | BH11: Not done | BI11: not translated yet | BJ11: Not done | BM11: Not done | BN11: not translated yet | BO11: Not done | BR11: Not done | BS11: not translated yet | BT11: Not done | BW11: Not done | BX11: not translated yet | BY11: Not done | CB11: Not done | CC11: not translated yet | CD11: Not done | CM11: 8 | CN11: 100013 | CO11: 100013 | CP11: 100013 | CQ11: 100013 | CR11: 100013 | CS11: 100013 | CT11: 100013 | CU11: 100013 | CV11: 100013 | CW11: 100013 | CX11: Not done | CY11: Not done | CZ11: Not done | DA11: Not done | DB11: Not done | DC11: Not done | DD11: Not done | DI11: RS232 Extension | DJ11: RS 232 Extension | DK11: RS 232 Extension | DL11: Extension RS 232 | DM11: RS232 Extension | DN11: RS 232 Extension | DO11: RS232 Extension | DP11: RS232 Extension | DQ11: RS 232 Extension | DR11: RS 232 Extension | DS11: not translated yet | DT11: not translated yet | DU11: not translated yet | DV11: not translated yet | DW11: not translated yet | DX11: not translated yet | DY11: not translated yet | EE11: 140.84 | EF11: 122.5 | EG11: 199 | EH11: 140.84 | EI11: 140.84 | EJ11: 3511.57 | EK11: 140.84 | EL11: 175 | EM11: 140.84 | EN11: 140.84 | EO11: Not done | EP11: Not done | EQ11: Not done | ER11: Not done | ES11: Not done | ET11: Not done | EU11: Not done
A12: 100014 | B12: 1-wire Extension | C12: 140.84 | F12: 100014 | G12: 1-Wire Extension | H12: 122.5 | K12: 100014 | L12: 1-Wire Extension | M12: 199 | P12: 100014 | Q12: Extension 1-Wire | R12: 140.84 | U12: 100014 | V12: 1-wire Extension | W12: 140.84 | Z12: 100014 | AA12: 1-Wire Extension | AB12: 3511.57 | AE12: 100014 | AF12: 1-wire Extension | AG12: 140.84 | AJ12: 100014 | AK12: 1-wire Extension | AL12: 175 | AO12: 100014 | AP12: 1-Wire Extension | AQ12: 140.84 | AT12: 100014 | AU12: 1-Wire Extension | AV12: 140.84 | AY12: Not done | AZ12: not translated yet | BA12: Not done | BD12: Not done | BE12: not translated yet | BF12: Not done | BH12: Not done | BI12: not translated yet | BJ12: Not done | BM12: Not done | BN12: not translated yet | BO12: Not done | BR12: Not done | BS12: not translated yet | BT12: Not done | BW12: Not done | BX12: not translated yet | BY12: Not done | CB12: Not done | CC12: not translated yet | CD12: Not done | CM12: 9 | CN12: 100014 | CO12: 100014 | CP12: 100014 | CQ12: 100014 | CR12: 100014 | CS12: 100014 | CT12: 100014 | CU12: 100014 | CV12: 100014 | CW12: 100014 | CX12: Not done | CY12: Not done | CZ12: Not done | DA12: Not done | DB12: Not done | DC12: Not done | DD12: Not done | DI12: 1-wire Extension | DJ12: 1-Wire Extension | DK12: 1-Wire Extension | DL12: Extension 1-Wire | DM12: 1-wire Extension | DN12: 1-Wire Extension | DO12: 1-wire Extension | DP12: 1-wire Extension | DQ12: 1-Wire Extension | DR12: 1-Wire Extension | DS12: not translated yet | DT12: not translated yet | DU12: not translated yet | DV12: not translated yet | DW12: not translated yet | DX12: not translated yet | DY12: not translated yet | EE12: 140.84 | EF12: 122.5 | EG12: 199 | EH12: 140.84 | EI12: 140.84 | EJ12: 3511.57 | EK12: 140.84 | EL12: 175 | EM12: 140.84 | EN12: 140.84 | EO12: Not done | EP12: Not done | EQ12: Not done | ER12: Not done | ES12: Not done | ET12: Not done | EU12: Not done
A13: 100015 | B13: EnOcean Extension | C13: 249.17 | F13: 100015 | G13: Enocean Extension | H13: 212.5 | K13: not available in this country | L13: not available in this country | M13: 0 | P13: 100015 | Q13: Extension Enocean | R13: 249.17 | U13: 100015 | V13: EnOcean Extension | W13: 249.17 | Z13: 100015 | AA13: Enocean Extension | AB13: 6197.52 | AE13: 100015 | AF13: EnOcean Extension | AG13: 249.17 | AJ13: 100015 | AK13: EnOcean Extension | AL13: 310.19 | AO13: 100015 | AP13: Enocean Extension | AQ13: 249.17 | AT13: 100015 | AU13: Enocean Extension | AV13: 249.17 | AY13: Not done | AZ13: not translated yet | BA13: Not done | BD13: Not done | BE13: not translated yet | BF13: Not done | BH13: Not done | BI13: not translated yet | BJ13: Not done | BM13: Not done | BN13: not translated yet | BO13: Not done | BR13: Not done | BS13: not translated yet | BT13: Not done | BW13: Not done | BX13: not translated yet | BY13: Not done | CB13: Not done | CC13: not translated yet | CD13: Not done | CM13: 10 | CN13: 100015 | CO13: 100015 | CP13: not available in this country | CQ13: 100015 | CR13: 100015 | CS13: 100015 | CT13: 100015 | CU13: 100015 | CV13: 100015 | CW13: 100015 | CX13: Not done | CY13: Not done | CZ13: Not done | DA13: Not done | DB13: Not done | DC13: Not done | DD13: Not done | DI13: EnOcean Extension | DJ13: Enocean Extension | DK13: not available in this country | DL13: Extension Enocean | DM13: EnOcean Extension | DN13: Enocean Extension | DO13: EnOcean Extension | DP13: EnOcean Extension | DQ13: Enocean Extension | DR13: Enocean Extension | DS13: not translated yet | DT13: not translated yet | DU13: not translated yet | DV13: not translated yet | DW13: not translated yet | DX13: not translated yet | DY13: not translated yet | EE13: 249.17 | EF13: 212.5 | EG13: 0 | EH13: 249.17 | EI13: 249.17 | EJ13: 6197.52 | EK13: 249.17 | EL13: 310.19 | EM13: 249.17 | EN13: 249.17 | EO13: Not done | EP13: Not done | EQ13: Not done | ER13: Not done | ES13: Not done | ET13: Not done | EU13: Not done
A14: 100023 | B14: IR Module | C14: 65.83 | F14: 0 | G14: No longer sold | H14: 57.5 | K14: No longer sold | L14: No longer sold | M14: 0 | P14: 100023 | Q14: IR Module | R14: 65.83 | U14: 100023 | V14: Módulo IR | W14: 65.83 | Z14: 0 | AA14: Neprodává se | AE14: 100023 | AF14: Modulo IR | AG14: 65.83 | AJ14: 100023 | AK14: IR Module | AL14: 88.84 | AO14: 0 | AP14: Neprodává se | AQ14: 65.83 | AT14: 100023 | AU14: IR Module | AV14: 65.83 | AY14: Not done | AZ14: not translated yet | BA14: Not done | BD14: Not done | BE14: not translated yet | BF14: Not done | BH14: Not done | BI14: not translated yet | BJ14: Not done | BM14: Not done | BN14: not translated yet | BO14: Not done | BR14: Not done | BS14: not translated yet | BT14: Not done | BW14: Not done | BX14: not translated yet | BY14: Not done | CB14: Not done | CC14: not translated yet | CD14: Not done | CM14: 11 | CN14: 100023 | CO14: 0 | CP14: No longer sold | CQ14: 100023 | CR14: 100023 | CS14: 0 | CT14: 100023 | CU14: 100023 | CV14: 0 | CW14: 100023 | CX14: Not done | CY14: Not done | CZ14: Not done | DA14: Not done | DB14: Not done | DC14: Not done | DD14: Not done | DI14: IR Module | DJ14: No longer sold | DK14: No longer sold | DL14: IR Module | DM14: Módulo IR | DN14: Neprodává se | DO14: Modulo IR | DP14: IR Module | DQ14: Neprodává se | DR14: IR Module | DS14: not translated yet | DT14: not translated yet | DU14: not translated yet | DV14: not translated yet | DW14: not translated yet | DX14: not translated yet | DY14: not translated yet | EE14: 65.83 | EF14: 57.5 | EG14: 0 | EH14: 65.83 | EI14: 65.83 | EJ14: 0 | EK14: 65.83 | EL14: 88.84 | EM14: 65.83 | EN14: 65.83 | EO14: Not done | EP14: Not done | EQ14: Not done | ER14: Not done | ES14: Not done | ET14: Not done | EU14: Not done
A15: 100025 | B15: Cloud Weather 1 Jahr | C15: 49.92 | F15: 100025 | G15: Weather Service 1 Year | H15: 42.5 | K15: 100025 | L15: Weather Service 1 Year | M15: 69 | P15: 100025 | Q15: Service météo 1 an | R15: 49.92 | U15: 100025 | V15: Servico Meteorológico 1 año | W15: 49.92 | Z15: 100025 | AA15: Weather Service 1 rok | AB15: 1238.84 | AE15: 100025 | AF15: Cloud Weather 1 anno | AG15: 49.92 | AJ15: 100025 | AK15: Cloud Weather 1 Jahr | AL15: 64.77 | AO15: 100025 | AP15: Weather Service 1 rok | AQ15: 49.92 | AT15: 100025 | AU15: Weather Service 1 Jaar | AV15: 49.92 | AY15: Not done | AZ15: not translated yet | BA15: Not done | BD15: Not done | BE15: not translated yet | BF15: Not done | BH15: Not done | BI15: not translated yet | BJ15: Not done | BM15: Not done | BN15: not translated yet | BO15: Not done | BR15: Not done | BS15: not translated yet | BT15: Not done | BW15: Not done | BX15: not translated yet | BY15: Not done | CB15: Not done | CC15: not translated yet | CD15: Not done | CM15: 12 | CN15: 100025 | CO15: 100025 | CP15: 100025 | CQ15: 100025 | CR15: 100025 | CS15: 100025 | CT15: 100025 | CU15: 100025 | CV15: 100025 | CW15: 100025 | CX15: Not done | CY15: Not done | CZ15: Not done | DA15: Not done | DB15: Not done | DC15: Not done | DD15: Not done | DI15: Cloud Weather 1 Jahr | DJ15: Weather Service 1 Year | DK15: Weather Service 1 Year | DL15: Service météo 1 an | DM15: Servico Meteorológico 1 año | DN15: Weather Service 1 rok | DO15: Cloud Weather 1 anno | DP15: Cloud Weather 1 Jahr | DQ15: Weather Service 1 rok | DR15: Weather Service 1 Jaar | DS15: not translated yet | DT15: not translated yet | DU15: not translated yet | DV15: not translated yet | DW15: not translated yet | DX15: not translated yet | DY15: not translated yet | EE15: 49.92 | EF15: 42.5 | EG15: 69 | EH15: 49.92 | EI15: 49.92 | EJ15: 1238.84 | EK15: 49.92 | EL15: 64.77 | EM15: 49.92 | EN15: 49.92 | EO15: Not done | EP15: Not done | EQ15: Not done | ER15: Not done | ES15: Not done | ET15: Not done | EU15: Not done
A16: 100201 | B16: Cloud Weather 10 Jahre | C16: 290.83 | F16: 100201 | G16: Weather Service 10 Year | H16: 240 | K16: 100201 | L16: Weather Service 10 Year | M16: 325 | P16: 100201 | Q16: Service météo 10 ans | R16: 279.2 | U16: 100201 | V16: Servico Meteorológico 10 años | W16: 279.2 | Z16: 100201 | AA16: Weather Service 10 let | AB16: 7899 | AE16: 100201 | AF16: Cloud Weather 10 anno | AG16: 279.2 | AJ16: 100201 | AK16: Cloud Weather 10 Jahre | AL16: 369.44 | AO16: 100201 | AP16: Weather Service 10 let | AQ16: 279.2 | AT16: 100201 | AU16: Weather Service 10 Jaar | AV16: 279.2 | AY16: Not done | AZ16: not translated yet | BA16: Not done | BD16: Not done | BE16: not translated yet | BF16: Not done | BH16: Not done | BI16: not translated yet | BJ16: Not done | BM16: Not done | BN16: not translated yet | BO16: Not done | BR16: Not done | BS16: not translated yet | BT16: Not done | BW16: Not done | BX16: not translated yet | BY16: Not done | CB16: Not done | CC16: not translated yet | CD16: Not done | CM16: 13 | CN16: 100201 | CO16: 100201 | CP16: 100201 | CQ16: 100201 | CR16: 100201 | CS16: 100201 | CT16: 100201 | CU16: 100201 | CV16: 100201 | CW16: 100201 | CX16: Not done | CY16: Not done | CZ16: Not done | DA16: Not done | DB16: Not done | DC16: Not done | DD16: Not done | DI16: Cloud Weather 10 Jahre | DJ16: Weather Service 10 Year | DK16: Weather Service 10 Year | DL16: Service météo 10 ans | DM16: Servico Meteorológico 10 años | DN16: Weather Service 10 let | DO16: Cloud Weather 10 anno | DP16: Cloud Weather 10 Jahre | DQ16: Weather Service 10 let | DR16: Weather Service 10 Jaar | DS16: not translated yet | DT16: not translated yet | DU16: not translated yet | DV16: not translated yet | DW16: not translated yet | DX16: not translated yet | DY16: not translated yet | EE16: 290.83 | EF16: 240 | EG16: 325 | EH16: 279.2 | EI16: 279.2 | EJ16: 7899 | EK16: 279.2 | EL16: 369.44 | EM16: 279.2 | EN16: 279.2 | EO16: Not done | EP16: Not done | EQ16: Not done | ER16: Not done | ES16: Not done | ET16: Not done | EU16: Not done
A17: 100027 | B17: Cloud Caller 1 Jahr | C17: 49.92 | F17: 100027 | G17: Caller Service 1 Year | H17: 47.5 | K17: 100027 | L17: Caller Service 1 Year | M17: 69 | P17: 100027 | Q17: Caller Service 1 an | R17: 49.92 | U17: 100027 | V17: Servicio de Llamadas 1 año | W17: 49.92 | Z17: 100027 | AA17: Caller Service 1 rok | AB17: 1238.84 | AE17: 100027 | AF17: Cloud Caller 1 anno | AG17: 49.92 | AJ17: 100027 | AK17: Cloud Caller 1 Jahr | AL17: 64.77 | AO17: 100027 | AP17: Caller Service 1 rok | AQ17: 49.92 | AT17: 100027 | AU17: Caller Service 1 Jaar | AV17: 49.92 | AY17: Not done | AZ17: not translated yet | BA17: Not done | BD17: Not done | BE17: not translated yet | BF17: Not done | BH17: Not done | BI17: not translated yet | BJ17: Not done | BM17: Not done | BN17: not translated yet | BO17: Not done | BR17: Not done | BS17: not translated yet | BT17: Not done | BW17: Not done | BX17: not translated yet | BY17: Not done | CB17: Not done | CC17: not translated yet | CD17: Not done | CM17: 14 | CN17: 100027 | CO17: 100027 | CP17: 100027 | CQ17: 100027 | CR17: 100027 | CS17: 100027 | CT17: 100027 | CU17: 100027 | CV17: 100027 | CW17: 100027 | CX17: Not done | CY17: Not done | CZ17: Not done | DA17: Not done | DB17: Not done | DC17: Not done | DD17: Not done | DI17: Cloud Caller 1 Jahr | DJ17: Caller Service 1 Year | DK17: Caller Service 1 Year | DL17: Caller Service 1 an | DM17: Servicio de Llamadas 1 año | DN17: Caller Service 1 rok | DO17: Cloud Caller 1 anno | DP17: Cloud Caller 1 Jahr | DQ17: Caller Service 1 rok | DR17: Caller Service 1 Jaar | DS17: not translated yet | DT17: not translated yet | DU17: not translated yet | DV17: not translated yet | DW17: not translated yet | DX17: not translated yet | DY17: not translated yet | EE17: 49.92 | EF17: 47.5 | EG17: 69 | EH17: 49.92 | EI17: 49.92 | EJ17: 1238.84 | EK17: 49.92 | EL17: 64.77 | EM17: 49.92 | EN17: 49.92 | EO17: Not done | EP17: Not done | EQ17: Not done | ER17: Not done | ES17: Not done | ET17: Not done | EU17: Not done
A18: 100202 | B18: Cloud Caller 10 Jahre | C18: 290.83 | F18: 100028 | G18: Caller Service 10 Years | H18: 240 | K18: 100028 | L18: Caller Service 10 Years | M18: 325 | P18: 100028 | Q18: Caller Service 3 ans | R18: 290.83 | U18: 100028 | V18: Servicio de Llamadas 10 años | W18: 290.83 | Z18: 100028 | AA18: Caller Service 10 let | AB18: 7899 | AE18: 100028 | AF18: Cloud Caller 3 anni | AG18: 141.59 | AJ18: 100028 | AK18: Cloud Caller 3 Jahre | AL18: 165.74 | AO18: 100028 | AP18: Caller Service 10 let | AQ18: 279.2 | AT18: 100028 | AU18: Caller Service 3 Jaar | AV18: 141.59 | AY18: Not done | AZ18: not translated yet | BA18: Not done | BD18: Not done | BE18: not translated yet | BF18: Not done | BH18: Not done | BI18: not translated yet | BJ18: Not done | BM18: Not done | BN18: not translated yet | BO18: Not done | BR18: Not done | BS18: not translated yet | BT18: Not done | BW18: Not done | BX18: not translated yet | BY18: Not done | CB18: Not done | CC18: not translated yet | CD18: Not done | CM18: 15 | CN18: 100202 | CO18: 100028 | CP18: 100028 | CQ18: 100028 | CR18: 100028 | CS18: 100028 | CT18: 100028 | CU18: 100028 | CV18: 100028 | CW18: 100028 | CX18: Not done | CY18: Not done | CZ18: Not done | DA18: Not done | DB18: Not done | DC18: Not done | DD18: Not done | DI18: Cloud Caller 10 Jahre | DJ18: Caller Service 10 Years | DK18: Caller Service 10 Years | DL18: Caller Service 3 ans | DM18: Servicio de Llamadas 10 años | DN18: Caller Service 10 let | DO18: Cloud Caller 3 anni | DP18: Cloud Caller 3 Jahre | DQ18: Caller Service 10 let | DR18: Caller Service 3 Jaar | DS18: not translated yet | DT18: not translated yet | DU18: not translated yet | DV18: not translated yet | DW18: not translated yet | DX18: not translated yet | DY18: not translated yet | EE18: 290.83 | EF18: 240 | EG18: 325 | EH18: 290.83 | EI18: 290.83 | EJ18: 7899 | EK18: 141.59 | EL18: 165.74 | EM18: 279.2 | EN18: 141.59 | EO18: Not done | EP18: Not done | EQ18: Not done | ER18: Not done | ES18: Not done | ET18: Not done | EU18: Not done
A19: 100029 | B19: Dimmer Extension | C19: 373.33 | F19: 100029 | G19: Dimmer Extension | H19: 322.5 | K19: 100029 | L19: Dimmer Extension | M19: 499 | P19: 100029 | Q19: Extension Dimmer | R19: 373.33 | U19: 100029 | V19: Dimmer Extension | W19: 373.33 | Z19: 100029 | AA19: Dimmer Extension | AB19: 9338.02 | AE19: 100029 | AF19: Dimmer Extension | AG19: 373.33 | AJ19: 100029 | AK19: Dimmer Extension | AL19: 452.78 | AO19: 100029 | AP19: Dimmer Extension | AQ19: 373.33 | AT19: 100029 | AU19: Dimmer Extension | AV19: 373.33 | AY19: Not done | AZ19: not translated yet | BA19: Not done | BD19: Not done | BE19: not translated yet | BF19: Not done | BH19: Not done | BI19: not translated yet | BJ19: Not done | BM19: Not done | BN19: not translated yet | BO19: Not done | BR19: Not done | BS19: not translated yet | BT19: Not done | BW19: Not done | BX19: not translated yet | BY19: Not done | CB19: Not done | CC19: not translated yet | CD19: Not done | CM19: 16 | CN19: 100029 | CO19: 100029 | CP19: 100029 | CQ19: 100029 | CR19: 100029 | CS19: 100029 | CT19: 100029 | CU19: 100029 | CV19: 100029 | CW19: 100029 | CX19: Not done | CY19: Not done | CZ19: Not done | DA19: Not done | DB19: Not done | DC19: Not done | DD19: Not done | DI19: Dimmer Extension | DJ19: Dimmer Extension | DK19: Dimmer Extension | DL19: Extension Dimmer | DM19: Dimmer Extension | DN19: Dimmer Extension | DO19: Dimmer Extension | DP19: Dimmer Extension | DQ19: Dimmer Extension | DR19: Dimmer Extension | DS19: not translated yet | DT19: not translated yet | DU19: not translated yet | DV19: not translated yet | DW19: not translated yet | DX19: not translated yet | DY19: not translated yet | EE19: 373.33 | EF19: 322.5 | EG19: 499 | EH19: 373.33 | EI19: 373.33 | EJ19: 9338.02 | EK19: 373.33 | EL19: 452.78 | EM19: 373.33 | EN19: 373.33 | EO19: Not done | EP19: Not done | EQ19: Not done | ER19: Not done | ES19: Not done | ET19: Not done | EU19: Not done
A20: 0 | B20: No longer sold | C20: 0 | F20: 0 | G20: No longer sold | H20: 147.5 | K20: 100035 | L20: IR Set | M20: 229 | P20: 100035 | Q20: Kit IR | R20: 165.83 | U20: 100035 | V20: IR Set | W20: 165.83 | Z20: 100035 | AA20: IR Set | AB20: 4131.4 | AE20: 100035 | AF20: IR Set | AG20: 165.83 | AJ20: 100035 | AK20: IR Set | AL20: 221.3 | AO20: 100035 | AP20: IR Set | AQ20: 165.83 | AT20: 100035 | AU20: IR Set | AV20: 165.83 | AY20: Not done | AZ20: not translated yet | BA20: Not done | BD20: Not done | BE20: not translated yet | BF20: Not done | BH20: Not done | BI20: not translated yet | BJ20: Not done | BM20: Not done | BN20: not translated yet | BO20: Not done | BR20: Not done | BS20: not translated yet | BT20: Not done | BW20: Not done | BX20: not translated yet | BY20: Not done | CB20: Not done | CC20: not translated yet | CD20: Not done | CM20: 17 | CN20: 0 | CO20: 0 | CP20: 100035 | CQ20: 100035 | CR20: 100035 | CS20: 100035 | CT20: 100035 | CU20: 100035 | CV20: 100035 | CW20: 100035 | CX20: Not done | CY20: Not done | CZ20: Not done | DA20: Not done | DB20: Not done | DC20: Not done | DD20: Not done | DI20: No longer sold | DJ20: No longer sold | DK20: IR Set | DL20: Kit IR | DM20: IR Set | DN20: IR Set | DO20: IR Set | DP20: IR Set | DQ20: IR Set | DR20: IR Set | DS20: not translated yet | DT20: not translated yet | DU20: not translated yet | DV20: not translated yet | DW20: not translated yet | DX20: not translated yet | DY20: not translated yet | EE20: 0 | EF20: 147.5 | EG20: 229 | EH20: 165.83 | EI20: 165.83 | EJ20: 4131.4 | EK20: 165.83 | EL20: 221.3 | EM20: 165.83 | EN20: 165.83 | EO20: Not done | EP20: Not done | EQ20: Not done | ER20: Not done | ES20: Not done | ET20: Not done | EU20: Not done
